Workbook

Sheet Hinweise zur Benutzung

Sheet Input
A1: BHKW-Konzept | B1: INPUT
A2: Allgemeine Eingaben | B2: Bitte ausfüllen. Die Angaben werden in das Output-Blatt übernommen
A3: Anlagenbezeichnung | B3: Beispielanlage
A4: Ansprechpartner | B4: Mustermann, Max
A5: Ort | B5: Musterstadt
A6: Postleitzahl | B6: 12345
B7: Generische Daten sind als Vorschlag zu verstehen. Für individuelle Berechnungen bitte die technischen Daten des gewünschten BHKWs eintragen.
A8: Technische Daten | B8: Verwendete Werte | C8: Individuelle Eingabe
A9: Eingesetzer Brennstoff | B9: Erdgas
A10: =IF(B9="","Heizwert Brennstoff [kWh/Einheit]",IF(OR(B9="Biogas",B9="Klärgas",B9="Erdgas"),"Heizwert Brennstoff [kWh/m³]","Heizwert Brennstoff [kWh/l]")) -> Heizwert Brennstoff [kWh/m³] | B10: =IF(B9="","",IF(C10<>0,C10,VLOOKUP(1,Datenbank!B262:E266,4,FALSE))) -> 8.8 | D10: Heizwert des im BHKW eingesetzten Brennstoffs. Individuelle Eingabe möglich.
A11: Nennwärmeleistung BHKW [kW] | B11: =IF(C11<>0,C11,C57/8760/Sensitivitätsanalyse!K3) -> 218.7186073 | D11: Generischer Wert: Benötigte Dauerleistungum den Jahreswärmebedarf vollständigzu decken. Individuelle Eingabe möglich.
A12: Mindestwärmeleistung BHKW [kW] | B12: =IF(C12<>0,C12,B11*0.5) -> 109.3593037 | D12: Unteres Leistungsregelband der Nennwärmeleistung. Generischer Wert: 0,5 x Nennwärmeleistung. Individuelle Eingabe möglich.
A13: Soll ein Pufferspeicher berücksichtigt werden? | B13: Ja | D13: Ein Pufferspeicher erhöht die Laufzeit und damit die Jahreserzeugung des BHKWs.
A14: Elektrischer Nennwirkungsgrad [%] | B14: =IF(C14<>0,C14,Output!C13) -> 0.3689486079 | D14: Generischer Wert: Aus ASUE-Daten berechnet. Individuelle Eingabe möglich.
A15: Thermische Nennwirkungsgrad [%] | B15: =IF(C15<>0,C15,Output!C14) -> 0.5110831397 | D15: Generischer Wert: Aus ASUE-Daten berechnet. Individuelle Eingabe möglich.
A16: Gesamtwirkungsgrad [%] | B16: =IF(C57=0,"",B15+B14) -> 0.8800317476
A17: Elek. Nennleistung BHKW [kW] | B17: =IF(C17<>0,C17,B11*B14/B15) -> 157.8919737 | D17: Generischer Wert: Nennwärmeleistung x Stromkennzahl. Individuelle Eingabe möglich.
A18: Elektrischer Wirkungsgradabfall [%] | B18: =IF(ISBLANK(C18)=FALSE,C18,Datenbank!B212) -> 0.03 | D18: Elektrischer Wirkungsgradabfall von 100 % Volllast auf 50 % Teillast. Generischer Wert: 3 %-Punkte. Individuelle Eingabe möglich.
A19: Eigenverbrauch Strom [%] | B19: =IF(C19<>0,C19,0)*Sensitivitätsanalyse!$K$128 -> 0 | D19: Anteil des nicht ins Netz eingespeisten Stroms. Individuelle Eingabe möglich.
A20: Wärmeverluste im Netz [%] | B20: =IF(C20<>0,C20,Datenbank!B210) -> 0.1 | D20: Verluste, die beim Verteilen der Wärme vom Erzeuger zum Abnehmer auftreten. Generischer Wert: 10 %. Individuelle Eingabe möglich.
A21: Wärmeverluste durch Pufferspeicher [%] | B21: =IF(C21<>0,C21,Datenbank!B211) -> 0.02 | D21: Verluste, die beim Speichern der Wärme auftreten. Generischer Wert: 2 %. Individuelle Eingabe möglich.
A23: Input Wirtschaftlichkeit | B23: Alle generischen Kosten sind Nettokosten (ohne Mehrwertsteuer). Bruttozahler müssen die Mehrwertsteuer durch individuelle Eingabe berücksichtigen.
A24: Nutzungsdauer [a] | B24: 15 | D24: Individuelle Eingabe: Geplante Nutzungsdauer des BHKWs. Gemäß AfA-Liste: 15 Jahre
A26: Investmentkosten (CAPEX)
A27: Modulkosten [€] | B27: =IF(C27<>0,C27,Output!$C$17) -> 130422.7559 | D27: Generischer Wert: Gemäß ASUE BHKW-Kenndaten 2014/15. Individuelle Eingabe möglich.
A28: Einbindungskosten [€] | B28: =IF(C28<>0,C28,Output!$C$18) -> 58690.24015 | D28: Generischer Wert: Gemäß ASUE BHKW-Kenndaten 2014/15. Individuelle Eingabe möglich.
A29: Transport & Abnahme [€] | B29: =Output!$C$19 -> 7825.365353 | D29: Generischer Wert: Gemäß ASUE BHKW-Kenndaten 2014/15. Individuelle Eingabe möglich.
A30: =IF(B13="Ja","Pufferspeicher [€]","Zusätzliche Investition 1 [€]") -> Pufferspeicher [€] | B30: =IF(C30<>0,C30,IF(B13="Ja",40*B11,0)) -> 8748.744292 | D30: =IF(B13="Ja","Generischer Wert: 40 € pro kWh Speicherkapazität. 1 kWh Speicherkapazität pro kW Nennleistung des BHKWs. Individuelle Eingabe möglich.","") -> Generischer Wert: 40 € pro kWh Speicherkapazität. 1 kWh Speicherkapazität pro kW Nennleistung des BHKWs. Individuelle Eingabe möglich.
A31: =IF(B13="Ja","Zusätzliche Investition 1 [€]","Zusätzliche Investition 2 [€]") -> Zusätzliche Investition 1 [€] | B31: =IF(C31<>0,C31,0) -> 0
A32: =IF(B13="Ja","Zusätzliche Investition 2 [€]","Zusätzliche Investition 3 [€]") -> Zusätzliche Investition 2 [€] | B32: =IF(C32<>0,C32,0) -> 0
A34: Betriebsgebundene Kosten (OPEX)
A35: =IF(Input!B9="","Brennstoffkosten [€/Einheit]",IF(OR(Input!B9="Biogas",Input!B9="Klärgas",),"Brennstoffkosten [€/m³]",IF(Input!B9="Erdgas","Brennstoffkosten [€/kWh]","Brennstoffkosten [€/l]"))) -> Brennstoffkosten [€/kWh] | B35: =IF(C35<>0,C35,VLOOKUP(1,Datenbank!B262:F266,5,FALSE))*Sensitivitätsanalyse!$K$53 -> 0.0565 | D35: =IF(B9="Erdgas","Achtung: Für den Brennstoff Erdgas werden Brennstoffkosten meistens auf den Brennwert (Hs, Ho) bezogen angegeben. Hier muss der Preis bezogen auf den Heizwert (Hi, Hu) eingetragen werden. Dieser ergibt sich aus Preis (je kWh Hs,Ho) multipliziert mit 1,11","") -> Achtung: Für den Brennstoff Erdgas werden Brennstoffkosten meistens auf den Brennwert (Hs, Ho) bezogen angegeben. Hier muss der Preis bezogen auf den Heizwert (Hi, Hu) eingetragen werden. Dieser ergibt sich aus Preis (je kWh Hs,Ho) multipliziert mit 1,11
A36: Instandhaltungskosten [€/a] | B36: =IF(C36<>0,C36,Output!$C$26) -> 14510.83768
A37: Generalüberholung alle 5 Jahre [€/5a] | B37: =IF(C37<>0,C37,Output!$C$27) -> 30853.06585
A38: Andere laufende Kosten [€/a]
A40: Einsparung/Vergütung für eigenverbrauchten KWK-Strom
A41: Bruttostrombezugspreis der Liegenschaften [€/kWh] | B41: =C41*Sensitivitätsanalyse!$K$103 -> 0.24 | C41: 0.24 | D41: Individuelle Eingabe: Bruttostrombezugspreis der betrachteten Liegenschaften.
A42: EEG-Umlage [€/kWh] | B42: =IF(C42<>0,C42,Datenbank!I158) -> 0.0679 | D42: Der Betreiber muss die jeweils aktuell gültige EEG-Umlage auf seinen eigenverbrauchten Strom zahlen.
A43: Stromkostenersparnis der Liegenschaft [€/kWh] | B43: =B41-B42 -> 0.1721 | D43: Da der Betreiber der Liegenschaft auch auf den eigenverbrauchten Strom EEG-Umlage entrichten muss, spart er sich durch den Eigenverbrauch lediglich die Differenz aus Bruttostrombezugspreis der Liegenschaft und EEG-Umlage.
A44: Verbrauch in stromkostenintensiven Unternehmen? | B44: Nein | D44: Stromkostenintensive Unternehmen gemäß §2 Nr. 28 KWKG erhalten eine höhere Vergütung für eigenverbrauchten KWK-Strom
A45: Vergütung gem. KWKG bzw. EEG [€/kWh] | B45: =IF(C45<>0,C45,IF(B44="Ja",Datenbank!E185/100,Datenbank!E192/100)) -> 0 | D45: Der Betreiber erhält diese KWK-Vergütung auf seinen eigenverbrauchten Strom. Bei Anlagen, die nach EEG vergütet werden, gibt es keine Vergütung für den eigenverbrauchten KWK-Strom. http://www.bhkw-jetzt.de/foerderung/nach-eeg-2014/
A46: Anlegbarer Strompreis für Eigenverbrauch [€/kWh] | B46: =B41+B45-B42 -> 0.1721 | D46: Dies ist der Gesamtvorteil (Ersparnis + Vergütung) je kWh Eigenverbrauch. Dieser Wert wird in der Wirtschaftlichkeitsrechnung als Einnahmen berücksichtigt.
A48: Vergütung für Netzeinspeisung KWK-Strom
A49: Vergütung gem. KWKG bzw. EEG [€/kWh] | B49: =IF(C49<>0,C49,Datenbank!E166/100) -> 0.05 | D49: EEG-Vergütung ist nur bei mit Biomasse betriebenen Anlagen möglich (z.B. Biogas). Nach EEG vergütete Anlagen erhalten keine KWK-Vergütung. http://www.bhkw-jetzt.de/foerderung/nach-eeg-2014/
A50: Üblicher Preis (KWK-Index) oder Marktpreis [€/kWh] | B50: =IF(C50<>0,C50,Datenbank!I159) -> 0.0342 | D50: Üblicher Preis: Durchschnittspreis des letzten Quartals für Baseload an der EEX. https://www.eex.com/de/marktdaten/strom/spotmarkt/kwk-index. Eingespeister Strom über 100 kW muss selbst vermarktet werden, hier ist dann der erzielbare Marktpreis einzusetzen.
A51: Vermiedene Netznutzungskosten [€/kWh] | B51: =IF(C51<>0,C51,Datenbank!I160) -> 0.005 | D51: Diese Vergütung erhält der Betreiber der KWK-Anlage für eingespeisten Strom. Der tatsächliche Betrag hängt vom Einspeisepunkt ab und kann beim zuständigen Netzbetreiber erfragt werden.
A52: Anlegbarer Strompreis für Netzeinspeisung [€/kWh] | B52: =B49+B50+B51 -> 0.0892 | D52: Dieser Wert wird in der Wirtschaftlichkeitsrechnung als Einnahmen berücksichtigt.
A54: Anlegbarer Wärmepreis [€/kWh] | B54: 0.0565 | D54: Verrechnungspreis pro gelieferter kWh Wärme. Bei Eigenverbrauch: Wärmegestehungskosten der alternativen Erzeuger.
A55: Zusätzliche Einnahmen [€/a] | D55: Individuelle Eingabe: Mögliche zusätzliche jährliche Einnahmen, die durch das BHKW erziehlt werden.
A57: Abnehmerverzeichnis | B57: Gesamter Wärmebedarf | C57: =SUM(C59:C88)*Sensitivitätsanalyse!K3 -> 1915975 | D57: [kWh/a]
A58: Abnehmer | B58: SLP-Typ | C58: Wärmebedarf | D58: [kWh/a]
A59: Beispielliegenschaft 1 (Standardlastprofil) | B59: Gebietskörperschaft, Kreditinst, Vers., öffentl. Einr. | C59: =IF(D59<>0,D59,IF(B59="Bekanntes Profil 1",Lastprofile!$B$17,IF(B59="Bekanntes Profil 2",Lastprofile!$E$17,IF(B59="Bekanntes Profil 3",Lastprofile!$H$17," ")))) -> 857000 | D59: 857000
A60: Beispielliegenschaft 2 (Individuelles Lastprofil) | B60: Bekanntes Profil 1 | C60: =IF(D60<>0,D60,IF(B60="Bekanntes Profil 1",Lastprofile!$B$17,IF(B60="Bekanntes Profil 2",Lastprofile!$E$17,IF(B60="Bekanntes Profil 3",Lastprofile!$H$17," ")))) -> 1058975
C61: =IF(D61<>0,D61,IF(B61="Bekanntes Profil 1",Lastprofile!$B$17,IF(B61="Bekanntes Profil 2",Lastprofile!$E$17,IF(B61="Bekanntes Profil 3",Lastprofile!$H$17," ")))) -> 
C62: =IF(D62<>0,D62,IF(B62="Bekanntes Profil 1",Lastprofile!$B$17,IF(B62="Bekanntes Profil 2",Lastprofile!$E$17,IF(B62="Bekanntes Profil 3",Lastprofile!$H$17," ")))) -> 
C63: =IF(D63<>0,D63,IF(B63="Bekanntes Profil 1",Lastprofile!$B$17,IF(B63="Bekanntes Profil 2",Lastprofile!$E$17,IF(B63="Bekanntes Profil 3",Lastprofile!$H$17," ")))) -> 
C64: =IF(D64<>0,D64,IF(B64="Bekanntes Profil 1",Lastprofile!$B$17,IF(B64="Bekanntes Profil 2",Lastprofile!$E$17,IF(B64="Bekanntes Profil 3",Lastprofile!$H$17," ")))) -> 
C65: =IF(D65<>0,D65,IF(B65="Bekanntes Profil 1",Lastprofile!$B$17,IF(B65="Bekanntes Profil 2",Lastprofile!$E$17,IF(B65="Bekanntes Profil 3",Lastprofile!$H$17," ")))) -> 
C66: =IF(D66<>0,D66,IF(B66="Bekanntes Profil 1",Lastprofile!$B$17,IF(B66="Bekanntes Profil 2",Lastprofile!$E$17,IF(B66="Bekanntes Profil 3",Lastprofile!$H$17," ")))) -> 
C67: =IF(D67<>0,D67,IF(B67="Bekanntes Profil 1",Lastprofile!$B$17,IF(B67="Bekanntes Profil 2",Lastprofile!$E$17,IF(B67="Bekanntes Profil 3",Lastprofile!$H$17," ")))) -> 
C68: =IF(D68<>0,D68,IF(B68="Bekanntes Profil 1",Lastprofile!$B$17,IF(B68="Bekanntes Profil 2",Lastprofile!$E$17,IF(B68="Bekanntes Profil 3",Lastprofile!$H$17," ")))) -> 
C69: =IF(D69<>0,D69,IF(B69="Bekanntes Profil 1",Lastprofile!$B$17,IF(B69="Bekanntes Profil 2",Lastprofile!$E$17,IF(B69="Bekanntes Profil 3",Lastprofile!$H$17," ")))) -> 
C70: =IF(D70<>0,D70,IF(B70="Bekanntes Profil 1",Lastprofile!$B$17,IF(B70="Bekanntes Profil 2",Lastprofile!$E$17,IF(B70="Bekanntes Profil 3",Lastprofile!$H$17," ")))) -> 
C71: =IF(D71<>0,D71,IF(B71="Bekanntes Profil 1",Lastprofile!$B$17,IF(B71="Bekanntes Profil 2",Lastprofile!$E$17,IF(B71="Bekanntes Profil 3",Lastprofile!$H$17," ")))) -> 
C72: =IF(D72<>0,D72,IF(B72="Bekanntes Profil 1",Lastprofile!$B$17,IF(B72="Bekanntes Profil 2",Lastprofile!$E$17,IF(B72="Bekanntes Profil 3",Lastprofile!$H$17," ")))) -> 
C73: =IF(D73<>0,D73,IF(B73="Bekanntes Profil 1",Lastprofile!$B$17,IF(B73="Bekanntes Profil 2",Lastprofile!$E$17,IF(B73="Bekanntes Profil 3",Lastprofile!$H$17," ")))) -> 
C74: =IF(D74<>0,D74,IF(B74="Bekanntes Profil 1",Lastprofile!$B$17,IF(B74="Bekanntes Profil 2",Lastprofile!$E$17,IF(B74="Bekanntes Profil 3",Lastprofile!$H$17," ")))) -> 
C75: =IF(D75<>0,D75,IF(B75="Bekanntes Profil 1",Lastprofile!$B$17,IF(B75="Bekanntes Profil 2",Lastprofile!$E$17,IF(B75="Bekanntes Profil 3",Lastprofile!$H$17," ")))) -> 
C76: =IF(D76<>0,D76,IF(B76="Bekanntes Profil 1",Lastprofile!$B$17,IF(B76="Bekanntes Profil 2",Lastprofile!$E$17,IF(B76="Bekanntes Profil 3",Lastprofile!$H$17," ")))) -> 
C77: =IF(D77<>0,D77,IF(B77="Bekanntes Profil 1",Lastprofile!$B$17,IF(B77="Bekanntes Profil 2",Lastprofile!$E$17,IF(B77="Bekanntes Profil 3",Lastprofile!$H$17," ")))) -> 
C78: =IF(D78<>0,D78,IF(B78="Bekanntes Profil 1",Lastprofile!$B$17,IF(B78="Bekanntes Profil 2",Lastprofile!$E$17,IF(B78="Bekanntes Profil 3",Lastprofile!$H$17," ")))) -> 
C79: =IF(D79<>0,D79,IF(B79="Bekanntes Profil 1",Lastprofile!$B$17,IF(B79="Bekanntes Profil 2",Lastprofile!$E$17,IF(B79="Bekanntes Profil 3",Lastprofile!$H$17," ")))) -> 
C80: =IF(D80<>0,D80,IF(B80="Bekanntes Profil 1",Lastprofile!$B$17,IF(B80="Bekanntes Profil 2",Lastprofile!$E$17,IF(B80="Bekanntes Profil 3",Lastprofile!$H$17," ")))) -> 
C81: =IF(D81<>0,D81,IF(B81="Bekanntes Profil 1",Lastprofile!$B$17,IF(B81="Bekanntes Profil 2",Lastprofile!$E$17,IF(B81="Bekanntes Profil 3",Lastprofile!$H$17," ")))) -> 
C82: =IF(D82<>0,D82,IF(B82="Bekanntes Profil 1",Lastprofile!$B$17,IF(B82="Bekanntes Profil 2",Lastprofile!$E$17,IF(B82="Bekanntes Profil 3",Lastprofile!$H$17," ")))) -> 
C83: =IF(D83<>0,D83,IF(B83="Bekanntes Profil 1",Lastprofile!$B$17,IF(B83="Bekanntes Profil 2",Lastprofile!$E$17,IF(B83="Bekanntes Profil 3",Lastprofile!$H$17," ")))) -> 
C84: =IF(D84<>0,D84,IF(B84="Bekanntes Profil 1",Lastprofile!$B$17,IF(B84="Bekanntes Profil 2",Lastprofile!$E$17,IF(B84="Bekanntes Profil 3",Lastprofile!$H$17," ")))) -> 
C85: =IF(D85<>0,D85,IF(B85="Bekanntes Profil 1",Lastprofile!$B$17,IF(B85="Bekanntes Profil 2",Lastprofile!$E$17,IF(B85="Bekanntes Profil 3",Lastprofile!$H$17," ")))) -> 
C86: =IF(D86<>0,D86,IF(B86="Bekanntes Profil 1",Lastprofile!$B$17,IF(B86="Bekanntes Profil 2",Lastprofile!$E$17,IF(B86="Bekanntes Profil 3",Lastprofile!$H$17," ")))) -> 
C87: =IF(D87<>0,D87,IF(B87="Bekanntes Profil 1",Lastprofile!$B$17,IF(B87="Bekanntes Profil 2",Lastprofile!$E$17,IF(B87="Bekanntes Profil 3",Lastprofile!$H$17," ")))) -> 
C88: =IF(D88<>0,D88,IF(B88="Bekanntes Profil 1",Lastprofile!$B$17,IF(B88="Bekanntes Profil 2",Lastprofile!$E$17,IF(B88="Bekanntes Profil 3",Lastprofile!$H$17," ")))) -> 

Sheet Output
A1: BHKW-Konzept | B1: Übersicht technisch-wirtschaftliche Parameter und Ergebnisse
A2: Allgemeine Angaben | E2: Technische Ergebnisse
A3: Anlagenbezeichnung | C3: =Input!B3 -> Beispielanlage | E3: Eingespeiste elektrische Energie BHKW | F3: [kWh/a] | G3: =Lastprofile!Q19 -> 969096.3069
A4: Gesamtwärmebedarf | B4: [kWh/a] | C4: =Input!C57 -> 1915975 | E4: Eigenverbrauch elektrische Energie BHKW | F4: [kWh/a] | G4: =Lastprofile!P19 -> 0
A5: Ansprechpartner | C5: =Input!B4 -> Mustermann, Max | E5: Elektrische Energie BHKW gesammt | F5: [kWh/a] | G5: =SUM(G3:G4) -> 969096.3069
A6: Ort | C6: =Input!B5 -> Musterstadt
A7: Postleitzahl | C7: =Input!B6 -> 12345 | E7: Gesamterzeugung thermische Energie BHKW | F7: [kWh/a] | G7: =Lastprofile!U19 -> 1374320.18
E8: Wärmeverluste im Netz | F8: [kWh/a] | G8: =SUM(Lastprofile!AA20:AA384) -> 191597.5
A9: Technische Parameter BHKW | E9: Wärmeverluste im Pufferspeicher | F9: [kWh/a] | G9: =SUM(Lastprofile!Z20:Z384) -> 38319.5
A10: Brennstoff | C10: =Input!B9 -> Erdgas | E10: An Liegenschaft gelieferte Wärmemenge | F10: [kWh/a] | G10: =G7-G8-G9 -> 1144403.18
A11: Elektrische Leistung | B11: [kW] | C11: =Input!B17 -> 157.8919737
A12: Wärmeleistung | B12: [kW] | C12: =Input!B11 -> 218.7186073 | E12: Technische Kennzahlen
A13: Elektrischer Wirkungsgrad | B13: [%] | C13: =IF(Input!C14="",IF(VLOOKUP(1,Datenbank!D21:J43,7,FALSE)>0,VLOOKUP(1,Datenbank!D21:J43,7,FALSE),""),Input!C14) -> 0.3689486079 | E13: Vollbenutzungsstunden (VBH) | F13: [h/a] | G13: =SUM(G3:G4)/C11 -> 6137.717351
A14: Thermischer Wirkungsgrad | B14: [%] | C14: =IF(Input!C15="",IF(VLOOKUP(1,Datenbank!D47:J69,7,FALSE)>0,VLOOKUP(1,Datenbank!D47:J69,7,FALSE),""),Input!C15) -> 0.5110831397 | E14: Deckungsgrad Wärmebedarf durch BHKW | F14: [%] | G14: =G10/C4 -> 0.5972954657
E15: Eigenverbrauchsanteil KWK-Strom | F15: [%] | G15: =Input!B19 -> 0
A16: Investitionskosten
A17: Modulkosten | B17: [€] | C17: =IF(Input!C27<>0,Input!C27,VLOOKUP(1,Datenbank!D75:K102,8,FALSE))*Sensitivitätsanalyse!$K$28 -> 130422.7559 | E17: Wirtschaftlichkeitskennzahlen
A18: Einbindungskosten | B18: [€] | C18: =IF(Input!C28<>0,Input!C28,Datenbank!F137)*Sensitivitätsanalyse!$K$28 -> 58690.24015 | E18: VDI2067
A19: Transport & Abnahme | B19: [€] | C19: =IF(Input!C29<>0,Input!C29,Datenbank!F150)*Sensitivitätsanalyse!$K$28 -> 7825.365353 | E19: Berechnungszeitraum [a] | F19: [a] | G19: =VDI!B26 -> 15
A20: =IF(Input!B13="Ja","Pufferspeicher","Zusätzliche Investition 1") -> Pufferspeicher | B20: [€] | C20: =Input!B30*Sensitivitätsanalyse!$K$28 -> 8748.744292 | E20: Kalkulationszinsatz | F20: [%] | G20: =VDI!A29 -> 0.07
A21: =IF(Input!B13="Ja","Zusätzliche Investition 1","Zusätzliche Investition 2") -> Zusätzliche Investition 1 | B21: [€] | C21: =Input!B31*Sensitivitätsanalyse!$K$28 -> 0 | E21: Annuitäsfaktor | G21: =VDI!E28 -> 0.1097946247
A22: =IF(Input!B13="Ja","Zusätzliche Investition 2","Zusätzliche Investition 3") -> Zusätzliche Investition 2 | B22: [€] | C22: =Input!B32*Sensitivitätsanalyse!$K$28 -> 0 | E22: Gesamtannuität | F22: [€] | G22: =VDI!K32 -> -48325.26161
A23: Gesamtkosten | B23: [€] | C23: =SUM(C17:C22) -> 205687.1057
E24: DCF
A25: Wartungskosten | E25: Interner Zinsfuß | F25: [%] | G25: =DCF!K7 -> 
A26: Instandhaltung | B26: [€/a] | C26: =VLOOKUP(1,Datenbank!D106:K133,8,FALSE) -> 14510.83768 | E26: Nettobarwert | F26: [€] | G26: =DCF!K5 -> -440749.5907
A27: Generalüberholung | B27: [€/5a] | C27: =0.15*C23 -> 30853.06585
A29: Einnahmen
A30: =Input!A44 -> Verbrauch in stromkostenintensiven Unternehmen? | C30: =Input!B44 -> Nein
A31: Ins Netz eingespeister Strom | B31: [€/a] | C31: =VDI!E11 -> 86443.39057
A32: Eigenverbrauchter Strom | B32: [€/a] | C32: =VDI!E17 -> 0
A33: Wärme | B33: [€/a] | C33: =VDI!E6 -> 64658.77966
A34: Gesamt | B34: [€/a] | C34: =SUM(C31:C33) -> 151102.1702
O52: gewählt
N54: KWK-Gesetz | O54: FALSE | P54: =IF(O54=TRUE,1,0) -> 0
N55: Bafa-Förderung | O55: FALSE | P55: 0
N56: Energiesteuererstattung | O56: FALSE | P56: 0
N57: Förderung nach EEG 2014 | O57: TRUE | P57: 1
N58: KfW-Förderung | O58: FALSE | P58: 0
N59: EEG-Umlage | O59: TRUE | P59: 1
A62: KWK-Gesetz | F62: eingespeister KWK-Strom | H62: selbsgenutzter KWK-Strom | J62: Contracting*
C63: elektr. Leistung | F63: Zuschlag | G63: Förderdauer | H63: Zuschlag | I63: Förderdauer | J63: Zuschlag | K63: Förderdauer
C64: [kW] | F64: [Cent/kWh] | G64: [hVB] | H64: [Cent/kWh] | I64: [hVB] | J64: [Cent/kWh] | K64: [hVB]
C65: 0 | E65: 50 | F65: 8 | G65: 60000 | H65: 4 | I65: 60000 | J65: 4 | K65: 60000
C66: 50 | E66: 100 | F66: 6 | G66: 30000 | H66: 3 | I66: 30000 | J66: 3 | K66: 30000
C67: 100 | E67: 250 | F67: 5 | G67: 30000 | J67: 2 | K67: 30000
C68: 250 | E68: 2000 | F68: 4.4 | G68: 30000 | J68: 1.5 | K68: 30000
C69: 2000 | E69: 20000 | F69: 3.1 | G69: 30000 | J69: 1 | K69: 30000
J70: *soweit für Strom volle EEG-Umlage entrichtet wird
C72: -> bei stromkostenintensiven Unternehmen: KWK-G 2012-Fördersätze für selbstgenutzten Strom werden bezahlt
C74: Förderung von Bestandsanlagen
C75: Anzahl Vollbenutzungsstunden, für die Förderung ausbezahlt wird:
F77: aktuell | G77: 16000
F78: ab 01.01.17 | G78: 16000 minus tats. Anzahl VBS (mind.4000h)
F79: ab 01.01.18 | G79: Zuschlagszahlung voriges Jahr minus tats. Anzahl VBS (mind.4000h)
F80: ab 01.01.19 | G80: Zuschlagszahlung voriges Jahr minus tats. Anzahl VBS (mind.4000h)
F81: ab 01.01.20 | G81: …
C83: -> hocheff. Erdgas-KWK's (für Versorgung von Letztverbrauchern konzipiert, Leistung >2MW):
F84: 1.5 | G84: ct/kWh | H84: (zeitlich befristet!)
C86: Wärmenetze
C87: 1 €/m Trassenlänge (nur VL) für Aus- und Neubau von Wärmenetzen
C88: Förderung max. 20 % der ansatzfähigen Investitionskosten, max. 5 Mio. € pro Projekt
C90: ->bei allen Förderungen sind bestimmte Voraussetzungen zu erfüllen, bitte an Berater wenden!
A92: Bafa-Förderung | C92: einmaliger Investitionszuschuss für Mini-KWK-Anlagen
C94: elektr. Leistung | F94: Zuschüsse nach neuer und alter Richtlinie
C95: [kW] | F95: Antragseingang
F96: ab 01.01.2015 | G96: bis 31.12.2014
C97: < | E97: 1 | F97: 1900 | G97: 1425
C98: > | E98: 2 | F98: 2200 | G98: 1710
C99: > | E99: 3 | F99: 2500 | G99: 1995
C100: > | E100: 4 | F100: 2800 | G100: 2280
C101: > | E101: 5 | F101: 2900 | G101: 2375
C102: > | E102: 6 | F102: 3000 | G102: 2470
C103: > | E103: 7 | F103: 3100 | G103: 2565
C104: > | E104: 8 | F104: 3200 | G104: 2660
C105: > | E105: 9 | F105: 3300 | G105: 2755
C106: > | E106: 10 | F106: 3400 | G106: 2850
C107: > | E107: 11 | F107: 3410 | G107: 2898
C108: > | E108: 12 | F108: 3420 | G108: 2945
C109: > | E109: 13 | F109: 3430 | G109: 299.3
C110: > | E110: 14 | F110: 3440 | G110: 3040
C111: > | E111: 15 | F111: 3450 | G111: 3088
C112: > | E112: 16 | F112: 3460 | G112: 3135
C113: > | E113: 17 | F113: 3470 | G113: 3183
C114: > | E114: 18 | F114: 3480 | G114: 3230
C115: > | E115: 19 | F115: 3490 | G115: 3278
C116: < | E116: 20 | F116: 3500 | G116: 3325
C118: Bonusförderung
C119: für besonders energieeffiziente Mini-KWK-Anlagen
C121: Wärmeeffizienzbonus | G121: 25 | H121: % | I121: der Basisförderung
C122: für Mini-KWK-Anlagen, die mit einem (zweiten) Abgaswärmetauscher zur Brennwertnutzung ausgestattet und and ein hydraulisch abgeglichenes Heizungssystem angeschlossen sind.
C123: Stromeffizienzbonus | G123: 60 | H123: % | I123: der Basisförderung
C124: für Anlagen mit einem besonders hohen elektr. Wirkungsgrad gemäß folgender Tabelle gewährt:
H125: elektr. Leistung | J125: elektrischer Wirkungsgrad
H126: [kW] | J126: größer als
H127: 0 | I127: 1 | J127: 31 | K127: %
H128: 1 | I128: 4 | J128: 31 | K128: %
H129: 4 | I129: 10 | J129: 33 | K129: %
H130: 10 | I130: 20 | J130: 35 | K130: %
A132: Energiesteuererstattung | C132: bis zu 2 MW
C133: Vorraussetzung: hocheffizient; Nutzungsgrad für den Entlastungszeitraum beträgt wenigstens 70%
C134: Förderdauer: | F134: Zeit, in der Hauptbestandteile in der Abschreibung sind
C135: Bei Erneuerung (50% Mehrkosten als Neuerrichtung) verlängert sich Frist (um Abschreibungszeitraum der Neuteile)
C136: Sind Vorraussetzungen nicht erfüllt, aber Nutzungsgrad 70%->Entlastung bis zum Mindeststeuersatz gemäß EU-Steuerrichtlinie:
C138: dieser beträt bei | F138: Erdgas | G138: 1.08 | H138: €/MWh | I138: bzw. | J138: 0.54 | K138: €/MWh
F139: Flüssiggas | G139: 0 | H139: €/1000kg | I139: ??
F140: HEL | G140: 21 | H140: €/1000l
A142: Förderung nach EEG 2014 | C142: Direktvermarktung
C144: gilt für Anlagen ab 500 kW; ab 2016 ab 100 kW!!
C145: Dadurch erhält Anlagenbetreiber zusätzlich zum erzielte Preis an der Börse nur noch die sogenannte Marktprämie
C147: Direktvermarktung mit Marktprämie
C149: elektr. Leistung | F149: Strom aus Biomasse | G149: Vergärung von Bioabfällen | H149: Vergärung von Gülle
C150: [kW] | F150: [Cent/kWh] | G150: [Cent/kWh] | I150: [Cent/kWh]
C151: 100 | E151: 150 | F151: 13.66 | G151: 15.26 | H151: max. 75 kW: | I151: 23.73
C152: 150 | E152: 500 | F152: 11.78 | G152: 15.26 | H152: weitere Vorgaben siehe Quelle
C153: 500 | E153: 5000 | F153: 10.55 | G153: 13.3
C154: 5000 | E154: 20000 | F154: 5.85 | G154: 13.3
C156: Für Betreiber von Biogasanlagen, die sich für eine Direktvermarktung entscheiden, git es eine Flexiblitätsprämie!
C158: Förderung nach EEG 2012
C160: Vergütungssatz hängt von Energiequelle, Anlagengröße, Inbetriebnahme (jährliche Degression) ab
C162: Biomasse
C163: Grundvergütung
C164: elektr. Leistung
C165: [kW] | F165: [Cent/kWh]
C166: bis | E166: 150 | F166: 14.3
E167: 500 | F167: 12.3
E168: 5000 | F168: 11
E169: 20000 | F169: 6
C171: zusätzliche Vergütung der Einsatzstoffvergütungsklasse I (für den Stromanteil aus Einsatzstoffen gemäß Anlage 2 der Biomasseverordnung)
C172: elektr. Leistung
C173: [kW] | F173: [Cent/kWh]
C174: bis | E174: 500 | F174: 6
E175: 750 | F175: 5
E176: 5000 | F176: 4
C177: für Strom aus Rinde oder aus Waldrestholz
C178: von über | E178: bis
C179: 500 | E179: 5000 | F179: 2.5
C181: zusätzliche Vergütung der Einsatzstoffvergütungsklasse II (für den Stromanteil aus Einsatzstoffen gemäß Anlage 3 der Biomasseverordnung)
C182: elektr. Leistung
C183: [kW] | F183: [Cent/kWh]
C184: bis | E184: 500 | F184: 8
E185: 5000 | F185: 8
E186: 5000 | F186: 6 | G186: Strom aus Gülle!
C188: Die Einsatzstoffvergütung erfolgt anteilig, verschiedene Einsatzstoffe können gemischt werden
C190: Verschiedene Vorraussetzungen müssen erfüllt sein
C192: Biogas (aus Erdgasnetz entnommen)
C193: Biomethan
C194: kann bis einer Bemessungsgrundlage von 5MW um einen Aufbereitungs-Bonus erhöht werden, bei einer Nennleistung der Gasaufbereitungsanlage von
C196: max. | E196: 700 | F196: Nm³ aufbereitetem Biogas pro Stunde | I196: 3 | J196: ct/kWh
C197: max. | E197: 1000 | F197: Nm³ aufbereitetem Biogas pro Stunde | I197: 2 | J197: ct/kWh
C198: max. | E198: 1400 | F198: Nm³ aufbereitetem Biogas pro Stunde | I198: 1 | J198: ct/kWh
C200: für Anlagen größer 5MW (bis zu Leistungsanteil von 20 MW) können ebenfalls anteilig die oben genannten Vergütungen in Anspruch genommen werden!!!!!
C202: Bioabfallvergärungsanlagen
C203: kalenderjährlicher Einsatz von mind. 90m% best. Bioabfälle und aus kleinen Gülle-Biogasanlagen von mind. 80 m% wird gesondert vergütet:
C205: elektr. Leistung
C206: [kW] | F206: [Cent/kWh]
C207: bis | E207: 500 | F207: 16
E208: 20000 | F208: 14
E210: 75 | F210: 25 | G210: kleine Gülle-Biogasanlage
C212: besondere Vergütungsanforderungen!
A214: KfW-Förderung | C214: Im Rahmen der Baufinanzierung, zinsgünstiger Kredit oder sogar Zuschuss
C216: Investitionszuschuss | F216: 7.5
C217: Maximum | F217: 3750
C218: ODER
C219: Kredit mit | F219: 1
C220: Laufzeit | F220: 4 - 30
C222: oft nicht mit Bafa-Förderung kombinierbar!

Sheet Sensitivitätsanalyse
A1: BHKW-Konzept | B1: Sensitivitätsanalyse (Ein negativer interner Zinsfuß wird von BHKW-Konzept mit "0" angezeigt)
H3: Wertetabelle Veränderung Wärmebedarf | K3: 1
H5: VDI 2067 | I5: DCF | J5: Int. Zinsfuß
H6: =VDI!$K$31-SUM(VDI!$K$27:$K$30) -> -48325.26161 | I6: =DCF!$K$5+DCF!$H$13*(1+DCF!$H$12)^(-(DCF!$C$24+DCF!$B$4)) -> -440749.5907 | J6: =IRR(DCF!$B$52:$AP$52,0) -> 
F7: =G7*Input!$C$57 -> 191597.5 | G7: 0.1 | H7: -45667.36712 | I7: -357389.5106
F8: =G8*Input!$C$57 -> 383195 | G8: 0.2 | H8: -45851.20822 | I8: -364495.0537
F9: =G9*Input!$C$57 -> 766390 | G9: 0.4 | H9: -46319.99237 | I9: -379536.8226
F10: =G10*Input!$C$57 -> 1149585 | G10: 0.6 | H10: -46912.0445 | I10: -393737.672
F11: =G11*Input!$C$57 -> 1532780 | G11: 0.8 | H11: -47604.88561 | I11: -407982.8879
F12: =G12*Input!$C$57 -> 1915975 | G12: 1 | H12: -48325.26161 | I12: -440749.5907
F13: =G13*Input!$C$57 -> 2299170 | G13: 1.2 | H13: -49110.88533 | I13: -454804.1263
F14: =G14*Input!$C$57 -> 2682365 | G14: 1.4 | H14: -49936.45792 | I14: -468804.5557
F15: =G15*Input!$C$57 -> 3065560 | G15: 1.6 | H15: -50821.81167 | I15: -482865.1327
F16: =G16*Input!$C$57 -> 3448755 | G16: 1.8 | H16: -51776.6782 | I16: -497063.4749
F17: =G17*Input!$C$57 -> 3640352.5 | G17: 1.9 | H17: -52276.43239 | I17: -504207.8258
H28: Wertetabelle Veränderung Investitionskosten | K28: 1
H30: VDI 2067 | I30: DCF | J30: Int. Zinsfuß
H31: =VDI!$K$31-SUM(VDI!$K$27:$K$30) -> -48325.26161 | I31: =DCF!$K$5+DCF!$H$13*(1+DCF!$H$12)^(-(DCF!$C$24+DCF!$B$4)) -> -440749.5907 | J31: =IRR(DCF!$B$52:$AP$52,0) -> 
F32: =G32*Output!$C$23 -> 20568.71057 | G32: 0.1 | H32: -10927.49839 | I32: -226368.6615
F33: =G33*Output!$C$23 -> 41137.42114 | G33: 0.2 | H33: -15082.80542 | I33: -250188.7647
F34: =G34*Output!$C$23 -> 82274.84227 | G34: 0.4 | H34: -23393.41947 | I34: -297828.9712
F35: =G35*Output!$C$23 -> 123412.2634 | G35: 0.6 | H35: -31704.03351 | I35: -345469.1777
F36: =G36*Output!$C$23 -> 164549.6845 | G36: 0.8 | H36: -40014.64756 | I36: -393109.3842
F37: =G37*Output!$C$23 -> 205687.1057 | G37: 1 | H37: -48325.26161 | I37: -440749.5907
F38: =G38*Output!$C$23 -> 246824.5268 | G38: 1.2 | H38: -56635.87566 | I38: -488389.7972
F39: =G39*Output!$C$23 -> 287961.9479 | G39: 1.4 | H39: -64946.48971 | I39: -536030.0037
F40: =G40*Output!$C$23 -> 329099.3691 | G40: 1.6 | H40: -73257.10375 | I40: -583670.2102
F41: =G41*Output!$C$23 -> 370236.7902 | G41: 1.8 | H41: -81567.7178 | I41: -631310.4167
F42: =G42*Output!$C$23 -> 390805.5008 | G42: 1.9 | H42: -85723.02483 | I42: -655130.52
H53: Wertetabelle Veränderung Brennstoffkosten | K53: 1
H55: VDI 2067 | I55: DCF | J55: Int. Zinsfuß
H56: =VDI!$K$31-SUM(VDI!$K$27:$K$30) -> -48325.26161 | I56: =DCF!$K$5+DCF!$H$13*(1+DCF!$H$12)^(-(DCF!$C$24+DCF!$B$4)) -> -440749.5907 | J56: =IF(ISERR(IRR(DCF!$B$52:$AP$52,0)),"",IRR(DCF!$B$52:$AP$52,0)) -> 
F57: =G57*Input!$B$35 -> 0.00565 | G57: 0.1 | H57: 115061.9057 | I57: 1286839.205 | J57: 0.6062554948
F58: =G58*Input!$B$35 -> 0.0113 | G58: 0.2 | H58: 96907.77599 | I58: 1094884.894 | J58: 0.5310933896
F59: =G59*Input!$B$35 -> 0.0226 | G59: 0.4 | H59: 60599.51659 | I59: 710976.2731 | J59: 0.3782930182
F60: =G60*Input!$B$35 -> 0.0339 | G60: 0.6 | H60: 24291.25719 | I60: 327067.6518 | J60: 0.215600086
F61: =G61*Input!$B$35 -> 0.0452 | G61: 0.8 | H61: -12017.00221 | I61: -56840.96944 | J61: -0.004574187532
F62: =G62*Input!$B$35 -> 0.0565 | G62: 1 | H62: -48325.26161 | I62: -440749.5907
F63: =G63*Input!$B$35 -> 0.0678 | G63: 1.2 | H63: -84633.52101 | I63: -824658.212
F64: =G64*Input!$B$35 -> 0.0791 | G64: 1.4 | H64: -120941.7804 | I64: -1208566.833
F65: =G65*Input!$B$35 -> 0.0904 | G65: 1.6 | H65: -157250.0398 | I65: -1592475.455
F66: =G66*Input!$B$35 -> 0.1017 | G66: 1.8 | H66: -193558.2992 | I66: -1976384.076
F67: =G67*Input!$B$35 -> 0.10735 | G67: 1.9 | H67: -211712.4289 | I67: -2168338.387
H78: Wertetabelle Veränderung anlegbarer Wärmepreis | K78: 1
H80: VDI 2067 | I80: DCF | J80: Int. Zinsfuß
H81: =VDI!$K$31-SUM(VDI!$K$27:$K$30) -> -48325.26161 | I81: =DCF!$K$5+DCF!$H$13*(1+DCF!$H$12)^(-(DCF!$C$24+DCF!$B$4)) -> -440749.5907 | J81: =IRR(DCF!$B$52:$AP$52,0) -> 
F82: =G82*Input!$B$54 -> 0.00565 | G82: 0.1 | H82: -124813.2633 | I82: -1175979.33
F83: =G83*Input!$B$54 -> 0.0113 | G83: 0.2 | H83: -122495.4451 | I83: -1094287.136
F84: =G84*Input!$B$54 -> 0.0226 | G84: 0.4 | H84: -113224.1722 | I84: -930902.75
F85: =G85*Input!$B$54 -> 0.0339 | G85: 0.6 | H85: -97772.0506 | I85: -767518.3636
F86: =G86*Input!$B$54 -> 0.0452 | G86: 0.8 | H86: -76139.08042 | I86: -604133.9771
F87: =G87*Input!$B$54 -> 0.0565 | G87: 1 | H87: -48325.26161 | I87: -440749.5907
F88: =G88*Input!$B$54 -> 0.0678 | G88: 1.2 | H88: -14330.59418 | I88: -277365.2043
F89: =G89*Input!$B$54 -> 0.0791 | G89: 1.4 | H89: 25844.92188 | I89: -113980.8179 | J89: -0.06568254567
F90: =G90*Input!$B$54 -> 0.0904 | G90: 1.6 | H90: 72201.28656 | I90: 49403.56854 | J90: 0.0726306877
F91: =G91*Input!$B$54 -> 0.1017 | G91: 1.8 | H91: 124738.4999 | I91: 212787.955 | J91: 0.1617289104
F92: =G92*Input!$B$54 -> 0.10735 | G92: 1.9 | H92: 153324.9247 | I92: 294480.1482 | J92: 0.2006679229
H103: Wertetabelle Veränderung anlegbarer Strompreis | K103: 1
H105: VDI 2067 | I105: DCF | J105: Int. Zinsfuß
H106: =VDI!$K$31-SUM(VDI!$K$27:$K$30) -> -48325.26161 | I106: =DCF!$K$5+DCF!$H$13*(1+DCF!$H$12)^(-(DCF!$C$24+DCF!$B$4)) -> -440749.5907 | J106: =IRR(DCF!$B$52:$AP$52,0) -> 
F107: =G107*Input!$C$41 -> 0.024 | G107: 0.1 | H107: -48325.26161 | I107: -440749.5907
F108: =G108*Input!$C$41 -> 0.048 | G108: 0.2 | H108: -48325.26161 | I108: -440749.5907
F109: =G109*Input!$C$41 -> 0.096 | G109: 0.4 | H109: -48325.26161 | I109: -440749.5907
F110: =G110*Input!$C$41 -> 0.144 | G110: 0.6 | H110: -48325.26161 | I110: -440749.5907
F111: =G111*Input!$C$41 -> 0.192 | G111: 0.8 | H111: -48325.26161 | I111: -440749.5907
F112: =G112*Input!$C$41 -> 0.24 | G112: 1 | H112: -48325.26161 | I112: -440749.5907
F113: =G113*Input!$C$41 -> 0.288 | G113: 1.2 | H113: -48325.26161 | I113: -440749.5907
F114: =G114*Input!$C$41 -> 0.336 | G114: 1.4 | H114: -48325.26161 | I114: -440749.5907
F115: =G115*Input!$C$41 -> 0.384 | G115: 1.6 | H115: -48325.26161 | I115: -440749.5907
F116: =G116*Input!$C$41 -> 0.432 | G116: 1.8 | H116: -48325.26161 | I116: -440749.5907
F117: =G117*Input!$C$41 -> 0.456 | G117: 1.9 | H117: -48325.26161 | I117: -440749.5907
H128: Wertetabelle Veränderung Eigenverbrauch Strom | K128: 1
H130: VDI 2067 | I130: DCF | J130: Int. Zinsfuß
H131: =VDI!$K$31-SUM(VDI!$K$27:$K$30) -> -48325.26161 | I131: =DCF!$K$5+DCF!$H$13*(1+DCF!$H$12)^(-(DCF!$C$24+DCF!$B$4)) -> -440749.5907 | J131: =IRR(DCF!$B$52:$AP$52,0) -> 
F132: =G132*Input!$B$19 -> 0 | G132: 0.1 | H132: -48325.26161 | I132: -440749.5907
F133: =G133*Input!$B$19 -> 0 | G133: 0.2 | H133: -48325.26161 | I133: -440749.5907
F134: =G134*Input!$B$19 -> 0 | G134: 0.4 | H134: -48325.26161 | I134: -440749.5907
F135: =G135*Input!$B$19 -> 0 | G135: 0.6 | H135: -48325.26161 | I135: -440749.5907
F136: =G136*Input!$B$19 -> 0 | G136: 0.8 | H136: -48325.26161 | I136: -440749.5907
F137: =G137*Input!$B$19 -> 0 | G137: 1 | H137: -48325.26161 | I137: -440749.5907
F138: =G138*Input!$B$19 -> 0 | G138: 1.2 | H138: -48325.26161 | I138: -440749.5907
F139: =G139*Input!$B$19 -> 0 | G139: 1.4 | H139: -48325.26161 | I139: -440749.5907
F140: =G140*Input!$B$19 -> 0 | G140: 1.6 | H140: -48325.26161 | I140: -440749.5907
F141: =G141*Input!$B$19 -> 0 | G141: 1.8 | H141: -48325.26161 | I141: -440749.5907
F142: =G142*Input!$B$19 -> 0 | G142: 1.9 | H142: -48325.26161 | I142: -440749.5907

Sheet VDI
A1: BHKW-Konzept | B1: Berechnung der Wirtschaftlichkeit gemäß VDI 2067 (Ergebnisse der Berechnungen: siehe Blatt "Output") | G1: Die ersten Positionen werden aus dem Blatt "Input" übernommen. Zusätzlich ist die Angabe weiterer Investitionen hier möglich. Die zusätzlichen Positionen wirken sich nur auf die Berechnungen nach VDI 2067 aus, nicht auf die Berechnungen gemäß der Discounted-Cashflow-Methode.
A2: Allgemeine Angaben: | G2: Tabelle 1 | K2: Generische Werte: VDI 2067. Individuelle Eingabe möglich. | R2: Tabelle 2
A3: Nutzungsdauer | B3: =Input!B24 -> 15 | D3: Einnahmen aus Wärme | G3: Komponenten Nr. | H3: Nutzungsdauer des BHKWs [a] | I3: Ersatzhäufigkeit der aufgeführten Komponente während der Nutzungsdauer des BHKWs | J3: Bauteilbezeichnung | K3: Faktor für Instandhaltung | M3: Aufwand für Bedienung | O3: Aufwand für Bedienung | P3: Investitionsbetrag | R3: Komponenten Nr. | S3: Barwert der Ersatzinvestitionen | W3: Barwert des Restwerts | X3: Summe der Barwerte | Y3: Summe der Barwerte * a(Annuität) der kapitalgebundenen Zahlungen | Z3: Barwert Instandhaltungskosten | AA3: Annuität der Instandhaltungskosten
D4: Preis [€/kWh] | E4: =Input!B54*Sensitivitätsanalyse!$K$78 -> 0.0565 | K4: fK=(fInst + fW+Insp) [%] | M4: [h/a] | O4: €/a | P4: A0 | S4: A1 | T4: A2 | U4: A3 | V4: A4 | W4: RW | X4: A0 + A1 + … + A4 - RW | Y4: ANK | Z4: fK * A0 * bIN | AA4: AIN = fK*A0*bIN*a
A5: Investment | B5: =SUM(B6:B11) -> 205687.1057 | D5: Energieerzeugung [kWh/a] | E5: =Output!G10 -> 1144403.18 | G5: 1 | H5: =IF(J5="","",Input!B24) -> 15 | I5: 0 | J5: =A6 -> Modulkosten | K5: =IF($J5="","",IF(L5<>0,L5,0.08)) -> 0.08 | M5: =IF($J5="","",IF(AND(N5>=0,N5<>""),N5,100)) -> 100 | N5: 100 | O5: =IF(B6=0,0,IF(I5="","",$B$27*M5)) -> 3500 | P5: =B6 -> 130422.7559 | S5: 1 | T5: 2 | U5: 3 | V5: 4
A6: Modulkosten | B6: =Input!B27 -> 130422.7559 | D6: Einnahmen [€/a] | E6: =E4*E5*Sensitivitätsanalyse!$K$78 -> 64658.77966 | G6: 2 | I6: 0 | J6: Einbindungskosten | K6: =IF(J6="","",IF(L6<>0,L6,0.08)) -> 0.08 | M6: 0 | N6: 0 | O6: 0 | P6: 58690.24015 | R6: 1 | S6: =IF($I5>S$5-1,$P5*($C$30^(S$5*$H$5))/($C$29^(S$5*$H$5)),"") ->  | T6: =IF($I5>T$5-1,$P5*($C$30^(T$5*$H$5))/($C$29^(T$5*$H$5)),"") ->  | W6: =IF(S6="","0",$P5*($C$30^($I5*$H$5))*((($I5+1)*$H$5-$B$26)/$H$5)*(1/($C$29^$B$26))) -> 0 | X6: =P5+SUM(S6:V6)-W6 -> 130422.7559 | Y6: =($X6*$E$28) -> 14319.71753 | Z6: =IF($J5="","",($K5*$P5*$E$33)) -> 106883.0924 | AA6: =(Z6*$E$28) -> 11735.18901
A7: Einbindungskosten | B7: =Input!B28 -> 58690.24015 | G7: 3 | I7: 0 | J7: Transport & Abnahme | K7: 0.08 | M7: 0 | N7: 0 | O7: 0 | P7: 7825.365353 | R7: 2 | S7: =IF($I6>S$5-1,$P6*($C$30^(S$5*$H$5))/($C$29^(S$5*$H$5)),"") ->  | T7: =IF($I6>T$5-1,$P6*($C$30^(T$5*$H$5))/($C$29^(T$5*$H$5)),"") ->  | U7: =IF($I6>U$5-1,$P6*($C$30^(U$5*$H$5))/($C$29^(U$5*$H$5)),"") ->  | V7: =IF($I6>V$5-1,$P6*($C$30^(V$5*$H$5))/($C$29^(V$5*$H$5)),"") ->  | W7: =IF(S7="","0",$P6*($C$30^($I6*$H$5))*((($I6+1)*$H$5-$B$26)/$H$5)*(1/($C$29^$B$26))) -> 0 | X7: 58690.24015 | Y7: 6443.872891 | Z7: 48097.39156 | AA7: =(Z7*$E$28) -> 5280.835056
A8: Transport & Abnahme | B8: =Input!B29 -> 7825.365353 | D8: Einnahmen aus ins Netz eingespeisten KWK-Strom | G8: 4 | I8: 0 | J8: Pufferspeicher [€] | K8: 0.08 | M8: 0 | N8: 0 | O8: 0 | P8: 8748.744292 | R8: 3 | W8: 0 | X8: 7825.365353 | Y8: 859.1830521 | Z8: 6412.985542 | AA8: =(Z8*$E$28) -> 704.1113407
A9: =Input!A30 -> Pufferspeicher [€] | B9: =Input!B30 -> 8748.744292 | D9: Anlegbarer Strompreis für Netzeinspeisung [€/kWh] | E9: =Input!B52 -> 0.0892 | G9: 5 | I9: 0 | J9: Zusätzliche Investition 1 [€] | K9: 0.08 | M9: 0 | N9: 0 | O9: 0 | P9: 0 | R9: 4 | W9: 0 | X9: 8748.744292 | Y9: 960.5650962 | Z9: 7169.706221 | AA9: =IF($J8="","",(Z9*$E$28)) -> 787.1952038
A10: =Input!A31 -> Zusätzliche Investition 1 [€] | B10: =Input!B31 -> 0 | D10: Ins Netz eingespeiste Strommenge [kWh/a] | E10: =Output!G3 -> 969096.3069 | G10: 6 | I10: 0 | J10: Zusätzliche Investition 2 [€] | K10: 0.08 | M10: 0 | N10: 0 | O10: 0 | P10: 0 | R10: 5 | W10: 0 | X10: 0 | Y10: 0 | Z10: 0 | AA10: 0
A11: =Input!A32 -> Zusätzliche Investition 2 [€] | B11: =Input!B32 -> 0 | D11: Einnahmen aus Netzeinspeisung [€/a] | E11: =E10*E9 -> 86443.39057 | G11: 7 | O11: =IF(I11="","",$B$27*M11) ->  | R11: 6 | W11: 0 | X11: 0 | Y11: 0 | Z11: 0 | AA11: 0
G12: 8 | R12: 7 | W12: 0 | X12: 0 | Y12: 0
A13: Wartungskosten | D13: Einnahmen aus eigenverbrauchten KWK-Strom | G13: 9 | R13: 8 | W13: 0 | X13: 0 | Y13: 0
A14: Instandhaltungskosten [€/a] | B14: =Input!B36 -> 14510.83768 | D14: Verbrauch in stromkostenintensiven Unternehmen? | E14: =IF(Input!B44<>"",Input!B44,Input!$B$44) -> Nein | G14: 10 | R14: 9 | W14: 0 | X14: 0 | Y14: 0
A15: Generalüberholung [€/5a] | B15: =Input!B37 -> 30853.06585 | D15: Anlegbrer Strompreis für Eigenverbrauch [€/kWh] | E15: =Input!B46 -> 0.1721 | G15: 11 | R15: 10 | W15: 0 | X15: 0 | Y15: 0
A16: andere laufende Kosten [€/a] | B16: =Input!B38 -> 0 | D16: Eigenverbrauchte Strommenge [kWh/a] | E16: =Output!G4 -> 0 | G16: 12 | R16: 11 | W16: 0 | X16: 0 | Y16: 0
D17: Einnahmen aus Eigenverbrauch [€/a] | E17: =E15*E16 -> 0 | G17: 13 | R17: 12 | W17: 0 | X17: 0 | Y17: 0
A18: Brennstoff | B18: =Input!$B$9 -> Erdgas | G18: 14 | R18: 13 | W18: 0 | X18: 0 | Y18: 0
A19: =IF(Input!B9="","Preis [€/Einheit]",IF(OR(Input!B9="Biogas",Input!B9="Klärgas",),"Preis [€/m³]",IF(Input!B9="Erdgas","Preis [€/kWh]","Preis [€/l]"))) -> Preis [€/kWh] | B19: =Input!B35 -> 0.0565 | D19: Zusätzliche Einnahmen [€/a] | E19: =Input!B55 -> 0 | G19: 15 | R19: 14 | W19: 0 | X19: 0 | Y19: 0
A20: =IF(Input!B9="","Brennstoff [Einheit/a]",IF(OR(Input!B9="Biogas",Input!B9="Klärgas",),"Brennstoff [m³/a]",IF(Input!B9="Erdgas","Brennstoff [kWh/a]","Brennstoff [l/a]"))) -> Brennstoff [kWh/a] | B20: =IF(Input!B9="Erdgas",Lastprofile!M19,Lastprofile!$L$19) -> 2689034.47 | G20: 16 | R20: 15 | W20: 0 | X20: 0 | Y20: 0
A21: Kosten pro Jahr [€/a] | B21: =B19*B20 -> 151930.4476 | D21: Gesamteinnahmen [€/a] | E21: =E6+E11+E17+E19 -> 151102.1702 | G21: 17 | R21: 16 | W21: 0 | X21: 0 | Y21: 0
G22: 18 | R22: 17 | W22: 0 | X22: 0 | Y22: 0
O23: =SUM(O5:O22) -> 3500 | P23: =SUM(P5:P22) -> 205687.1057 | R23: 18 | W23: 0 | X23: 0 | Y23: 0
S24: =SUM(S6:S23) -> 0 | T24: 0 | U24: 0 | V24: 0 | W24: 0 | X24: 205687.1057 | Y24: 22583.33857 | Z24: 168563.1757 | AA24: 18507.33061
A25: EINGABE | G25: Tabelle 3 | H25: Berechnung der Annuität der Jahresgesamtzahlungen
A26: Betrachtungszeitraum [a] | B26: 15
A27: Aufwand für Bedienung [€/h] | B27: 35 | G27: Brennstoffkosten [€/a] (V1) | H27: =B21 -> 151930.4476 | I27: Annuität der bedarfsgebundenen Kosten (A N,V) | J27: A(N,V)= A(V1)*bv*a | K27: =H27*E31*E28 -> 181541.297
A28: Sonstige Kosten (S1) | B28: 0 | D28: Annuitätsfaktor [a] | E28: =($C$29^$B$26*($C$29-1))/($C$29^$B$26-1) -> 0.1097946247 | G28: Aufwand für Bedienung (B1) | H28: =O23 -> 3500 | I28: Annuität der betriebsgebundenen Kosten (A N,B) | J28: A(N,B)=A(B1)*bB*a + A(IN1)*bIN*a | K28: =H28*$E$28*$E$32+AA24*$E$33*$E$28 -> 24752.21661
A29: 0.07 | B29: Zinsfaktor q | C29: =A29+1 -> 1.07 | E29: Barwertfaktor | G29: Sonstige Kosten (S1) | H29: =B28 -> 0 | I29: Annuität der sonstigen Kosten (A N,S) | J29: A(N,S)=A(S1)*bS*a | K29: =H29*E28*E34 -> 0
A30: 0.03 | B30: Kapitalgebundene Kosten rK | C30: 1.03 | D30: Kapitalgebundene Kosten bK | E30: =(1-((C30/$C$29)^$B$26))/($C$29-C30) -> 10.88302278 | G30: Summe der Barwerte | H30: =X24 -> 205687.1057 | I30: Summe der Barwerte * Annuität der kapitalgebundenen Zahlungen (A (N,K)) | J30: A(N,K)=Summe der Barwerte * a | K30: =Y24 -> 22583.33857
A31: 0.03 | B31: bedarfsgebundene Kosten rv | C31: 1.03 | D31: Bedarfsgebundene Kosten bv | E31: 10.88302278 | G31: Erlöse [€/a] E(1) | H31: =E21 -> 151102.1702 | I31: Annuität der Erlöse (A N,E) | J31: A(N,E)=E(1)*bE*a | K31: =H31*E35*E28 -> 180551.5906
A32: 0.02 | B32: betriebsgebundene Kosten rb | C32: 1.02 | D32: Betriebsgebundene Kosten bB | E32: 10.24390756 | I32: Gesamtannuität | J32: A(N)=A(N,E)-(A(N,K)+A(N,V)+A(N,B)+A(N,S) | K32: =(K31-(SUM(K27:K30))) -> -48325.26161
A33: 0.02 | B33: Instandhaltungskosten rIN | C33: 1.02 | D33: Instandhaltungs- und Bedienungskosten bIN | E33: 10.24390756
A34: 0.03 | B34: Sonstige Kosten rS | C34: 1.03 | D34: Sonstige Kosten bS | E34: 10.88302278
A35: 0.03 | B35: Erlöse rNE | C35: 1.03 | D35: Erlöse bNE | E35: 10.88302278
G65: =IF(K32<0,"NEGATIV","") -> NEGATIV

Sheet DCF
A1: BHKW-Konzept | B1: Berechnung der Wirtschaftlichkeit gemäß Discounted-Cashflow-Methode (Ergebnisse der Berechnungen: siehe Blatt "Output")
A3: Allgemeine Angaben: | G3: Weitere Angaben: | J3: Ergebnisse
A4: Nutzungsdauer [a] | B4: =Input!B24 -> 15 | D4: Einnahmen aus Wärme | G4: Preissteigerung
D5: Preis [€/kWh] | E5: =Input!B54*Sensitivitätsanalyse!$K$78 -> 0.0565 | G5: für Instandhaltung [%] | H5: 0.02 | J5: Nettobarwert ohne Restwert | K5: =NPV(H12,C52:AP52)+B52 -> -440749.5907
A6: Investment | B6: =SUM(B7:B12) -> 205687.1057 | D6: Energieerzeugung [kWh/a] | E6: =Output!G10 -> 1144403.18 | G6: für Brennstoff [%] | H6: 0.02 | J6: NBW mit Restwert | K6: =K5+H13*(1+H12)^-(C24+B4) -> -440749.5907
A7: Modulkosten [€] | B7: =Input!B27 -> 130422.7559 | D7: Einnahmen [€/a] | E7: =E6*E5 -> 64658.77966 | G7: für andere laufende Kosten [%] | H7: 0.02 | J7: interner Zinsfuß | K7: =IRR(B52:AP52,0) -> 
A8: Einbindungskosten [€] | B8: =Input!B28 -> 58690.24015 | G8: für Strompreis [%] | H8: 0.02
A9: Transport & Abnahme [€] | B9: =Input!B29 -> 7825.365353 | D9: Einnahmen aus ins Netz eingespeisten KWK-Strom | G9: für Wärmepreis [%] | H9: 0.02
A10: =Input!A30 -> Pufferspeicher [€] | B10: =Input!B30 -> 8748.744292 | D10: Anlegbarer Strompreis für Netzeinspeisung [€/kWh] | E10: =Input!B52 -> 0.0892 | G10: für andere Einnahmen [%] | H10: 0.02
A11: =Input!A31 -> Zusätzliche Investition 1 [€] | B11: =Input!B31 -> 0 | D11: Ins Netz eingespeiste Strommenge [kWh/a] | E11: =Output!G3 -> 969096.3069
A12: =Input!A32 -> Zusätzliche Investition 2 [€] | B12: =Input!B32 -> 0 | D12: Einnahmen aus Netzeinspeisung [€/a] | E12: =E11*E10 -> 86443.39057 | G12: Kalkulationszinssatz [%] | H12: 0.04
G13: Restwert der Anlage [€] | H13: 0
A14: Wartungskosten | D14: Einnahmen aus eigenverbrauchten KWK-Strom | G14: Steuer [%] | H14: 0
A15: Instandhaltungskosten [€/a] | B15: =Input!B36 -> 14510.83768 | D15: Verbrauch in stromkostenintensiven Unternehmen? | E15: =IF(Input!B44<>"",Input!B44,Input!$B$44) -> Nein | G15: Abschreibungszeitraum [a] | H15: 10 | I15: Der Abschreibungszeitraum eines BHKWs beträgt für Anlagen im gewerblichen Betrieb 10 Jahre und für Anlagen die Bestandteil des Gebäudes sind 50 Jahre
A16: Generalüberholung [€/5a] | B16: =Input!B37 -> 30853.06585 | D16: Anlegbrer Strompreis für Eigenverbrauch [€/kWh] | E16: =Input!B46 -> 0.1721
A17: andere laufende Kosten [€/a] | B17: =Input!B38 -> 0 | D17: Eigenverbrauchte Strommenge [kWh/a] | E17: =Output!G4 -> 0 | G17: Zeitpunkt der Generalüberholung [a] | H17: =ROUND(45000/Output!G13,0) -> 7
D18: Einnahmen aus Eigenverbrauch [€/a] | E18: =E16*E17 -> 0
A19: Brennstoff | B19: =Input!$B$9 -> Erdgas
A20: =IF(Input!B9="","Preis [€/Einheit]",IF(OR(Input!B9="Biogas",Input!B9="Klärgas",),"Preis [€/m³]",IF(Input!B9="Erdgas","Preis [€/kWh]","Preis [€/l]"))) -> Preis [€/kWh] | B20: =Input!$B$35 -> 0.0565 | D20: Zusätzliche Einnahmen [€/a] | E20: =Input!B55 -> 0
A21: =IF(Input!B9="","Brennstoff [Einheit/a]",IF(OR(Input!B9="Biogas",Input!B9="Klärgas",),"Brennstoff [m³/a]",IF(Input!B9="Erdgas","Brennstoff [kWh/a]","Brennstoff [l/a]"))) -> Brennstoff [kWh/a] | B21: =IF(Input!B9="Erdgas",Lastprofile!M19,Lastprofile!$L$19) -> 2689034.47
A22: Kosten pro Jahr [€/a] | B22: =B20*B21 -> 151930.4476 | D22: Gesamteinnahmen [€/a] | E22: =E7+E12++E18+E20 -> 151102.1702
A24: Kosten | B24: 0 | C24: =IF($B$4>=COLUMNS($B$23:B23),COLUMNS($B$23:B23),"") -> 1 | D24: =IF($B$4>=COLUMNS($B$23:C23),COLUMNS($B$23:C23),0) -> 2 | E24: =IF($B$4>=COLUMNS($B$23:D23),COLUMNS($B$23:D23),0) -> 3 | F24: =IF($B$4>=COLUMNS($B$23:E23),COLUMNS($B$23:E23),0) -> 4 | G24: =IF($B$4>=COLUMNS($B$23:F23),COLUMNS($B$23:F23),0) -> 5 | H24: =IF($B$4>=COLUMNS($B$23:G23),COLUMNS($B$23:G23),0) -> 6 | I24: =IF($B$4>=COLUMNS($B$23:H23),COLUMNS($B$23:H23),0) -> 7 | J24: =IF($B$4>=COLUMNS($B$23:I23),COLUMNS($B$23:I23),0) -> 8 | K24: =IF($B$4>=COLUMNS($B$23:J23),COLUMNS($B$23:J23),0) -> 9 | L24: =IF($B$4>=COLUMNS($B$23:K23),COLUMNS($B$23:K23),0) -> 10 | M24: =IF($B$4>=COLUMNS($B$23:L23),COLUMNS($B$23:L23),0) -> 11 | N24: =IF($B$4>=COLUMNS($B$23:M23),COLUMNS($B$23:M23),0) -> 12 | O24: =IF($B$4>=COLUMNS($B$23:N23),COLUMNS($B$23:N23),0) -> 13 | P24: =IF($B$4>=COLUMNS($B$23:O23),COLUMNS($B$23:O23),0) -> 14 | Q24: =IF($B$4>=COLUMNS($B$23:P23),COLUMNS($B$23:P23),0) -> 15 | R24: =IF($B$4>=COLUMNS($B$23:Q23),COLUMNS($B$23:Q23),0) -> 0 | S24: =IF($B$4>=COLUMNS($B$23:R23),COLUMNS($B$23:R23),0) -> 0 | T24: =IF($B$4>=COLUMNS($B$23:S23),COLUMNS($B$23:S23),0) -> 0 | U24: =IF($B$4>=COLUMNS($B$23:T23),COLUMNS($B$23:T23),0) -> 0 | V24: =IF($B$4>=COLUMNS($B$23:U23),COLUMNS($B$23:U23),0) -> 0 | W24: =IF($B$4>=COLUMNS($B$23:V23),COLUMNS($B$23:V23),0) -> 0 | X24: =IF($B$4>=COLUMNS($B$23:W23),COLUMNS($B$23:W23),0) -> 0 | Y24: =IF($B$4>=COLUMNS($B$23:X23),COLUMNS($B$23:X23),0) -> 0 | Z24: =IF($B$4>=COLUMNS($B$23:Y23),COLUMNS($B$23:Y23),0) -> 0 | AA24: =IF($B$4>=COLUMNS($B$23:Z23),COLUMNS($B$23:Z23),0) -> 0 | AB24: =IF($B$4>=COLUMNS($B$23:AA23),COLUMNS($B$23:AA23),0) -> 0 | AC24: =IF($B$4>=COLUMNS($B$23:AB23),COLUMNS($B$23:AB23),0) -> 0 | AD24: =IF($B$4>=COLUMNS($B$23:AC23),COLUMNS($B$23:AC23),0) -> 0 | AE24: =IF($B$4>=COLUMNS($B$23:AD23),COLUMNS($B$23:AD23),0) -> 0 | AF24: =IF($B$4>=COLUMNS($B$23:AE23),COLUMNS($B$23:AE23),0) -> 0 | AG24: =IF($B$4>=COLUMNS($B$23:AF23),COLUMNS($B$23:AF23),0) -> 0 | AH24: =IF($B$4>=COLUMNS($B$23:AG23),COLUMNS($B$23:AG23),0) -> 0 | AI24: =IF($B$4>=COLUMNS($B$23:AH23),COLUMNS($B$23:AH23),0) -> 0 | AJ24: =IF($B$4>=COLUMNS($B$23:AI23),COLUMNS($B$23:AI23),0) -> 0 | AK24: =IF($B$4>=COLUMNS($B$23:AJ23),COLUMNS($B$23:AJ23),0) -> 0 | AL24: =IF($B$4>=COLUMNS($B$23:AK23),COLUMNS($B$23:AK23),0) -> 0 | AM24: =IF($B$4>=COLUMNS($B$23:AL23),COLUMNS($B$23:AL23),0) -> 0 | AN24: =IF($B$4>=COLUMNS($B$23:AM23),COLUMNS($B$23:AM23),0) -> 0 | AO24: =IF($B$4>=COLUMNS($B$23:AN23),COLUMNS($B$23:AN23),0) -> 0 | AP24: =IF($B$4>=COLUMNS($B$23:AO23),COLUMNS($B$23:AO23),0) -> 0
A26: Investition | B26: =B6 -> 205687.1057
A27: Instandhaltungskosten | C27: =B15 -> 14510.83768 | D27: =IF(D24>1,C27+C27*$H$5,"") -> 14801.05444 | E27: 15097.07553 | F27: 15399.01704 | G27: 15706.99738 | H27: 16021.13732 | I27: 16341.56007 | J27: 16668.39127 | K27: 17001.7591 | L27: 17341.79428 | M27: 17688.63017 | N27: 18042.40277 | O27: 18403.25082 | P27: 18771.31584 | Q27: 19146.74216
A28: Generalüberholung | B28: =IF(B24=$H$17,$B$16,IF(B24=2*$H$17,$B$16,IF(B24=3*$H$17,$B$16,IF(B24=4*$H$17,$B$16,IF(B24=5*$H$17,$B$16,0))))) -> 0 | C28: 0 | D28: 0 | E28: 0 | F28: 0 | G28: 0 | H28: 0 | I28: 30853.06585 | J28: 0 | K28: 0 | L28: 0 | M28: 0 | N28: 0 | O28: 0 | P28: 30853.06585 | Q28: 0 | R28: 0 | S28: 0 | T28: 0 | U28: 0 | V28: 0 | W28: 0 | X28: 0 | Y28: 0 | Z28: 0 | AA28: 0 | AB28: 0 | AC28: 0 | AD28: 0 | AE28: 0 | AF28: 0 | AG28: 0 | AH28: 0 | AI28: 0 | AJ28: 0 | AK28: 0 | AL28: 0 | AM28: 0 | AN28: 0 | AO28: 0 | AP28: 0
A29: Brennstoff | C29: =B22 -> 151930.4476 | D29: =IF(D24>1,C29+C29*$H$6,"") -> 154969.0565 | E29: 158068.4376 | F29: 161229.8064 | G29: 164454.4025 | H29: 167743.4906 | I29: 171098.3604 | J29: 174520.3276 | K29: 178010.7341 | L29: 181570.9488 | M29: 185202.3678 | N29: 188906.4152 | O29: 192684.5435 | P29: 196538.2343 | Q29: 200468.999
A30: andere laufende Kosten | C30: =B17 -> 0 | D30: =B17 -> 0 | E30: =IF(E24>1,D30+D30*$H$7,"") -> 0 | F30: 0 | G30: 0 | H30: 0 | I30: 0 | J30: 0 | K30: 0 | L30: 0 | M30: 0 | N30: 0 | O30: 0 | P30: 0 | Q30: 0
A32: Einnahmen
A33: Einnahmen aus eingespeistem Strom | C33: =$E$12 -> 86443.39057 | D33: =IF(D24>1,C33+C33*$H$8,"") -> 88172.25838 | E33: 89935.70355 | F33: 91734.41762 | G33: 93569.10597 | H33: 95440.48809 | I33: 97349.29786 | J33: 99296.28381 | K33: 101282.2095 | L33: 103307.8537 | M33: 105374.0108 | N33: 107481.491 | O33: 109631.1208 | P33: 111823.7432 | Q33: 114060.2181
A34: Einnahmen aus eigenverbrauchtem Strom | C34: =$E$18 -> 0 | D34: =IF(D24>1,C34+C34*$H$8,"") -> 0 | E34: 0 | F34: 0 | G34: 0 | H34: 0 | I34: 0 | J34: 0 | K34: 0 | L34: 0 | M34: 0 | N34: 0 | O34: 0 | P34: 0 | Q34: 0
A35: Einnahmen aus Wärme | C35: =$E$7 -> 64658.77966 | D35: =IF(D24>1,C35+C35*$H$9,"") -> 65951.95525 | E35: 67270.99436 | F35: 68616.41424 | G35: 69988.74253 | H35: 71388.51738 | I35: 72816.28773 | J35: 74272.61348 | K35: 75758.06575 | L35: 77273.22707 | M35: 78818.69161 | N35: 80395.06544 | O35: 82002.96675 | P35: 83643.02608 | Q35: 85315.88661
A36: andere Einnahmen | C36: =$E$20 -> 0 | D36: =IF(D24>1,C36+C36*$H$10,"") -> 0 | E36: 0 | F36: 0 | G36: 0 | H36: 0 | I36: 0 | J36: 0 | K36: 0 | L36: 0 | M36: 0 | N36: 0 | O36: 0 | P36: 0 | Q36: 0
A38: Hier können zusätzliche Einnahmen eingegeben werden. Diese wirken sich nur auf die Berechnungen nach der Discounted-Cash-Flow-Methode aus, nicht auf die Berechnungen gemäß VDI 2067.
A39: Einahmen1
A40: Einahmen2
A41: Einahmen3
A43: Hier können zusätzliche Ausgaben eingegeben werden. Diese wirken sich nur auf die Berechnungen nach der Discounted-Cash-Flow-Methode aus, nicht auf die Berechnungen gemäß VDI 2067.
A44: Ausgaben1
A45: Ausgaben2
A46: Ausgaben3
A48: Cashflow (before tax) | B48: =(SUM(B33:B36)-SUM(B26:B30))+(SUM(B39,B40,B41)-SUM(B44,B45,B46)) -> -205687.1057 | C48: =(SUM(C33:C36)-SUM(C26:C30))+(SUM(C39,C40,C41)-SUM(C44,C45,C46)) -> -15339.11501 | D48: =IF(D24>1,(SUM(D33:D36)-SUM(D26:D30))+(SUM(D39,D40,D41)-SUM(D44,D45,D46)),"") -> -15645.89731 | E48: -15958.81525 | F48: -16277.99156 | G48: -16603.55139 | H48: -16935.62242 | I48: -48127.40072 | J48: -17619.82156 | K48: -17972.21799 | L48: -18331.66235 | M48: -18698.2956 | N48: -19072.26151 | O48: -19453.70674 | P48: -50695.84673 | Q48: -20239.6365
A49: lineare Abschreibung | B49: =IF(B24<=$H$15,$B$26/$H$15,0) -> 20568.71057 | C49: 20568.71057 | D49: 20568.71057 | E49: 20568.71057 | F49: 20568.71057 | G49: 20568.71057 | H49: 20568.71057 | I49: 20568.71057 | J49: 20568.71057 | K49: 20568.71057 | L49: 20568.71057 | M49: 0 | N49: 0 | O49: 0 | P49: 0 | Q49: 0 | R49: 20568.71057 | S49: 20568.71057 | T49: 20568.71057 | U49: 20568.71057 | V49: 20568.71057 | W49: 20568.71057 | X49: 20568.71057 | Y49: 20568.71057 | Z49: 20568.71057 | AA49: 20568.71057 | AB49: 20568.71057 | AC49: 20568.71057 | AD49: 20568.71057 | AE49: 20568.71057 | AF49: 20568.71057 | AG49: 20568.71057 | AH49: 20568.71057 | AI49: 20568.71057 | AJ49: 20568.71057 | AK49: 20568.71057 | AL49: 20568.71057 | AM49: 20568.71057 | AN49: 20568.71057 | AO49: 20568.71057 | AP49: 20568.71057
A50: operating result (before tax) | B50: =B48-B49 -> -226255.8162 | C50: =C48-C49 -> -35907.82557 | D50: =D48-D49 -> -36214.60788 | E50: =IF(E24>1,E48-E49,"") -> -36527.52582 | F50: -36846.70213 | G50: -37172.26196 | H50: -37504.33299 | I50: -68696.11128 | J50: -38188.53213 | K50: -38540.92856 | L50: -38900.37292 | M50: -18698.2956 | N50: -19072.26151 | O50: -19453.70674 | P50: -50695.84673 | Q50: -20239.6365
A51: tax | B51: =IF(B50="","",IF(B50>0,B50*$H$14,0)) -> 0 | C51: 0 | D51: 0 | E51: 0 | F51: 0 | G51: 0 | H51: 0 | I51: 0 | J51: 0 | K51: 0 | L51: 0 | M51: 0 | N51: 0 | O51: 0 | P51: 0 | Q51: 0
A52: CASHFLOW (aftertax) | B52: =IF(B48="","",B48-B51) -> -205687.1057 | C52: -15339.11501 | D52: -15645.89731 | E52: -15958.81525 | F52: -16277.99156 | G52: -16603.55139 | H52: -16935.62242 | I52: -48127.40072 | J52: -17619.82156 | K52: -17972.21799 | L52: -18331.66235 | M52: -18698.2956 | N52: -19072.26151 | O52: -19453.70674 | P52: -50695.84673 | Q52: -20239.6365

Sheet Lastprofile
A1: BHKW-Konzept | C1: Eingabe individueller Lastprofile
A3: In diesem Blatt können bei Bedarf bis zu drei individuelle Lastprofile hinterlegt werden, die gemeinsam mit den Standardlastprofilen oder anstelle dieser verwendet werden können.
A5: Hier können individuelle Wärmelastprofile angelegt werden. Eingabe jeweils als Tagessumme [kWh/d]. Die Jahressumme wird oberhalb des Lastgangs angezeigt. Der gesammte Lastgang kann dann im Blatt "Input" im Abnehmerverzeichnis ausgewählt und dort über die Eingabe eines Jahreswärmebedarfs skaliert werden.
A6: Abnehmer | B6: Bekanntes Profil 1 | D6: Abnehmer | E6: Bekanntes Profil 2 | G6: Abnehmer | H6: Bekanntes Profil 3 | AH6: Abnehmer | AI6: =Input!A59 -> Beispielliegenschaft 1 (Standardlastprofil) | AL6: Abnehmer | AM6: =Input!A60 -> Beispielliegenschaft 2 (Individuelles Lastprofil) | AP6: Abnehmer | AQ6: =Input!A61 -> 0 | AT6: Abnehmer | AU6: =Input!A62 -> 0 | AX6: Abnehmer | AY6: =Input!A63 -> 0 | BB6: Abnehmer | BC6: =Input!A64 -> 0 | BF6: Abnehmer | BG6: =Input!A65 -> 0 | BJ6: Abnehmer | BK6: =Input!A66 -> 0 | BN6: Abnehmer | BO6: =Input!A67 -> 0 | BR6: Abnehmer | BS6: =Input!A68 -> 0 | BV6: Abnehmer | BW6: =Input!A69 -> 0 | BZ6: Abnehmer | CA6: =Input!A70 -> 0 | CD6: Abnehmer | CE6: =Input!A71 -> 0 | CH6: Abnehmer | CI6: =Input!A72 -> 0 | CL6: Abnehmer | CM6: =Input!A73 -> 0 | CP6: Abnehmer | CQ6: =Input!A74 -> 0 | CT6: Abnehmer | CU6: =Input!A75 -> 0 | CX6: Abnehmer | CY6: =Input!A76 -> 0 | DB6: Abnehmer | DC6: =Input!A77 -> 0 | DF6: Abnehmer | DG6: =Input!A78 -> 0 | DJ6: Abnehmer | DK6: =Input!A79 -> 0 | DN6: Abnehmer | DO6: =Input!A80 -> 0 | DR6: Abnehmer | DS6: =Input!A81 -> 0 | DV6: Abnehmer | DW6: =Input!A82 -> 0 | DZ6: Abnehmer | EA6: =Input!A83 -> 0 | ED6: Abnehmer | EE6: =Input!A84 -> 0 | EH6: Abnehmer | EI6: =Input!A85 -> 0 | EL6: Abnehmer | EM6: =Input!A86 -> 0 | EP6: Abnehmer | EQ6: =Input!A87 -> 0 | ET6: Abnehmer | EU6: =Input!A88 -> 0
AB9: Ø
AH10: A | AI10: =VLOOKUP(VLOOKUP(AI6,Input!$A$57:$C$88,2,FALSE),Datenbank!$A$239:$E$253,2,FALSE) -> 2.7172288 | AL10: A | AM10: =VLOOKUP(VLOOKUP(AM6,Input!$A$57:$C$88,2,FALSE),Datenbank!$A$239:$E$253,2,FALSE) ->  | AP10: A | AQ10: =VLOOKUP(VLOOKUP(AQ6,Input!$A$57:$C$88,2,FALSE),Datenbank!$A$239:$E$253,2,FALSE) ->  | AT10: A | AU10: =VLOOKUP(VLOOKUP(AU6,Input!$A$57:$C$88,2,FALSE),Datenbank!$A$239:$E$253,2,FALSE) ->  | AX10: A | AY10: =VLOOKUP(VLOOKUP(AY6,Input!$A$57:$C$88,2,FALSE),Datenbank!$A$239:$E$253,2,FALSE) ->  | BB10: A | BC10: =VLOOKUP(VLOOKUP(BC6,Input!$A$57:$C$88,2,FALSE),Datenbank!$A$239:$E$253,2,FALSE) ->  | BF10: A | BG10: =VLOOKUP(VLOOKUP(BG6,Input!$A$57:$C$88,2,FALSE),Datenbank!$A$239:$E$253,2,FALSE) ->  | BJ10: A | BK10: =VLOOKUP(VLOOKUP(BK6,Input!$A$57:$C$88,2,FALSE),Datenbank!$A$239:$E$253,2,FALSE) ->  | BN10: A | BO10: =VLOOKUP(VLOOKUP(BO6,Input!$A$57:$C$88,2,FALSE),Datenbank!$A$239:$E$253,2,FALSE) ->  | BR10: A | BS10: =VLOOKUP(VLOOKUP(BS6,Input!$A$57:$C$88,2,FALSE),Datenbank!$A$239:$E$253,2,FALSE) ->  | BV10: A | BW10: =VLOOKUP(VLOOKUP(BW6,Input!$A$57:$C$88,2,FALSE),Datenbank!$A$239:$E$253,2,FALSE) ->  | BZ10: A | CA10: =VLOOKUP(VLOOKUP(CA6,Input!$A$57:$C$88,2,FALSE),Datenbank!$A$239:$E$253,2,FALSE) ->  | CD10: A | CE10: =VLOOKUP(VLOOKUP(CE6,Input!$A$57:$C$88,2,FALSE),Datenbank!$A$239:$E$253,2,FALSE) ->  | CH10: A | CI10: =VLOOKUP(VLOOKUP(CI6,Input!$A$57:$C$88,2,FALSE),Datenbank!$A$239:$E$253,2,FALSE) ->  | CL10: A | CM10: =VLOOKUP(VLOOKUP(CM6,Input!$A$57:$C$88,2,FALSE),Datenbank!$A$239:$E$253,2,FALSE) ->  | CP10: A | CQ10: =VLOOKUP(VLOOKUP(CQ6,Input!$A$57:$C$88,2,FALSE),Datenbank!$A$239:$E$253,2,FALSE) ->  | CT10: A | CU10: =VLOOKUP(VLOOKUP(CU6,Input!$A$57:$C$88,2,FALSE),Datenbank!$A$239:$E$253,2,FALSE) ->  | CX10: A | CY10: =VLOOKUP(VLOOKUP(CY6,Input!$A$57:$C$88,2,FALSE),Datenbank!$A$239:$E$253,2,FALSE) ->  | DB10: A | DC10: =VLOOKUP(VLOOKUP(DC6,Input!$A$57:$C$88,2,FALSE),Datenbank!$A$239:$E$253,2,FALSE) ->  | DF10: A | DG10: =VLOOKUP(VLOOKUP(DG6,Input!$A$57:$C$88,2,FALSE),Datenbank!$A$239:$E$253,2,FALSE) ->  | DJ10: A | DK10: =VLOOKUP(VLOOKUP(DK6,Input!$A$57:$C$88,2,FALSE),Datenbank!$A$239:$E$253,2,FALSE) ->  | DN10: A | DO10: =VLOOKUP(VLOOKUP(DO6,Input!$A$57:$C$88,2,FALSE),Datenbank!$A$239:$E$253,2,FALSE) ->  | DR10: A | DS10: =VLOOKUP(VLOOKUP(DS6,Input!$A$57:$C$88,2,FALSE),Datenbank!$A$239:$E$253,2,FALSE) ->  | DV10: A | DW10: =VLOOKUP(VLOOKUP(DW6,Input!$A$57:$C$88,2,FALSE),Datenbank!$A$239:$E$253,2,FALSE) ->  | DZ10: A | EA10: =VLOOKUP(VLOOKUP(EA6,Input!$A$57:$C$88,2,FALSE),Datenbank!$A$239:$E$253,2,FALSE) ->  | ED10: A | EE10: =VLOOKUP(VLOOKUP(EE6,Input!$A$57:$C$88,2,FALSE),Datenbank!$A$239:$E$253,2,FALSE) ->  | EH10: A | EI10: =VLOOKUP(VLOOKUP(EI6,Input!$A$57:$C$88,2,FALSE),Datenbank!$A$239:$E$253,2,FALSE) ->  | EL10: A | EM10: =VLOOKUP(VLOOKUP(EM6,Input!$A$57:$C$88,2,FALSE),Datenbank!$A$239:$E$253,2,FALSE) ->  | EP10: A | EQ10: =VLOOKUP(VLOOKUP(EQ6,Input!$A$57:$C$88,2,FALSE),Datenbank!$A$239:$E$253,2,FALSE) ->  | ET10: A | EU10: =VLOOKUP(VLOOKUP(EU6,Input!$A$57:$C$88,2,FALSE),Datenbank!$A$239:$E$253,2,FALSE) -> 
AH11: B | AI11: =VLOOKUP(VLOOKUP(AI6,Input!$A$57:$C$88,2,FALSE),Datenbank!$A$239:$E$253,3,FALSE) -> -35.1412563 | AL11: B | AM11: =VLOOKUP(VLOOKUP(AM6,Input!$A$57:$C$88,2,FALSE),Datenbank!$A$239:$E$253,3,FALSE) ->  | AP11: B | AQ11: =VLOOKUP(VLOOKUP(AQ6,Input!$A$57:$C$88,2,FALSE),Datenbank!$A$239:$E$253,3,FALSE) ->  | AT11: B | AU11: =VLOOKUP(VLOOKUP(AU6,Input!$A$57:$C$88,2,FALSE),Datenbank!$A$239:$E$253,3,FALSE) ->  | AX11: B | AY11: =VLOOKUP(VLOOKUP(AY6,Input!$A$57:$C$88,2,FALSE),Datenbank!$A$239:$E$253,3,FALSE) ->  | BB11: B | BC11: =VLOOKUP(VLOOKUP(BC6,Input!$A$57:$C$88,2,FALSE),Datenbank!$A$239:$E$253,3,FALSE) ->  | BF11: B | BG11: =VLOOKUP(VLOOKUP(BG6,Input!$A$57:$C$88,2,FALSE),Datenbank!$A$239:$E$253,3,FALSE) ->  | BJ11: B | BK11: =VLOOKUP(VLOOKUP(BK6,Input!$A$57:$C$88,2,FALSE),Datenbank!$A$239:$E$253,3,FALSE) ->  | BN11: B | BO11: =VLOOKUP(VLOOKUP(BO6,Input!$A$57:$C$88,2,FALSE),Datenbank!$A$239:$E$253,3,FALSE) ->  | BR11: B | BS11: =VLOOKUP(VLOOKUP(BS6,Input!$A$57:$C$88,2,FALSE),Datenbank!$A$239:$E$253,3,FALSE) ->  | BV11: B | BW11: =VLOOKUP(VLOOKUP(BW6,Input!$A$57:$C$88,2,FALSE),Datenbank!$A$239:$E$253,3,FALSE) ->  | BZ11: B | CA11: =VLOOKUP(VLOOKUP(CA6,Input!$A$57:$C$88,2,FALSE),Datenbank!$A$239:$E$253,3,FALSE) ->  | CD11: B | CE11: =VLOOKUP(VLOOKUP(CE6,Input!$A$57:$C$88,2,FALSE),Datenbank!$A$239:$E$253,3,FALSE) ->  | CH11: B | CI11: =VLOOKUP(VLOOKUP(CI6,Input!$A$57:$C$88,2,FALSE),Datenbank!$A$239:$E$253,3,FALSE) ->  | CL11: B | CM11: =VLOOKUP(VLOOKUP(CM6,Input!$A$57:$C$88,2,FALSE),Datenbank!$A$239:$E$253,3,FALSE) ->  | CP11: B | CQ11: =VLOOKUP(VLOOKUP(CQ6,Input!$A$57:$C$88,2,FALSE),Datenbank!$A$239:$E$253,3,FALSE) ->  | CT11: B | CU11: =VLOOKUP(VLOOKUP(CU6,Input!$A$57:$C$88,2,FALSE),Datenbank!$A$239:$E$253,3,FALSE) ->  | CX11: B | CY11: =VLOOKUP(VLOOKUP(CY6,Input!$A$57:$C$88,2,FALSE),Datenbank!$A$239:$E$253,3,FALSE) ->  | DB11: B | DC11: =VLOOKUP(VLOOKUP(DC6,Input!$A$57:$C$88,2,FALSE),Datenbank!$A$239:$E$253,3,FALSE) ->  | DF11: B | DG11: =VLOOKUP(VLOOKUP(DG6,Input!$A$57:$C$88,2,FALSE),Datenbank!$A$239:$E$253,3,FALSE) ->  | DJ11: B | DK11: =VLOOKUP(VLOOKUP(DK6,Input!$A$57:$C$88,2,FALSE),Datenbank!$A$239:$E$253,3,FALSE) ->  | DN11: B | DO11: =VLOOKUP(VLOOKUP(DO6,Input!$A$57:$C$88,2,FALSE),Datenbank!$A$239:$E$253,3,FALSE) ->  | DR11: B | DS11: =VLOOKUP(VLOOKUP(DS6,Input!$A$57:$C$88,2,FALSE),Datenbank!$A$239:$E$253,3,FALSE) ->  | DV11: B | DW11: =VLOOKUP(VLOOKUP(DW6,Input!$A$57:$C$88,2,FALSE),Datenbank!$A$239:$E$253,3,FALSE) ->  | DZ11: B | EA11: =VLOOKUP(VLOOKUP(EA6,Input!$A$57:$C$88,2,FALSE),Datenbank!$A$239:$E$253,3,FALSE) ->  | ED11: B | EE11: =VLOOKUP(VLOOKUP(EE6,Input!$A$57:$C$88,2,FALSE),Datenbank!$A$239:$E$253,3,FALSE) ->  | EH11: B | EI11: =VLOOKUP(VLOOKUP(EI6,Input!$A$57:$C$88,2,FALSE),Datenbank!$A$239:$E$253,3,FALSE) ->  | EL11: B | EM11: =VLOOKUP(VLOOKUP(EM6,Input!$A$57:$C$88,2,FALSE),Datenbank!$A$239:$E$253,3,FALSE) ->  | EP11: B | EQ11: =VLOOKUP(VLOOKUP(EQ6,Input!$A$57:$C$88,2,FALSE),Datenbank!$A$239:$E$253,3,FALSE) ->  | ET11: B | EU11: =VLOOKUP(VLOOKUP(EU6,Input!$A$57:$C$88,2,FALSE),Datenbank!$A$239:$E$253,3,FALSE) -> 
AH12: C | AI12: =VLOOKUP(VLOOKUP(AI6,Input!$A$57:$C$88,2,FALSE),Datenbank!$A$239:$E$253,4,FALSE) -> 7.1303395 | AL12: C | AM12: =VLOOKUP(VLOOKUP(AM6,Input!$A$57:$C$88,2,FALSE),Datenbank!$A$239:$E$253,4,FALSE) ->  | AP12: C | AQ12: =VLOOKUP(VLOOKUP(AQ6,Input!$A$57:$C$88,2,FALSE),Datenbank!$A$239:$E$253,4,FALSE) ->  | AT12: C | AU12: =VLOOKUP(VLOOKUP(AU6,Input!$A$57:$C$88,2,FALSE),Datenbank!$A$239:$E$253,4,FALSE) ->  | AX12: C | AY12: =VLOOKUP(VLOOKUP(AY6,Input!$A$57:$C$88,2,FALSE),Datenbank!$A$239:$E$253,4,FALSE) ->  | BB12: C | BC12: =VLOOKUP(VLOOKUP(BC6,Input!$A$57:$C$88,2,FALSE),Datenbank!$A$239:$E$253,4,FALSE) ->  | BF12: C | BG12: =VLOOKUP(VLOOKUP(BG6,Input!$A$57:$C$88,2,FALSE),Datenbank!$A$239:$E$253,4,FALSE) ->  | BJ12: C | BK12: =VLOOKUP(VLOOKUP(BK6,Input!$A$57:$C$88,2,FALSE),Datenbank!$A$239:$E$253,4,FALSE) ->  | BN12: C | BO12: =VLOOKUP(VLOOKUP(BO6,Input!$A$57:$C$88,2,FALSE),Datenbank!$A$239:$E$253,4,FALSE) ->  | BR12: C | BS12: =VLOOKUP(VLOOKUP(BS6,Input!$A$57:$C$88,2,FALSE),Datenbank!$A$239:$E$253,4,FALSE) ->  | BV12: C | BW12: =VLOOKUP(VLOOKUP(BW6,Input!$A$57:$C$88,2,FALSE),Datenbank!$A$239:$E$253,4,FALSE) ->  | BZ12: C | CA12: =VLOOKUP(VLOOKUP(CA6,Input!$A$57:$C$88,2,FALSE),Datenbank!$A$239:$E$253,4,FALSE) ->  | CD12: C | CE12: =VLOOKUP(VLOOKUP(CE6,Input!$A$57:$C$88,2,FALSE),Datenbank!$A$239:$E$253,4,FALSE) ->  | CH12: C | CI12: =VLOOKUP(VLOOKUP(CI6,Input!$A$57:$C$88,2,FALSE),Datenbank!$A$239:$E$253,4,FALSE) ->  | CL12: C | CM12: =VLOOKUP(VLOOKUP(CM6,Input!$A$57:$C$88,2,FALSE),Datenbank!$A$239:$E$253,4,FALSE) ->  | CP12: C | CQ12: =VLOOKUP(VLOOKUP(CQ6,Input!$A$57:$C$88,2,FALSE),Datenbank!$A$239:$E$253,4,FALSE) ->  | CT12: C | CU12: =VLOOKUP(VLOOKUP(CU6,Input!$A$57:$C$88,2,FALSE),Datenbank!$A$239:$E$253,4,FALSE) ->  | CX12: C | CY12: =VLOOKUP(VLOOKUP(CY6,Input!$A$57:$C$88,2,FALSE),Datenbank!$A$239:$E$253,4,FALSE) ->  | DB12: C | DC12: =VLOOKUP(VLOOKUP(DC6,Input!$A$57:$C$88,2,FALSE),Datenbank!$A$239:$E$253,4,FALSE) ->  | DF12: C | DG12: =VLOOKUP(VLOOKUP(DG6,Input!$A$57:$C$88,2,FALSE),Datenbank!$A$239:$E$253,4,FALSE) ->  | DJ12: C | DK12: =VLOOKUP(VLOOKUP(DK6,Input!$A$57:$C$88,2,FALSE),Datenbank!$A$239:$E$253,4,FALSE) ->  | DN12: C | DO12: =VLOOKUP(VLOOKUP(DO6,Input!$A$57:$C$88,2,FALSE),Datenbank!$A$239:$E$253,4,FALSE) ->  | DR12: C | DS12: =VLOOKUP(VLOOKUP(DS6,Input!$A$57:$C$88,2,FALSE),Datenbank!$A$239:$E$253,4,FALSE) ->  | DV12: C | DW12: =VLOOKUP(VLOOKUP(DW6,Input!$A$57:$C$88,2,FALSE),Datenbank!$A$239:$E$253,4,FALSE) ->  | DZ12: C | EA12: =VLOOKUP(VLOOKUP(EA6,Input!$A$57:$C$88,2,FALSE),Datenbank!$A$239:$E$253,4,FALSE) ->  | ED12: C | EE12: =VLOOKUP(VLOOKUP(EE6,Input!$A$57:$C$88,2,FALSE),Datenbank!$A$239:$E$253,4,FALSE) ->  | EH12: C | EI12: =VLOOKUP(VLOOKUP(EI6,Input!$A$57:$C$88,2,FALSE),Datenbank!$A$239:$E$253,4,FALSE) ->  | EL12: C | EM12: =VLOOKUP(VLOOKUP(EM6,Input!$A$57:$C$88,2,FALSE),Datenbank!$A$239:$E$253,4,FALSE) ->  | EP12: C | EQ12: =VLOOKUP(VLOOKUP(EQ6,Input!$A$57:$C$88,2,FALSE),Datenbank!$A$239:$E$253,4,FALSE) ->  | ET12: C | EU12: =VLOOKUP(VLOOKUP(EU6,Input!$A$57:$C$88,2,FALSE),Datenbank!$A$239:$E$253,4,FALSE) -> 
AH13: D' | AI13: =VLOOKUP(VLOOKUP(AI6,Input!$A$57:$C$88,2,FALSE),Datenbank!$A$239:$E$253,5,FALSE) -> 0.1418472 | AL13: D' | AM13: =VLOOKUP(VLOOKUP(AM6,Input!$A$57:$C$88,2,FALSE),Datenbank!$A$239:$E$253,5,FALSE) ->  | AP13: D' | AQ13: =VLOOKUP(VLOOKUP(AQ6,Input!$A$57:$C$88,2,FALSE),Datenbank!$A$239:$E$253,5,FALSE) ->  | AT13: D' | AU13: =VLOOKUP(VLOOKUP(AU6,Input!$A$57:$C$88,2,FALSE),Datenbank!$A$239:$E$253,5,FALSE) ->  | AX13: D' | AY13: =VLOOKUP(VLOOKUP(AY6,Input!$A$57:$C$88,2,FALSE),Datenbank!$A$239:$E$253,5,FALSE) ->  | BB13: D' | BC13: =VLOOKUP(VLOOKUP(BC6,Input!$A$57:$C$88,2,FALSE),Datenbank!$A$239:$E$253,5,FALSE) ->  | BF13: D' | BG13: =VLOOKUP(VLOOKUP(BG6,Input!$A$57:$C$88,2,FALSE),Datenbank!$A$239:$E$253,5,FALSE) ->  | BJ13: D' | BK13: =VLOOKUP(VLOOKUP(BK6,Input!$A$57:$C$88,2,FALSE),Datenbank!$A$239:$E$253,5,FALSE) ->  | BN13: D' | BO13: =VLOOKUP(VLOOKUP(BO6,Input!$A$57:$C$88,2,FALSE),Datenbank!$A$239:$E$253,5,FALSE) ->  | BR13: D' | BS13: =VLOOKUP(VLOOKUP(BS6,Input!$A$57:$C$88,2,FALSE),Datenbank!$A$239:$E$253,5,FALSE) ->  | BV13: D' | BW13: =VLOOKUP(VLOOKUP(BW6,Input!$A$57:$C$88,2,FALSE),Datenbank!$A$239:$E$253,5,FALSE) ->  | BZ13: D' | CA13: =VLOOKUP(VLOOKUP(CA6,Input!$A$57:$C$88,2,FALSE),Datenbank!$A$239:$E$253,5,FALSE) ->  | CD13: D' | CE13: =VLOOKUP(VLOOKUP(CE6,Input!$A$57:$C$88,2,FALSE),Datenbank!$A$239:$E$253,5,FALSE) ->  | CH13: D' | CI13: =VLOOKUP(VLOOKUP(CI6,Input!$A$57:$C$88,2,FALSE),Datenbank!$A$239:$E$253,5,FALSE) ->  | CL13: D' | CM13: =VLOOKUP(VLOOKUP(CM6,Input!$A$57:$C$88,2,FALSE),Datenbank!$A$239:$E$253,5,FALSE) ->  | CP13: D' | CQ13: =VLOOKUP(VLOOKUP(CQ6,Input!$A$57:$C$88,2,FALSE),Datenbank!$A$239:$E$253,5,FALSE) ->  | CT13: D' | CU13: =VLOOKUP(VLOOKUP(CU6,Input!$A$57:$C$88,2,FALSE),Datenbank!$A$239:$E$253,5,FALSE) ->  | CX13: D' | CY13: =VLOOKUP(VLOOKUP(CY6,Input!$A$57:$C$88,2,FALSE),Datenbank!$A$239:$E$253,5,FALSE) ->  | DB13: D' | DC13: =VLOOKUP(VLOOKUP(DC6,Input!$A$57:$C$88,2,FALSE),Datenbank!$A$239:$E$253,5,FALSE) ->  | DF13: D' | DG13: =VLOOKUP(VLOOKUP(DG6,Input!$A$57:$C$88,2,FALSE),Datenbank!$A$239:$E$253,5,FALSE) ->  | DJ13: D' | DK13: =VLOOKUP(VLOOKUP(DK6,Input!$A$57:$C$88,2,FALSE),Datenbank!$A$239:$E$253,5,FALSE) ->  | DN13: D' | DO13: =VLOOKUP(VLOOKUP(DO6,Input!$A$57:$C$88,2,FALSE),Datenbank!$A$239:$E$253,5,FALSE) ->  | DR13: D' | DS13: =VLOOKUP(VLOOKUP(DS6,Input!$A$57:$C$88,2,FALSE),Datenbank!$A$239:$E$253,5,FALSE) ->  | DV13: D' | DW13: =VLOOKUP(VLOOKUP(DW6,Input!$A$57:$C$88,2,FALSE),Datenbank!$A$239:$E$253,5,FALSE) ->  | DZ13: D' | EA13: =VLOOKUP(VLOOKUP(EA6,Input!$A$57:$C$88,2,FALSE),Datenbank!$A$239:$E$253,5,FALSE) ->  | ED13: D' | EE13: =VLOOKUP(VLOOKUP(EE6,Input!$A$57:$C$88,2,FALSE),Datenbank!$A$239:$E$253,5,FALSE) ->  | EH13: D' | EI13: =VLOOKUP(VLOOKUP(EI6,Input!$A$57:$C$88,2,FALSE),Datenbank!$A$239:$E$253,5,FALSE) ->  | EL13: D' | EM13: =VLOOKUP(VLOOKUP(EM6,Input!$A$57:$C$88,2,FALSE),Datenbank!$A$239:$E$253,5,FALSE) ->  | EP13: D' | EQ13: =VLOOKUP(VLOOKUP(EQ6,Input!$A$57:$C$88,2,FALSE),Datenbank!$A$239:$E$253,5,FALSE) ->  | ET13: D' | EU13: =VLOOKUP(VLOOKUP(EU6,Input!$A$57:$C$88,2,FALSE),Datenbank!$A$239:$E$253,5,FALSE) -> 
AC14: T0 | AE14: 40 | AF14: °C
C15: =VLOOKUP(B6,Input!$B$59:$C$88,2,FALSE) -> 1058975 | F15: =VLOOKUP(E6,Input!$B$59:$C$88,2,FALSE) ->  | I15: =VLOOKUP(H6,Input!$B$59:$C$88,2,FALSE) -> 
K16: Brennstoff BHKW | O16: Strom | W16: Wärme | AH16: Zeilenindex für wVerweis bei F(D) | AL16: Zeilenindex für wVerweis bei F(D) | AP16: Zeilenindex für wVerweis bei F(D) | AT16: Zeilenindex für wVerweis bei F(D) | AX16: Zeilenindex für wVerweis bei F(D) | BB16: Zeilenindex für wVerweis bei F(D) | BF16: Zeilenindex für wVerweis bei F(D) | BJ16: Zeilenindex für wVerweis bei F(D) | BN16: Zeilenindex für wVerweis bei F(D) | BR16: Zeilenindex für wVerweis bei F(D) | BV16: Zeilenindex für wVerweis bei F(D) | BZ16: Zeilenindex für wVerweis bei F(D) | CD16: Zeilenindex für wVerweis bei F(D) | CH16: Zeilenindex für wVerweis bei F(D) | CL16: Zeilenindex für wVerweis bei F(D) | CP16: Zeilenindex für wVerweis bei F(D) | CT16: Zeilenindex für wVerweis bei F(D) | CX16: Zeilenindex für wVerweis bei F(D) | DB16: Zeilenindex für wVerweis bei F(D) | DF16: Zeilenindex für wVerweis bei F(D) | DJ16: Zeilenindex für wVerweis bei F(D) | DN16: Zeilenindex für wVerweis bei F(D) | DR16: Zeilenindex für wVerweis bei F(D) | DV16: Zeilenindex für wVerweis bei F(D) | DZ16: Zeilenindex für wVerweis bei F(D) | ED16: Zeilenindex für wVerweis bei F(D) | EH16: Zeilenindex für wVerweis bei F(D) | EL16: Zeilenindex für wVerweis bei F(D) | EP16: Zeilenindex für wVerweis bei F(D) | ET16: Zeilenindex für wVerweis bei F(D)
A17: Summe | B17: =SUM(B20:B384) -> 1058975 | C17: =SUMIF(A15:C15,">3") -> 1058975 | D17: Summe | E17: =SUM(E20:E384) -> 221 | F17: =SUMIF(D15:F15,">3") -> 0 | G17: Summe | H17: =SUM(H20:H384) -> 0 | I17: =SUMIF(G15:I15,">3") -> 0 | K17: Brennstoff | L17: Unterer Heizwert [kWh/Einheit] | M17: Energie Brennstoff [kWh] | O17: Erzeugte Stromenge [kWh/d] | P17: Eigenverbrauch [kWh/d] | Q17: Vergütete Strommenge | R17: elektr. Nennwirkungsgrad [%] | S17: elektr. Nennleistung [kW] | T17: therm. Nennwirkungsgrad [%] | U17: Wärme erzeugt BHKW [kWh/d] | V17: Dauerlinie Wärmeerzeugung (inkl. Verluste) | X17: Wärmeerzeugung ( = Bedarf + Verluste) | Z17: Wärmeverluste [kWh] | AB17: Wärmebedarf Liegenschaften | AH17: =IF(VLOOKUP(AI6,Input!$A$57:$C$88,2,FALSE)="Einfamilienhaushalt",3,IF(VLOOKUP(AI6,Input!$A$57:$C$88,2,FALSE)="Mehrfamilienhaushalt",4,IF(VLOOKUP(AI6,Input!$A$57:$C$88,2,FALSE)="Kochgas",5,IF(VLOOKUP(AI6,Input!$A$57:$C$88,2,FALSE)="Gebietskörperschaft, Kreditinst, Vers., öffentl. Einr.",6,IF(VLOOKUP(AI6,Input!$A$57:$C$88,2,FALSE)="Einzelhandel, Großhandel",7,IF(VLOOKUP(AI6,Input!$A$57:$C$88,2,FALSE)="Metall, Kfz",8,IF(VLOOKUP(AI6,Input!$A$57:$C$88,2,FALSE)="sonst. Betr. Dienstleistungen",9,IF(VLOOKUP(AI6,Input!$A$57:$C$88,2,FALSE)="Gaststätten",10,IF(VLOOKUP(AI6,Input!$A$57:$C$88,2,FALSE)="Beherbergung",11,IF(VLOOKUP(AI6,Input!$A$57:$C$88,2,FALSE)="Bäckereien",12,IF(VLOOKUP(AI6,Input!$A$57:$C$88,2,FALSE)="Wäschereien",13,IF(VLOOKUP(AI6,Input!$A$57:$C$88,2,FALSE)="Gartenbau",14,IF("Papier und Druck",15,IF(VLOOKUP(AI6,Input!$A$57:$C$88,2,FALSE)="haushaltsähnliche Gewerbebetriebe",16,IF(VLOOKUP(AI6,Input!$A$57:$C$88,2,FALSE)="Summenlastprofil Gewerbe, Handel Dienstleistung",17,0))))))))))))))) -> 6 | AL17: =IF(VLOOKUP(AM6,Input!$A$57:$C$88,2,FALSE)="Einfamilienhaushalt",3,IF(VLOOKUP(AM6,Input!$A$57:$C$88,2,FALSE)="Mehrfamilienhaushalt",4,IF(VLOOKUP(AM6,Input!$A$57:$C$88,2,FALSE)="Kochgas",5,IF(VLOOKUP(AM6,Input!$A$57:$C$88,2,FALSE)="Gebietskörperschaft, Kreditinst, Vers., öffentl. Einr.",6,IF(VLOOKUP(AM6,Input!$A$57:$C$88,2,FALSE)="Einzelhandel, Großhandel",7,IF(VLOOKUP(AM6,Input!$A$57:$C$88,2,FALSE)="Metall, Kfz",8,IF(VLOOKUP(AM6,Input!$A$57:$C$88,2,FALSE)="sonst. Betr. Dienstleistungen",9,IF(VLOOKUP(AM6,Input!$A$57:$C$88,2,FALSE)="Gaststätten",10,IF(VLOOKUP(AM6,Input!$A$57:$C$88,2,FALSE)="Beherbergung",11,IF(VLOOKUP(AM6,Input!$A$57:$C$88,2,FALSE)="Bäckereien",12,IF(VLOOKUP(AM6,Input!$A$57:$C$88,2,FALSE)="Wäschereien",13,IF(VLOOKUP(AM6,Input!$A$57:$C$88,2,FALSE)="Gartenbau",14,IF("Papier und Druck",15,IF(VLOOKUP(AM6,Input!$A$57:$C$88,2,FALSE)="haushaltsähnliche Gewerbebetriebe",16,IF(VLOOKUP(AM6,Input!$A$57:$C$88,2,FALSE)="Summenlastprofil Gewerbe, Handel Dienstleistung",17,0))))))))))))))) ->  | AP17: =IF(VLOOKUP(AQ6,Input!$A$57:$C$88,2,FALSE)="Einfamilienhaushalt",3,IF(VLOOKUP(AQ6,Input!$A$57:$C$88,2,FALSE)="Mehrfamilienhaushalt",4,IF(VLOOKUP(AQ6,Input!$A$57:$C$88,2,FALSE)="Kochgas",5,IF(VLOOKUP(AQ6,Input!$A$57:$C$88,2,FALSE)="Gebietskörperschaft, Kreditinst, Vers., öffentl. Einr.",6,IF(VLOOKUP(AQ6,Input!$A$57:$C$88,2,FALSE)="Einzelhandel, Großhandel",7,IF(VLOOKUP(AQ6,Input!$A$57:$C$88,2,FALSE)="Metall, Kfz",8,IF(VLOOKUP(AQ6,Input!$A$57:$C$88,2,FALSE)="sonst. Betr. Dienstleistungen",9,IF(VLOOKUP(AQ6,Input!$A$57:$C$88,2,FALSE)="Gaststätten",10,IF(VLOOKUP(AQ6,Input!$A$57:$C$88,2,FALSE)="Beherbergung",11,IF(VLOOKUP(AQ6,Input!$A$57:$C$88,2,FALSE)="Bäckereien",12,IF(VLOOKUP(AQ6,Input!$A$57:$C$88,2,FALSE)="Wäschereien",13,IF(VLOOKUP(AQ6,Input!$A$57:$C$88,2,FALSE)="Gartenbau",14,IF("Papier und Druck",15,IF(VLOOKUP(AQ6,Input!$A$57:$C$88,2,FALSE)="haushaltsähnliche Gewerbebetriebe",16,IF(VLOOKUP(AQ6,Input!$A$57:$C$88,2,FALSE)="Summenlastprofil Gewerbe, Handel Dienstleistung",17,0))))))))))))))) ->  | AT17: =IF(VLOOKUP(AU6,Input!$A$57:$C$88,2,FALSE)="Einfamilienhaushalt",3,IF(VLOOKUP(AU6,Input!$A$57:$C$88,2,FALSE)="Mehrfamilienhaushalt",4,IF(VLOOKUP(AU6,Input!$A$57:$C$88,2,FALSE)="Kochgas",5,IF(VLOOKUP(AU6,Input!$A$57:$C$88,2,FALSE)="Gebietskörperschaft, Kreditinst, Vers., öffentl. Einr.",6,IF(VLOOKUP(AU6,Input!$A$57:$C$88,2,FALSE)="Einzelhandel, Großhandel",7,IF(VLOOKUP(AU6,Input!$A$57:$C$88,2,FALSE)="Metall, Kfz",8,IF(VLOOKUP(AU6,Input!$A$57:$C$88,2,FALSE)="sonst. Betr. Dienstleistungen",9,IF(VLOOKUP(AU6,Input!$A$57:$C$88,2,FALSE)="Gaststätten",10,IF(VLOOKUP(AU6,Input!$A$57:$C$88,2,FALSE)="Beherbergung",11,IF(VLOOKUP(AU6,Input!$A$57:$C$88,2,FALSE)="Bäckereien",12,IF(VLOOKUP(AU6,Input!$A$57:$C$88,2,FALSE)="Wäschereien",13,IF(VLOOKUP(AU6,Input!$A$57:$C$88,2,FALSE)="Gartenbau",14,IF("Papier und Druck",15,IF(VLOOKUP(AU6,Input!$A$57:$C$88,2,FALSE)="haushaltsähnliche Gewerbebetriebe",16,IF(VLOOKUP(AU6,Input!$A$57:$C$88,2,FALSE)="Summenlastprofil Gewerbe, Handel Dienstleistung",17,0))))))))))))))) ->  | AX17: =IF(VLOOKUP(AY6,Input!$A$57:$C$88,2,FALSE)="Einfamilienhaushalt",3,IF(VLOOKUP(AY6,Input!$A$57:$C$88,2,FALSE)="Mehrfamilienhaushalt",4,IF(VLOOKUP(AY6,Input!$A$57:$C$88,2,FALSE)="Kochgas",5,IF(VLOOKUP(AY6,Input!$A$57:$C$88,2,FALSE)="Gebietskörperschaft, Kreditinst, Vers., öffentl. Einr.",6,IF(VLOOKUP(AY6,Input!$A$57:$C$88,2,FALSE)="Einzelhandel, Großhandel",7,IF(VLOOKUP(AY6,Input!$A$57:$C$88,2,FALSE)="Metall, Kfz",8,IF(VLOOKUP(AY6,Input!$A$57:$C$88,2,FALSE)="sonst. Betr. Dienstleistungen",9,IF(VLOOKUP(AY6,Input!$A$57:$C$88,2,FALSE)="Gaststätten",10,IF(VLOOKUP(AY6,Input!$A$57:$C$88,2,FALSE)="Beherbergung",11,IF(VLOOKUP(AY6,Input!$A$57:$C$88,2,FALSE)="Bäckereien",12,IF(VLOOKUP(AY6,Input!$A$57:$C$88,2,FALSE)="Wäschereien",13,IF(VLOOKUP(AY6,Input!$A$57:$C$88,2,FALSE)="Gartenbau",14,IF("Papier und Druck",15,IF(VLOOKUP(AY6,Input!$A$57:$C$88,2,FALSE)="haushaltsähnliche Gewerbebetriebe",16,IF(VLOOKUP(AY6,Input!$A$57:$C$88,2,FALSE)="Summenlastprofil Gewerbe, Handel Dienstleistung",17,0))))))))))))))) ->  | BB17: =IF(VLOOKUP(BC6,Input!$A$57:$C$88,2,FALSE)="Einfamilienhaushalt",3,IF(VLOOKUP(BC6,Input!$A$57:$C$88,2,FALSE)="Mehrfamilienhaushalt",4,IF(VLOOKUP(BC6,Input!$A$57:$C$88,2,FALSE)="Kochgas",5,IF(VLOOKUP(BC6,Input!$A$57:$C$88,2,FALSE)="Gebietskörperschaft, Kreditinst, Vers., öffentl. Einr.",6,IF(VLOOKUP(BC6,Input!$A$57:$C$88,2,FALSE)="Einzelhandel, Großhandel",7,IF(VLOOKUP(BC6,Input!$A$57:$C$88,2,FALSE)="Metall, Kfz",8,IF(VLOOKUP(BC6,Input!$A$57:$C$88,2,FALSE)="sonst. Betr. Dienstleistungen",9,IF(VLOOKUP(BC6,Input!$A$57:$C$88,2,FALSE)="Gaststätten",10,IF(VLOOKUP(BC6,Input!$A$57:$C$88,2,FALSE)="Beherbergung",11,IF(VLOOKUP(BC6,Input!$A$57:$C$88,2,FALSE)="Bäckereien",12,IF(VLOOKUP(BC6,Input!$A$57:$C$88,2,FALSE)="Wäschereien",13,IF(VLOOKUP(BC6,Input!$A$57:$C$88,2,FALSE)="Gartenbau",14,IF("Papier und Druck",15,IF(VLOOKUP(BC6,Input!$A$57:$C$88,2,FALSE)="haushaltsähnliche Gewerbebetriebe",16,IF(VLOOKUP(BC6,Input!$A$57:$C$88,2,FALSE)="Summenlastprofil Gewerbe, Handel Dienstleistung",17,0))))))))))))))) ->  | BF17: =IF(VLOOKUP(BG6,Input!$A$57:$C$88,2,FALSE)="Einfamilienhaushalt",3,IF(VLOOKUP(BG6,Input!$A$57:$C$88,2,FALSE)="Mehrfamilienhaushalt",4,IF(VLOOKUP(BG6,Input!$A$57:$C$88,2,FALSE)="Kochgas",5,IF(VLOOKUP(BG6,Input!$A$57:$C$88,2,FALSE)="Gebietskörperschaft, Kreditinst, Vers., öffentl. Einr.",6,IF(VLOOKUP(BG6,Input!$A$57:$C$88,2,FALSE)="Einzelhandel, Großhandel",7,IF(VLOOKUP(BG6,Input!$A$57:$C$88,2,FALSE)="Metall, Kfz",8,IF(VLOOKUP(BG6,Input!$A$57:$C$88,2,FALSE)="sonst. Betr. Dienstleistungen",9,IF(VLOOKUP(BG6,Input!$A$57:$C$88,2,FALSE)="Gaststätten",10,IF(VLOOKUP(BG6,Input!$A$57:$C$88,2,FALSE)="Beherbergung",11,IF(VLOOKUP(BG6,Input!$A$57:$C$88,2,FALSE)="Bäckereien",12,IF(VLOOKUP(BG6,Input!$A$57:$C$88,2,FALSE)="Wäschereien",13,IF(VLOOKUP(BG6,Input!$A$57:$C$88,2,FALSE)="Gartenbau",14,IF(VLOOKUP(BG6,Input!$A$57:$C$88,2,FALSE)="Papier und Druck",15,IF(VLOOKUP(BG6,Input!$A$57:$C$88,2,FALSE)="haushaltsähnliche Gewerbebetriebe",16,IF(VLOOKUP(BG6,Input!$A$57:$C$88,2,FALSE)="Summenlastprofil Gewerbe, Handel Dienstleistung",17,0))))))))))))))) ->  | BJ17: =IF(VLOOKUP(BK6,Input!$A$57:$C$88,2,FALSE)="Einfamilienhaushalt",3,IF(VLOOKUP(BK6,Input!$A$57:$C$88,2,FALSE)="Mehrfamilienhaushalt",4,IF(VLOOKUP(BK6,Input!$A$57:$C$88,2,FALSE)="Kochgas",5,IF(VLOOKUP(BK6,Input!$A$57:$C$88,2,FALSE)="Gebietskörperschaft, Kreditinst, Vers., öffentl. Einr.",6,IF(VLOOKUP(BK6,Input!$A$57:$C$88,2,FALSE)="Einzelhandel, Großhandel",7,IF(VLOOKUP(BK6,Input!$A$57:$C$88,2,FALSE)="Metall, Kfz",8,IF(VLOOKUP(BK6,Input!$A$57:$C$88,2,FALSE)="sonst. Betr. Dienstleistungen",9,IF(VLOOKUP(BK6,Input!$A$57:$C$88,2,FALSE)="Gaststätten",10,IF(VLOOKUP(BK6,Input!$A$57:$C$88,2,FALSE)="Beherbergung",11,IF(VLOOKUP(BK6,Input!$A$57:$C$88,2,FALSE)="Bäckereien",12,IF(VLOOKUP(BK6,Input!$A$57:$C$88,2,FALSE)="Wäschereien",13,IF(VLOOKUP(BK6,Input!$A$57:$C$88,2,FALSE)="Gartenbau",14,IF("Papier und Druck",15,IF(VLOOKUP(BK6,Input!$A$57:$C$88,2,FALSE)="haushaltsähnliche Gewerbebetriebe",16,IF(VLOOKUP(BK6,Input!$A$57:$C$88,2,FALSE)="Summenlastprofil Gewerbe, Handel Dienstleistung",17,0))))))))))))))) ->  | BN17: =IF(VLOOKUP(BO6,Input!$A$57:$C$88,2,FALSE)="Einfamilienhaushalt",3,IF(VLOOKUP(BO6,Input!$A$57:$C$88,2,FALSE)="Mehrfamilienhaushalt",4,IF(VLOOKUP(BO6,Input!$A$57:$C$88,2,FALSE)="Kochgas",5,IF(VLOOKUP(BO6,Input!$A$57:$C$88,2,FALSE)="Gebietskörperschaft, Kreditinst, Vers., öffentl. Einr.",6,IF(VLOOKUP(BO6,Input!$A$57:$C$88,2,FALSE)="Einzelhandel, Großhandel",7,IF(VLOOKUP(BO6,Input!$A$57:$C$88,2,FALSE)="Metall, Kfz",8,IF(VLOOKUP(BO6,Input!$A$57:$C$88,2,FALSE)="sonst. Betr. Dienstleistungen",9,IF(VLOOKUP(BO6,Input!$A$57:$C$88,2,FALSE)="Gaststätten",10,IF(VLOOKUP(BO6,Input!$A$57:$C$88,2,FALSE)="Beherbergung",11,IF(VLOOKUP(BO6,Input!$A$57:$C$88,2,FALSE)="Bäckereien",12,IF(VLOOKUP(BO6,Input!$A$57:$C$88,2,FALSE)="Wäschereien",13,IF(VLOOKUP(BO6,Input!$A$57:$C$88,2,FALSE)="Gartenbau",14,IF("Papier und Druck",15,IF(VLOOKUP(BO6,Input!$A$57:$C$88,2,FALSE)="haushaltsähnliche Gewerbebetriebe",16,IF(VLOOKUP(BO6,Input!$A$57:$C$88,2,FALSE)="Summenlastprofil Gewerbe, Handel Dienstleistung",17,0))))))))))))))) ->  | BR17: =IF(VLOOKUP(BS6,Input!$A$57:$C$88,2,FALSE)="Einfamilienhaushalt",3,IF(VLOOKUP(BS6,Input!$A$57:$C$88,2,FALSE)="Mehrfamilienhaushalt",4,IF(VLOOKUP(BS6,Input!$A$57:$C$88,2,FALSE)="Kochgas",5,IF(VLOOKUP(BS6,Input!$A$57:$C$88,2,FALSE)="Gebietskörperschaft, Kreditinst, Vers., öffentl. Einr.",6,IF(VLOOKUP(BS6,Input!$A$57:$C$88,2,FALSE)="Einzelhandel, Großhandel",7,IF(VLOOKUP(BS6,Input!$A$57:$C$88,2,FALSE)="Metall, Kfz",8,IF(VLOOKUP(BS6,Input!$A$57:$C$88,2,FALSE)="sonst. Betr. Dienstleistungen",9,IF(VLOOKUP(BS6,Input!$A$57:$C$88,2,FALSE)="Gaststätten",10,IF(VLOOKUP(BS6,Input!$A$57:$C$88,2,FALSE)="Beherbergung",11,IF(VLOOKUP(BS6,Input!$A$57:$C$88,2,FALSE)="Bäckereien",12,IF(VLOOKUP(BS6,Input!$A$57:$C$88,2,FALSE)="Wäschereien",13,IF(VLOOKUP(BS6,Input!$A$57:$C$88,2,FALSE)="Gartenbau",14,IF("Papier und Druck",15,IF(VLOOKUP(BS6,Input!$A$57:$C$88,2,FALSE)="haushaltsähnliche Gewerbebetriebe",16,IF(VLOOKUP(BS6,Input!$A$57:$C$88,2,FALSE)="Summenlastprofil Gewerbe, Handel Dienstleistung",17,0))))))))))))))) ->  | BV17: =IF(VLOOKUP(BW6,Input!$A$57:$C$88,2,FALSE)="Einfamilienhaushalt",3,IF(VLOOKUP(BW6,Input!$A$57:$C$88,2,FALSE)="Mehrfamilienhaushalt",4,IF(VLOOKUP(BW6,Input!$A$57:$C$88,2,FALSE)="Kochgas",5,IF(VLOOKUP(BW6,Input!$A$57:$C$88,2,FALSE)="Gebietskörperschaft, Kreditinst, Vers., öffentl. Einr.",6,IF(VLOOKUP(BW6,Input!$A$57:$C$88,2,FALSE)="Einzelhandel, Großhandel",7,IF(VLOOKUP(BW6,Input!$A$57:$C$88,2,FALSE)="Metall, Kfz",8,IF(VLOOKUP(BW6,Input!$A$57:$C$88,2,FALSE)="sonst. Betr. Dienstleistungen",9,IF(VLOOKUP(BW6,Input!$A$57:$C$88,2,FALSE)="Gaststätten",10,IF(VLOOKUP(BW6,Input!$A$57:$C$88,2,FALSE)="Beherbergung",11,IF(VLOOKUP(BW6,Input!$A$57:$C$88,2,FALSE)="Bäckereien",12,IF(VLOOKUP(BW6,Input!$A$57:$C$88,2,FALSE)="Wäschereien",13,IF(VLOOKUP(BW6,Input!$A$57:$C$88,2,FALSE)="Gartenbau",14,IF("Papier und Druck",15,IF(VLOOKUP(BW6,Input!$A$57:$C$88,2,FALSE)="haushaltsähnliche Gewerbebetriebe",16,IF(VLOOKUP(BW6,Input!$A$57:$C$88,2,FALSE)="Summenlastprofil Gewerbe, Handel Dienstleistung",17,0))))))))))))))) ->  | BZ17: =IF(VLOOKUP(CA6,Input!$A$57:$C$88,2,FALSE)="Einfamilienhaushalt",3,IF(VLOOKUP(CA6,Input!$A$57:$C$88,2,FALSE)="Mehrfamilienhaushalt",4,IF(VLOOKUP(CA6,Input!$A$57:$C$88,2,FALSE)="Kochgas",5,IF(VLOOKUP(CA6,Input!$A$57:$C$88,2,FALSE)="Gebietskörperschaft, Kreditinst, Vers., öffentl. Einr.",6,IF(VLOOKUP(CA6,Input!$A$57:$C$88,2,FALSE)="Einzelhandel, Großhandel",7,IF(VLOOKUP(CA6,Input!$A$57:$C$88,2,FALSE)="Metall, Kfz",8,IF(VLOOKUP(CA6,Input!$A$57:$C$88,2,FALSE)="sonst. Betr. Dienstleistungen",9,IF(VLOOKUP(CA6,Input!$A$57:$C$88,2,FALSE)="Gaststätten",10,IF(VLOOKUP(CA6,Input!$A$57:$C$88,2,FALSE)="Beherbergung",11,IF(VLOOKUP(CA6,Input!$A$57:$C$88,2,FALSE)="Bäckereien",12,IF(VLOOKUP(CA6,Input!$A$57:$C$88,2,FALSE)="Wäschereien",13,IF(VLOOKUP(CA6,Input!$A$57:$C$88,2,FALSE)="Gartenbau",14,IF("Papier und Druck",15,IF(VLOOKUP(CA6,Input!$A$57:$C$88,2,FALSE)="haushaltsähnliche Gewerbebetriebe",16,IF(VLOOKUP(CA6,Input!$A$57:$C$88,2,FALSE)="Summenlastprofil Gewerbe, Handel Dienstleistung",17,0))))))))))))))) ->  | CD17: =IF(VLOOKUP(CE6,Input!$A$57:$C$88,2,FALSE)="Einfamilienhaushalt",3,IF(VLOOKUP(CE6,Input!$A$57:$C$88,2,FALSE)="Mehrfamilienhaushalt",4,IF(VLOOKUP(CE6,Input!$A$57:$C$88,2,FALSE)="Kochgas",5,IF(VLOOKUP(CE6,Input!$A$57:$C$88,2,FALSE)="Gebietskörperschaft, Kreditinst, Vers., öffentl. Einr.",6,IF(VLOOKUP(CE6,Input!$A$57:$C$88,2,FALSE)="Einzelhandel, Großhandel",7,IF(VLOOKUP(CE6,Input!$A$57:$C$88,2,FALSE)="Metall, Kfz",8,IF(VLOOKUP(CE6,Input!$A$57:$C$88,2,FALSE)="sonst. Betr. Dienstleistungen",9,IF(VLOOKUP(CE6,Input!$A$57:$C$88,2,FALSE)="Gaststätten",10,IF(VLOOKUP(CE6,Input!$A$57:$C$88,2,FALSE)="Beherbergung",11,IF(VLOOKUP(CE6,Input!$A$57:$C$88,2,FALSE)="Bäckereien",12,IF(VLOOKUP(CE6,Input!$A$57:$C$88,2,FALSE)="Wäschereien",13,IF(VLOOKUP(CE6,Input!$A$57:$C$88,2,FALSE)="Gartenbau",14,IF("Papier und Druck",15,IF(VLOOKUP(CE6,Input!$A$57:$C$88,2,FALSE)="haushaltsähnliche Gewerbebetriebe",16,IF(VLOOKUP(CE6,Input!$A$57:$C$88,2,FALSE)="Summenlastprofil Gewerbe, Handel Dienstleistung",17,0))))))))))))))) ->  | CH17: =IF(VLOOKUP(CI6,Input!$A$57:$C$88,2,FALSE)="Einfamilienhaushalt",3,IF(VLOOKUP(CI6,Input!$A$57:$C$88,2,FALSE)="Mehrfamilienhaushalt",4,IF(VLOOKUP(CI6,Input!$A$57:$C$88,2,FALSE)="Kochgas",5,IF(VLOOKUP(CI6,Input!$A$57:$C$88,2,FALSE)="Gebietskörperschaft, Kreditinst, Vers., öffentl. Einr.",6,IF(VLOOKUP(CI6,Input!$A$57:$C$88,2,FALSE)="Einzelhandel, Großhandel",7,IF(VLOOKUP(CI6,Input!$A$57:$C$88,2,FALSE)="Metall, Kfz",8,IF(VLOOKUP(CI6,Input!$A$57:$C$88,2,FALSE)="sonst. Betr. Dienstleistungen",9,IF(VLOOKUP(CI6,Input!$A$57:$C$88,2,FALSE)="Gaststätten",10,IF(VLOOKUP(CI6,Input!$A$57:$C$88,2,FALSE)="Beherbergung",11,IF(VLOOKUP(CI6,Input!$A$57:$C$88,2,FALSE)="Bäckereien",12,IF(VLOOKUP(CI6,Input!$A$57:$C$88,2,FALSE)="Wäschereien",13,IF(VLOOKUP(CI6,Input!$A$57:$C$88,2,FALSE)="Gartenbau",14,IF("Papier und Druck",15,IF(VLOOKUP(CI6,Input!$A$57:$C$88,2,FALSE)="haushaltsähnliche Gewerbebetriebe",16,IF(VLOOKUP(CI6,Input!$A$57:$C$88,2,FALSE)="Summenlastprofil Gewerbe, Handel Dienstleistung",17,0))))))))))))))) ->  | CL17: =IF(VLOOKUP(CM6,Input!$A$57:$C$88,2,FALSE)="Einfamilienhaushalt",3,IF(VLOOKUP(CM6,Input!$A$57:$C$88,2,FALSE)="Mehrfamilienhaushalt",4,IF(VLOOKUP(CM6,Input!$A$57:$C$88,2,FALSE)="Kochgas",5,IF(VLOOKUP(CM6,Input!$A$57:$C$88,2,FALSE)="Gebietskörperschaft, Kreditinst, Vers., öffentl. Einr.",6,IF(VLOOKUP(CM6,Input!$A$57:$C$88,2,FALSE)="Einzelhandel, Großhandel",7,IF(VLOOKUP(CM6,Input!$A$57:$C$88,2,FALSE)="Metall, Kfz",8,IF(VLOOKUP(CM6,Input!$A$57:$C$88,2,FALSE)="sonst. Betr. Dienstleistungen",9,IF(VLOOKUP(CM6,Input!$A$57:$C$88,2,FALSE)="Gaststätten",10,IF(VLOOKUP(CM6,Input!$A$57:$C$88,2,FALSE)="Beherbergung",11,IF(VLOOKUP(CM6,Input!$A$57:$C$88,2,FALSE)="Bäckereien",12,IF(VLOOKUP(CM6,Input!$A$57:$C$88,2,FALSE)="Wäschereien",13,IF(VLOOKUP(CM6,Input!$A$57:$C$88,2,FALSE)="Gartenbau",14,IF("Papier und Druck",15,IF(VLOOKUP(CM6,Input!$A$57:$C$88,2,FALSE)="haushaltsähnliche Gewerbebetriebe",16,IF(VLOOKUP(CM6,Input!$A$57:$C$88,2,FALSE)="Summenlastprofil Gewerbe, Handel Dienstleistung",17,0))))))))))))))) ->  | CP17: =IF(VLOOKUP(CQ6,Input!$A$57:$C$88,2,FALSE)="Einfamilienhaushalt",3,IF(VLOOKUP(CQ6,Input!$A$57:$C$88,2,FALSE)="Mehrfamilienhaushalt",4,IF(VLOOKUP(CQ6,Input!$A$57:$C$88,2,FALSE)="Kochgas",5,IF(VLOOKUP(CQ6,Input!$A$57:$C$88,2,FALSE)="Gebietskörperschaft, Kreditinst, Vers., öffentl. Einr.",6,IF(VLOOKUP(CQ6,Input!$A$57:$C$88,2,FALSE)="Einzelhandel, Großhandel",7,IF(VLOOKUP(CQ6,Input!$A$57:$C$88,2,FALSE)="Metall, Kfz",8,IF(VLOOKUP(CQ6,Input!$A$57:$C$88,2,FALSE)="sonst. Betr. Dienstleistungen",9,IF(VLOOKUP(CQ6,Input!$A$57:$C$88,2,FALSE)="Gaststätten",10,IF(VLOOKUP(CQ6,Input!$A$57:$C$88,2,FALSE)="Beherbergung",11,IF(VLOOKUP(CQ6,Input!$A$57:$C$88,2,FALSE)="Bäckereien",12,IF(VLOOKUP(CQ6,Input!$A$57:$C$88,2,FALSE)="Wäschereien",13,IF(VLOOKUP(CQ6,Input!$A$57:$C$88,2,FALSE)="Gartenbau",14,IF("Papier und Druck",15,IF(VLOOKUP(CQ6,Input!$A$57:$C$88,2,FALSE)="haushaltsähnliche Gewerbebetriebe",16,IF(VLOOKUP(CQ6,Input!$A$57:$C$88,2,FALSE)="Summenlastprofil Gewerbe, Handel Dienstleistung",17,0))))))))))))))) ->  | CT17: =IF(VLOOKUP(CU6,Input!$A$57:$C$88,2,FALSE)="Einfamilienhaushalt",3,IF(VLOOKUP(CU6,Input!$A$57:$C$88,2,FALSE)="Mehrfamilienhaushalt",4,IF(VLOOKUP(CU6,Input!$A$57:$C$88,2,FALSE)="Kochgas",5,IF(VLOOKUP(CU6,Input!$A$57:$C$88,2,FALSE)="Gebietskörperschaft, Kreditinst, Vers., öffentl. Einr.",6,IF(VLOOKUP(CU6,Input!$A$57:$C$88,2,FALSE)="Einzelhandel, Großhandel",7,IF(VLOOKUP(CU6,Input!$A$57:$C$88,2,FALSE)="Metall, Kfz",8,IF(VLOOKUP(CU6,Input!$A$57:$C$88,2,FALSE)="sonst. Betr. Dienstleistungen",9,IF(VLOOKUP(CU6,Input!$A$57:$C$88,2,FALSE)="Gaststätten",10,IF(VLOOKUP(CU6,Input!$A$57:$C$88,2,FALSE)="Beherbergung",11,IF(VLOOKUP(CU6,Input!$A$57:$C$88,2,FALSE)="Bäckereien",12,IF(VLOOKUP(CU6,Input!$A$57:$C$88,2,FALSE)="Wäschereien",13,IF(VLOOKUP(CU6,Input!$A$57:$C$88,2,FALSE)="Gartenbau",14,IF("Papier und Druck",15,IF(VLOOKUP(CU6,Input!$A$57:$C$88,2,FALSE)="haushaltsähnliche Gewerbebetriebe",16,IF(VLOOKUP(CU6,Input!$A$57:$C$88,2,FALSE)="Summenlastprofil Gewerbe, Handel Dienstleistung",17,0))))))))))))))) ->  | CX17: =IF(VLOOKUP(CY6,Input!$A$57:$C$88,2,FALSE)="Einfamilienhaushalt",3,IF(VLOOKUP(CY6,Input!$A$57:$C$88,2,FALSE)="Mehrfamilienhaushalt",4,IF(VLOOKUP(CY6,Input!$A$57:$C$88,2,FALSE)="Kochgas",5,IF(VLOOKUP(CY6,Input!$A$57:$C$88,2,FALSE)="Gebietskörperschaft, Kreditinst, Vers., öffentl. Einr.",6,IF(VLOOKUP(CY6,Input!$A$57:$C$88,2,FALSE)="Einzelhandel, Großhandel",7,IF(VLOOKUP(CY6,Input!$A$57:$C$88,2,FALSE)="Metall, Kfz",8,IF(VLOOKUP(CY6,Input!$A$57:$C$88,2,FALSE)="sonst. Betr. Dienstleistungen",9,IF(VLOOKUP(CY6,Input!$A$57:$C$88,2,FALSE)="Gaststätten",10,IF(VLOOKUP(CY6,Input!$A$57:$C$88,2,FALSE)="Beherbergung",11,IF(VLOOKUP(CY6,Input!$A$57:$C$88,2,FALSE)="Bäckereien",12,IF(VLOOKUP(CY6,Input!$A$57:$C$88,2,FALSE)="Wäschereien",13,IF(VLOOKUP(CY6,Input!$A$57:$C$88,2,FALSE)="Gartenbau",14,IF("Papier und Druck",15,IF(VLOOKUP(CY6,Input!$A$57:$C$88,2,FALSE)="haushaltsähnliche Gewerbebetriebe",16,IF(VLOOKUP(CY6,Input!$A$57:$C$88,2,FALSE)="Summenlastprofil Gewerbe, Handel Dienstleistung",17,0))))))))))))))) ->  | DB17: =IF(VLOOKUP(DC6,Input!$A$57:$C$88,2,FALSE)="Einfamilienhaushalt",3,IF(VLOOKUP(DC6,Input!$A$57:$C$88,2,FALSE)="Mehrfamilienhaushalt",4,IF(VLOOKUP(DC6,Input!$A$57:$C$88,2,FALSE)="Kochgas",5,IF(VLOOKUP(DC6,Input!$A$57:$C$88,2,FALSE)="Gebietskörperschaft, Kreditinst, Vers., öffentl. Einr.",6,IF(VLOOKUP(DC6,Input!$A$57:$C$88,2,FALSE)="Einzelhandel, Großhandel",7,IF(VLOOKUP(DC6,Input!$A$57:$C$88,2,FALSE)="Metall, Kfz",8,IF(VLOOKUP(DC6,Input!$A$57:$C$88,2,FALSE)="sonst. Betr. Dienstleistungen",9,IF(VLOOKUP(DC6,Input!$A$57:$C$88,2,FALSE)="Gaststätten",10,IF(VLOOKUP(DC6,Input!$A$57:$C$88,2,FALSE)="Beherbergung",11,IF(VLOOKUP(DC6,Input!$A$57:$C$88,2,FALSE)="Bäckereien",12,IF(VLOOKUP(DC6,Input!$A$57:$C$88,2,FALSE)="Wäschereien",13,IF(VLOOKUP(DC6,Input!$A$57:$C$88,2,FALSE)="Gartenbau",14,IF("Papier und Druck",15,IF(VLOOKUP(DC6,Input!$A$57:$C$88,2,FALSE)="haushaltsähnliche Gewerbebetriebe",16,IF(VLOOKUP(DC6,Input!$A$57:$C$88,2,FALSE)="Summenlastprofil Gewerbe, Handel Dienstleistung",17,0))))))))))))))) ->  | DF17: =IF(VLOOKUP(DG6,Input!$A$57:$C$88,2,FALSE)="Einfamilienhaushalt",3,IF(VLOOKUP(DG6,Input!$A$57:$C$88,2,FALSE)="Mehrfamilienhaushalt",4,IF(VLOOKUP(DG6,Input!$A$57:$C$88,2,FALSE)="Kochgas",5,IF(VLOOKUP(DG6,Input!$A$57:$C$88,2,FALSE)="Gebietskörperschaft, Kreditinst, Vers., öffentl. Einr.",6,IF(VLOOKUP(DG6,Input!$A$57:$C$88,2,FALSE)="Einzelhandel, Großhandel",7,IF(VLOOKUP(DG6,Input!$A$57:$C$88,2,FALSE)="Metall, Kfz",8,IF(VLOOKUP(DG6,Input!$A$57:$C$88,2,FALSE)="sonst. Betr. Dienstleistungen",9,IF(VLOOKUP(DG6,Input!$A$57:$C$88,2,FALSE)="Gaststätten",10,IF(VLOOKUP(DG6,Input!$A$57:$C$88,2,FALSE)="Beherbergung",11,IF(VLOOKUP(DG6,Input!$A$57:$C$88,2,FALSE)="Bäckereien",12,IF(VLOOKUP(DG6,Input!$A$57:$C$88,2,FALSE)="Wäschereien",13,IF(VLOOKUP(DG6,Input!$A$57:$C$88,2,FALSE)="Gartenbau",14,IF("Papier und Druck",15,IF(VLOOKUP(DG6,Input!$A$57:$C$88,2,FALSE)="haushaltsähnliche Gewerbebetriebe",16,IF(VLOOKUP(DG6,Input!$A$57:$C$88,2,FALSE)="Summenlastprofil Gewerbe, Handel Dienstleistung",17,0))))))))))))))) ->  | DJ17: =IF(VLOOKUP(DK6,Input!$A$57:$C$88,2,FALSE)="Einfamilienhaushalt",3,IF(VLOOKUP(DK6,Input!$A$57:$C$88,2,FALSE)="Mehrfamilienhaushalt",4,IF(VLOOKUP(DK6,Input!$A$57:$C$88,2,FALSE)="Kochgas",5,IF(VLOOKUP(DK6,Input!$A$57:$C$88,2,FALSE)="Gebietskörperschaft, Kreditinst, Vers., öffentl. Einr.",6,IF(VLOOKUP(DK6,Input!$A$57:$C$88,2,FALSE)="Einzelhandel, Großhandel",7,IF(VLOOKUP(DK6,Input!$A$57:$C$88,2,FALSE)="Metall, Kfz",8,IF(VLOOKUP(DK6,Input!$A$57:$C$88,2,FALSE)="sonst. Betr. Dienstleistungen",9,IF(VLOOKUP(DK6,Input!$A$57:$C$88,2,FALSE)="Gaststätten",10,IF(VLOOKUP(DK6,Input!$A$57:$C$88,2,FALSE)="Beherbergung",11,IF(VLOOKUP(DK6,Input!$A$57:$C$88,2,FALSE)="Bäckereien",12,IF(VLOOKUP(DK6,Input!$A$57:$C$88,2,FALSE)="Wäschereien",13,IF(VLOOKUP(DK6,Input!$A$57:$C$88,2,FALSE)="Gartenbau",14,IF("Papier und Druck",15,IF(VLOOKUP(DK6,Input!$A$57:$C$88,2,FALSE)="haushaltsähnliche Gewerbebetriebe",16,IF(VLOOKUP(DK6,Input!$A$57:$C$88,2,FALSE)="Summenlastprofil Gewerbe, Handel Dienstleistung",17,0))))))))))))))) ->  | DN17: =IF(VLOOKUP(DO6,Input!$A$57:$C$88,2,FALSE)="Einfamilienhaushalt",3,IF(VLOOKUP(DO6,Input!$A$57:$C$88,2,FALSE)="Mehrfamilienhaushalt",4,IF(VLOOKUP(DO6,Input!$A$57:$C$88,2,FALSE)="Kochgas",5,IF(VLOOKUP(DO6,Input!$A$57:$C$88,2,FALSE)="Gebietskörperschaft, Kreditinst, Vers., öffentl. Einr.",6,IF(VLOOKUP(DO6,Input!$A$57:$C$88,2,FALSE)="Einzelhandel, Großhandel",7,IF(VLOOKUP(DO6,Input!$A$57:$C$88,2,FALSE)="Metall, Kfz",8,IF(VLOOKUP(DO6,Input!$A$57:$C$88,2,FALSE)="sonst. Betr. Dienstleistungen",9,IF(VLOOKUP(DO6,Input!$A$57:$C$88,2,FALSE)="Gaststätten",10,IF(VLOOKUP(DO6,Input!$A$57:$C$88,2,FALSE)="Beherbergung",11,IF(VLOOKUP(DO6,Input!$A$57:$C$88,2,FALSE)="Bäckereien",12,IF(VLOOKUP(DO6,Input!$A$57:$C$88,2,FALSE)="Wäschereien",13,IF(VLOOKUP(DO6,Input!$A$57:$C$88,2,FALSE)="Gartenbau",14,IF("Papier und Druck",15,IF(VLOOKUP(DO6,Input!$A$57:$C$88,2,FALSE)="haushaltsähnliche Gewerbebetriebe",16,IF(VLOOKUP(DO6,Input!$A$57:$C$88,2,FALSE)="Summenlastprofil Gewerbe, Handel Dienstleistung",17,0))))))))))))))) ->  | DR17: =IF(VLOOKUP(DS6,Input!$A$57:$C$88,2,FALSE)="Einfamilienhaushalt",3,IF(VLOOKUP(DS6,Input!$A$57:$C$88,2,FALSE)="Mehrfamilienhaushalt",4,IF(VLOOKUP(DS6,Input!$A$57:$C$88,2,FALSE)="Kochgas",5,IF(VLOOKUP(DS6,Input!$A$57:$C$88,2,FALSE)="Gebietskörperschaft, Kreditinst, Vers., öffentl. Einr.",6,IF(VLOOKUP(DS6,Input!$A$57:$C$88,2,FALSE)="Einzelhandel, Großhandel",7,IF(VLOOKUP(DS6,Input!$A$57:$C$88,2,FALSE)="Metall, Kfz",8,IF(VLOOKUP(DS6,Input!$A$57:$C$88,2,FALSE)="sonst. Betr. Dienstleistungen",9,IF(VLOOKUP(DS6,Input!$A$57:$C$88,2,FALSE)="Gaststätten",10,IF(VLOOKUP(DS6,Input!$A$57:$C$88,2,FALSE)="Beherbergung",11,IF(VLOOKUP(DS6,Input!$A$57:$C$88,2,FALSE)="Bäckereien",12,IF(VLOOKUP(DS6,Input!$A$57:$C$88,2,FALSE)="Wäschereien",13,IF(VLOOKUP(DS6,Input!$A$57:$C$88,2,FALSE)="Gartenbau",14,IF("Papier und Druck",15,IF(VLOOKUP(DS6,Input!$A$57:$C$88,2,FALSE)="haushaltsähnliche Gewerbebetriebe",16,IF(VLOOKUP(DS6,Input!$A$57:$C$88,2,FALSE)="Summenlastprofil Gewerbe, Handel Dienstleistung",17,0))))))))))))))) ->  | DV17: =IF(VLOOKUP(DW6,Input!$A$57:$C$88,2,FALSE)="Einfamilienhaushalt",3,IF(VLOOKUP(DW6,Input!$A$57:$C$88,2,FALSE)="Mehrfamilienhaushalt",4,IF(VLOOKUP(DW6,Input!$A$57:$C$88,2,FALSE)="Kochgas",5,IF(VLOOKUP(DW6,Input!$A$57:$C$88,2,FALSE)="Gebietskörperschaft, Kreditinst, Vers., öffentl. Einr.",6,IF(VLOOKUP(DW6,Input!$A$57:$C$88,2,FALSE)="Einzelhandel, Großhandel",7,IF(VLOOKUP(DW6,Input!$A$57:$C$88,2,FALSE)="Metall, Kfz",8,IF(VLOOKUP(DW6,Input!$A$57:$C$88,2,FALSE)="sonst. Betr. Dienstleistungen",9,IF(VLOOKUP(DW6,Input!$A$57:$C$88,2,FALSE)="Gaststätten",10,IF(VLOOKUP(DW6,Input!$A$57:$C$88,2,FALSE)="Beherbergung",11,IF(VLOOKUP(DW6,Input!$A$57:$C$88,2,FALSE)="Bäckereien",12,IF(VLOOKUP(DW6,Input!$A$57:$C$88,2,FALSE)="Wäschereien",13,IF(VLOOKUP(DW6,Input!$A$57:$C$88,2,FALSE)="Gartenbau",14,IF("Papier und Druck",15,IF(VLOOKUP(DW6,Input!$A$57:$C$88,2,FALSE)="haushaltsähnliche Gewerbebetriebe",16,IF(VLOOKUP(DW6,Input!$A$57:$C$88,2,FALSE)="Summenlastprofil Gewerbe, Handel Dienstleistung",17,0))))))))))))))) ->  | DZ17: =IF(VLOOKUP(EA6,Input!$A$57:$C$88,2,FALSE)="Einfamilienhaushalt",3,IF(VLOOKUP(EA6,Input!$A$57:$C$88,2,FALSE)="Mehrfamilienhaushalt",4,IF(VLOOKUP(EA6,Input!$A$57:$C$88,2,FALSE)="Kochgas",5,IF(VLOOKUP(EA6,Input!$A$57:$C$88,2,FALSE)="Gebietskörperschaft, Kreditinst, Vers., öffentl. Einr.",6,IF(VLOOKUP(EA6,Input!$A$57:$C$88,2,FALSE)="Einzelhandel, Großhandel",7,IF(VLOOKUP(EA6,Input!$A$57:$C$88,2,FALSE)="Metall, Kfz",8,IF(VLOOKUP(EA6,Input!$A$57:$C$88,2,FALSE)="sonst. Betr. Dienstleistungen",9,IF(VLOOKUP(EA6,Input!$A$57:$C$88,2,FALSE)="Gaststätten",10,IF(VLOOKUP(EA6,Input!$A$57:$C$88,2,FALSE)="Beherbergung",11,IF(VLOOKUP(EA6,Input!$A$57:$C$88,2,FALSE)="Bäckereien",12,IF(VLOOKUP(EA6,Input!$A$57:$C$88,2,FALSE)="Wäschereien",13,IF(VLOOKUP(EA6,Input!$A$57:$C$88,2,FALSE)="Gartenbau",14,IF("Papier und Druck",15,IF(VLOOKUP(EA6,Input!$A$57:$C$88,2,FALSE)="haushaltsähnliche Gewerbebetriebe",16,IF(VLOOKUP(EA6,Input!$A$57:$C$88,2,FALSE)="Summenlastprofil Gewerbe, Handel Dienstleistung",17,0))))))))))))))) ->  | ED17: =IF(VLOOKUP(EE6,Input!$A$57:$C$88,2,FALSE)="Einfamilienhaushalt",3,IF(VLOOKUP(EE6,Input!$A$57:$C$88,2,FALSE)="Mehrfamilienhaushalt",4,IF(VLOOKUP(EE6,Input!$A$57:$C$88,2,FALSE)="Kochgas",5,IF(VLOOKUP(EE6,Input!$A$57:$C$88,2,FALSE)="Gebietskörperschaft, Kreditinst, Vers., öffentl. Einr.",6,IF(VLOOKUP(EE6,Input!$A$57:$C$88,2,FALSE)="Einzelhandel, Großhandel",7,IF(VLOOKUP(EE6,Input!$A$57:$C$88,2,FALSE)="Metall, Kfz",8,IF(VLOOKUP(EE6,Input!$A$57:$C$88,2,FALSE)="sonst. Betr. Dienstleistungen",9,IF(VLOOKUP(EE6,Input!$A$57:$C$88,2,FALSE)="Gaststätten",10,IF(VLOOKUP(EE6,Input!$A$57:$C$88,2,FALSE)="Beherbergung",11,IF(VLOOKUP(EE6,Input!$A$57:$C$88,2,FALSE)="Bäckereien",12,IF(VLOOKUP(EE6,Input!$A$57:$C$88,2,FALSE)="Wäschereien",13,IF(VLOOKUP(EE6,Input!$A$57:$C$88,2,FALSE)="Gartenbau",14,IF("Papier und Druck",15,IF(VLOOKUP(EE6,Input!$A$57:$C$88,2,FALSE)="haushaltsähnliche Gewerbebetriebe",16,IF(VLOOKUP(EE6,Input!$A$57:$C$88,2,FALSE)="Summenlastprofil Gewerbe, Handel Dienstleistung",17,0))))))))))))))) ->  | EH17: =IF(VLOOKUP(EI6,Input!$A$57:$C$88,2,FALSE)="Einfamilienhaushalt",3,IF(VLOOKUP(EI6,Input!$A$57:$C$88,2,FALSE)="Mehrfamilienhaushalt",4,IF(VLOOKUP(EI6,Input!$A$57:$C$88,2,FALSE)="Kochgas",5,IF(VLOOKUP(EI6,Input!$A$57:$C$88,2,FALSE)="Gebietskörperschaft, Kreditinst, Vers., öffentl. Einr.",6,IF(VLOOKUP(EI6,Input!$A$57:$C$88,2,FALSE)="Einzelhandel, Großhandel",7,IF(VLOOKUP(EI6,Input!$A$57:$C$88,2,FALSE)="Metall, Kfz",8,IF(VLOOKUP(EI6,Input!$A$57:$C$88,2,FALSE)="sonst. Betr. Dienstleistungen",9,IF(VLOOKUP(EI6,Input!$A$57:$C$88,2,FALSE)="Gaststätten",10,IF(VLOOKUP(EI6,Input!$A$57:$C$88,2,FALSE)="Beherbergung",11,IF(VLOOKUP(EI6,Input!$A$57:$C$88,2,FALSE)="Bäckereien",12,IF(VLOOKUP(EI6,Input!$A$57:$C$88,2,FALSE)="Wäschereien",13,IF(VLOOKUP(EI6,Input!$A$57:$C$88,2,FALSE)="Gartenbau",14,IF("Papier und Druck",15,IF(VLOOKUP(EI6,Input!$A$57:$C$88,2,FALSE)="haushaltsähnliche Gewerbebetriebe",16,IF(VLOOKUP(EI6,Input!$A$57:$C$88,2,FALSE)="Summenlastprofil Gewerbe, Handel Dienstleistung",17,0))))))))))))))) ->  | EL17: =IF(VLOOKUP(EM6,Input!$A$57:$C$88,2,FALSE)="Einfamilienhaushalt",3,IF(VLOOKUP(EM6,Input!$A$57:$C$88,2,FALSE)="Mehrfamilienhaushalt",4,IF(VLOOKUP(EM6,Input!$A$57:$C$88,2,FALSE)="Kochgas",5,IF(VLOOKUP(EM6,Input!$A$57:$C$88,2,FALSE)="Gebietskörperschaft, Kreditinst, Vers., öffentl. Einr.",6,IF(VLOOKUP(EM6,Input!$A$57:$C$88,2,FALSE)="Einzelhandel, Großhandel",7,IF(VLOOKUP(EM6,Input!$A$57:$C$88,2,FALSE)="Metall, Kfz",8,IF(VLOOKUP(EM6,Input!$A$57:$C$88,2,FALSE)="sonst. Betr. Dienstleistungen",9,IF(VLOOKUP(EM6,Input!$A$57:$C$88,2,FALSE)="Gaststätten",10,IF(VLOOKUP(EM6,Input!$A$57:$C$88,2,FALSE)="Beherbergung",11,IF(VLOOKUP(EM6,Input!$A$57:$C$88,2,FALSE)="Bäckereien",12,IF(VLOOKUP(EM6,Input!$A$57:$C$88,2,FALSE)="Wäschereien",13,IF(VLOOKUP(EM6,Input!$A$57:$C$88,2,FALSE)="Gartenbau",14,IF("Papier und Druck",15,IF(VLOOKUP(EM6,Input!$A$57:$C$88,2,FALSE)="haushaltsähnliche Gewerbebetriebe",16,IF(VLOOKUP(EM6,Input!$A$57:$C$88,2,FALSE)="Summenlastprofil Gewerbe, Handel Dienstleistung",17,0))))))))))))))) ->  | EP17: =IF(VLOOKUP(EQ6,Input!$A$57:$C$88,2,FALSE)="Einfamilienhaushalt",3,IF(VLOOKUP(EQ6,Input!$A$57:$C$88,2,FALSE)="Mehrfamilienhaushalt",4,IF(VLOOKUP(EQ6,Input!$A$57:$C$88,2,FALSE)="Kochgas",5,IF(VLOOKUP(EQ6,Input!$A$57:$C$88,2,FALSE)="Gebietskörperschaft, Kreditinst, Vers., öffentl. Einr.",6,IF(VLOOKUP(EQ6,Input!$A$57:$C$88,2,FALSE)="Einzelhandel, Großhandel",7,IF(VLOOKUP(EQ6,Input!$A$57:$C$88,2,FALSE)="Metall, Kfz",8,IF(VLOOKUP(EQ6,Input!$A$57:$C$88,2,FALSE)="sonst. Betr. Dienstleistungen",9,IF(VLOOKUP(EQ6,Input!$A$57:$C$88,2,FALSE)="Gaststätten",10,IF(VLOOKUP(EQ6,Input!$A$57:$C$88,2,FALSE)="Beherbergung",11,IF(VLOOKUP(EQ6,Input!$A$57:$C$88,2,FALSE)="Bäckereien",12,IF(VLOOKUP(EQ6,Input!$A$57:$C$88,2,FALSE)="Wäschereien",13,IF(VLOOKUP(EQ6,Input!$A$57:$C$88,2,FALSE)="Gartenbau",14,IF("Papier und Druck",15,IF(VLOOKUP(EQ6,Input!$A$57:$C$88,2,FALSE)="haushaltsähnliche Gewerbebetriebe",16,IF(VLOOKUP(EQ6,Input!$A$57:$C$88,2,FALSE)="Summenlastprofil Gewerbe, Handel Dienstleistung",17,0))))))))))))))) ->  | ET17: =IF(VLOOKUP(EU6,Input!$A$57:$C$88,2,FALSE)="Einfamilienhaushalt",3,IF(VLOOKUP(EU6,Input!$A$57:$C$88,2,FALSE)="Mehrfamilienhaushalt",4,IF(VLOOKUP(EU6,Input!$A$57:$C$88,2,FALSE)="Kochgas",5,IF(VLOOKUP(EU6,Input!$A$57:$C$88,2,FALSE)="Gebietskörperschaft, Kreditinst, Vers., öffentl. Einr.",6,IF(VLOOKUP(EU6,Input!$A$57:$C$88,2,FALSE)="Einzelhandel, Großhandel",7,IF(VLOOKUP(EU6,Input!$A$57:$C$88,2,FALSE)="Metall, Kfz",8,IF(VLOOKUP(EU6,Input!$A$57:$C$88,2,FALSE)="sonst. Betr. Dienstleistungen",9,IF(VLOOKUP(EU6,Input!$A$57:$C$88,2,FALSE)="Gaststätten",10,IF(VLOOKUP(EU6,Input!$A$57:$C$88,2,FALSE)="Beherbergung",11,IF(VLOOKUP(EU6,Input!$A$57:$C$88,2,FALSE)="Bäckereien",12,IF(VLOOKUP(EU6,Input!$A$57:$C$88,2,FALSE)="Wäschereien",13,IF(VLOOKUP(EU6,Input!$A$57:$C$88,2,FALSE)="Gartenbau",14,IF("Papier und Druck",15,IF(VLOOKUP(EU6,Input!$A$57:$C$88,2,FALSE)="haushaltsähnliche Gewerbebetriebe",16,IF(VLOOKUP(EU6,Input!$A$57:$C$88,2,FALSE)="Summenlastprofil Gewerbe, Handel Dienstleistung",17,0))))))))))))))) -> 
B18: =IF(B17=0,1,B17) -> 1058975 | C18: skaliert | E18: =IF(E17=0,1,E17) -> 221 | F18: skaliert | H18: =IF(H17=0,1,H17) -> 1 | I18: skaliert | K18: =Input!B9 -> Erdgas | L18: =VLOOKUP(1,Datenbank!B262:E266,4,FALSE) -> 8.8 | M18: Summe | O18: Summe | P18: Summe | Q18: Summe | R18: =Output!C13 -> 0.3689486079 | S18: =Input!B17 -> 157.8919737 | T18: =Output!C14 -> 0.5110831397 | U18: Summe | V18: Dauerlinie geordnet | X18: Lastgang chronologisch | AI18: Abnehmer | AM18: Abnehmer | AQ18: Abnehmer | AU18: Abnehmer | AY18: Abnehmer | BC18: Abnehmer | BG18: Abnehmer | BK18: Abnehmer | BO18: Abnehmer | BS18: Abnehmer | BW18: Abnehmer | CA18: Abnehmer | CE18: Abnehmer | CI18: Abnehmer | CM18: Abnehmer | CQ18: Abnehmer | CU18: Abnehmer | CY18: Abnehmer | DC18: Abnehmer | DG18: Abnehmer | DK18: Abnehmer | DO18: Abnehmer | DS18: Abnehmer | DW18: Abnehmer | EA18: Abnehmer | EE18: Abnehmer | EI18: Abnehmer | EM18: Abnehmer | EQ18: Abnehmer | EU18: Abnehmer
B19: Qtag [kWh] | C19: =C17/B18 -> 1 | E19: Qtag [kWh] | F19: =F17/E18 -> 0 | H19: Qtag [kWh] | I19: =I17/H18 -> 0 | K19: Brennstoffmenge Summe [Einheit] | L19: =SUM(L20:L384) -> 305572.0989 | M19: =SUM(M20:M384) -> 2689034.47 | N19: Gesamtwirkungsgrad [%] | O19: =SUM(O20:O384) -> 969096.3069 | P19: =SUM(P20:P384) -> 0 | Q19: =SUM(Q20:Q384) -> 969096.3069 | R19: elektrischer Wirkungsgrad [%] | S19: elektrische Leistung BHKW [kW] | T19: thermischer Wirkungsgrad [%] | U19: =SUM(U20:U384) -> 1374320.18 | V19: Ø Leistung thermisch BHWK [kW] | W19: Ø Tageswärmelast Netz Brutto [kW] | X19: Ø Tageswärmelast Netz Brutto [kW] | Y19: Tagessumme Erzeugung [kWh] | Z19: Speicherverluste [kWh] | AA19: Verteilverluste [kWh] | AB19: Qtag geordnet[kWh/d] | AC19: Qtag [kWh] | AD19: h | AE19: Datum | AF19: Temperatur [°C] | AG19: D | AH19: F(D) | AI19: h(T) | AJ19: h(T)*F(D) | AK19: Qtag [kWh] | AL19: F(D) | AM19: h(T) | AN19: h(T)*F(D) | AO19: Qtag [kWh] | AP19: F(D) | AQ19: h(T) | AR19: h(T)*F(D) | AS19: Qtag [kWh] | AT19: F(D) | AU19: h(T) | AV19: h(T)*F(D) | AW19: Qtag [kWh] | AX19: F(D) | AY19: h(T) | AZ19: h(T)*F(D) | BA19: Qtag [kWh] | BB19: F(D) | BC19: h(T) | BD19: h(T)*F(D) | BE19: Qtag [kWh] | BF19: F(D) | BG19: h(T) | BH19: h(T)*F(D) | BI19: Qtag [kWh] | BJ19: F(D) | BK19: h(T) | BL19: h(T)*F(D) | BM19: Qtag [kWh] | BN19: F(D) | BO19: h(T) | BP19: h(T)*F(D) | BQ19: Qtag [kWh] | BR19: F(D) | BS19: h(T) | BT19: h(T)*F(D) | BU19: Qtag [kWh] | BV19: F(D) | BW19: h(T) | BX19: h(T)*F(D) | BY19: Qtag [kWh] | BZ19: F(D) | CA19: h(T) | CB19: h(T)*F(D) | CC19: Qtag [kWh] | CD19: F(D) | CE19: h(T) | CF19: h(T)*F(D) | CG19: Qtag [kWh] | CH19: F(D) | CI19: h(T) | CJ19: h(T)*F(D) | CK19: Qtag [kWh] | CL19: F(D) | CM19: h(T) | CN19: h(T)*F(D) | CO19: Qtag [kWh] | CP19: F(D) | CQ19: h(T) | CR19: h(T)*F(D) | CS19: Qtag [kWh] | CT19: F(D) | CU19: h(T) | CV19: h(T)*F(D) | CW19: Qtag [kWh] | CX19: F(D) | CY19: h(T) | CZ19: h(T)*F(D) | DA19: Qtag [kWh] | DB19: F(D) | DC19: h(T) | DD19: h(T)*F(D) | DE19: Qtag [kWh] | DF19: F(D) | DG19: h(T) | DH19: h(T)*F(D) | DI19: Qtag [kWh] | DJ19: F(D) | DK19: h(T) | DL19: h(T)*F(D) | DM19: Qtag [kWh] | DN19: F(D) | DO19: h(T) | DP19: h(T)*F(D) | DQ19: Qtag [kWh] | DR19: F(D) | DS19: h(T) | DT19: h(T)*F(D) | DU19: Qtag [kWh] | DV19: F(D) | DW19: h(T) | DX19: h(T)*F(D) | DY19: Qtag [kWh] | DZ19: F(D) | EA19: h(T) | EB19: h(T)*F(D) | EC19: Qtag [kWh] | ED19: F(D) | EE19: h(T) | EF19: h(T)*F(D) | EG19: Qtag [kWh] | EH19: F(D) | EI19: h(T) | EJ19: h(T)*F(D) | EK19: Qtag [kWh] | EL19: F(D) | EM19: h(T) | EN19: h(T)*F(D) | EO19: Qtag [kWh] | EP19: F(D) | EQ19: h(T) | ER19: h(T)*F(D) | ES19: Qtag [kWh] | ET19: F(D) | EU19: h(T) | EV19: h(T)*F(D) | EW19: Qtag [kWh]
B20: 6571.532862 | C20: =B20*$C$19 -> 6571.532862 | E20: 15 | F20: =E20*$F$19 -> 0 | I20: =H20*$I$19 -> 0 | L20: =M20/$L$18 -> 1167.139446 | M20: =IF(V20=0,0,U20/T20) -> 10270.82713 | N20: =R20+T20 -> 0.8800317476 | O20: =M20*R20 -> 3789.40737 | P20: =Lastprofile!O20*Input!$B$19 -> 0 | Q20: =O20*(1-Input!$B$19) -> 3789.40737 | R20: =IF(V20=0,0,$R$18-(Input!$B$11-Lastprofile!V20)/(Input!$B$11-Input!$B$12)*Input!$B$18) -> 0.3689486079 | S20: =O20/24 -> 157.8919737 | T20: =IF(V20=0,0,$T$18) -> 0.5110831397 | U20: =V20*24 -> 5249.246575 | V20: =IF(Input!$B$11<W20,Input!$B$11,IF(Input!$B$13="Ja",Lastprofile!W20,IF(Input!$B$12<Lastprofile!W20,W20,0))) -> 218.7186073 | W20: =(AB20+Z20+AA20)/24 -> 592.721104 | X20: =Y20/24 -> 554.8525617 | Y20: =AC20*(1+Input!$B$20+Input!$B$21) -> 13316.46148 | Z20: =AB20*Input!$B$21 -> 254.0233303 | AA20: =AB20*Input!$B$20 -> 1270.116651 | AB20: =LARGE($AC$20:$AC$384,ROWS($AC$20:AC20)) -> 12701.16651 | AC20: =IF(ISNA(AK20),0,AK20)+IF(ISNA(AO20),0,AO20)+IF(ISNA(AS20),0,AS20)+IF(ISNA(AW20),0,AW20)+IF(ISNA(BA20),0,BA20)+IF(ISNA(BE20),0,BE20)+IF(ISNA(BI20),0,BI20)+IF(ISNA(BM20),0,BM20)+IF(ISNA(BQ20),0,BQ20)+IF(ISNA(BU20),0,BU20)+IF(ISNA(BY20),0,BY20)+IF(ISNA(CC20),0,CC20)+IF(ISNA(CG20),0,CG20)+IF(ISNA(CK20),0,CK20)+IF(ISNA(CO20),0,CO20)+IF(ISNA(CS20),0,CS20)+IF(ISNA(CW20),0,CW20)+IF(ISNA(DA20),0,DA20)+IF(ISNA(DE20),0,DE20)+IF(ISNA(DI20),0,DI20)+IF(ISNA(DM20),0,DM20)+IF(ISNA(DQ20),0,DQ20)+IF(ISNA(DU20),0,DU20)+IF(ISNA(DY20),0,DY20)+IF(ISNA(EC20),0,EC20)+IF(ISNA(EG20),0,EG20)+IF(ISNA(EK20),0,EK20)+IF(ISNA(EO20),0,EO20)+IF(ISNA(ES20),0,ES20)+IF(ISNA(EW20),0,EW20)+IF(ISNA(C20),0,C20)+IF(ISNA(F20),0,F20)+IF(ISNA(I20),0,I20) -> 11889.69775 | AD20: 1 | AE20: 2016-01-01 | AF20: -1.966666667 | AG20: =TEXT(AE20,"TTTT") -> Freitag | AH20: =HLOOKUP($AG20,Datenbank!$C$216:$I$232,AH$17,FALSE) -> 0.9885 | AI20: =AI$10/(1+(AI$11/($AF20-$AE$14))^AI$12)+AI$13 -> 2.261270555 | AJ20: =AI20*AH20 -> 2.235265944 | AK20: =$AI$388*AI20*AH20 -> 5318.164889 | AL20: =HLOOKUP($AG20,Datenbank!$C$216:$I$232,AL$17,FALSE) ->  | AM20: =AM$10/(1+(AM$11/($AF20-$AE$14))^AM$12)+AM$13 ->  | AN20: =AM20*AL20 ->  | AO20: =$AM$388*AM20*AL20 ->  | AP20: =HLOOKUP($AG20,Datenbank!$C$216:$I$232,AP$17,FALSE) ->  | AQ20: =AQ$10/(1+(AQ$11/($AF20-$AE$14))^AQ$12)+AQ$13 ->  | AR20: =AQ20*AP20 ->  | AS20: =$AQ$388*AQ20*AP20 ->  | AT20: =HLOOKUP($AG20,Datenbank!$C$216:$I$232,AT$17,FALSE) ->  | AU20: =AU$10/(1+(AU$11/($AF20-$AE$14))^AU$12)+AU$13 ->  | AV20: =AU20*AT20 ->  | AW20: =$AU$388*AU20*AT20 ->  | AX20: =HLOOKUP($AG20,Datenbank!$C$216:$I$232,AX$17,FALSE) ->  | AY20: =AY$10/(1+(AY$11/($AF20-$AE$14))^AY$12)+AY$13 ->  | AZ20: =AY20*AX20 ->  | BA20: =$AY$388*AY20*AX20 ->  | BB20: =HLOOKUP($AG20,Datenbank!$C$216:$I$232,BB$17,FALSE) ->  | BC20: =BC$10/(1+(BC$11/($AF20-$AE$14))^BC$12)+BC$13 ->  | BD20: =BC20*BB20 ->  | BE20: =$BC$388*BC20*BB20 ->  | BF20: =HLOOKUP($AG20,Datenbank!$C$216:$I$232,BF$17,FALSE) ->  | BG20: =BG$10/(1+(BG$11/($AF20-$AE$14))^BG$12)+BG$13 ->  | BH20: =BG20*BF20 ->  | BI20: =$BG$388*BG20*BF20 ->  | BJ20: =HLOOKUP($AG20,Datenbank!$C$216:$I$232,BJ$17,FALSE) ->  | BK20: =BK$10/(1+(BK$11/($AF20-$AE$14))^BK$12)+BK$13 ->  | BL20: =BK20*BJ20 ->  | BM20: =$BK$388*BK20*BJ20 ->  | BN20: =HLOOKUP($AG20,Datenbank!$C$216:$I$232,BN$17,FALSE) ->  | BO20: =BO$10/(1+(BO$11/($AF20-$AE$14))^BO$12)+BO$13 ->  | BP20: =BO20*BN20 ->  | BQ20: =$BO$388*BO20*BN20 ->  | BR20: =HLOOKUP($AG20,Datenbank!$C$216:$I$232,BR$17,FALSE) ->  | BS20: =BS$10/(1+(BS$11/($AF20-$AE$14))^BS$12)+BS$13 ->  | BT20: =BS20*BR20 ->  | BU20: =$BS$388*BS20*BR20 ->  | BV20: =HLOOKUP($AG20,Datenbank!$C$216:$I$232,BV$17,FALSE) ->  | BW20: =BW$10/(1+(BW$11/($AF20-$AE$14))^BW$12)+BW$13 ->  | BX20: =BW20*BV20 ->  | BY20: =$BW$388*BW20*BV20 ->  | BZ20: =HLOOKUP($AG20,Datenbank!$C$216:$I$232,BZ$17,FALSE) ->  | CA20: =CA$10/(1+(CA$11/($AF20-$AE$14))^CA$12)+CA$13 ->  | CB20: =CA20*BZ20 ->  | CC20: =$CA$388*CA20*BZ20 ->  | CD20: =HLOOKUP($AG20,Datenbank!$C$216:$I$232,CD$17,FALSE) ->  | CE20: =CE$10/(1+(CE$11/($AF20-$AE$14))^CE$12)+CE$13 ->  | CF20: =CE20*CD20 ->  | CG20: =$CE$388*CE20*CD20 ->  | CH20: =HLOOKUP($AG20,Datenbank!$C$216:$I$232,CH$17,FALSE) ->  | CI20: =CI$10/(1+(CI$11/($AF20-$AE$14))^CI$12)+CI$13 ->  | CJ20: =CI20*CH20 ->  | CK20: =$CI$388*CI20*CH20 ->  | CL20: =HLOOKUP($AG20,Datenbank!$C$216:$I$232,CL$17,FALSE) ->  | CM20: =CM$10/(1+(CM$11/($AF20-$AE$14))^CM$12)+CM$13 ->  | CN20: =CM20*CL20 ->  | CO20: =$CM$388*CM20*CL20 ->  | CP20: =HLOOKUP($AG20,Datenbank!$C$216:$I$232,CP$17,FALSE) ->  | CQ20: =CQ$10/(1+(CQ$11/($AF20-$AE$14))^CQ$12)+CQ$13 ->  | CR20: =CQ20*CP20 ->  | CS20: =$CQ$388*CQ20*CP20 ->  | CT20: =HLOOKUP($AG20,Datenbank!$C$216:$I$232,CT$17,FALSE) ->  | CU20: =CU$10/(1+(CU$11/($AF20-$AE$14))^CU$12)+CU$13 ->  | CV20: =CU20*CT20 ->  | CW20: =$CU$388*CU20*CT20 ->  | CX20: =HLOOKUP($AG20,Datenbank!$C$216:$I$232,CX$17,FALSE) ->  | CY20: =CY$10/(1+(CY$11/($AF20-$AE$14))^CY$12)+CY$13 ->  | CZ20: =CY20*CX20 ->  | DA20: =$CY$388*CY20*CX20 ->  | DB20: =HLOOKUP($AG20,Datenbank!$C$216:$I$232,DB$17,FALSE) ->  | DC20: =DC$10/(1+(DC$11/($AF20-$AE$14))^DC$12)+DC$13 ->  | DD20: =DC20*DB20 ->  | DE20: =$DC$388*DC20*DB20 ->  | DF20: =HLOOKUP($AG20,Datenbank!$C$216:$I$232,DF$17,FALSE) ->  | DG20: =DG$10/(1+(DG$11/($AF20-$AE$14))^DG$12)+DG$13 ->  | DH20: =DG20*DF20 ->  | DI20: =$DG$388*DG20*DF20 ->  | DJ20: =HLOOKUP($AG20,Datenbank!$C$216:$I$232,DJ$17,FALSE) ->  | DK20: =DK$10/(1+(DK$11/($AF20-$AE$14))^DK$12)+DK$13 ->  | DL20: =DK20*DJ20 ->  | DM20: =$DK$388*DK20*DJ20 ->  | DN20: =HLOOKUP($AG20,Datenbank!$C$216:$I$232,DN$17,FALSE) ->  | DO20: =DO$10/(1+(DO$11/($AF20-$AE$14))^DO$12)+DO$13 ->  | DP20: =DO20*DN20 ->  | DQ20: =$DO$388*DO20*DN20 ->  | DR20: =HLOOKUP($AG20,Datenbank!$C$216:$I$232,DR$17,FALSE) ->  | DS20: =DS$10/(1+(DS$11/($AF20-$AE$14))^DS$12)+DS$13 ->  | DT20: =DS20*DR20 ->  | DU20: =$DS$388*DS20*DR20 ->  | DV20: =HLOOKUP($AG20,Datenbank!$C$216:$I$232,DV$17,FALSE) ->  | DW20: =DW$10/(1+(DW$11/($AF20-$AE$14))^DW$12)+DW$13 ->  | DX20: =DW20*DV20 ->  | DY20: =$DW$388*DW20*DV20 ->  | DZ20: =HLOOKUP($AG20,Datenbank!$C$216:$I$232,DZ$17,FALSE) ->  | EA20: =EA$10/(1+(EA$11/($AF20-$AE$14))^EA$12)+EA$13 ->  | EB20: =EA20*DZ20 ->  | EC20: =$EA$388*EA20*DZ20 ->  | ED20: =HLOOKUP($AG20,Datenbank!$C$216:$I$232,ED$17,FALSE) ->  | EE20: =EE$10/(1+(EE$11/($AF20-$AE$14))^EE$12)+EE$13 ->  | EF20: =EE20*ED20 ->  | EG20: =$EE$388*EE20*ED20 ->  | EH20: =HLOOKUP($AG20,Datenbank!$C$216:$I$232,EH$17,FALSE) ->  | EI20: =EI$10/(1+(EI$11/($AF20-$AE$14))^EI$12)+EI$13 ->  | EJ20: =EI20*EH20 ->  | EK20: =$EI$388*EI20*EH20 ->  | EL20: =HLOOKUP($AG20,Datenbank!$C$216:$I$232,EL$17,FALSE) ->  | EM20: =EM$10/(1+(EM$11/($AF20-$AE$14))^EM$12)+EM$13 ->  | EN20: =EM20*EL20 ->  | EO20: =$EM$388*EM20*EL20 ->  | EP20: =HLOOKUP($AG20,Datenbank!$C$216:$I$232,EP$17,FALSE) ->  | EQ20: =EQ$10/(1+(EQ$11/($AF20-$AE$14))^EQ$12)+EQ$13 ->  | ER20: =EQ20*EP20 ->  | ES20: =$EQ$388*EQ20*EP20 ->  | ET20: =HLOOKUP($AG20,Datenbank!$C$216:$I$232,ET$17,FALSE) ->  | EU20: =EU$10/(1+(EU$11/($AF20-$AE$14))^EU$12)+EU$13 ->  | EV20: =EU20*ET20 ->  | EW20: =$EU$388*EU20*ET20 -> 
B21: 5330.531234 | C21: 5330.531234 | E21: 21 | F21: 0 | I21: 0 | L21: =M21/$L$18 -> 1167.139446 | M21: =IF(V21=0,0,U21/T21) -> 10270.82713 | N21: =R21+T21 -> 0.8800317476 | O21: =M21*R21 -> 3789.40737 | P21: =Lastprofile!O21*Input!$B$19 -> 0 | Q21: =O21*(1-Input!$B$19) -> 3789.40737 | R21: =IF(V21=0,0,$R$18-(Input!$B$11-Lastprofile!V21)/(Input!$B$11-Input!$B$12)*Input!$B$18) -> 0.3689486079 | S21: =O21/24 -> 157.8919737 | T21: =IF(V21=0,0,$T$18) -> 0.5110831397 | U21: =V21*24 -> 5249.246575 | V21: =IF(Input!$B$11<W21,Input!$B$11,IF(Input!$B$13="Ja",Lastprofile!W21,IF(Input!$B$12<Lastprofile!W21,W21,0))) -> 218.7186073 | W21: =(AB21+Z21+AA21)/24 -> 586.4757478 | X21: =Y21/24 -> 450.0713871 | Y21: =AC21*(1+Input!$B$20+Input!$B$21) -> 10801.71329 | Z21: =AB21*Input!$B$21 -> 251.346749 | AA21: =AB21*Input!$B$20 -> 1256.733745 | AB21: =LARGE($AC$20:$AC$384,ROWS($AC$20:AC21)) -> 12567.33745 | AC21: 9644.386866 | AD21: 24.1 | AE21: 2016-01-02 | AF21: 0.4 | AG21: Samstag | AH21: =HLOOKUP($AG21,Datenbank!$C$216:$I$232,AH$17,FALSE) -> 0.886 | AI21: 2.046441281 | AJ21: =AI21*AH21 -> 1.813146975 | AK21: =$AI$388*AI21*AH21 -> 4313.855632 | AL21: =HLOOKUP($AG21,Datenbank!$C$216:$I$232,AL$17,FALSE) ->  | AN21: =AM21*AL21 ->  | AO21: =$AM$388*AM21*AL21 ->  | AP21: =HLOOKUP($AG21,Datenbank!$C$216:$I$232,AP$17,FALSE) ->  | AS21: =$AQ$388*AQ21*AP21 ->  | AT21: =HLOOKUP($AG21,Datenbank!$C$216:$I$232,AT$17,FALSE) ->  | AW21: =$AU$388*AU21*AT21 ->  | AX21: =HLOOKUP($AG21,Datenbank!$C$216:$I$232,AX$17,FALSE) ->  | BA21: =$AY$388*AY21*AX21 ->  | BB21: =HLOOKUP($AG21,Datenbank!$C$216:$I$232,BB$17,FALSE) ->  | BE21: =$BC$388*BC21*BB21 ->  | BF21: =HLOOKUP($AG21,Datenbank!$C$216:$I$232,BF$17,FALSE) ->  | BI21: =$BG$388*BG21*BF21 ->  | BJ21: =HLOOKUP($AG21,Datenbank!$C$216:$I$232,BJ$17,FALSE) ->  | BM21: =$BK$388*BK21*BJ21 ->  | BN21: =HLOOKUP($AG21,Datenbank!$C$216:$I$232,BN$17,FALSE) ->  | BQ21: =$BO$388*BO21*BN21 ->  | BR21: =HLOOKUP($AG21,Datenbank!$C$216:$I$232,BR$17,FALSE) ->  | BU21: =$BS$388*BS21*BR21 ->  | BV21: =HLOOKUP($AG21,Datenbank!$C$216:$I$232,BV$17,FALSE) ->  | BY21: =$BW$388*BW21*BV21 ->  | BZ21: =HLOOKUP($AG21,Datenbank!$C$216:$I$232,BZ$17,FALSE) ->  | CC21: =$CA$388*CA21*BZ21 ->  | CD21: =HLOOKUP($AG21,Datenbank!$C$216:$I$232,CD$17,FALSE) ->  | CG21: =$CE$388*CE21*CD21 ->  | CH21: =HLOOKUP($AG21,Datenbank!$C$216:$I$232,CH$17,FALSE) ->  | CK21: =$CI$388*CI21*CH21 ->  | CL21: =HLOOKUP($AG21,Datenbank!$C$216:$I$232,CL$17,FALSE) ->  | CO21: =$CM$388*CM21*CL21 ->  | CP21: =HLOOKUP($AG21,Datenbank!$C$216:$I$232,CP$17,FALSE) ->  | CS21: =$CQ$388*CQ21*CP21 ->  | CT21: =HLOOKUP($AG21,Datenbank!$C$216:$I$232,CT$17,FALSE) ->  | CW21: =$CU$388*CU21*CT21 ->  | CX21: =HLOOKUP($AG21,Datenbank!$C$216:$I$232,CX$17,FALSE) ->  | DA21: =$CY$388*CY21*CX21 ->  | DB21: =HLOOKUP($AG21,Datenbank!$C$216:$I$232,DB$17,FALSE) ->  | DE21: =$DC$388*DC21*DB21 ->  | DF21: =HLOOKUP($AG21,Datenbank!$C$216:$I$232,DF$17,FALSE) ->  | DI21: =$DG$388*DG21*DF21 ->  | DJ21: =HLOOKUP($AG21,Datenbank!$C$216:$I$232,DJ$17,FALSE) ->  | DM21: =$DK$388*DK21*DJ21 ->  | DN21: =HLOOKUP($AG21,Datenbank!$C$216:$I$232,DN$17,FALSE) ->  | DQ21: =$DO$388*DO21*DN21 ->  | DR21: =HLOOKUP($AG21,Datenbank!$C$216:$I$232,DR$17,FALSE) ->  | DU21: =$DS$388*DS21*DR21 ->  | DV21: =HLOOKUP($AG21,Datenbank!$C$216:$I$232,DV$17,FALSE) ->  | DY21: =$DW$388*DW21*DV21 ->  | DZ21: =HLOOKUP($AG21,Datenbank!$C$216:$I$232,DZ$17,FALSE) ->  | EC21: =$EA$388*EA21*DZ21 ->  | ED21: =HLOOKUP($AG21,Datenbank!$C$216:$I$232,ED$17,FALSE) ->  | EG21: =$EE$388*EE21*ED21 ->  | EH21: =HLOOKUP($AG21,Datenbank!$C$216:$I$232,EH$17,FALSE) ->  | EK21: =$EI$388*EI21*EH21 ->  | EL21: =HLOOKUP($AG21,Datenbank!$C$216:$I$232,EL$17,FALSE) ->  | EO21: =$EM$388*EM21*EL21 ->  | EP21: =HLOOKUP($AG21,Datenbank!$C$216:$I$232,EP$17,FALSE) ->  | ES21: =$EQ$388*EQ21*EP21 ->  | ET21: =HLOOKUP($AG21,Datenbank!$C$216:$I$232,ET$17,FALSE) ->  | EW21: =$EU$388*EU21*ET21 -> 
B22: 4740.527303 | C22: 4740.527303 | E22: 21 | F22: 0 | I22: 0 | L22: 1167.139446 | M22: =IF(V22=0,0,U22/T22) -> 10270.82713 | N22: 0.8800317476 | O22: 3789.40737 | P22: =Lastprofile!O22*Input!$B$19 -> 0 | Q22: =O22*(1-Input!$B$19) -> 3789.40737 | R22: =IF(V22=0,0,$R$18-(Input!$B$11-Lastprofile!V22)/(Input!$B$11-Input!$B$12)*Input!$B$18) -> 0.3689486079 | S22: 157.8919737 | T22: 0.5110831397 | U22: 5249.246575 | V22: =IF(Input!$B$11<W22,Input!$B$11,IF(Input!$B$13="Ja",Lastprofile!W22,IF(Input!$B$12<Lastprofile!W22,W22,0))) -> 218.7186073 | W22: =(AB22+Z22+AA22)/24 -> 583.0514943 | X22: 400.2557353 | Y22: =AC22*(1+Input!$B$20+Input!$B$21) -> 9606.137647 | Z22: =AB22*Input!$B$21 -> 249.8792118 | AA22: =AB22*Input!$B$20 -> 1249.396059 | AB22: =LARGE($AC$20:$AC$384,ROWS($AC$20:AC22)) -> 12493.96059 | AC22: 8576.908614 | AD22: =AD21+24.065 -> 48.165 | AE22: 2016-01-03 | AF22: 3.3 | AG22: Sonntag | AH22: =HLOOKUP($AG22,Datenbank!$C$216:$I$232,AH$17,FALSE) -> 0.9435 | AI22: 1.709020472 | AJ22: 1.612460815 | AK22: 3836.381311 | AL22: =HLOOKUP($AG22,Datenbank!$C$216:$I$232,AL$17,FALSE) ->  | AP22: =HLOOKUP($AG22,Datenbank!$C$216:$I$232,AP$17,FALSE) ->  | AT22: =HLOOKUP($AG22,Datenbank!$C$216:$I$232,AT$17,FALSE) ->  | AX22: =HLOOKUP($AG22,Datenbank!$C$216:$I$232,AX$17,FALSE) ->  | BB22: =HLOOKUP($AG22,Datenbank!$C$216:$I$232,BB$17,FALSE) ->  | BF22: =HLOOKUP($AG22,Datenbank!$C$216:$I$232,BF$17,FALSE) ->  | BJ22: =HLOOKUP($AG22,Datenbank!$C$216:$I$232,BJ$17,FALSE) ->  | BN22: =HLOOKUP($AG22,Datenbank!$C$216:$I$232,BN$17,FALSE) ->  | BR22: =HLOOKUP($AG22,Datenbank!$C$216:$I$232,BR$17,FALSE) ->  | BV22: =HLOOKUP($AG22,Datenbank!$C$216:$I$232,BV$17,FALSE) ->  | BZ22: =HLOOKUP($AG22,Datenbank!$C$216:$I$232,BZ$17,FALSE) ->  | CD22: =HLOOKUP($AG22,Datenbank!$C$216:$I$232,CD$17,FALSE) ->  | CH22: =HLOOKUP($AG22,Datenbank!$C$216:$I$232,CH$17,FALSE) ->  | CL22: =HLOOKUP($AG22,Datenbank!$C$216:$I$232,CL$17,FALSE) ->  | CP22: =HLOOKUP($AG22,Datenbank!$C$216:$I$232,CP$17,FALSE) ->  | CT22: =HLOOKUP($AG22,Datenbank!$C$216:$I$232,CT$17,FALSE) ->  | CX22: =HLOOKUP($AG22,Datenbank!$C$216:$I$232,CX$17,FALSE) ->  | DB22: =HLOOKUP($AG22,Datenbank!$C$216:$I$232,DB$17,FALSE) ->  | DF22: =HLOOKUP($AG22,Datenbank!$C$216:$I$232,DF$17,FALSE) ->  | DJ22: =HLOOKUP($AG22,Datenbank!$C$216:$I$232,DJ$17,FALSE) ->  | DN22: =HLOOKUP($AG22,Datenbank!$C$216:$I$232,DN$17,FALSE) ->  | DR22: =HLOOKUP($AG22,Datenbank!$C$216:$I$232,DR$17,FALSE) ->  | DV22: =HLOOKUP($AG22,Datenbank!$C$216:$I$232,DV$17,FALSE) ->  | DZ22: =HLOOKUP($AG22,Datenbank!$C$216:$I$232,DZ$17,FALSE) ->  | ED22: =HLOOKUP($AG22,Datenbank!$C$216:$I$232,ED$17,FALSE) ->  | EH22: =HLOOKUP($AG22,Datenbank!$C$216:$I$232,EH$17,FALSE) ->  | EL22: =HLOOKUP($AG22,Datenbank!$C$216:$I$232,EL$17,FALSE) ->  | EP22: =HLOOKUP($AG22,Datenbank!$C$216:$I$232,EP$17,FALSE) ->  | ET22: =HLOOKUP($AG22,Datenbank!$C$216:$I$232,ET$17,FALSE) -> 
B23: 4895.367577 | C23: 4895.367577 | E23: 23 | F23: 0 | I23: 0 | L23: 1167.139446 | M23: 10270.82713 | N23: 0.8800317476 | O23: 3789.40737 | P23: =Lastprofile!O23*Input!$B$19 -> 0 | Q23: =O23*(1-Input!$B$19) -> 3789.40737 | R23: =IF(V23=0,0,$R$18-(Input!$B$11-Lastprofile!V23)/(Input!$B$11-Input!$B$12)*Input!$B$18) -> 0.3689486079 | S23: 157.8919737 | T23: 0.5110831397 | U23: 5249.246575 | V23: =IF(Input!$B$11<W23,Input!$B$11,IF(Input!$B$13="Ja",Lastprofile!W23,IF(Input!$B$12<Lastprofile!W23,W23,0))) -> 218.7186073 | W23: 576.9434787 | X23: 413.3293247 | Y23: =AC23*(1+Input!$B$20+Input!$B$21) -> 9919.903794 | Z23: =AB23*Input!$B$21 -> 247.2614909 | AA23: =AB23*Input!$B$20 -> 1236.307454 | AB23: =LARGE($AC$20:$AC$384,ROWS($AC$20:AC23)) -> 12363.07454 | AC23: 8857.056959 | AD23: =AD22+24.065 -> 72.23 | AE23: 2016-01-04 | AF23: 4.066666667 | AG23: Montag | AH23: =HLOOKUP($AG23,Datenbank!$C$216:$I$232,AH$17,FALSE) -> 1.0354 | AI23: 1.608198541 | AJ23: 1.665128769 | AK23: 3961.689382 | AL23: =HLOOKUP($AG23,Datenbank!$C$216:$I$232,AL$17,FALSE) ->  | AP23: =HLOOKUP($AG23,Datenbank!$C$216:$I$232,AP$17,FALSE) ->  | AT23: =HLOOKUP($AG23,Datenbank!$C$216:$I$232,AT$17,FALSE) ->  | AX23: =HLOOKUP($AG23,Datenbank!$C$216:$I$232,AX$17,FALSE) ->  | BB23: =HLOOKUP($AG23,Datenbank!$C$216:$I$232,BB$17,FALSE) ->  | BF23: =HLOOKUP($AG23,Datenbank!$C$216:$I$232,BF$17,FALSE) ->  | BJ23: =HLOOKUP($AG23,Datenbank!$C$216:$I$232,BJ$17,FALSE) ->  | BN23: =HLOOKUP($AG23,Datenbank!$C$216:$I$232,BN$17,FALSE) ->  | BR23: =HLOOKUP($AG23,Datenbank!$C$216:$I$232,BR$17,FALSE) ->  | BV23: =HLOOKUP($AG23,Datenbank!$C$216:$I$232,BV$17,FALSE) ->  | BZ23: =HLOOKUP($AG23,Datenbank!$C$216:$I$232,BZ$17,FALSE) ->  | CD23: =HLOOKUP($AG23,Datenbank!$C$216:$I$232,CD$17,FALSE) ->  | CH23: =HLOOKUP($AG23,Datenbank!$C$216:$I$232,CH$17,FALSE) ->  | CL23: =HLOOKUP($AG23,Datenbank!$C$216:$I$232,CL$17,FALSE) ->  | CP23: =HLOOKUP($AG23,Datenbank!$C$216:$I$232,CP$17,FALSE) ->  | CT23: =HLOOKUP($AG23,Datenbank!$C$216:$I$232,CT$17,FALSE) ->  | CX23: =HLOOKUP($AG23,Datenbank!$C$216:$I$232,CX$17,FALSE) ->  | DB23: =HLOOKUP($AG23,Datenbank!$C$216:$I$232,DB$17,FALSE) ->  | DF23: =HLOOKUP($AG23,Datenbank!$C$216:$I$232,DF$17,FALSE) ->  | DJ23: =HLOOKUP($AG23,Datenbank!$C$216:$I$232,DJ$17,FALSE) ->  | DN23: =HLOOKUP($AG23,Datenbank!$C$216:$I$232,DN$17,FALSE) ->  | DR23: =HLOOKUP($AG23,Datenbank!$C$216:$I$232,DR$17,FALSE) ->  | DV23: =HLOOKUP($AG23,Datenbank!$C$216:$I$232,DV$17,FALSE) ->  | DZ23: =HLOOKUP($AG23,Datenbank!$C$216:$I$232,DZ$17,FALSE) ->  | ED23: =HLOOKUP($AG23,Datenbank!$C$216:$I$232,ED$17,FALSE) ->  | EH23: =HLOOKUP($AG23,Datenbank!$C$216:$I$232,EH$17,FALSE) ->  | EL23: =HLOOKUP($AG23,Datenbank!$C$216:$I$232,EL$17,FALSE) ->  | EP23: =HLOOKUP($AG23,Datenbank!$C$216:$I$232,EP$17,FALSE) ->  | ET23: =HLOOKUP($AG23,Datenbank!$C$216:$I$232,ET$17,FALSE) -> 
B24: 5098.747264 | C24: 5098.747264 | E24: 22 | F24: 0 | I24: 0 | L24: 1167.139446 | M24: 10270.82713 | N24: 0.8800317476 | O24: 3789.40737 | P24: =Lastprofile!O24*Input!$B$19 -> 0 | Q24: =O24*(1-Input!$B$19) -> 3789.40737 | R24: =IF(V24=0,0,$R$18-(Input!$B$11-Lastprofile!V24)/(Input!$B$11-Input!$B$12)*Input!$B$18) -> 0.3689486079 | S24: 157.8919737 | T24: 0.5110831397 | U24: 5249.246575 | V24: =IF(Input!$B$11<W24,Input!$B$11,IF(Input!$B$13="Ja",Lastprofile!W24,IF(Input!$B$12<Lastprofile!W24,W24,0))) -> 218.7186073 | W24: 575.4678389 | X24: 430.5012301 | Y24: =AC24*(1+Input!$B$20+Input!$B$21) -> 10332.02952 | Z24: =AB24*Input!$B$21 -> 246.6290738 | AA24: =AB24*Input!$B$20 -> 1233.145369 | AB24: =LARGE($AC$20:$AC$384,ROWS($AC$20:AC24)) -> 12331.45369 | AC24: 9225.02636 | AD24: 96.295 | AE24: 2016-01-05 | AF24: 3.766666667 | AG24: Dienstag | AH24: =HLOOKUP($AG24,Datenbank!$C$216:$I$232,AH$17,FALSE) -> 1.0523 | AI24: 1.648110902 | AJ24: 1.734307102 | AK24: 4126.279096 | AL24: =HLOOKUP($AG24,Datenbank!$C$216:$I$232,AL$17,FALSE) ->  | AP24: =HLOOKUP($AG24,Datenbank!$C$216:$I$232,AP$17,FALSE) ->  | AT24: =HLOOKUP($AG24,Datenbank!$C$216:$I$232,AT$17,FALSE) ->  | AX24: =HLOOKUP($AG24,Datenbank!$C$216:$I$232,AX$17,FALSE) ->  | BB24: =HLOOKUP($AG24,Datenbank!$C$216:$I$232,BB$17,FALSE) ->  | BF24: =HLOOKUP($AG24,Datenbank!$C$216:$I$232,BF$17,FALSE) ->  | BJ24: =HLOOKUP($AG24,Datenbank!$C$216:$I$232,BJ$17,FALSE) ->  | BN24: =HLOOKUP($AG24,Datenbank!$C$216:$I$232,BN$17,FALSE) ->  | BR24: =HLOOKUP($AG24,Datenbank!$C$216:$I$232,BR$17,FALSE) ->  | BV24: =HLOOKUP($AG24,Datenbank!$C$216:$I$232,BV$17,FALSE) ->  | BZ24: =HLOOKUP($AG24,Datenbank!$C$216:$I$232,BZ$17,FALSE) ->  | CD24: =HLOOKUP($AG24,Datenbank!$C$216:$I$232,CD$17,FALSE) ->  | CH24: =HLOOKUP($AG24,Datenbank!$C$216:$I$232,CH$17,FALSE) ->  | CL24: =HLOOKUP($AG24,Datenbank!$C$216:$I$232,CL$17,FALSE) ->  | CP24: =HLOOKUP($AG24,Datenbank!$C$216:$I$232,CP$17,FALSE) ->  | CT24: =HLOOKUP($AG24,Datenbank!$C$216:$I$232,CT$17,FALSE) ->  | CX24: =HLOOKUP($AG24,Datenbank!$C$216:$I$232,CX$17,FALSE) ->  | DB24: =HLOOKUP($AG24,Datenbank!$C$216:$I$232,DB$17,FALSE) ->  | DF24: =HLOOKUP($AG24,Datenbank!$C$216:$I$232,DF$17,FALSE) ->  | DJ24: =HLOOKUP($AG24,Datenbank!$C$216:$I$232,DJ$17,FALSE) ->  | DN24: =HLOOKUP($AG24,Datenbank!$C$216:$I$232,DN$17,FALSE) ->  | DR24: =HLOOKUP($AG24,Datenbank!$C$216:$I$232,DR$17,FALSE) ->  | DV24: =HLOOKUP($AG24,Datenbank!$C$216:$I$232,DV$17,FALSE) ->  | DZ24: =HLOOKUP($AG24,Datenbank!$C$216:$I$232,DZ$17,FALSE) ->  | ED24: =HLOOKUP($AG24,Datenbank!$C$216:$I$232,ED$17,FALSE) ->  | EH24: =HLOOKUP($AG24,Datenbank!$C$216:$I$232,EH$17,FALSE) ->  | EL24: =HLOOKUP($AG24,Datenbank!$C$216:$I$232,EL$17,FALSE) ->  | EP24: =HLOOKUP($AG24,Datenbank!$C$216:$I$232,EP$17,FALSE) ->  | ET24: =HLOOKUP($AG24,Datenbank!$C$216:$I$232,ET$17,FALSE) -> 
B25: 5236.793505 | C25: 5236.793505 | E25: 20 | F25: 0 | I25: 0 | L25: 1167.139446 | M25: 10270.82713 | N25: 0.8800317476 | O25: 3789.40737 | P25: =Lastprofile!O25*Input!$B$19 -> 0 | Q25: =O25*(1-Input!$B$19) -> 3789.40737 | R25: =IF(V25=0,0,$R$18-(Input!$B$11-Lastprofile!V25)/(Input!$B$11-Input!$B$12)*Input!$B$18) -> 0.3689486079 | S25: 157.8919737 | T25: 0.5110831397 | U25: 5249.246575 | V25: =IF(Input!$B$11<W25,Input!$B$11,IF(Input!$B$13="Ja",Lastprofile!W25,IF(Input!$B$12<Lastprofile!W25,W25,0))) -> 218.7186073 | W25: 574.9597388 | X25: 442.1568533 | Y25: =AC25*(1+Input!$B$20+Input!$B$21) -> 10611.76448 | Z25: =AB25*Input!$B$21 -> 246.4113166 | AA25: =AB25*Input!$B$20 -> 1232.056583 | AB25: =LARGE($AC$20:$AC$384,ROWS($AC$20:AC25)) -> 12320.56583 | AC25: 9474.789713 | AD25: 120.36 | AE25: 2016-01-06 | AF25: 3.333333333 | AG25: Mittwoch | AH25: =HLOOKUP($AG25,Datenbank!$C$216:$I$232,AH$17,FALSE) -> 1.0449 | AI25: 1.704720711 | AJ25: 1.781262671 | AK25: 4237.996207 | AL25: =HLOOKUP($AG25,Datenbank!$C$216:$I$232,AL$17,FALSE) ->  | AP25: =HLOOKUP($AG25,Datenbank!$C$216:$I$232,AP$17,FALSE) ->  | AT25: =HLOOKUP($AG25,Datenbank!$C$216:$I$232,AT$17,FALSE) ->  | AX25: =HLOOKUP($AG25,Datenbank!$C$216:$I$232,AX$17,FALSE) ->  | BB25: =HLOOKUP($AG25,Datenbank!$C$216:$I$232,BB$17,FALSE) ->  | BF25: =HLOOKUP($AG25,Datenbank!$C$216:$I$232,BF$17,FALSE) ->  | BJ25: =HLOOKUP($AG25,Datenbank!$C$216:$I$232,BJ$17,FALSE) ->  | BN25: =HLOOKUP($AG25,Datenbank!$C$216:$I$232,BN$17,FALSE) ->  | BR25: =HLOOKUP($AG25,Datenbank!$C$216:$I$232,BR$17,FALSE) ->  | BV25: =HLOOKUP($AG25,Datenbank!$C$216:$I$232,BV$17,FALSE) ->  | BZ25: =HLOOKUP($AG25,Datenbank!$C$216:$I$232,BZ$17,FALSE) ->  | CD25: =HLOOKUP($AG25,Datenbank!$C$216:$I$232,CD$17,FALSE) ->  | CH25: =HLOOKUP($AG25,Datenbank!$C$216:$I$232,CH$17,FALSE) ->  | CL25: =HLOOKUP($AG25,Datenbank!$C$216:$I$232,CL$17,FALSE) ->  | CP25: =HLOOKUP($AG25,Datenbank!$C$216:$I$232,CP$17,FALSE) ->  | CT25: =HLOOKUP($AG25,Datenbank!$C$216:$I$232,CT$17,FALSE) ->  | CX25: =HLOOKUP($AG25,Datenbank!$C$216:$I$232,CX$17,FALSE) ->  | DB25: =HLOOKUP($AG25,Datenbank!$C$216:$I$232,DB$17,FALSE) ->  | DF25: =HLOOKUP($AG25,Datenbank!$C$216:$I$232,DF$17,FALSE) ->  | DJ25: =HLOOKUP($AG25,Datenbank!$C$216:$I$232,DJ$17,FALSE) ->  | DN25: =HLOOKUP($AG25,Datenbank!$C$216:$I$232,DN$17,FALSE) ->  | DR25: =HLOOKUP($AG25,Datenbank!$C$216:$I$232,DR$17,FALSE) ->  | DV25: =HLOOKUP($AG25,Datenbank!$C$216:$I$232,DV$17,FALSE) ->  | DZ25: =HLOOKUP($AG25,Datenbank!$C$216:$I$232,DZ$17,FALSE) ->  | ED25: =HLOOKUP($AG25,Datenbank!$C$216:$I$232,ED$17,FALSE) ->  | EH25: =HLOOKUP($AG25,Datenbank!$C$216:$I$232,EH$17,FALSE) ->  | EL25: =HLOOKUP($AG25,Datenbank!$C$216:$I$232,EL$17,FALSE) ->  | EP25: =HLOOKUP($AG25,Datenbank!$C$216:$I$232,EP$17,FALSE) ->  | ET25: =HLOOKUP($AG25,Datenbank!$C$216:$I$232,ET$17,FALSE) -> 
B26: 4961.559528 | C26: 4961.559528 | E26: 18 | F26: 0 | I26: 0 | L26: 1167.139446 | M26: 10270.82713 | N26: 0.8800317476 | O26: 3789.40737 | P26: =Lastprofile!O26*Input!$B$19 -> 0 | Q26: =O26*(1-Input!$B$19) -> 3789.40737 | R26: =IF(V26=0,0,$R$18-(Input!$B$11-Lastprofile!V26)/(Input!$B$11-Input!$B$12)*Input!$B$18) -> 0.3689486079 | S26: 157.8919737 | T26: 0.5110831397 | U26: 5249.246575 | V26: =IF(Input!$B$11<W26,Input!$B$11,IF(Input!$B$13="Ja",Lastprofile!W26,IF(Input!$B$12<Lastprofile!W26,W26,0))) -> 218.7186073 | W26: 563.174586 | X26: 418.9180929 | Y26: =AC26*(1+Input!$B$20+Input!$B$21) -> 10054.03423 | Z26: =AB26*Input!$B$21 -> 241.3605368 | AA26: =AB26*Input!$B$20 -> 1206.802684 | AB26: =LARGE($AC$20:$AC$384,ROWS($AC$20:AC26)) -> 12068.02684 | AC26: 8976.816276 | AD26: 144.425 | AE26: 2016-01-07 | AF26: 4.066666667 | AG26: Donnerstag | AH26: =HLOOKUP($AG26,Datenbank!$C$216:$I$232,AH$17,FALSE) -> 1.0494 | AI26: 1.608198541 | AJ26: 1.687643549 | AK26: 4015.256749 | AL26: =HLOOKUP($AG26,Datenbank!$C$216:$I$232,AL$17,FALSE) ->  | AP26: =HLOOKUP($AG26,Datenbank!$C$216:$I$232,AP$17,FALSE) ->  | AT26: =HLOOKUP($AG26,Datenbank!$C$216:$I$232,AT$17,FALSE) ->  | AX26: =HLOOKUP($AG26,Datenbank!$C$216:$I$232,AX$17,FALSE) ->  | BB26: =HLOOKUP($AG26,Datenbank!$C$216:$I$232,BB$17,FALSE) ->  | BF26: =HLOOKUP($AG26,Datenbank!$C$216:$I$232,BF$17,FALSE) ->  | BJ26: =HLOOKUP($AG26,Datenbank!$C$216:$I$232,BJ$17,FALSE) ->  | BN26: =HLOOKUP($AG26,Datenbank!$C$216:$I$232,BN$17,FALSE) ->  | BR26: =HLOOKUP($AG26,Datenbank!$C$216:$I$232,BR$17,FALSE) ->  | BV26: =HLOOKUP($AG26,Datenbank!$C$216:$I$232,BV$17,FALSE) ->  | BZ26: =HLOOKUP($AG26,Datenbank!$C$216:$I$232,BZ$17,FALSE) ->  | CD26: =HLOOKUP($AG26,Datenbank!$C$216:$I$232,CD$17,FALSE) ->  | CH26: =HLOOKUP($AG26,Datenbank!$C$216:$I$232,CH$17,FALSE) ->  | CL26: =HLOOKUP($AG26,Datenbank!$C$216:$I$232,CL$17,FALSE) ->  | CP26: =HLOOKUP($AG26,Datenbank!$C$216:$I$232,CP$17,FALSE) ->  | CT26: =HLOOKUP($AG26,Datenbank!$C$216:$I$232,CT$17,FALSE) ->  | CX26: =HLOOKUP($AG26,Datenbank!$C$216:$I$232,CX$17,FALSE) ->  | DB26: =HLOOKUP($AG26,Datenbank!$C$216:$I$232,DB$17,FALSE) ->  | DF26: =HLOOKUP($AG26,Datenbank!$C$216:$I$232,DF$17,FALSE) ->  | DJ26: =HLOOKUP($AG26,Datenbank!$C$216:$I$232,DJ$17,FALSE) ->  | DN26: =HLOOKUP($AG26,Datenbank!$C$216:$I$232,DN$17,FALSE) ->  | DR26: =HLOOKUP($AG26,Datenbank!$C$216:$I$232,DR$17,FALSE) ->  | DV26: =HLOOKUP($AG26,Datenbank!$C$216:$I$232,DV$17,FALSE) ->  | DZ26: =HLOOKUP($AG26,Datenbank!$C$216:$I$232,DZ$17,FALSE) ->  | ED26: =HLOOKUP($AG26,Datenbank!$C$216:$I$232,ED$17,FALSE) ->  | EH26: =HLOOKUP($AG26,Datenbank!$C$216:$I$232,EH$17,FALSE) ->  | EL26: =HLOOKUP($AG26,Datenbank!$C$216:$I$232,EL$17,FALSE) ->  | EP26: =HLOOKUP($AG26,Datenbank!$C$216:$I$232,EP$17,FALSE) ->  | ET26: =HLOOKUP($AG26,Datenbank!$C$216:$I$232,ET$17,FALSE) -> 
B27: 4529.805222 | C27: 4529.805222 | E27: 16 | F27: 0 | I27: 0 | L27: 1167.139446 | M27: 10270.82713 | N27: 0.8800317476 | O27: 3789.40737 | P27: =Lastprofile!O27*Input!$B$19 -> 0 | Q27: =O27*(1-Input!$B$19) -> 3789.40737 | R27: =IF(V27=0,0,$R$18-(Input!$B$11-Lastprofile!V27)/(Input!$B$11-Input!$B$12)*Input!$B$18) -> 0.3689486079 | S27: 157.8919737 | T27: 0.5110831397 | U27: 5249.246575 | V27: =IF(Input!$B$11<W27,Input!$B$11,IF(Input!$B$13="Ja",Lastprofile!W27,IF(Input!$B$12<Lastprofile!W27,W27,0))) -> 218.7186073 | W27: 561.6203513 | X27: 382.4638915 | Y27: =AC27*(1+Input!$B$20+Input!$B$21) -> 9179.133396 | Z27: =AB27*Input!$B$21 -> 240.6944363 | AA27: =AB27*Input!$B$20 -> 1203.472181 | AB27: =LARGE($AC$20:$AC$384,ROWS($AC$20:AC27)) -> 12034.72181 | AC27: 8195.654818 | AD27: 168.49 | AE27: 2016-01-08 | AF27: 4.433333333 | AG27: Freitag | AH27: =HLOOKUP($AG27,Datenbank!$C$216:$I$232,AH$17,FALSE) -> 0.9885 | AI27: 1.55871018 | AJ27: 1.540785013 | AK27: 3665.849595 | AL27: =HLOOKUP($AG27,Datenbank!$C$216:$I$232,AL$17,FALSE) ->  | AP27: =HLOOKUP($AG27,Datenbank!$C$216:$I$232,AP$17,FALSE) ->  | AT27: =HLOOKUP($AG27,Datenbank!$C$216:$I$232,AT$17,FALSE) ->  | AX27: =HLOOKUP($AG27,Datenbank!$C$216:$I$232,AX$17,FALSE) ->  | BB27: =HLOOKUP($AG27,Datenbank!$C$216:$I$232,BB$17,FALSE) ->  | BF27: =HLOOKUP($AG27,Datenbank!$C$216:$I$232,BF$17,FALSE) ->  | BJ27: =HLOOKUP($AG27,Datenbank!$C$216:$I$232,BJ$17,FALSE) ->  | BN27: =HLOOKUP($AG27,Datenbank!$C$216:$I$232,BN$17,FALSE) ->  | BR27: =HLOOKUP($AG27,Datenbank!$C$216:$I$232,BR$17,FALSE) ->  | BV27: =HLOOKUP($AG27,Datenbank!$C$216:$I$232,BV$17,FALSE) ->  | BZ27: =HLOOKUP($AG27,Datenbank!$C$216:$I$232,BZ$17,FALSE) ->  | CD27: =HLOOKUP($AG27,Datenbank!$C$216:$I$232,CD$17,FALSE) ->  | CH27: =HLOOKUP($AG27,Datenbank!$C$216:$I$232,CH$17,FALSE) ->  | CL27: =HLOOKUP($AG27,Datenbank!$C$216:$I$232,CL$17,FALSE) ->  | CP27: =HLOOKUP($AG27,Datenbank!$C$216:$I$232,CP$17,FALSE) ->  | CT27: =HLOOKUP($AG27,Datenbank!$C$216:$I$232,CT$17,FALSE) ->  | CX27: =HLOOKUP($AG27,Datenbank!$C$216:$I$232,CX$17,FALSE) ->  | DB27: =HLOOKUP($AG27,Datenbank!$C$216:$I$232,DB$17,FALSE) ->  | DF27: =HLOOKUP($AG27,Datenbank!$C$216:$I$232,DF$17,FALSE) ->  | DJ27: =HLOOKUP($AG27,Datenbank!$C$216:$I$232,DJ$17,FALSE) ->  | DN27: =HLOOKUP($AG27,Datenbank!$C$216:$I$232,DN$17,FALSE) ->  | DR27: =HLOOKUP($AG27,Datenbank!$C$216:$I$232,DR$17,FALSE) ->  | DV27: =HLOOKUP($AG27,Datenbank!$C$216:$I$232,DV$17,FALSE) ->  | DZ27: =HLOOKUP($AG27,Datenbank!$C$216:$I$232,DZ$17,FALSE) ->  | ED27: =HLOOKUP($AG27,Datenbank!$C$216:$I$232,ED$17,FALSE) ->  | EH27: =HLOOKUP($AG27,Datenbank!$C$216:$I$232,EH$17,FALSE) ->  | EL27: =HLOOKUP($AG27,Datenbank!$C$216:$I$232,EL$17,FALSE) ->  | EP27: =HLOOKUP($AG27,Datenbank!$C$216:$I$232,EP$17,FALSE) ->  | ET27: =HLOOKUP($AG27,Datenbank!$C$216:$I$232,ET$17,FALSE) -> 
B28: 3518.13563 | C28: 3518.13563 | E28: 21 | F28: 0 | I28: 0 | L28: 1167.139446 | M28: 10270.82713 | N28: 0.8800317476 | O28: 3789.40737 | P28: =Lastprofile!O28*Input!$B$19 -> 0 | Q28: =O28*(1-Input!$B$19) -> 3789.40737 | R28: =IF(V28=0,0,$R$18-(Input!$B$11-Lastprofile!V28)/(Input!$B$11-Input!$B$12)*Input!$B$18) -> 0.3689486079 | S28: 157.8919737 | T28: 0.5110831397 | U28: 5249.246575 | V28: =IF(Input!$B$11<W28,Input!$B$11,IF(Input!$B$13="Ja",Lastprofile!W28,IF(Input!$B$12<Lastprofile!W28,W28,0))) -> 218.7186073 | W28: 558.054327 | X28: 297.0458503 | Y28: =AC28*(1+Input!$B$20+Input!$B$21) -> 7129.100407 | Z28: =AB28*Input!$B$21 -> 239.1661402 | AA28: =AB28*Input!$B$20 -> 1195.830701 | AB28: =LARGE($AC$20:$AC$384,ROWS($AC$20:AC28)) -> 11958.30701 | AC28: 6365.26822 | AD28: 192.555 | AE28: 2016-01-09 | AF28: 5.933333333 | AG28: Samstag | AH28: =HLOOKUP($AG28,Datenbank!$C$216:$I$232,AH$17,FALSE) -> 0.886 | AI28: 1.350645493 | AJ28: 1.196671907 | AK28: 2847.13259 | AL28: =HLOOKUP($AG28,Datenbank!$C$216:$I$232,AL$17,FALSE) ->  | AP28: =HLOOKUP($AG28,Datenbank!$C$216:$I$232,AP$17,FALSE) ->  | AT28: =HLOOKUP($AG28,Datenbank!$C$216:$I$232,AT$17,FALSE) ->  | AX28: =HLOOKUP($AG28,Datenbank!$C$216:$I$232,AX$17,FALSE) ->  | BB28: =HLOOKUP($AG28,Datenbank!$C$216:$I$232,BB$17,FALSE) ->  | BF28: =HLOOKUP($AG28,Datenbank!$C$216:$I$232,BF$17,FALSE) ->  | BJ28: =HLOOKUP($AG28,Datenbank!$C$216:$I$232,BJ$17,FALSE) ->  | BN28: =HLOOKUP($AG28,Datenbank!$C$216:$I$232,BN$17,FALSE) ->  | BR28: =HLOOKUP($AG28,Datenbank!$C$216:$I$232,BR$17,FALSE) ->  | BV28: =HLOOKUP($AG28,Datenbank!$C$216:$I$232,BV$17,FALSE) ->  | BZ28: =HLOOKUP($AG28,Datenbank!$C$216:$I$232,BZ$17,FALSE) ->  | CD28: =HLOOKUP($AG28,Datenbank!$C$216:$I$232,CD$17,FALSE) ->  | CH28: =HLOOKUP($AG28,Datenbank!$C$216:$I$232,CH$17,FALSE) ->  | CL28: =HLOOKUP($AG28,Datenbank!$C$216:$I$232,CL$17,FALSE) ->  | CP28: =HLOOKUP($AG28,Datenbank!$C$216:$I$232,CP$17,FALSE) ->  | CT28: =HLOOKUP($AG28,Datenbank!$C$216:$I$232,CT$17,FALSE) ->  | CX28: =HLOOKUP($AG28,Datenbank!$C$216:$I$232,CX$17,FALSE) ->  | DB28: =HLOOKUP($AG28,Datenbank!$C$216:$I$232,DB$17,FALSE) ->  | DF28: =HLOOKUP($AG28,Datenbank!$C$216:$I$232,DF$17,FALSE) ->  | DJ28: =HLOOKUP($AG28,Datenbank!$C$216:$I$232,DJ$17,FALSE) ->  | DN28: =HLOOKUP($AG28,Datenbank!$C$216:$I$232,DN$17,FALSE) ->  | DR28: =HLOOKUP($AG28,Datenbank!$C$216:$I$232,DR$17,FALSE) ->  | DV28: =HLOOKUP($AG28,Datenbank!$C$216:$I$232,DV$17,FALSE) ->  | DZ28: =HLOOKUP($AG28,Datenbank!$C$216:$I$232,DZ$17,FALSE) ->  | ED28: =HLOOKUP($AG28,Datenbank!$C$216:$I$232,ED$17,FALSE) ->  | EH28: =HLOOKUP($AG28,Datenbank!$C$216:$I$232,EH$17,FALSE) ->  | EL28: =HLOOKUP($AG28,Datenbank!$C$216:$I$232,EL$17,FALSE) ->  | EP28: =HLOOKUP($AG28,Datenbank!$C$216:$I$232,EP$17,FALSE) ->  | ET28: =HLOOKUP($AG28,Datenbank!$C$216:$I$232,ET$17,FALSE) -> 
B29: 5367.819608 | C29: 5367.819608 | E29: 21 | F29: 0 | I29: 0 | L29: 1167.139446 | M29: 10270.82713 | N29: 0.8800317476 | O29: 3789.40737 | P29: =Lastprofile!O29*Input!$B$19 -> 0 | Q29: =O29*(1-Input!$B$19) -> 3789.40737 | R29: =IF(V29=0,0,$R$18-(Input!$B$11-Lastprofile!V29)/(Input!$B$11-Input!$B$12)*Input!$B$18) -> 0.3689486079 | S29: 157.8919737 | T29: 0.5110831397 | U29: 5249.246575 | V29: =IF(Input!$B$11<W29,Input!$B$11,IF(Input!$B$13="Ja",Lastprofile!W29,IF(Input!$B$12<Lastprofile!W29,W29,0))) -> 218.7186073 | W29: 557.6802987 | X29: 453.2197468 | Y29: =AC29*(1+Input!$B$20+Input!$B$21) -> 10877.27392 | Z29: =AB29*Input!$B$21 -> 239.0058423 | AA29: =AB29*Input!$B$20 -> 1195.029211 | AB29: =LARGE($AC$20:$AC$384,ROWS($AC$20:AC29)) -> 11950.29211 | AC29: 9711.851718 | AD29: 216.62 | AE29: 2016-01-10 | AF29: 1.433333333 | AG29: Sonntag | AH29: =HLOOKUP($AG29,Datenbank!$C$216:$I$232,AH$17,FALSE) -> 0.9435 | AI29: 1.935167337 | AJ29: 1.825830383 | AK29: 4344.03211 | AL29: =HLOOKUP($AG29,Datenbank!$C$216:$I$232,AL$17,FALSE) ->  | AP29: =HLOOKUP($AG29,Datenbank!$C$216:$I$232,AP$17,FALSE) ->  | AT29: =HLOOKUP($AG29,Datenbank!$C$216:$I$232,AT$17,FALSE) ->  | AX29: =HLOOKUP($AG29,Datenbank!$C$216:$I$232,AX$17,FALSE) ->  | BB29: =HLOOKUP($AG29,Datenbank!$C$216:$I$232,BB$17,FALSE) ->  | BF29: =HLOOKUP($AG29,Datenbank!$C$216:$I$232,BF$17,FALSE) ->  | BJ29: =HLOOKUP($AG29,Datenbank!$C$216:$I$232,BJ$17,FALSE) ->  | BN29: =HLOOKUP($AG29,Datenbank!$C$216:$I$232,BN$17,FALSE) ->  | BR29: =HLOOKUP($AG29,Datenbank!$C$216:$I$232,BR$17,FALSE) ->  | BV29: =HLOOKUP($AG29,Datenbank!$C$216:$I$232,BV$17,FALSE) ->  | BZ29: =HLOOKUP($AG29,Datenbank!$C$216:$I$232,BZ$17,FALSE) ->  | CD29: =HLOOKUP($AG29,Datenbank!$C$216:$I$232,CD$17,FALSE) ->  | CH29: =HLOOKUP($AG29,Datenbank!$C$216:$I$232,CH$17,FALSE) ->  | CL29: =HLOOKUP($AG29,Datenbank!$C$216:$I$232,CL$17,FALSE) ->  | CP29: =HLOOKUP($AG29,Datenbank!$C$216:$I$232,CP$17,FALSE) ->  | CT29: =HLOOKUP($AG29,Datenbank!$C$216:$I$232,CT$17,FALSE) ->  | CX29: =HLOOKUP($AG29,Datenbank!$C$216:$I$232,CX$17,FALSE) ->  | DB29: =HLOOKUP($AG29,Datenbank!$C$216:$I$232,DB$17,FALSE) ->  | DF29: =HLOOKUP($AG29,Datenbank!$C$216:$I$232,DF$17,FALSE) ->  | DJ29: =HLOOKUP($AG29,Datenbank!$C$216:$I$232,DJ$17,FALSE) ->  | DN29: =HLOOKUP($AG29,Datenbank!$C$216:$I$232,DN$17,FALSE) ->  | DR29: =HLOOKUP($AG29,Datenbank!$C$216:$I$232,DR$17,FALSE) ->  | DV29: =HLOOKUP($AG29,Datenbank!$C$216:$I$232,DV$17,FALSE) ->  | DZ29: =HLOOKUP($AG29,Datenbank!$C$216:$I$232,DZ$17,FALSE) ->  | ED29: =HLOOKUP($AG29,Datenbank!$C$216:$I$232,ED$17,FALSE) ->  | EH29: =HLOOKUP($AG29,Datenbank!$C$216:$I$232,EH$17,FALSE) ->  | EL29: =HLOOKUP($AG29,Datenbank!$C$216:$I$232,EL$17,FALSE) ->  | EP29: =HLOOKUP($AG29,Datenbank!$C$216:$I$232,EP$17,FALSE) ->  | ET29: =HLOOKUP($AG29,Datenbank!$C$216:$I$232,ET$17,FALSE) -> 
B30: 5306.066482 | C30: 5306.066482 | E30: 23 | F30: 0 | I30: 0 | L30: 1167.139446 | M30: 10270.82713 | N30: 0.8800317476 | O30: 3789.40737 | P30: =Lastprofile!O30*Input!$B$19 -> 0 | Q30: =O30*(1-Input!$B$19) -> 3789.40737 | R30: =IF(V30=0,0,$R$18-(Input!$B$11-Lastprofile!V30)/(Input!$B$11-Input!$B$12)*Input!$B$18) -> 0.3689486079 | S30: 157.8919737 | T30: 0.5110831397 | U30: 5249.246575 | V30: =IF(Input!$B$11<W30,Input!$B$11,IF(Input!$B$13="Ja",Lastprofile!W30,IF(Input!$B$12<Lastprofile!W30,W30,0))) -> 218.7186073 | W30: 554.8525617 | X30: 448.0057609 | Y30: =AC30*(1+Input!$B$20+Input!$B$21) -> 10752.13826 | Z30: =AB30*Input!$B$21 -> 237.793955 | AA30: =AB30*Input!$B$20 -> 1188.969775 | AB30: =LARGE($AC$20:$AC$384,ROWS($AC$20:AC30)) -> 11889.69775 | AC30: 9600.123448 | AD30: 240.685 | AE30: 2016-01-11 | AF30: 3.033333333 | AG30: Montag | AH30: =HLOOKUP($AG30,Datenbank!$C$216:$I$232,AH$17,FALSE) -> 1.0354 | AI30: 1.743119028 | AJ30: 1.804825442 | AK30: 4294.056966 | AL30: =HLOOKUP($AG30,Datenbank!$C$216:$I$232,AL$17,FALSE) ->  | AP30: =HLOOKUP($AG30,Datenbank!$C$216:$I$232,AP$17,FALSE) ->  | AT30: =HLOOKUP($AG30,Datenbank!$C$216:$I$232,AT$17,FALSE) ->  | AX30: =HLOOKUP($AG30,Datenbank!$C$216:$I$232,AX$17,FALSE) ->  | BB30: =HLOOKUP($AG30,Datenbank!$C$216:$I$232,BB$17,FALSE) ->  | BF30: =HLOOKUP($AG30,Datenbank!$C$216:$I$232,BF$17,FALSE) ->  | BJ30: =HLOOKUP($AG30,Datenbank!$C$216:$I$232,BJ$17,FALSE) ->  | BN30: =HLOOKUP($AG30,Datenbank!$C$216:$I$232,BN$17,FALSE) ->  | BR30: =HLOOKUP($AG30,Datenbank!$C$216:$I$232,BR$17,FALSE) ->  | BV30: =HLOOKUP($AG30,Datenbank!$C$216:$I$232,BV$17,FALSE) ->  | BZ30: =HLOOKUP($AG30,Datenbank!$C$216:$I$232,BZ$17,FALSE) ->  | CD30: =HLOOKUP($AG30,Datenbank!$C$216:$I$232,CD$17,FALSE) ->  | CH30: =HLOOKUP($AG30,Datenbank!$C$216:$I$232,CH$17,FALSE) ->  | CL30: =HLOOKUP($AG30,Datenbank!$C$216:$I$232,CL$17,FALSE) ->  | CP30: =HLOOKUP($AG30,Datenbank!$C$216:$I$232,CP$17,FALSE) ->  | CT30: =HLOOKUP($AG30,Datenbank!$C$216:$I$232,CT$17,FALSE) ->  | CX30: =HLOOKUP($AG30,Datenbank!$C$216:$I$232,CX$17,FALSE) ->  | DB30: =HLOOKUP($AG30,Datenbank!$C$216:$I$232,DB$17,FALSE) ->  | DF30: =HLOOKUP($AG30,Datenbank!$C$216:$I$232,DF$17,FALSE) ->  | DJ30: =HLOOKUP($AG30,Datenbank!$C$216:$I$232,DJ$17,FALSE) ->  | DN30: =HLOOKUP($AG30,Datenbank!$C$216:$I$232,DN$17,FALSE) ->  | DR30: =HLOOKUP($AG30,Datenbank!$C$216:$I$232,DR$17,FALSE) ->  | DV30: =HLOOKUP($AG30,Datenbank!$C$216:$I$232,DV$17,FALSE) ->  | DZ30: =HLOOKUP($AG30,Datenbank!$C$216:$I$232,DZ$17,FALSE) ->  | ED30: =HLOOKUP($AG30,Datenbank!$C$216:$I$232,ED$17,FALSE) ->  | EH30: =HLOOKUP($AG30,Datenbank!$C$216:$I$232,EH$17,FALSE) ->  | EL30: =HLOOKUP($AG30,Datenbank!$C$216:$I$232,EL$17,FALSE) ->  | EP30: =HLOOKUP($AG30,Datenbank!$C$216:$I$232,EP$17,FALSE) ->  | ET30: =HLOOKUP($AG30,Datenbank!$C$216:$I$232,ET$17,FALSE) -> 
B31: 5673.664631 | C31: 5673.664631 | F31: 0 | I31: 0 | L31: 1167.139446 | M31: 10270.82713 | N31: 0.8800317476 | O31: 3789.40737 | P31: =Lastprofile!O31*Input!$B$19 -> 0 | Q31: =O31*(1-Input!$B$19) -> 3789.40737 | R31: =IF(V31=0,0,$R$18-(Input!$B$11-Lastprofile!V31)/(Input!$B$11-Input!$B$12)*Input!$B$18) -> 0.3689486079 | S31: 157.8919737 | T31: 0.5110831397 | U31: 5249.246575 | V31: =IF(Input!$B$11<W31,Input!$B$11,IF(Input!$B$13="Ja",Lastprofile!W31,IF(Input!$B$12<Lastprofile!W31,W31,0))) -> 218.7186073 | W31: 552.6143514 | X31: 479.0430818 | Y31: =AC31*(1+Input!$B$20+Input!$B$21) -> 11497.03396 | Z31: =AB31*Input!$B$21 -> 236.834722 | AA31: =AB31*Input!$B$20 -> 1184.17361 | AB31: =LARGE($AC$20:$AC$384,ROWS($AC$20:AC31)) -> 11841.7361 | AC31: 10265.2089 | AD31: 264.75 | AE31: 2016-01-12 | AF31: 2.3 | AG31: Dienstag | AH31: =HLOOKUP($AG31,Datenbank!$C$216:$I$232,AH$17,FALSE) -> 1.0523 | AI31: 1.833946271 | AJ31: 1.929861661 | AK31: 4591.544266 | AL31: =HLOOKUP($AG31,Datenbank!$C$216:$I$232,AL$17,FALSE) ->  | AP31: =HLOOKUP($AG31,Datenbank!$C$216:$I$232,AP$17,FALSE) ->  | AT31: =HLOOKUP($AG31,Datenbank!$C$216:$I$232,AT$17,FALSE) ->  | AX31: =HLOOKUP($AG31,Datenbank!$C$216:$I$232,AX$17,FALSE) ->  | BB31: =HLOOKUP($AG31,Datenbank!$C$216:$I$232,BB$17,FALSE) ->  | BF31: =HLOOKUP($AG31,Datenbank!$C$216:$I$232,BF$17,FALSE) ->  | BJ31: =HLOOKUP($AG31,Datenbank!$C$216:$I$232,BJ$17,FALSE) ->  | BN31: =HLOOKUP($AG31,Datenbank!$C$216:$I$232,BN$17,FALSE) ->  | BR31: =HLOOKUP($AG31,Datenbank!$C$216:$I$232,BR$17,FALSE) ->  | BV31: =HLOOKUP($AG31,Datenbank!$C$216:$I$232,BV$17,FALSE) ->  | BZ31: =HLOOKUP($AG31,Datenbank!$C$216:$I$232,BZ$17,FALSE) ->  | CD31: =HLOOKUP($AG31,Datenbank!$C$216:$I$232,CD$17,FALSE) ->  | CH31: =HLOOKUP($AG31,Datenbank!$C$216:$I$232,CH$17,FALSE) ->  | CL31: =HLOOKUP($AG31,Datenbank!$C$216:$I$232,CL$17,FALSE) ->  | CP31: =HLOOKUP($AG31,Datenbank!$C$216:$I$232,CP$17,FALSE) ->  | CT31: =HLOOKUP($AG31,Datenbank!$C$216:$I$232,CT$17,FALSE) ->  | CX31: =HLOOKUP($AG31,Datenbank!$C$216:$I$232,CX$17,FALSE) ->  | DB31: =HLOOKUP($AG31,Datenbank!$C$216:$I$232,DB$17,FALSE) ->  | DF31: =HLOOKUP($AG31,Datenbank!$C$216:$I$232,DF$17,FALSE) ->  | DJ31: =HLOOKUP($AG31,Datenbank!$C$216:$I$232,DJ$17,FALSE) ->  | DN31: =HLOOKUP($AG31,Datenbank!$C$216:$I$232,DN$17,FALSE) ->  | DR31: =HLOOKUP($AG31,Datenbank!$C$216:$I$232,DR$17,FALSE) ->  | DV31: =HLOOKUP($AG31,Datenbank!$C$216:$I$232,DV$17,FALSE) ->  | DZ31: =HLOOKUP($AG31,Datenbank!$C$216:$I$232,DZ$17,FALSE) ->  | ED31: =HLOOKUP($AG31,Datenbank!$C$216:$I$232,ED$17,FALSE) ->  | EH31: =HLOOKUP($AG31,Datenbank!$C$216:$I$232,EH$17,FALSE) ->  | EL31: =HLOOKUP($AG31,Datenbank!$C$216:$I$232,EL$17,FALSE) ->  | EP31: =HLOOKUP($AG31,Datenbank!$C$216:$I$232,EP$17,FALSE) ->  | ET31: =HLOOKUP($AG31,Datenbank!$C$216:$I$232,ET$17,FALSE) -> 
B32: 5967.732942 | C32: 5967.732942 | F32: 0 | I32: 0 | L32: 1167.139446 | M32: 10270.82713 | N32: 0.8800317476 | O32: 3789.40737 | P32: =Lastprofile!O32*Input!$B$19 -> 0 | Q32: =O32*(1-Input!$B$19) -> 3789.40737 | R32: =IF(V32=0,0,$R$18-(Input!$B$11-Lastprofile!V32)/(Input!$B$11-Input!$B$12)*Input!$B$18) -> 0.3689486079 | S32: 157.8919737 | T32: 0.5110831397 | U32: 5249.246575 | V32: =IF(Input!$B$11<W32,Input!$B$11,IF(Input!$B$13="Ja",Lastprofile!W32,IF(Input!$B$12<Lastprofile!W32,W32,0))) -> 218.7186073 | W32: 550.9902011 | X32: 503.8720767 | Y32: =AC32*(1+Input!$B$20+Input!$B$21) -> 12092.92984 | Z32: =AB32*Input!$B$21 -> 236.1386576 | AA32: =AB32*Input!$B$20 -> 1180.693288 | AB32: =LARGE($AC$20:$AC$384,ROWS($AC$20:AC32)) -> 11806.93288 | AC32: 10797.25879 | AD32: 288.815 | AE32: 2016-01-13 | AF32: 1.366666667 | AG32: Mittwoch | AH32: =HLOOKUP($AG32,Datenbank!$C$216:$I$232,AH$17,FALSE) -> 1.0449 | AI32: 1.942661656 | AJ32: 2.029887164 | AK32: 4829.525844 | AL32: =HLOOKUP($AG32,Datenbank!$C$216:$I$232,AL$17,FALSE) ->  | AP32: =HLOOKUP($AG32,Datenbank!$C$216:$I$232,AP$17,FALSE) ->  | AT32: =HLOOKUP($AG32,Datenbank!$C$216:$I$232,AT$17,FALSE) ->  | AX32: =HLOOKUP($AG32,Datenbank!$C$216:$I$232,AX$17,FALSE) ->  | BB32: =HLOOKUP($AG32,Datenbank!$C$216:$I$232,BB$17,FALSE) ->  | BF32: =HLOOKUP($AG32,Datenbank!$C$216:$I$232,BF$17,FALSE) ->  | BJ32: =HLOOKUP($AG32,Datenbank!$C$216:$I$232,BJ$17,FALSE) ->  | BN32: =HLOOKUP($AG32,Datenbank!$C$216:$I$232,BN$17,FALSE) ->  | BR32: =HLOOKUP($AG32,Datenbank!$C$216:$I$232,BR$17,FALSE) ->  | BV32: =HLOOKUP($AG32,Datenbank!$C$216:$I$232,BV$17,FALSE) ->  | BZ32: =HLOOKUP($AG32,Datenbank!$C$216:$I$232,BZ$17,FALSE) ->  | CD32: =HLOOKUP($AG32,Datenbank!$C$216:$I$232,CD$17,FALSE) ->  | CH32: =HLOOKUP($AG32,Datenbank!$C$216:$I$232,CH$17,FALSE) ->  | CL32: =HLOOKUP($AG32,Datenbank!$C$216:$I$232,CL$17,FALSE) ->  | CP32: =HLOOKUP($AG32,Datenbank!$C$216:$I$232,CP$17,FALSE) ->  | CT32: =HLOOKUP($AG32,Datenbank!$C$216:$I$232,CT$17,FALSE) ->  | CX32: =HLOOKUP($AG32,Datenbank!$C$216:$I$232,CX$17,FALSE) ->  | DB32: =HLOOKUP($AG32,Datenbank!$C$216:$I$232,DB$17,FALSE) ->  | DF32: =HLOOKUP($AG32,Datenbank!$C$216:$I$232,DF$17,FALSE) ->  | DJ32: =HLOOKUP($AG32,Datenbank!$C$216:$I$232,DJ$17,FALSE) ->  | DN32: =HLOOKUP($AG32,Datenbank!$C$216:$I$232,DN$17,FALSE) ->  | DR32: =HLOOKUP($AG32,Datenbank!$C$216:$I$232,DR$17,FALSE) ->  | DV32: =HLOOKUP($AG32,Datenbank!$C$216:$I$232,DV$17,FALSE) ->  | DZ32: =HLOOKUP($AG32,Datenbank!$C$216:$I$232,DZ$17,FALSE) ->  | ED32: =HLOOKUP($AG32,Datenbank!$C$216:$I$232,ED$17,FALSE) ->  | EH32: =HLOOKUP($AG32,Datenbank!$C$216:$I$232,EH$17,FALSE) ->  | EL32: =HLOOKUP($AG32,Datenbank!$C$216:$I$232,EL$17,FALSE) ->  | EP32: =HLOOKUP($AG32,Datenbank!$C$216:$I$232,EP$17,FALSE) ->  | ET32: =HLOOKUP($AG32,Datenbank!$C$216:$I$232,ET$17,FALSE) -> 
B33: 5958.702588 | C33: 5958.702588 | F33: 0 | I33: 0 | L33: 1167.139446 | M33: 10270.82713 | N33: 0.8800317476 | O33: 3789.40737 | P33: =Lastprofile!O33*Input!$B$19 -> 0 | Q33: =O33*(1-Input!$B$19) -> 3789.40737 | R33: =IF(V33=0,0,$R$18-(Input!$B$11-Lastprofile!V33)/(Input!$B$11-Input!$B$12)*Input!$B$18) -> 0.3689486079 | S33: 157.8919737 | T33: 0.5110831397 | U33: 5249.246575 | V33: =IF(Input!$B$11<W33,Input!$B$11,IF(Input!$B$13="Ja",Lastprofile!W33,IF(Input!$B$12<Lastprofile!W33,W33,0))) -> 218.7186073 | W33: 548.773285 | X33: 503.1096192 | Y33: =AC33*(1+Input!$B$20+Input!$B$21) -> 12074.63086 | Z33: =AB33*Input!$B$21 -> 235.1885507 | AA33: =AB33*Input!$B$20 -> 1175.942754 | AB33: =LARGE($AC$20:$AC$384,ROWS($AC$20:AC33)) -> 11759.42754 | AC33: 10780.92041 | AD33: 312.88 | AE33: 2016-01-14 | AF33: 1.466666667 | AG33: Donnerstag | AH33: =HLOOKUP($AG33,Datenbank!$C$216:$I$232,AH$17,FALSE) -> 1.0494 | AI33: 1.931404179 | AJ33: 2.026815546 | AK33: 4822.217822 | AL33: =HLOOKUP($AG33,Datenbank!$C$216:$I$232,AL$17,FALSE) ->  | AP33: =HLOOKUP($AG33,Datenbank!$C$216:$I$232,AP$17,FALSE) ->  | AT33: =HLOOKUP($AG33,Datenbank!$C$216:$I$232,AT$17,FALSE) ->  | AX33: =HLOOKUP($AG33,Datenbank!$C$216:$I$232,AX$17,FALSE) ->  | BB33: =HLOOKUP($AG33,Datenbank!$C$216:$I$232,BB$17,FALSE) ->  | BF33: =HLOOKUP($AG33,Datenbank!$C$216:$I$232,BF$17,FALSE) ->  | BJ33: =HLOOKUP($AG33,Datenbank!$C$216:$I$232,BJ$17,FALSE) ->  | BN33: =HLOOKUP($AG33,Datenbank!$C$216:$I$232,BN$17,FALSE) ->  | BR33: =HLOOKUP($AG33,Datenbank!$C$216:$I$232,BR$17,FALSE) ->  | BV33: =HLOOKUP($AG33,Datenbank!$C$216:$I$232,BV$17,FALSE) ->  | BZ33: =HLOOKUP($AG33,Datenbank!$C$216:$I$232,BZ$17,FALSE) ->  | CD33: =HLOOKUP($AG33,Datenbank!$C$216:$I$232,CD$17,FALSE) ->  | CH33: =HLOOKUP($AG33,Datenbank!$C$216:$I$232,CH$17,FALSE) ->  | CL33: =HLOOKUP($AG33,Datenbank!$C$216:$I$232,CL$17,FALSE) ->  | CP33: =HLOOKUP($AG33,Datenbank!$C$216:$I$232,CP$17,FALSE) ->  | CT33: =HLOOKUP($AG33,Datenbank!$C$216:$I$232,CT$17,FALSE) ->  | CX33: =HLOOKUP($AG33,Datenbank!$C$216:$I$232,CX$17,FALSE) ->  | DB33: =HLOOKUP($AG33,Datenbank!$C$216:$I$232,DB$17,FALSE) ->  | DF33: =HLOOKUP($AG33,Datenbank!$C$216:$I$232,DF$17,FALSE) ->  | DJ33: =HLOOKUP($AG33,Datenbank!$C$216:$I$232,DJ$17,FALSE) ->  | DN33: =HLOOKUP($AG33,Datenbank!$C$216:$I$232,DN$17,FALSE) ->  | DR33: =HLOOKUP($AG33,Datenbank!$C$216:$I$232,DR$17,FALSE) ->  | DV33: =HLOOKUP($AG33,Datenbank!$C$216:$I$232,DV$17,FALSE) ->  | DZ33: =HLOOKUP($AG33,Datenbank!$C$216:$I$232,DZ$17,FALSE) ->  | ED33: =HLOOKUP($AG33,Datenbank!$C$216:$I$232,ED$17,FALSE) ->  | EH33: =HLOOKUP($AG33,Datenbank!$C$216:$I$232,EH$17,FALSE) ->  | EL33: =HLOOKUP($AG33,Datenbank!$C$216:$I$232,EL$17,FALSE) ->  | EP33: =HLOOKUP($AG33,Datenbank!$C$216:$I$232,EP$17,FALSE) ->  | ET33: =HLOOKUP($AG33,Datenbank!$C$216:$I$232,ET$17,FALSE) -> 
B34: 5688.800833 | C34: 5688.800833 | F34: 0 | I34: 0 | L34: 1167.139446 | M34: 10270.82713 | N34: 0.8800317476 | O34: 3789.40737 | P34: =Lastprofile!O34*Input!$B$19 -> 0 | Q34: =O34*(1-Input!$B$19) -> 3789.40737 | R34: =IF(V34=0,0,$R$18-(Input!$B$11-Lastprofile!V34)/(Input!$B$11-Input!$B$12)*Input!$B$18) -> 0.3689486079 | S34: 157.8919737 | T34: 0.5110831397 | U34: 5249.246575 | V34: =IF(Input!$B$11<W34,Input!$B$11,IF(Input!$B$13="Ja",Lastprofile!W34,IF(Input!$B$12<Lastprofile!W34,W34,0))) -> 218.7186073 | W34: 541.8358654 | X34: 480.321073 | Y34: =AC34*(1+Input!$B$20+Input!$B$21) -> 11527.70575 | Z34: =AB34*Input!$B$21 -> 232.2153709 | AA34: =AB34*Input!$B$20 -> 1161.076855 | AB34: =LARGE($AC$20:$AC$384,ROWS($AC$20:AC34)) -> 11610.76855 | AC34: 10292.59442 | AD34: 336.945 | AE34: 2016-01-15 | AF34: 1.233333333 | AG34: Freitag | AH34: =HLOOKUP($AG34,Datenbank!$C$216:$I$232,AH$17,FALSE) -> 0.9885 | AI34: 1.957521645 | AJ34: 1.935010146 | AK34: 4603.793587 | AL34: =HLOOKUP($AG34,Datenbank!$C$216:$I$232,AL$17,FALSE) ->  | AP34: =HLOOKUP($AG34,Datenbank!$C$216:$I$232,AP$17,FALSE) ->  | AT34: =HLOOKUP($AG34,Datenbank!$C$216:$I$232,AT$17,FALSE) ->  | AX34: =HLOOKUP($AG34,Datenbank!$C$216:$I$232,AX$17,FALSE) ->  | BB34: =HLOOKUP($AG34,Datenbank!$C$216:$I$232,BB$17,FALSE) ->  | BF34: =HLOOKUP($AG34,Datenbank!$C$216:$I$232,BF$17,FALSE) ->  | BJ34: =HLOOKUP($AG34,Datenbank!$C$216:$I$232,BJ$17,FALSE) ->  | BN34: =HLOOKUP($AG34,Datenbank!$C$216:$I$232,BN$17,FALSE) ->  | BR34: =HLOOKUP($AG34,Datenbank!$C$216:$I$232,BR$17,FALSE) ->  | BV34: =HLOOKUP($AG34,Datenbank!$C$216:$I$232,BV$17,FALSE) ->  | BZ34: =HLOOKUP($AG34,Datenbank!$C$216:$I$232,BZ$17,FALSE) ->  | CD34: =HLOOKUP($AG34,Datenbank!$C$216:$I$232,CD$17,FALSE) ->  | CH34: =HLOOKUP($AG34,Datenbank!$C$216:$I$232,CH$17,FALSE) ->  | CL34: =HLOOKUP($AG34,Datenbank!$C$216:$I$232,CL$17,FALSE) ->  | CP34: =HLOOKUP($AG34,Datenbank!$C$216:$I$232,CP$17,FALSE) ->  | CT34: =HLOOKUP($AG34,Datenbank!$C$216:$I$232,CT$17,FALSE) ->  | CX34: =HLOOKUP($AG34,Datenbank!$C$216:$I$232,CX$17,FALSE) ->  | DB34: =HLOOKUP($AG34,Datenbank!$C$216:$I$232,DB$17,FALSE) ->  | DF34: =HLOOKUP($AG34,Datenbank!$C$216:$I$232,DF$17,FALSE) ->  | DJ34: =HLOOKUP($AG34,Datenbank!$C$216:$I$232,DJ$17,FALSE) ->  | DN34: =HLOOKUP($AG34,Datenbank!$C$216:$I$232,DN$17,FALSE) ->  | DR34: =HLOOKUP($AG34,Datenbank!$C$216:$I$232,DR$17,FALSE) ->  | DV34: =HLOOKUP($AG34,Datenbank!$C$216:$I$232,DV$17,FALSE) ->  | DZ34: =HLOOKUP($AG34,Datenbank!$C$216:$I$232,DZ$17,FALSE) ->  | ED34: =HLOOKUP($AG34,Datenbank!$C$216:$I$232,ED$17,FALSE) ->  | EH34: =HLOOKUP($AG34,Datenbank!$C$216:$I$232,EH$17,FALSE) ->  | EL34: =HLOOKUP($AG34,Datenbank!$C$216:$I$232,EL$17,FALSE) ->  | EP34: =HLOOKUP($AG34,Datenbank!$C$216:$I$232,EP$17,FALSE) ->  | ET34: =HLOOKUP($AG34,Datenbank!$C$216:$I$232,ET$17,FALSE) -> 
B35: 5079.617561 | C35: 5079.617561 | F35: 0 | I35: 0 | L35: 1167.139446 | M35: 10270.82713 | N35: 0.8800317476 | O35: 3789.40737 | P35: =Lastprofile!O35*Input!$B$19 -> 0 | Q35: =O35*(1-Input!$B$19) -> 3789.40737 | R35: =IF(V35=0,0,$R$18-(Input!$B$11-Lastprofile!V35)/(Input!$B$11-Input!$B$12)*Input!$B$18) -> 0.3689486079 | S35: 157.8919737 | T35: 0.5110831397 | U35: 5249.246575 | V35: =IF(Input!$B$11<W35,Input!$B$11,IF(Input!$B$13="Ja",Lastprofile!W35,IF(Input!$B$12<Lastprofile!W35,W35,0))) -> 218.7186073 | W35: 537.8377625 | X35: 428.8860567 | Y35: =AC35*(1+Input!$B$20+Input!$B$21) -> 10293.26536 | Z35: =AB35*Input!$B$21 -> 230.5018982 | AA35: =AB35*Input!$B$20 -> 1152.509491 | AB35: =LARGE($AC$20:$AC$384,ROWS($AC$20:AC35)) -> 11525.09491 | AC35: 9190.415501 | AD35: 361.01 | AE35: 2016-01-16 | AF35: 1.3 | AG35: Samstag | AH35: =HLOOKUP($AG35,Datenbank!$C$216:$I$232,AH$17,FALSE) -> 0.886 | AI35: 1.950113152 | AJ35: 1.727800253 | AK35: 4110.797941 | AL35: =HLOOKUP($AG35,Datenbank!$C$216:$I$232,AL$17,FALSE) ->  | AP35: =HLOOKUP($AG35,Datenbank!$C$216:$I$232,AP$17,FALSE) ->  | AT35: =HLOOKUP($AG35,Datenbank!$C$216:$I$232,AT$17,FALSE) ->  | AX35: =HLOOKUP($AG35,Datenbank!$C$216:$I$232,AX$17,FALSE) ->  | BB35: =HLOOKUP($AG35,Datenbank!$C$216:$I$232,BB$17,FALSE) ->  | BF35: =HLOOKUP($AG35,Datenbank!$C$216:$I$232,BF$17,FALSE) ->  | BJ35: =HLOOKUP($AG35,Datenbank!$C$216:$I$232,BJ$17,FALSE) ->  | BN35: =HLOOKUP($AG35,Datenbank!$C$216:$I$232,BN$17,FALSE) ->  | BR35: =HLOOKUP($AG35,Datenbank!$C$216:$I$232,BR$17,FALSE) ->  | BV35: =HLOOKUP($AG35,Datenbank!$C$216:$I$232,BV$17,FALSE) ->  | BZ35: =HLOOKUP($AG35,Datenbank!$C$216:$I$232,BZ$17,FALSE) ->  | CD35: =HLOOKUP($AG35,Datenbank!$C$216:$I$232,CD$17,FALSE) ->  | CH35: =HLOOKUP($AG35,Datenbank!$C$216:$I$232,CH$17,FALSE) ->  | CL35: =HLOOKUP($AG35,Datenbank!$C$216:$I$232,CL$17,FALSE) ->  | CP35: =HLOOKUP($AG35,Datenbank!$C$216:$I$232,CP$17,FALSE) ->  | CT35: =HLOOKUP($AG35,Datenbank!$C$216:$I$232,CT$17,FALSE) ->  | CX35: =HLOOKUP($AG35,Datenbank!$C$216:$I$232,CX$17,FALSE) ->  | DB35: =HLOOKUP($AG35,Datenbank!$C$216:$I$232,DB$17,FALSE) ->  | DF35: =HLOOKUP($AG35,Datenbank!$C$216:$I$232,DF$17,FALSE) ->  | DJ35: =HLOOKUP($AG35,Datenbank!$C$216:$I$232,DJ$17,FALSE) ->  | DN35: =HLOOKUP($AG35,Datenbank!$C$216:$I$232,DN$17,FALSE) ->  | DR35: =HLOOKUP($AG35,Datenbank!$C$216:$I$232,DR$17,FALSE) ->  | DV35: =HLOOKUP($AG35,Datenbank!$C$216:$I$232,DV$17,FALSE) ->  | DZ35: =HLOOKUP($AG35,Datenbank!$C$216:$I$232,DZ$17,FALSE) ->  | ED35: =HLOOKUP($AG35,Datenbank!$C$216:$I$232,ED$17,FALSE) ->  | EH35: =HLOOKUP($AG35,Datenbank!$C$216:$I$232,EH$17,FALSE) ->  | EL35: =HLOOKUP($AG35,Datenbank!$C$216:$I$232,EL$17,FALSE) ->  | EP35: =HLOOKUP($AG35,Datenbank!$C$216:$I$232,EP$17,FALSE) ->  | ET35: =HLOOKUP($AG35,Datenbank!$C$216:$I$232,ET$17,FALSE) -> 
B36: 5560.463144 | C36: 5560.463144 | F36: 0 | I36: 0 | L36: 1167.139446 | M36: 10270.82713 | N36: 0.8800317476 | O36: 3789.40737 | P36: =Lastprofile!O36*Input!$B$19 -> 0 | Q36: =O36*(1-Input!$B$19) -> 3789.40737 | R36: =IF(V36=0,0,$R$18-(Input!$B$11-Lastprofile!V36)/(Input!$B$11-Input!$B$12)*Input!$B$18) -> 0.3689486079 | S36: 157.8919737 | T36: 0.5110831397 | U36: 5249.246575 | V36: =IF(Input!$B$11<W36,Input!$B$11,IF(Input!$B$13="Ja",Lastprofile!W36,IF(Input!$B$12<Lastprofile!W36,W36,0))) -> 218.7186073 | W36: 534.6072566 | X36: 469.4851695 | Y36: =AC36*(1+Input!$B$20+Input!$B$21) -> 11267.64407 | Z36: =AB36*Input!$B$21 -> 229.1173957 | AA36: =AB36*Input!$B$20 -> 1145.586978 | AB36: =LARGE($AC$20:$AC$384,ROWS($AC$20:AC36)) -> 11455.86978 | AC36: 10060.39649 | AD36: 385.075 | AE36: 2016-01-17 | AF36: 0.8 | AG36: Sonntag | AH36: =HLOOKUP($AG36,Datenbank!$C$216:$I$232,AH$17,FALSE) -> 0.9435 | AI36: 2.004617786 | AJ36: 1.891356881 | AK36: 4499.933345 | AL36: =HLOOKUP($AG36,Datenbank!$C$216:$I$232,AL$17,FALSE) ->  | AP36: =HLOOKUP($AG36,Datenbank!$C$216:$I$232,AP$17,FALSE) ->  | AT36: =HLOOKUP($AG36,Datenbank!$C$216:$I$232,AT$17,FALSE) ->  | AX36: =HLOOKUP($AG36,Datenbank!$C$216:$I$232,AX$17,FALSE) ->  | BB36: =HLOOKUP($AG36,Datenbank!$C$216:$I$232,BB$17,FALSE) ->  | BF36: =HLOOKUP($AG36,Datenbank!$C$216:$I$232,BF$17,FALSE) ->  | BJ36: =HLOOKUP($AG36,Datenbank!$C$216:$I$232,BJ$17,FALSE) ->  | BN36: =HLOOKUP($AG36,Datenbank!$C$216:$I$232,BN$17,FALSE) ->  | BR36: =HLOOKUP($AG36,Datenbank!$C$216:$I$232,BR$17,FALSE) ->  | BV36: =HLOOKUP($AG36,Datenbank!$C$216:$I$232,BV$17,FALSE) ->  | BZ36: =HLOOKUP($AG36,Datenbank!$C$216:$I$232,BZ$17,FALSE) ->  | CD36: =HLOOKUP($AG36,Datenbank!$C$216:$I$232,CD$17,FALSE) ->  | CH36: =HLOOKUP($AG36,Datenbank!$C$216:$I$232,CH$17,FALSE) ->  | CL36: =HLOOKUP($AG36,Datenbank!$C$216:$I$232,CL$17,FALSE) ->  | CP36: =HLOOKUP($AG36,Datenbank!$C$216:$I$232,CP$17,FALSE) ->  | CT36: =HLOOKUP($AG36,Datenbank!$C$216:$I$232,CT$17,FALSE) ->  | CX36: =HLOOKUP($AG36,Datenbank!$C$216:$I$232,CX$17,FALSE) ->  | DB36: =HLOOKUP($AG36,Datenbank!$C$216:$I$232,DB$17,FALSE) ->  | DF36: =HLOOKUP($AG36,Datenbank!$C$216:$I$232,DF$17,FALSE) ->  | DJ36: =HLOOKUP($AG36,Datenbank!$C$216:$I$232,DJ$17,FALSE) ->  | DN36: =HLOOKUP($AG36,Datenbank!$C$216:$I$232,DN$17,FALSE) ->  | DR36: =HLOOKUP($AG36,Datenbank!$C$216:$I$232,DR$17,FALSE) ->  | DV36: =HLOOKUP($AG36,Datenbank!$C$216:$I$232,DV$17,FALSE) ->  | DZ36: =HLOOKUP($AG36,Datenbank!$C$216:$I$232,DZ$17,FALSE) ->  | ED36: =HLOOKUP($AG36,Datenbank!$C$216:$I$232,ED$17,FALSE) ->  | EH36: =HLOOKUP($AG36,Datenbank!$C$216:$I$232,EH$17,FALSE) ->  | EL36: =HLOOKUP($AG36,Datenbank!$C$216:$I$232,EL$17,FALSE) ->  | EP36: =HLOOKUP($AG36,Datenbank!$C$216:$I$232,EP$17,FALSE) ->  | ET36: =HLOOKUP($AG36,Datenbank!$C$216:$I$232,ET$17,FALSE) -> 
B37: 6809.677163 | C37: 6809.677163 | F37: 0 | I37: 0 | L37: 1167.139446 | M37: 10270.82713 | N37: 0.8800317476 | O37: 3789.40737 | P37: =Lastprofile!O37*Input!$B$19 -> 0 | Q37: =O37*(1-Input!$B$19) -> 3789.40737 | R37: =IF(V37=0,0,$R$18-(Input!$B$11-Lastprofile!V37)/(Input!$B$11-Input!$B$12)*Input!$B$18) -> 0.3689486079 | S37: 157.8919737 | T37: 0.5110831397 | U37: 5249.246575 | V37: =IF(Input!$B$11<W37,Input!$B$11,IF(Input!$B$13="Ja",Lastprofile!W37,IF(Input!$B$12<Lastprofile!W37,W37,0))) -> 218.7186073 | W37: 533.964617 | X37: 574.9597388 | Y37: =AC37*(1+Input!$B$20+Input!$B$21) -> 13799.03373 | Z37: =AB37*Input!$B$21 -> 228.8419787 | AA37: =AB37*Input!$B$20 -> 1144.209894 | AB37: =LARGE($AC$20:$AC$384,ROWS($AC$20:AC37)) -> 11442.09894 | AC37: 12320.56583 | AD37: 409.14 | AE37: 2016-01-18 | AF37: -1.666666667 | AG37: Montag | AH37: =HLOOKUP($AG37,Datenbank!$C$216:$I$232,AH$17,FALSE) -> 1.0354 | AI37: 2.237076727 | AJ37: 2.316269243 | AK37: 5510.888669 | AL37: =HLOOKUP($AG37,Datenbank!$C$216:$I$232,AL$17,FALSE) ->  | AP37: =HLOOKUP($AG37,Datenbank!$C$216:$I$232,AP$17,FALSE) ->  | AT37: =HLOOKUP($AG37,Datenbank!$C$216:$I$232,AT$17,FALSE) ->  | AX37: =HLOOKUP($AG37,Datenbank!$C$216:$I$232,AX$17,FALSE) ->  | BB37: =HLOOKUP($AG37,Datenbank!$C$216:$I$232,BB$17,FALSE) ->  | BF37: =HLOOKUP($AG37,Datenbank!$C$216:$I$232,BF$17,FALSE) ->  | BJ37: =HLOOKUP($AG37,Datenbank!$C$216:$I$232,BJ$17,FALSE) ->  | BN37: =HLOOKUP($AG37,Datenbank!$C$216:$I$232,BN$17,FALSE) ->  | BR37: =HLOOKUP($AG37,Datenbank!$C$216:$I$232,BR$17,FALSE) ->  | BV37: =HLOOKUP($AG37,Datenbank!$C$216:$I$232,BV$17,FALSE) ->  | BZ37: =HLOOKUP($AG37,Datenbank!$C$216:$I$232,BZ$17,FALSE) ->  | CD37: =HLOOKUP($AG37,Datenbank!$C$216:$I$232,CD$17,FALSE) ->  | CH37: =HLOOKUP($AG37,Datenbank!$C$216:$I$232,CH$17,FALSE) ->  | CL37: =HLOOKUP($AG37,Datenbank!$C$216:$I$232,CL$17,FALSE) ->  | CP37: =HLOOKUP($AG37,Datenbank!$C$216:$I$232,CP$17,FALSE) ->  | CT37: =HLOOKUP($AG37,Datenbank!$C$216:$I$232,CT$17,FALSE) ->  | CX37: =HLOOKUP($AG37,Datenbank!$C$216:$I$232,CX$17,FALSE) ->  | DB37: =HLOOKUP($AG37,Datenbank!$C$216:$I$232,DB$17,FALSE) ->  | DF37: =HLOOKUP($AG37,Datenbank!$C$216:$I$232,DF$17,FALSE) ->  | DJ37: =HLOOKUP($AG37,Datenbank!$C$216:$I$232,DJ$17,FALSE) ->  | DN37: =HLOOKUP($AG37,Datenbank!$C$216:$I$232,DN$17,FALSE) ->  | DR37: =HLOOKUP($AG37,Datenbank!$C$216:$I$232,DR$17,FALSE) ->  | DV37: =HLOOKUP($AG37,Datenbank!$C$216:$I$232,DV$17,FALSE) ->  | DZ37: =HLOOKUP($AG37,Datenbank!$C$216:$I$232,DZ$17,FALSE) ->  | ED37: =HLOOKUP($AG37,Datenbank!$C$216:$I$232,ED$17,FALSE) ->  | EH37: =HLOOKUP($AG37,Datenbank!$C$216:$I$232,EH$17,FALSE) ->  | EL37: =HLOOKUP($AG37,Datenbank!$C$216:$I$232,EL$17,FALSE) ->  | EP37: =HLOOKUP($AG37,Datenbank!$C$216:$I$232,EP$17,FALSE) ->  | ET37: =HLOOKUP($AG37,Datenbank!$C$216:$I$232,ET$17,FALSE) -> 
B38: 7020.038262 | C38: 7020.038262 | F38: 0 | I38: 0 | L38: 1167.139446 | M38: 10270.82713 | N38: 0.8800317476 | O38: 3789.40737 | P38: =Lastprofile!O38*Input!$B$19 -> 0 | Q38: =O38*(1-Input!$B$19) -> 3789.40737 | R38: =IF(V38=0,0,$R$18-(Input!$B$11-Lastprofile!V38)/(Input!$B$11-Input!$B$12)*Input!$B$18) -> 0.3689486079 | S38: 157.8919737 | T38: 0.5110831397 | U38: 5249.246575 | V38: =IF(Input!$B$11<W38,Input!$B$11,IF(Input!$B$13="Ja",Lastprofile!W38,IF(Input!$B$12<Lastprofile!W38,W38,0))) -> 218.7186073 | W38: 532.7764171 | X38: 592.721104 | Y38: =AC38*(1+Input!$B$20+Input!$B$21) -> 14225.3065 | Z38: =AB38*Input!$B$21 -> 228.3327502 | AA38: =AB38*Input!$B$20 -> 1141.663751 | AB38: =LARGE($AC$20:$AC$384,ROWS($AC$20:AC38)) -> 11416.63751 | AC38: 12701.16651 | AD38: 433.205 | AE38: 2016-01-19 | AF38: -2.066666667 | AG38: Dienstag | AH38: =HLOOKUP($AG38,Datenbank!$C$216:$I$232,AH$17,FALSE) -> 1.0523 | AI38: 2.269145928 | AJ38: 2.38782226 | AK38: 5681.128252 | AL38: =HLOOKUP($AG38,Datenbank!$C$216:$I$232,AL$17,FALSE) ->  | AP38: =HLOOKUP($AG38,Datenbank!$C$216:$I$232,AP$17,FALSE) ->  | AT38: =HLOOKUP($AG38,Datenbank!$C$216:$I$232,AT$17,FALSE) ->  | AX38: =HLOOKUP($AG38,Datenbank!$C$216:$I$232,AX$17,FALSE) ->  | BB38: =HLOOKUP($AG38,Datenbank!$C$216:$I$232,BB$17,FALSE) ->  | BF38: =HLOOKUP($AG38,Datenbank!$C$216:$I$232,BF$17,FALSE) ->  | BJ38: =HLOOKUP($AG38,Datenbank!$C$216:$I$232,BJ$17,FALSE) ->  | BN38: =HLOOKUP($AG38,Datenbank!$C$216:$I$232,BN$17,FALSE) ->  | BR38: =HLOOKUP($AG38,Datenbank!$C$216:$I$232,BR$17,FALSE) ->  | BV38: =HLOOKUP($AG38,Datenbank!$C$216:$I$232,BV$17,FALSE) ->  | BZ38: =HLOOKUP($AG38,Datenbank!$C$216:$I$232,BZ$17,FALSE) ->  | CD38: =HLOOKUP($AG38,Datenbank!$C$216:$I$232,CD$17,FALSE) ->  | CH38: =HLOOKUP($AG38,Datenbank!$C$216:$I$232,CH$17,FALSE) ->  | CL38: =HLOOKUP($AG38,Datenbank!$C$216:$I$232,CL$17,FALSE) ->  | CP38: =HLOOKUP($AG38,Datenbank!$C$216:$I$232,CP$17,FALSE) ->  | CT38: =HLOOKUP($AG38,Datenbank!$C$216:$I$232,CT$17,FALSE) ->  | CX38: =HLOOKUP($AG38,Datenbank!$C$216:$I$232,CX$17,FALSE) ->  | DB38: =HLOOKUP($AG38,Datenbank!$C$216:$I$232,DB$17,FALSE) ->  | DF38: =HLOOKUP($AG38,Datenbank!$C$216:$I$232,DF$17,FALSE) ->  | DJ38: =HLOOKUP($AG38,Datenbank!$C$216:$I$232,DJ$17,FALSE) ->  | DN38: =HLOOKUP($AG38,Datenbank!$C$216:$I$232,DN$17,FALSE) ->  | DR38: =HLOOKUP($AG38,Datenbank!$C$216:$I$232,DR$17,FALSE) ->  | DV38: =HLOOKUP($AG38,Datenbank!$C$216:$I$232,DV$17,FALSE) ->  | DZ38: =HLOOKUP($AG38,Datenbank!$C$216:$I$232,DZ$17,FALSE) ->  | ED38: =HLOOKUP($AG38,Datenbank!$C$216:$I$232,ED$17,FALSE) ->  | EH38: =HLOOKUP($AG38,Datenbank!$C$216:$I$232,EH$17,FALSE) ->  | EL38: =HLOOKUP($AG38,Datenbank!$C$216:$I$232,EL$17,FALSE) ->  | EP38: =HLOOKUP($AG38,Datenbank!$C$216:$I$232,EP$17,FALSE) ->  | ET38: =HLOOKUP($AG38,Datenbank!$C$216:$I$232,ET$17,FALSE) -> 
B39: 6905.51386 | C39: 6905.51386 | F39: 0 | I39: 0 | L39: 1167.139446 | M39: 10270.82713 | N39: 0.8800317476 | O39: 3789.40737 | P39: =Lastprofile!O39*Input!$B$19 -> 0 | Q39: =O39*(1-Input!$B$19) -> 3789.40737 | R39: =IF(V39=0,0,$R$18-(Input!$B$11-Lastprofile!V39)/(Input!$B$11-Input!$B$12)*Input!$B$18) -> 0.3689486079 | S39: 157.8919737 | T39: 0.5110831397 | U39: 5249.246575 | V39: =IF(Input!$B$11<W39,Input!$B$11,IF(Input!$B$13="Ja",Lastprofile!W39,IF(Input!$B$12<Lastprofile!W39,W39,0))) -> 218.7186073 | W39: 529.0103914 | X39: 583.0514943 | Y39: =AC39*(1+Input!$B$20+Input!$B$21) -> 13993.23586 | Z39: =AB39*Input!$B$21 -> 226.7187392 | AA39: =AB39*Input!$B$20 -> 1133.593696 | AB39: =LARGE($AC$20:$AC$384,ROWS($AC$20:AC39)) -> 11335.93696 | AC39: 12493.96059 | AD39: 457.27 | AE39: 2016-01-20 | AF39: -1.8 | AG39: Mittwoch | AH39: =HLOOKUP($AG39,Datenbank!$C$216:$I$232,AH$17,FALSE) -> 1.0449 | AI39: 2.247935208 | AJ39: 2.348867499 | AK39: 5588.446732 | AL39: =HLOOKUP($AG39,Datenbank!$C$216:$I$232,AL$17,FALSE) ->  | AP39: =HLOOKUP($AG39,Datenbank!$C$216:$I$232,AP$17,FALSE) ->  | AT39: =HLOOKUP($AG39,Datenbank!$C$216:$I$232,AT$17,FALSE) ->  | AX39: =HLOOKUP($AG39,Datenbank!$C$216:$I$232,AX$17,FALSE) ->  | BB39: =HLOOKUP($AG39,Datenbank!$C$216:$I$232,BB$17,FALSE) ->  | BF39: =HLOOKUP($AG39,Datenbank!$C$216:$I$232,BF$17,FALSE) ->  | BJ39: =HLOOKUP($AG39,Datenbank!$C$216:$I$232,BJ$17,FALSE) ->  | BN39: =HLOOKUP($AG39,Datenbank!$C$216:$I$232,BN$17,FALSE) ->  | BR39: =HLOOKUP($AG39,Datenbank!$C$216:$I$232,BR$17,FALSE) ->  | BV39: =HLOOKUP($AG39,Datenbank!$C$216:$I$232,BV$17,FALSE) ->  | BZ39: =HLOOKUP($AG39,Datenbank!$C$216:$I$232,BZ$17,FALSE) ->  | CD39: =HLOOKUP($AG39,Datenbank!$C$216:$I$232,CD$17,FALSE) ->  | CH39: =HLOOKUP($AG39,Datenbank!$C$216:$I$232,CH$17,FALSE) ->  | CL39: =HLOOKUP($AG39,Datenbank!$C$216:$I$232,CL$17,FALSE) ->  | CP39: =HLOOKUP($AG39,Datenbank!$C$216:$I$232,CP$17,FALSE) ->  | CT39: =HLOOKUP($AG39,Datenbank!$C$216:$I$232,CT$17,FALSE) ->  | CX39: =HLOOKUP($AG39,Datenbank!$C$216:$I$232,CX$17,FALSE) ->  | DB39: =HLOOKUP($AG39,Datenbank!$C$216:$I$232,DB$17,FALSE) ->  | DF39: =HLOOKUP($AG39,Datenbank!$C$216:$I$232,DF$17,FALSE) ->  | DJ39: =HLOOKUP($AG39,Datenbank!$C$216:$I$232,DJ$17,FALSE) ->  | DN39: =HLOOKUP($AG39,Datenbank!$C$216:$I$232,DN$17,FALSE) ->  | DR39: =HLOOKUP($AG39,Datenbank!$C$216:$I$232,DR$17,FALSE) ->  | DV39: =HLOOKUP($AG39,Datenbank!$C$216:$I$232,DV$17,FALSE) ->  | DZ39: =HLOOKUP($AG39,Datenbank!$C$216:$I$232,DZ$17,FALSE) ->  | ED39: =HLOOKUP($AG39,Datenbank!$C$216:$I$232,ED$17,FALSE) ->  | EH39: =HLOOKUP($AG39,Datenbank!$C$216:$I$232,EH$17,FALSE) ->  | EL39: =HLOOKUP($AG39,Datenbank!$C$216:$I$232,EL$17,FALSE) ->  | EP39: =HLOOKUP($AG39,Datenbank!$C$216:$I$232,EP$17,FALSE) ->  | ET39: =HLOOKUP($AG39,Datenbank!$C$216:$I$232,ET$17,FALSE) -> 
B40: 6605.023861 | C40: 6605.023861 | F40: 0 | I40: 0 | L40: 1167.139446 | M40: 10270.82713 | N40: 0.8800317476 | O40: 3789.40737 | P40: =Lastprofile!O40*Input!$B$19 -> 0 | Q40: =O40*(1-Input!$B$19) -> 3789.40737 | R40: =IF(V40=0,0,$R$18-(Input!$B$11-Lastprofile!V40)/(Input!$B$11-Input!$B$12)*Input!$B$18) -> 0.3689486079 | S40: 157.8919737 | T40: 0.5110831397 | U40: 5249.246575 | V40: =IF(Input!$B$11<W40,Input!$B$11,IF(Input!$B$13="Ja",Lastprofile!W40,IF(Input!$B$12<Lastprofile!W40,W40,0))) -> 218.7186073 | W40: 522.6948468 | X40: 557.6802987 | Y40: =AC40*(1+Input!$B$20+Input!$B$21) -> 13384.32717 | Z40: =AB40*Input!$B$21 -> 224.0120772 | AA40: =AB40*Input!$B$20 -> 1120.060386 | AB40: =LARGE($AC$20:$AC$384,ROWS($AC$20:AC40)) -> 11200.60386 | AC40: 11950.29211 | AD40: 481.335 | AE40: 2016-01-21 | AF40: -0.5666666667 | AG40: Donnerstag | AH40: =HLOOKUP($AG40,Datenbank!$C$216:$I$232,AH$17,FALSE) -> 1.0494 | AI40: 2.140897368 | AJ40: 2.246657698 | AK40: 5345.268254 | AL40: =HLOOKUP($AG40,Datenbank!$C$216:$I$232,AL$17,FALSE) ->  | AP40: =HLOOKUP($AG40,Datenbank!$C$216:$I$232,AP$17,FALSE) ->  | AT40: =HLOOKUP($AG40,Datenbank!$C$216:$I$232,AT$17,FALSE) ->  | AX40: =HLOOKUP($AG40,Datenbank!$C$216:$I$232,AX$17,FALSE) ->  | BB40: =HLOOKUP($AG40,Datenbank!$C$216:$I$232,BB$17,FALSE) ->  | BF40: =HLOOKUP($AG40,Datenbank!$C$216:$I$232,BF$17,FALSE) ->  | BJ40: =HLOOKUP($AG40,Datenbank!$C$216:$I$232,BJ$17,FALSE) ->  | BN40: =HLOOKUP($AG40,Datenbank!$C$216:$I$232,BN$17,FALSE) ->  | BR40: =HLOOKUP($AG40,Datenbank!$C$216:$I$232,BR$17,FALSE) ->  | BV40: =HLOOKUP($AG40,Datenbank!$C$216:$I$232,BV$17,FALSE) ->  | BZ40: =HLOOKUP($AG40,Datenbank!$C$216:$I$232,BZ$17,FALSE) ->  | CD40: =HLOOKUP($AG40,Datenbank!$C$216:$I$232,CD$17,FALSE) ->  | CH40: =HLOOKUP($AG40,Datenbank!$C$216:$I$232,CH$17,FALSE) ->  | CL40: =HLOOKUP($AG40,Datenbank!$C$216:$I$232,CL$17,FALSE) ->  | CP40: =HLOOKUP($AG40,Datenbank!$C$216:$I$232,CP$17,FALSE) ->  | CT40: =HLOOKUP($AG40,Datenbank!$C$216:$I$232,CT$17,FALSE) ->  | CX40: =HLOOKUP($AG40,Datenbank!$C$216:$I$232,CX$17,FALSE) ->  | DB40: =HLOOKUP($AG40,Datenbank!$C$216:$I$232,DB$17,FALSE) ->  | DF40: =HLOOKUP($AG40,Datenbank!$C$216:$I$232,DF$17,FALSE) ->  | DJ40: =HLOOKUP($AG40,Datenbank!$C$216:$I$232,DJ$17,FALSE) ->  | DN40: =HLOOKUP($AG40,Datenbank!$C$216:$I$232,DN$17,FALSE) ->  | DR40: =HLOOKUP($AG40,Datenbank!$C$216:$I$232,DR$17,FALSE) ->  | DV40: =HLOOKUP($AG40,Datenbank!$C$216:$I$232,DV$17,FALSE) ->  | DZ40: =HLOOKUP($AG40,Datenbank!$C$216:$I$232,DZ$17,FALSE) ->  | ED40: =HLOOKUP($AG40,Datenbank!$C$216:$I$232,ED$17,FALSE) ->  | EH40: =HLOOKUP($AG40,Datenbank!$C$216:$I$232,EH$17,FALSE) ->  | EL40: =HLOOKUP($AG40,Datenbank!$C$216:$I$232,EL$17,FALSE) ->  | EP40: =HLOOKUP($AG40,Datenbank!$C$216:$I$232,EP$17,FALSE) ->  | ET40: =HLOOKUP($AG40,Datenbank!$C$216:$I$232,ET$17,FALSE) -> 
B41: 5794.559866 | C41: 5794.559866 | F41: 0 | I41: 0 | L41: 1167.139446 | M41: 10270.82713 | N41: 0.8800317476 | O41: 3789.40737 | P41: =Lastprofile!O41*Input!$B$19 -> 0 | Q41: =O41*(1-Input!$B$19) -> 3789.40737 | R41: =IF(V41=0,0,$R$18-(Input!$B$11-Lastprofile!V41)/(Input!$B$11-Input!$B$12)*Input!$B$18) -> 0.3689486079 | S41: 157.8919737 | T41: 0.5110831397 | U41: 5249.246575 | V41: =IF(Input!$B$11<W41,Input!$B$11,IF(Input!$B$13="Ja",Lastprofile!W41,IF(Input!$B$12<Lastprofile!W41,W41,0))) -> 218.7186073 | W41: 518.5567647 | X41: 489.2505984 | Y41: =AC41*(1+Input!$B$20+Input!$B$21) -> 11742.01436 | Z41: =AB41*Input!$B$21 -> 222.2386134 | AA41: =AB41*Input!$B$20 -> 1111.193067 | AB41: =LARGE($AC$20:$AC$384,ROWS($AC$20:AC41)) -> 11111.93067 | AC41: 10483.9414 | AD41: 505.4 | AE41: 2016-01-22 | AF41: 0.9 | AG41: Freitag | AH41: =HLOOKUP($AG41,Datenbank!$C$216:$I$232,AH$17,FALSE) -> 0.9885 | AI41: 1.993913426 | AJ41: 1.970983422 | AK41: 4689.381529 | AL41: =HLOOKUP($AG41,Datenbank!$C$216:$I$232,AL$17,FALSE) ->  | AP41: =HLOOKUP($AG41,Datenbank!$C$216:$I$232,AP$17,FALSE) ->  | AT41: =HLOOKUP($AG41,Datenbank!$C$216:$I$232,AT$17,FALSE) ->  | AX41: =HLOOKUP($AG41,Datenbank!$C$216:$I$232,AX$17,FALSE) ->  | BB41: =HLOOKUP($AG41,Datenbank!$C$216:$I$232,BB$17,FALSE) ->  | BF41: =HLOOKUP($AG41,Datenbank!$C$216:$I$232,BF$17,FALSE) ->  | BJ41: =HLOOKUP($AG41,Datenbank!$C$216:$I$232,BJ$17,FALSE) ->  | BN41: =HLOOKUP($AG41,Datenbank!$C$216:$I$232,BN$17,FALSE) ->  | BR41: =HLOOKUP($AG41,Datenbank!$C$216:$I$232,BR$17,FALSE) ->  | BV41: =HLOOKUP($AG41,Datenbank!$C$216:$I$232,BV$17,FALSE) ->  | BZ41: =HLOOKUP($AG41,Datenbank!$C$216:$I$232,BZ$17,FALSE) ->  | CD41: =HLOOKUP($AG41,Datenbank!$C$216:$I$232,CD$17,FALSE) ->  | CH41: =HLOOKUP($AG41,Datenbank!$C$216:$I$232,CH$17,FALSE) ->  | CL41: =HLOOKUP($AG41,Datenbank!$C$216:$I$232,CL$17,FALSE) ->  | CP41: =HLOOKUP($AG41,Datenbank!$C$216:$I$232,CP$17,FALSE) ->  | CT41: =HLOOKUP($AG41,Datenbank!$C$216:$I$232,CT$17,FALSE) ->  | CX41: =HLOOKUP($AG41,Datenbank!$C$216:$I$232,CX$17,FALSE) ->  | DB41: =HLOOKUP($AG41,Datenbank!$C$216:$I$232,DB$17,FALSE) ->  | DF41: =HLOOKUP($AG41,Datenbank!$C$216:$I$232,DF$17,FALSE) ->  | DJ41: =HLOOKUP($AG41,Datenbank!$C$216:$I$232,DJ$17,FALSE) ->  | DN41: =HLOOKUP($AG41,Datenbank!$C$216:$I$232,DN$17,FALSE) ->  | DR41: =HLOOKUP($AG41,Datenbank!$C$216:$I$232,DR$17,FALSE) ->  | DV41: =HLOOKUP($AG41,Datenbank!$C$216:$I$232,DV$17,FALSE) ->  | DZ41: =HLOOKUP($AG41,Datenbank!$C$216:$I$232,DZ$17,FALSE) ->  | ED41: =HLOOKUP($AG41,Datenbank!$C$216:$I$232,ED$17,FALSE) ->  | EH41: =HLOOKUP($AG41,Datenbank!$C$216:$I$232,EH$17,FALSE) ->  | EL41: =HLOOKUP($AG41,Datenbank!$C$216:$I$232,EL$17,FALSE) ->  | EP41: =HLOOKUP($AG41,Datenbank!$C$216:$I$232,EP$17,FALSE) ->  | ET41: =HLOOKUP($AG41,Datenbank!$C$216:$I$232,ET$17,FALSE) -> 
B42: 5418.130975 | C42: 5418.130975 | F42: 0 | I42: 0 | L42: 1167.139446 | M42: 10270.82713 | N42: 0.8800317476 | O42: 3789.40737 | P42: =Lastprofile!O42*Input!$B$19 -> 0 | Q42: =O42*(1-Input!$B$19) -> 3789.40737 | R42: =IF(V42=0,0,$R$18-(Input!$B$11-Lastprofile!V42)/(Input!$B$11-Input!$B$12)*Input!$B$18) -> 0.3689486079 | S42: 157.8919737 | T42: 0.5110831397 | U42: 5249.246575 | V42: =IF(Input!$B$11<W42,Input!$B$11,IF(Input!$B$13="Ja",Lastprofile!W42,IF(Input!$B$12<Lastprofile!W42,W42,0))) -> 218.7186073 | W42: 515.1618543 | X42: 457.4676737 | Y42: =AC42*(1+Input!$B$20+Input!$B$21) -> 10979.22417 | Z42: =AB42*Input!$B$21 -> 220.7836519 | AA42: =AB42*Input!$B$20 -> 1103.918259 | AB42: =LARGE($AC$20:$AC$384,ROWS($AC$20:AC42)) -> 11039.18259 | AC42: 9802.878722 | AD42: 529.465 | AE42: 2016-01-23 | AF42: 0.06666666667 | AG42: Samstag | AH42: =HLOOKUP($AG42,Datenbank!$C$216:$I$232,AH$17,FALSE) -> 0.886 | AI42: 2.080071649 | AJ42: 1.842943481 | AK42: 4384.747747 | AL42: =HLOOKUP($AG42,Datenbank!$C$216:$I$232,AL$17,FALSE) ->  | AP42: =HLOOKUP($AG42,Datenbank!$C$216:$I$232,AP$17,FALSE) ->  | AT42: =HLOOKUP($AG42,Datenbank!$C$216:$I$232,AT$17,FALSE) ->  | AX42: =HLOOKUP($AG42,Datenbank!$C$216:$I$232,AX$17,FALSE) ->  | BB42: =HLOOKUP($AG42,Datenbank!$C$216:$I$232,BB$17,FALSE) ->  | BF42: =HLOOKUP($AG42,Datenbank!$C$216:$I$232,BF$17,FALSE) ->  | BJ42: =HLOOKUP($AG42,Datenbank!$C$216:$I$232,BJ$17,FALSE) ->  | BN42: =HLOOKUP($AG42,Datenbank!$C$216:$I$232,BN$17,FALSE) ->  | BR42: =HLOOKUP($AG42,Datenbank!$C$216:$I$232,BR$17,FALSE) ->  | BV42: =HLOOKUP($AG42,Datenbank!$C$216:$I$232,BV$17,FALSE) ->  | BZ42: =HLOOKUP($AG42,Datenbank!$C$216:$I$232,BZ$17,FALSE) ->  | CD42: =HLOOKUP($AG42,Datenbank!$C$216:$I$232,CD$17,FALSE) ->  | CH42: =HLOOKUP($AG42,Datenbank!$C$216:$I$232,CH$17,FALSE) ->  | CL42: =HLOOKUP($AG42,Datenbank!$C$216:$I$232,CL$17,FALSE) ->  | CP42: =HLOOKUP($AG42,Datenbank!$C$216:$I$232,CP$17,FALSE) ->  | CT42: =HLOOKUP($AG42,Datenbank!$C$216:$I$232,CT$17,FALSE) ->  | CX42: =HLOOKUP($AG42,Datenbank!$C$216:$I$232,CX$17,FALSE) ->  | DB42: =HLOOKUP($AG42,Datenbank!$C$216:$I$232,DB$17,FALSE) ->  | DF42: =HLOOKUP($AG42,Datenbank!$C$216:$I$232,DF$17,FALSE) ->  | DJ42: =HLOOKUP($AG42,Datenbank!$C$216:$I$232,DJ$17,FALSE) ->  | DN42: =HLOOKUP($AG42,Datenbank!$C$216:$I$232,DN$17,FALSE) ->  | DR42: =HLOOKUP($AG42,Datenbank!$C$216:$I$232,DR$17,FALSE) ->  | DV42: =HLOOKUP($AG42,Datenbank!$C$216:$I$232,DV$17,FALSE) ->  | DZ42: =HLOOKUP($AG42,Datenbank!$C$216:$I$232,DZ$17,FALSE) ->  | ED42: =HLOOKUP($AG42,Datenbank!$C$216:$I$232,ED$17,FALSE) ->  | EH42: =HLOOKUP($AG42,Datenbank!$C$216:$I$232,EH$17,FALSE) ->  | EL42: =HLOOKUP($AG42,Datenbank!$C$216:$I$232,EL$17,FALSE) ->  | EP42: =HLOOKUP($AG42,Datenbank!$C$216:$I$232,EP$17,FALSE) ->  | ET42: =HLOOKUP($AG42,Datenbank!$C$216:$I$232,ET$17,FALSE) -> 
B43: 5981.028737 | C43: 5981.028737 | F43: 0 | I43: 0 | L43: 1167.139446 | M43: 10270.82713 | N43: 0.8800317476 | O43: 3789.40737 | P43: =Lastprofile!O43*Input!$B$19 -> 0 | Q43: =O43*(1-Input!$B$19) -> 3789.40737 | R43: =IF(V43=0,0,$R$18-(Input!$B$11-Lastprofile!V43)/(Input!$B$11-Input!$B$12)*Input!$B$18) -> 0.3689486079 | S43: 157.8919737 | T43: 0.5110831397 | U43: 5249.246575 | V43: =IF(Input!$B$11<W43,Input!$B$11,IF(Input!$B$13="Ja",Lastprofile!W43,IF(Input!$B$12<Lastprofile!W43,W43,0))) -> 218.7186073 | W43: 512.4811486 | X43: 504.9946772 | Y43: =AC43*(1+Input!$B$20+Input!$B$21) -> 12119.87225 | Z43: =AB43*Input!$B$21 -> 219.634778 | AA43: =AB43*Input!$B$20 -> 1098.17389 | AB43: =LARGE($AC$20:$AC$384,ROWS($AC$20:AC43)) -> 10981.7389 | AC43: 10821.31451 | AD43: 553.53 | AE43: 2016-01-24 | AF43: -0.7333333333 | AG43: Sonntag | AH43: =HLOOKUP($AG43,Datenbank!$C$216:$I$232,AH$17,FALSE) -> 0.9435 | AI43: 2.156237039 | AJ43: 2.034409646 | AK43: 4840.285774 | AL43: =HLOOKUP($AG43,Datenbank!$C$216:$I$232,AL$17,FALSE) ->  | AP43: =HLOOKUP($AG43,Datenbank!$C$216:$I$232,AP$17,FALSE) ->  | AT43: =HLOOKUP($AG43,Datenbank!$C$216:$I$232,AT$17,FALSE) ->  | AX43: =HLOOKUP($AG43,Datenbank!$C$216:$I$232,AX$17,FALSE) ->  | BB43: =HLOOKUP($AG43,Datenbank!$C$216:$I$232,BB$17,FALSE) ->  | BF43: =HLOOKUP($AG43,Datenbank!$C$216:$I$232,BF$17,FALSE) ->  | BJ43: =HLOOKUP($AG43,Datenbank!$C$216:$I$232,BJ$17,FALSE) ->  | BN43: =HLOOKUP($AG43,Datenbank!$C$216:$I$232,BN$17,FALSE) ->  | BR43: =HLOOKUP($AG43,Datenbank!$C$216:$I$232,BR$17,FALSE) ->  | BV43: =HLOOKUP($AG43,Datenbank!$C$216:$I$232,BV$17,FALSE) ->  | BZ43: =HLOOKUP($AG43,Datenbank!$C$216:$I$232,BZ$17,FALSE) ->  | CD43: =HLOOKUP($AG43,Datenbank!$C$216:$I$232,CD$17,FALSE) ->  | CH43: =HLOOKUP($AG43,Datenbank!$C$216:$I$232,CH$17,FALSE) ->  | CL43: =HLOOKUP($AG43,Datenbank!$C$216:$I$232,CL$17,FALSE) ->  | CP43: =HLOOKUP($AG43,Datenbank!$C$216:$I$232,CP$17,FALSE) ->  | CT43: =HLOOKUP($AG43,Datenbank!$C$216:$I$232,CT$17,FALSE) ->  | CX43: =HLOOKUP($AG43,Datenbank!$C$216:$I$232,CX$17,FALSE) ->  | DB43: =HLOOKUP($AG43,Datenbank!$C$216:$I$232,DB$17,FALSE) ->  | DF43: =HLOOKUP($AG43,Datenbank!$C$216:$I$232,DF$17,FALSE) ->  | DJ43: =HLOOKUP($AG43,Datenbank!$C$216:$I$232,DJ$17,FALSE) ->  | DN43: =HLOOKUP($AG43,Datenbank!$C$216:$I$232,DN$17,FALSE) ->  | DR43: =HLOOKUP($AG43,Datenbank!$C$216:$I$232,DR$17,FALSE) ->  | DV43: =HLOOKUP($AG43,Datenbank!$C$216:$I$232,DV$17,FALSE) ->  | DZ43: =HLOOKUP($AG43,Datenbank!$C$216:$I$232,DZ$17,FALSE) ->  | ED43: =HLOOKUP($AG43,Datenbank!$C$216:$I$232,ED$17,FALSE) ->  | EH43: =HLOOKUP($AG43,Datenbank!$C$216:$I$232,EH$17,FALSE) ->  | EL43: =HLOOKUP($AG43,Datenbank!$C$216:$I$232,EL$17,FALSE) ->  | EP43: =HLOOKUP($AG43,Datenbank!$C$216:$I$232,EP$17,FALSE) ->  | ET43: =HLOOKUP($AG43,Datenbank!$C$216:$I$232,ET$17,FALSE) -> 
B44: 6609.453758 | C44: 6609.453758 | F44: 0 | I44: 0 | L44: 1167.139446 | M44: 10270.82713 | N44: 0.8800317476 | O44: 3789.40737 | P44: =Lastprofile!O44*Input!$B$19 -> 0 | Q44: =O44*(1-Input!$B$19) -> 3789.40737 | R44: =IF(V44=0,0,$R$18-(Input!$B$11-Lastprofile!V44)/(Input!$B$11-Input!$B$12)*Input!$B$18) -> 0.3689486079 | S44: 157.8919737 | T44: 0.5110831397 | U44: 5249.246575 | V44: =IF(Input!$B$11<W44,Input!$B$11,IF(Input!$B$13="Ja",Lastprofile!W44,IF(Input!$B$12<Lastprofile!W44,W44,0))) -> 218.7186073 | W44: 506.0420684 | X44: 558.054327 | Y44: =AC44*(1+Input!$B$20+Input!$B$21) -> 13393.30385 | Z44: =AB44*Input!$B$21 -> 216.8751722 | AA44: =AB44*Input!$B$20 -> 1084.375861 | AB44: =LARGE($AC$20:$AC$384,ROWS($AC$20:AC44)) -> 10843.75861 | AC44: 11958.30701 | AD44: 577.595 | AE44: 2016-01-25 | AF44: -0.9 | AG44: Montag | AH44: =HLOOKUP($AG44,Datenbank!$C$216:$I$232,AH$17,FALSE) -> 1.0354 | AI44: 2.171300464 | AJ44: 2.2481645 | AK44: 5348.85325 | AL44: =HLOOKUP($AG44,Datenbank!$C$216:$I$232,AL$17,FALSE) ->  | AP44: =HLOOKUP($AG44,Datenbank!$C$216:$I$232,AP$17,FALSE) ->  | AT44: =HLOOKUP($AG44,Datenbank!$C$216:$I$232,AT$17,FALSE) ->  | AX44: =HLOOKUP($AG44,Datenbank!$C$216:$I$232,AX$17,FALSE) ->  | BB44: =HLOOKUP($AG44,Datenbank!$C$216:$I$232,BB$17,FALSE) ->  | BF44: =HLOOKUP($AG44,Datenbank!$C$216:$I$232,BF$17,FALSE) ->  | BJ44: =HLOOKUP($AG44,Datenbank!$C$216:$I$232,BJ$17,FALSE) ->  | BN44: =HLOOKUP($AG44,Datenbank!$C$216:$I$232,BN$17,FALSE) ->  | BR44: =HLOOKUP($AG44,Datenbank!$C$216:$I$232,BR$17,FALSE) ->  | BV44: =HLOOKUP($AG44,Datenbank!$C$216:$I$232,BV$17,FALSE) ->  | BZ44: =HLOOKUP($AG44,Datenbank!$C$216:$I$232,BZ$17,FALSE) ->  | CD44: =HLOOKUP($AG44,Datenbank!$C$216:$I$232,CD$17,FALSE) ->  | CH44: =HLOOKUP($AG44,Datenbank!$C$216:$I$232,CH$17,FALSE) ->  | CL44: =HLOOKUP($AG44,Datenbank!$C$216:$I$232,CL$17,FALSE) ->  | CP44: =HLOOKUP($AG44,Datenbank!$C$216:$I$232,CP$17,FALSE) ->  | CT44: =HLOOKUP($AG44,Datenbank!$C$216:$I$232,CT$17,FALSE) ->  | CX44: =HLOOKUP($AG44,Datenbank!$C$216:$I$232,CX$17,FALSE) ->  | DB44: =HLOOKUP($AG44,Datenbank!$C$216:$I$232,DB$17,FALSE) ->  | DF44: =HLOOKUP($AG44,Datenbank!$C$216:$I$232,DF$17,FALSE) ->  | DJ44: =HLOOKUP($AG44,Datenbank!$C$216:$I$232,DJ$17,FALSE) ->  | DN44: =HLOOKUP($AG44,Datenbank!$C$216:$I$232,DN$17,FALSE) ->  | DR44: =HLOOKUP($AG44,Datenbank!$C$216:$I$232,DR$17,FALSE) ->  | DV44: =HLOOKUP($AG44,Datenbank!$C$216:$I$232,DV$17,FALSE) ->  | DZ44: =HLOOKUP($AG44,Datenbank!$C$216:$I$232,DZ$17,FALSE) ->  | ED44: =HLOOKUP($AG44,Datenbank!$C$216:$I$232,ED$17,FALSE) ->  | EH44: =HLOOKUP($AG44,Datenbank!$C$216:$I$232,EH$17,FALSE) ->  | EL44: =HLOOKUP($AG44,Datenbank!$C$216:$I$232,EL$17,FALSE) ->  | EP44: =HLOOKUP($AG44,Datenbank!$C$216:$I$232,EP$17,FALSE) ->  | ET44: =HLOOKUP($AG44,Datenbank!$C$216:$I$232,ET$17,FALSE) -> 
B45: 6946.069849 | C45: 6946.069849 | F45: 0 | I45: 0 | L45: 1167.139446 | M45: 10270.82713 | N45: 0.8800317476 | O45: 3789.40737 | P45: =Lastprofile!O45*Input!$B$19 -> 0 | Q45: =O45*(1-Input!$B$19) -> 3789.40737 | R45: =IF(V45=0,0,$R$18-(Input!$B$11-Lastprofile!V45)/(Input!$B$11-Input!$B$12)*Input!$B$18) -> 0.3689486079 | S45: 157.8919737 | T45: 0.5110831397 | U45: 5249.246575 | V45: =IF(Input!$B$11<W45,Input!$B$11,IF(Input!$B$13="Ja",Lastprofile!W45,IF(Input!$B$12<Lastprofile!W45,W45,0))) -> 218.7186073 | W45: 504.9946772 | X45: 586.4757478 | Y45: =AC45*(1+Input!$B$20+Input!$B$21) -> 14075.41795 | Z45: =AB45*Input!$B$21 -> 216.4262902 | AA45: =AB45*Input!$B$20 -> 1082.131451 | AB45: =LARGE($AC$20:$AC$384,ROWS($AC$20:AC45)) -> 10821.31451 | AC45: 12567.33745 | AD45: 601.66 | AE45: 2016-01-26 | AF45: -1.766666667 | AG45: Dienstag | AH45: =HLOOKUP($AG45,Datenbank!$C$216:$I$232,AH$17,FALSE) -> 1.0523 | AI45: 2.245236497 | AJ45: 2.362662365 | AK45: 5621.267603 | AL45: =HLOOKUP($AG45,Datenbank!$C$216:$I$232,AL$17,FALSE) ->  | AP45: =HLOOKUP($AG45,Datenbank!$C$216:$I$232,AP$17,FALSE) ->  | AT45: =HLOOKUP($AG45,Datenbank!$C$216:$I$232,AT$17,FALSE) ->  | AX45: =HLOOKUP($AG45,Datenbank!$C$216:$I$232,AX$17,FALSE) ->  | BB45: =HLOOKUP($AG45,Datenbank!$C$216:$I$232,BB$17,FALSE) ->  | BF45: =HLOOKUP($AG45,Datenbank!$C$216:$I$232,BF$17,FALSE) ->  | BJ45: =HLOOKUP($AG45,Datenbank!$C$216:$I$232,BJ$17,FALSE) ->  | BN45: =HLOOKUP($AG45,Datenbank!$C$216:$I$232,BN$17,FALSE) ->  | BR45: =HLOOKUP($AG45,Datenbank!$C$216:$I$232,BR$17,FALSE) ->  | BV45: =HLOOKUP($AG45,Datenbank!$C$216:$I$232,BV$17,FALSE) ->  | BZ45: =HLOOKUP($AG45,Datenbank!$C$216:$I$232,BZ$17,FALSE) ->  | CD45: =HLOOKUP($AG45,Datenbank!$C$216:$I$232,CD$17,FALSE) ->  | CH45: =HLOOKUP($AG45,Datenbank!$C$216:$I$232,CH$17,FALSE) ->  | CL45: =HLOOKUP($AG45,Datenbank!$C$216:$I$232,CL$17,FALSE) ->  | CP45: =HLOOKUP($AG45,Datenbank!$C$216:$I$232,CP$17,FALSE) ->  | CT45: =HLOOKUP($AG45,Datenbank!$C$216:$I$232,CT$17,FALSE) ->  | CX45: =HLOOKUP($AG45,Datenbank!$C$216:$I$232,CX$17,FALSE) ->  | DB45: =HLOOKUP($AG45,Datenbank!$C$216:$I$232,DB$17,FALSE) ->  | DF45: =HLOOKUP($AG45,Datenbank!$C$216:$I$232,DF$17,FALSE) ->  | DJ45: =HLOOKUP($AG45,Datenbank!$C$216:$I$232,DJ$17,FALSE) ->  | DN45: =HLOOKUP($AG45,Datenbank!$C$216:$I$232,DN$17,FALSE) ->  | DR45: =HLOOKUP($AG45,Datenbank!$C$216:$I$232,DR$17,FALSE) ->  | DV45: =HLOOKUP($AG45,Datenbank!$C$216:$I$232,DV$17,FALSE) ->  | DZ45: =HLOOKUP($AG45,Datenbank!$C$216:$I$232,DZ$17,FALSE) ->  | ED45: =HLOOKUP($AG45,Datenbank!$C$216:$I$232,ED$17,FALSE) ->  | EH45: =HLOOKUP($AG45,Datenbank!$C$216:$I$232,EH$17,FALSE) ->  | EL45: =HLOOKUP($AG45,Datenbank!$C$216:$I$232,EL$17,FALSE) ->  | EP45: =HLOOKUP($AG45,Datenbank!$C$216:$I$232,EP$17,FALSE) ->  | ET45: =HLOOKUP($AG45,Datenbank!$C$216:$I$232,ET$17,FALSE) -> 
B46: 6499.531453 | C46: 6499.531453 | F46: 0 | I46: 0 | L46: 1167.139446 | M46: 10270.82713 | N46: 0.8800317476 | O46: 3789.40737 | P46: =Lastprofile!O46*Input!$B$19 -> 0 | Q46: =O46*(1-Input!$B$19) -> 3789.40737 | R46: =IF(V46=0,0,$R$18-(Input!$B$11-Lastprofile!V46)/(Input!$B$11-Input!$B$12)*Input!$B$18) -> 0.3689486079 | S46: 157.8919737 | T46: 0.5110831397 | U46: 5249.246575 | V46: =IF(Input!$B$11<W46,Input!$B$11,IF(Input!$B$13="Ja",Lastprofile!W46,IF(Input!$B$12<Lastprofile!W46,W46,0))) -> 218.7186073 | W46: 503.8720767 | X46: 548.773285 | Y46: =AC46*(1+Input!$B$20+Input!$B$21) -> 13170.55884 | Z46: =AB46*Input!$B$21 -> 215.9451757 | AA46: =AB46*Input!$B$20 -> 1079.725879 | AB46: =LARGE($AC$20:$AC$384,ROWS($AC$20:AC46)) -> 10797.25879 | AC46: 11759.42754 | AD46: 625.725 | AE46: 2016-01-27 | AF46: -0.3 | AG46: Mittwoch | AH46: =HLOOKUP($AG46,Datenbank!$C$216:$I$232,AH$17,FALSE) -> 1.0449 | AI46: 2.115776738 | AJ46: 2.210775113 | AK46: 5259.896084 | AL46: =HLOOKUP($AG46,Datenbank!$C$216:$I$232,AL$17,FALSE) ->  | AP46: =HLOOKUP($AG46,Datenbank!$C$216:$I$232,AP$17,FALSE) ->  | AT46: =HLOOKUP($AG46,Datenbank!$C$216:$I$232,AT$17,FALSE) ->  | AX46: =HLOOKUP($AG46,Datenbank!$C$216:$I$232,AX$17,FALSE) ->  | BB46: =HLOOKUP($AG46,Datenbank!$C$216:$I$232,BB$17,FALSE) ->  | BF46: =HLOOKUP($AG46,Datenbank!$C$216:$I$232,BF$17,FALSE) ->  | BJ46: =HLOOKUP($AG46,Datenbank!$C$216:$I$232,BJ$17,FALSE) ->  | BN46: =HLOOKUP($AG46,Datenbank!$C$216:$I$232,BN$17,FALSE) ->  | BR46: =HLOOKUP($AG46,Datenbank!$C$216:$I$232,BR$17,FALSE) ->  | BV46: =HLOOKUP($AG46,Datenbank!$C$216:$I$232,BV$17,FALSE) ->  | BZ46: =HLOOKUP($AG46,Datenbank!$C$216:$I$232,BZ$17,FALSE) ->  | CD46: =HLOOKUP($AG46,Datenbank!$C$216:$I$232,CD$17,FALSE) ->  | CH46: =HLOOKUP($AG46,Datenbank!$C$216:$I$232,CH$17,FALSE) ->  | CL46: =HLOOKUP($AG46,Datenbank!$C$216:$I$232,CL$17,FALSE) ->  | CP46: =HLOOKUP($AG46,Datenbank!$C$216:$I$232,CP$17,FALSE) ->  | CT46: =HLOOKUP($AG46,Datenbank!$C$216:$I$232,CT$17,FALSE) ->  | CX46: =HLOOKUP($AG46,Datenbank!$C$216:$I$232,CX$17,FALSE) ->  | DB46: =HLOOKUP($AG46,Datenbank!$C$216:$I$232,DB$17,FALSE) ->  | DF46: =HLOOKUP($AG46,Datenbank!$C$216:$I$232,DF$17,FALSE) ->  | DJ46: =HLOOKUP($AG46,Datenbank!$C$216:$I$232,DJ$17,FALSE) ->  | DN46: =HLOOKUP($AG46,Datenbank!$C$216:$I$232,DN$17,FALSE) ->  | DR46: =HLOOKUP($AG46,Datenbank!$C$216:$I$232,DR$17,FALSE) ->  | DV46: =HLOOKUP($AG46,Datenbank!$C$216:$I$232,DV$17,FALSE) ->  | DZ46: =HLOOKUP($AG46,Datenbank!$C$216:$I$232,DZ$17,FALSE) ->  | ED46: =HLOOKUP($AG46,Datenbank!$C$216:$I$232,ED$17,FALSE) ->  | EH46: =HLOOKUP($AG46,Datenbank!$C$216:$I$232,EH$17,FALSE) ->  | EL46: =HLOOKUP($AG46,Datenbank!$C$216:$I$232,EL$17,FALSE) ->  | EP46: =HLOOKUP($AG46,Datenbank!$C$216:$I$232,EP$17,FALSE) ->  | ET46: =HLOOKUP($AG46,Datenbank!$C$216:$I$232,ET$17,FALSE) -> 
B47: 6417.366417 | C47: 6417.366417 | F47: 0 | I47: 0 | L47: 1167.139446 | M47: 10270.82713 | N47: 0.8800317476 | O47: 3789.40737 | P47: =Lastprofile!O47*Input!$B$19 -> 0 | Q47: =O47*(1-Input!$B$19) -> 3789.40737 | R47: =IF(V47=0,0,$R$18-(Input!$B$11-Lastprofile!V47)/(Input!$B$11-Input!$B$12)*Input!$B$18) -> 0.3689486079 | S47: 157.8919737 | T47: 0.5110831397 | U47: 5249.246575 | V47: =IF(Input!$B$11<W47,Input!$B$11,IF(Input!$B$13="Ja",Lastprofile!W47,IF(Input!$B$12<Lastprofile!W47,W47,0))) -> 218.7186073 | W47: 503.1102063 | X47: 541.8358654 | Y47: =AC47*(1+Input!$B$20+Input!$B$21) -> 13004.06077 | Z47: =AB47*Input!$B$21 -> 215.6186599 | AA47: =AB47*Input!$B$20 -> 1078.093299 | AB47: =LARGE($AC$20:$AC$384,ROWS($AC$20:AC47)) -> 10780.93299 | AC47: 11610.76855 | AD47: 649.79 | AE47: 2016-01-28 | AF47: 0.06666666667 | AG47: Donnerstag | AH47: =HLOOKUP($AG47,Datenbank!$C$216:$I$232,AH$17,FALSE) -> 1.0494 | AI47: 2.080071649 | AJ47: 2.182827188 | AK47: 5193.402128 | AL47: =HLOOKUP($AG47,Datenbank!$C$216:$I$232,AL$17,FALSE) ->  | AP47: =HLOOKUP($AG47,Datenbank!$C$216:$I$232,AP$17,FALSE) ->  | AT47: =HLOOKUP($AG47,Datenbank!$C$216:$I$232,AT$17,FALSE) ->  | AX47: =HLOOKUP($AG47,Datenbank!$C$216:$I$232,AX$17,FALSE) ->  | BB47: =HLOOKUP($AG47,Datenbank!$C$216:$I$232,BB$17,FALSE) ->  | BF47: =HLOOKUP($AG47,Datenbank!$C$216:$I$232,BF$17,FALSE) ->  | BJ47: =HLOOKUP($AG47,Datenbank!$C$216:$I$232,BJ$17,FALSE) ->  | BN47: =HLOOKUP($AG47,Datenbank!$C$216:$I$232,BN$17,FALSE) ->  | BR47: =HLOOKUP($AG47,Datenbank!$C$216:$I$232,BR$17,FALSE) ->  | BV47: =HLOOKUP($AG47,Datenbank!$C$216:$I$232,BV$17,FALSE) ->  | BZ47: =HLOOKUP($AG47,Datenbank!$C$216:$I$232,BZ$17,FALSE) ->  | CD47: =HLOOKUP($AG47,Datenbank!$C$216:$I$232,CD$17,FALSE) ->  | CH47: =HLOOKUP($AG47,Datenbank!$C$216:$I$232,CH$17,FALSE) ->  | CL47: =HLOOKUP($AG47,Datenbank!$C$216:$I$232,CL$17,FALSE) ->  | CP47: =HLOOKUP($AG47,Datenbank!$C$216:$I$232,CP$17,FALSE) ->  | CT47: =HLOOKUP($AG47,Datenbank!$C$216:$I$232,CT$17,FALSE) ->  | CX47: =HLOOKUP($AG47,Datenbank!$C$216:$I$232,CX$17,FALSE) ->  | DB47: =HLOOKUP($AG47,Datenbank!$C$216:$I$232,DB$17,FALSE) ->  | DF47: =HLOOKUP($AG47,Datenbank!$C$216:$I$232,DF$17,FALSE) ->  | DJ47: =HLOOKUP($AG47,Datenbank!$C$216:$I$232,DJ$17,FALSE) ->  | DN47: =HLOOKUP($AG47,Datenbank!$C$216:$I$232,DN$17,FALSE) ->  | DR47: =HLOOKUP($AG47,Datenbank!$C$216:$I$232,DR$17,FALSE) ->  | DV47: =HLOOKUP($AG47,Datenbank!$C$216:$I$232,DV$17,FALSE) ->  | DZ47: =HLOOKUP($AG47,Datenbank!$C$216:$I$232,DZ$17,FALSE) ->  | ED47: =HLOOKUP($AG47,Datenbank!$C$216:$I$232,ED$17,FALSE) ->  | EH47: =HLOOKUP($AG47,Datenbank!$C$216:$I$232,EH$17,FALSE) ->  | EL47: =HLOOKUP($AG47,Datenbank!$C$216:$I$232,EL$17,FALSE) ->  | EP47: =HLOOKUP($AG47,Datenbank!$C$216:$I$232,EP$17,FALSE) ->  | ET47: =HLOOKUP($AG47,Datenbank!$C$216:$I$232,ET$17,FALSE) -> 
B48: 5804.9612 | C48: 5804.9612 | F48: 0 | I48: 0 | L48: 1167.139446 | M48: 10270.82713 | N48: 0.8800317476 | O48: 3789.40737 | P48: =Lastprofile!O48*Input!$B$19 -> 0 | Q48: =O48*(1-Input!$B$19) -> 3789.40737 | R48: =IF(V48=0,0,$R$18-(Input!$B$11-Lastprofile!V48)/(Input!$B$11-Input!$B$12)*Input!$B$18) -> 0.3689486079 | S48: 157.8919737 | T48: 0.5110831397 | U48: 5249.246575 | V48: =IF(Input!$B$11<W48,Input!$B$11,IF(Input!$B$13="Ja",Lastprofile!W48,IF(Input!$B$12<Lastprofile!W48,W48,0))) -> 218.7186073 | W48: 503.1096192 | X48: 490.1288116 | Y48: =AC48*(1+Input!$B$20+Input!$B$21) -> 11763.09148 | Z48: =AB48*Input!$B$21 -> 215.6184082 | AA48: =AB48*Input!$B$20 -> 1078.092041 | AB48: =LARGE($AC$20:$AC$384,ROWS($AC$20:AC48)) -> 10780.92041 | AC48: 10502.76025 | AD48: 673.855 | AE48: 2016-01-29 | AF48: 0.8666666667 | AG48: Freitag | AH48: =HLOOKUP($AG48,Datenbank!$C$216:$I$232,AH$17,FALSE) -> 0.9885 | AI48: 1.997492535 | AJ48: 1.974521371 | AK48: 4697.799049 | AL48: =HLOOKUP($AG48,Datenbank!$C$216:$I$232,AL$17,FALSE) ->  | AP48: =HLOOKUP($AG48,Datenbank!$C$216:$I$232,AP$17,FALSE) ->  | AT48: =HLOOKUP($AG48,Datenbank!$C$216:$I$232,AT$17,FALSE) ->  | AX48: =HLOOKUP($AG48,Datenbank!$C$216:$I$232,AX$17,FALSE) ->  | BB48: =HLOOKUP($AG48,Datenbank!$C$216:$I$232,BB$17,FALSE) ->  | BF48: =HLOOKUP($AG48,Datenbank!$C$216:$I$232,BF$17,FALSE) ->  | BJ48: =HLOOKUP($AG48,Datenbank!$C$216:$I$232,BJ$17,FALSE) ->  | BN48: =HLOOKUP($AG48,Datenbank!$C$216:$I$232,BN$17,FALSE) ->  | BR48: =HLOOKUP($AG48,Datenbank!$C$216:$I$232,BR$17,FALSE) ->  | BV48: =HLOOKUP($AG48,Datenbank!$C$216:$I$232,BV$17,FALSE) ->  | BZ48: =HLOOKUP($AG48,Datenbank!$C$216:$I$232,BZ$17,FALSE) ->  | CD48: =HLOOKUP($AG48,Datenbank!$C$216:$I$232,CD$17,FALSE) ->  | CH48: =HLOOKUP($AG48,Datenbank!$C$216:$I$232,CH$17,FALSE) ->  | CL48: =HLOOKUP($AG48,Datenbank!$C$216:$I$232,CL$17,FALSE) ->  | CP48: =HLOOKUP($AG48,Datenbank!$C$216:$I$232,CP$17,FALSE) ->  | CT48: =HLOOKUP($AG48,Datenbank!$C$216:$I$232,CT$17,FALSE) ->  | CX48: =HLOOKUP($AG48,Datenbank!$C$216:$I$232,CX$17,FALSE) ->  | DB48: =HLOOKUP($AG48,Datenbank!$C$216:$I$232,DB$17,FALSE) ->  | DF48: =HLOOKUP($AG48,Datenbank!$C$216:$I$232,DF$17,FALSE) ->  | DJ48: =HLOOKUP($AG48,Datenbank!$C$216:$I$232,DJ$17,FALSE) ->  | DN48: =HLOOKUP($AG48,Datenbank!$C$216:$I$232,DN$17,FALSE) ->  | DR48: =HLOOKUP($AG48,Datenbank!$C$216:$I$232,DR$17,FALSE) ->  | DV48: =HLOOKUP($AG48,Datenbank!$C$216:$I$232,DV$17,FALSE) ->  | DZ48: =HLOOKUP($AG48,Datenbank!$C$216:$I$232,DZ$17,FALSE) ->  | ED48: =HLOOKUP($AG48,Datenbank!$C$216:$I$232,ED$17,FALSE) ->  | EH48: =HLOOKUP($AG48,Datenbank!$C$216:$I$232,EH$17,FALSE) ->  | EL48: =HLOOKUP($AG48,Datenbank!$C$216:$I$232,EL$17,FALSE) ->  | EP48: =HLOOKUP($AG48,Datenbank!$C$216:$I$232,EP$17,FALSE) ->  | ET48: =HLOOKUP($AG48,Datenbank!$C$216:$I$232,ET$17,FALSE) -> 
B49: 4981.45969 | C49: 4981.45969 | F49: 0 | I49: 0 | L49: 1167.139446 | M49: 10270.82713 | N49: 0.8800317476 | O49: 3789.40737 | P49: =Lastprofile!O49*Input!$B$19 -> 0 | Q49: =O49*(1-Input!$B$19) -> 3789.40737 | R49: =IF(V49=0,0,$R$18-(Input!$B$11-Lastprofile!V49)/(Input!$B$11-Input!$B$12)*Input!$B$18) -> 0.3689486079 | S49: 157.8919737 | T49: 0.5110831397 | U49: 5249.246575 | V49: =IF(Input!$B$11<W49,Input!$B$11,IF(Input!$B$13="Ja",Lastprofile!W49,IF(Input!$B$12<Lastprofile!W49,W49,0))) -> 218.7186073 | W49: 499.2153897 | X49: 420.5983183 | Y49: =AC49*(1+Input!$B$20+Input!$B$21) -> 10094.35964 | Z49: =AB49*Input!$B$21 -> 213.9494527 | AA49: =AB49*Input!$B$20 -> 1069.747264 | AB49: =LARGE($AC$20:$AC$384,ROWS($AC$20:AC49)) -> 10697.47264 | AC49: 9012.821106 | AD49: 697.92 | AE49: 2016-01-30 | AF49: 1.633333333 | AG49: Samstag | AH49: =HLOOKUP($AG49,Datenbank!$C$216:$I$232,AH$17,FALSE) -> 0.886 | AI49: 1.912429419 | AJ49: 1.694412465 | AK49: 4031.361415 | AL49: =HLOOKUP($AG49,Datenbank!$C$216:$I$232,AL$17,FALSE) ->  | AP49: =HLOOKUP($AG49,Datenbank!$C$216:$I$232,AP$17,FALSE) ->  | AT49: =HLOOKUP($AG49,Datenbank!$C$216:$I$232,AT$17,FALSE) ->  | AX49: =HLOOKUP($AG49,Datenbank!$C$216:$I$232,AX$17,FALSE) ->  | BB49: =HLOOKUP($AG49,Datenbank!$C$216:$I$232,BB$17,FALSE) ->  | BF49: =HLOOKUP($AG49,Datenbank!$C$216:$I$232,BF$17,FALSE) ->  | BJ49: =HLOOKUP($AG49,Datenbank!$C$216:$I$232,BJ$17,FALSE) ->  | BN49: =HLOOKUP($AG49,Datenbank!$C$216:$I$232,BN$17,FALSE) ->  | BR49: =HLOOKUP($AG49,Datenbank!$C$216:$I$232,BR$17,FALSE) ->  | BV49: =HLOOKUP($AG49,Datenbank!$C$216:$I$232,BV$17,FALSE) ->  | BZ49: =HLOOKUP($AG49,Datenbank!$C$216:$I$232,BZ$17,FALSE) ->  | CD49: =HLOOKUP($AG49,Datenbank!$C$216:$I$232,CD$17,FALSE) ->  | CH49: =HLOOKUP($AG49,Datenbank!$C$216:$I$232,CH$17,FALSE) ->  | CL49: =HLOOKUP($AG49,Datenbank!$C$216:$I$232,CL$17,FALSE) ->  | CP49: =HLOOKUP($AG49,Datenbank!$C$216:$I$232,CP$17,FALSE) ->  | CT49: =HLOOKUP($AG49,Datenbank!$C$216:$I$232,CT$17,FALSE) ->  | CX49: =HLOOKUP($AG49,Datenbank!$C$216:$I$232,CX$17,FALSE) ->  | DB49: =HLOOKUP($AG49,Datenbank!$C$216:$I$232,DB$17,FALSE) ->  | DF49: =HLOOKUP($AG49,Datenbank!$C$216:$I$232,DF$17,FALSE) ->  | DJ49: =HLOOKUP($AG49,Datenbank!$C$216:$I$232,DJ$17,FALSE) ->  | DN49: =HLOOKUP($AG49,Datenbank!$C$216:$I$232,DN$17,FALSE) ->  | DR49: =HLOOKUP($AG49,Datenbank!$C$216:$I$232,DR$17,FALSE) ->  | DV49: =HLOOKUP($AG49,Datenbank!$C$216:$I$232,DV$17,FALSE) ->  | DZ49: =HLOOKUP($AG49,Datenbank!$C$216:$I$232,DZ$17,FALSE) ->  | ED49: =HLOOKUP($AG49,Datenbank!$C$216:$I$232,ED$17,FALSE) ->  | EH49: =HLOOKUP($AG49,Datenbank!$C$216:$I$232,EH$17,FALSE) ->  | EL49: =HLOOKUP($AG49,Datenbank!$C$216:$I$232,EL$17,FALSE) ->  | EP49: =HLOOKUP($AG49,Datenbank!$C$216:$I$232,EP$17,FALSE) ->  | ET49: =HLOOKUP($AG49,Datenbank!$C$216:$I$232,ET$17,FALSE) -> 
B50: 5262.117809 | C50: 5262.117809 | F50: 0 | I50: 0 | L50: 1167.139446 | M50: 10270.82713 | N50: 0.8800317476 | O50: 3789.40737 | P50: =Lastprofile!O50*Input!$B$19 -> 0 | Q50: =O50*(1-Input!$B$19) -> 3789.40737 | R50: =IF(V50=0,0,$R$18-(Input!$B$11-Lastprofile!V50)/(Input!$B$11-Input!$B$12)*Input!$B$18) -> 0.3689486079 | S50: 157.8919737 | T50: 0.5110831397 | U50: 5249.246575 | V50: =IF(Input!$B$11<W50,Input!$B$11,IF(Input!$B$13="Ja",Lastprofile!W50,IF(Input!$B$12<Lastprofile!W50,W50,0))) -> 218.7186073 | W50: 496.5367894 | X50: 444.2950538 | Y50: =AC50*(1+Input!$B$20+Input!$B$21) -> 10663.08129 | Z50: =AB50*Input!$B$21 -> 212.8014812 | AA50: =AB50*Input!$B$20 -> 1064.007406 | AB50: =LARGE($AC$20:$AC$384,ROWS($AC$20:AC50)) -> 10640.07406 | AC50: 9520.608295 | AD50: 721.985 | AE50: 2016-01-31 | AF50: 1.766666667 | AG50: Sonntag | AH50: =HLOOKUP($AG50,Datenbank!$C$216:$I$232,AH$17,FALSE) -> 0.9435 | AI50: 1.897060493 | AJ50: 1.789876575 | AK50: 4258.490486 | AL50: =HLOOKUP($AG50,Datenbank!$C$216:$I$232,AL$17,FALSE) ->  | AP50: =HLOOKUP($AG50,Datenbank!$C$216:$I$232,AP$17,FALSE) ->  | AT50: =HLOOKUP($AG50,Datenbank!$C$216:$I$232,AT$17,FALSE) ->  | AX50: =HLOOKUP($AG50,Datenbank!$C$216:$I$232,AX$17,FALSE) ->  | BB50: =HLOOKUP($AG50,Datenbank!$C$216:$I$232,BB$17,FALSE) ->  | BF50: =HLOOKUP($AG50,Datenbank!$C$216:$I$232,BF$17,FALSE) ->  | BJ50: =HLOOKUP($AG50,Datenbank!$C$216:$I$232,BJ$17,FALSE) ->  | BN50: =HLOOKUP($AG50,Datenbank!$C$216:$I$232,BN$17,FALSE) ->  | BR50: =HLOOKUP($AG50,Datenbank!$C$216:$I$232,BR$17,FALSE) ->  | BV50: =HLOOKUP($AG50,Datenbank!$C$216:$I$232,BV$17,FALSE) ->  | BZ50: =HLOOKUP($AG50,Datenbank!$C$216:$I$232,BZ$17,FALSE) ->  | CD50: =HLOOKUP($AG50,Datenbank!$C$216:$I$232,CD$17,FALSE) ->  | CH50: =HLOOKUP($AG50,Datenbank!$C$216:$I$232,CH$17,FALSE) ->  | CL50: =HLOOKUP($AG50,Datenbank!$C$216:$I$232,CL$17,FALSE) ->  | CP50: =HLOOKUP($AG50,Datenbank!$C$216:$I$232,CP$17,FALSE) ->  | CT50: =HLOOKUP($AG50,Datenbank!$C$216:$I$232,CT$17,FALSE) ->  | CX50: =HLOOKUP($AG50,Datenbank!$C$216:$I$232,CX$17,FALSE) ->  | DB50: =HLOOKUP($AG50,Datenbank!$C$216:$I$232,DB$17,FALSE) ->  | DF50: =HLOOKUP($AG50,Datenbank!$C$216:$I$232,DF$17,FALSE) ->  | DJ50: =HLOOKUP($AG50,Datenbank!$C$216:$I$232,DJ$17,FALSE) ->  | DN50: =HLOOKUP($AG50,Datenbank!$C$216:$I$232,DN$17,FALSE) ->  | DR50: =HLOOKUP($AG50,Datenbank!$C$216:$I$232,DR$17,FALSE) ->  | DV50: =HLOOKUP($AG50,Datenbank!$C$216:$I$232,DV$17,FALSE) ->  | DZ50: =HLOOKUP($AG50,Datenbank!$C$216:$I$232,DZ$17,FALSE) ->  | ED50: =HLOOKUP($AG50,Datenbank!$C$216:$I$232,ED$17,FALSE) ->  | EH50: =HLOOKUP($AG50,Datenbank!$C$216:$I$232,EH$17,FALSE) ->  | EL50: =HLOOKUP($AG50,Datenbank!$C$216:$I$232,EL$17,FALSE) ->  | EP50: =HLOOKUP($AG50,Datenbank!$C$216:$I$232,EP$17,FALSE) ->  | ET50: =HLOOKUP($AG50,Datenbank!$C$216:$I$232,ET$17,FALSE) -> 
B51: 5958.709543 | C51: 5958.709543 | F51: 0 | I51: 0 | L51: 1167.139446 | M51: 10270.82713 | N51: 0.8800317476 | O51: 3789.40737 | P51: =Lastprofile!O51*Input!$B$19 -> 0 | Q51: =O51*(1-Input!$B$19) -> 3789.40737 | R51: =IF(V51=0,0,$R$18-(Input!$B$11-Lastprofile!V51)/(Input!$B$11-Input!$B$12)*Input!$B$18) -> 0.3689486079 | S51: 157.8919737 | T51: 0.5110831397 | U51: 5249.246575 | V51: =IF(Input!$B$11<W51,Input!$B$11,IF(Input!$B$13="Ja",Lastprofile!W51,IF(Input!$B$12<Lastprofile!W51,W51,0))) -> 218.7186073 | W51: 490.1288116 | X51: 503.1102063 | Y51: =AC51*(1+Input!$B$20+Input!$B$21) -> 12074.64495 | Z51: =AB51*Input!$B$21 -> 210.055205 | AA51: =AB51*Input!$B$20 -> 1050.276025 | AB51: =LARGE($AC$20:$AC$384,ROWS($AC$20:AC51)) -> 10502.76025 | AC51: 10780.93299 | AD51: 746.05 | AE51: 2016-02-01 | AF51: 1.233333333 | AG51: Montag | AH51: =HLOOKUP($AG51,Datenbank!$C$216:$I$232,AH$17,FALSE) -> 1.0354 | AI51: 1.957521645 | AJ51: 2.026817911 | AK51: 4822.22345 | AL51: =HLOOKUP($AG51,Datenbank!$C$216:$I$232,AL$17,FALSE) ->  | AP51: =HLOOKUP($AG51,Datenbank!$C$216:$I$232,AP$17,FALSE) ->  | AT51: =HLOOKUP($AG51,Datenbank!$C$216:$I$232,AT$17,FALSE) ->  | AX51: =HLOOKUP($AG51,Datenbank!$C$216:$I$232,AX$17,FALSE) ->  | BB51: =HLOOKUP($AG51,Datenbank!$C$216:$I$232,BB$17,FALSE) ->  | BF51: =HLOOKUP($AG51,Datenbank!$C$216:$I$232,BF$17,FALSE) ->  | BJ51: =HLOOKUP($AG51,Datenbank!$C$216:$I$232,BJ$17,FALSE) ->  | BN51: =HLOOKUP($AG51,Datenbank!$C$216:$I$232,BN$17,FALSE) ->  | BR51: =HLOOKUP($AG51,Datenbank!$C$216:$I$232,BR$17,FALSE) ->  | BV51: =HLOOKUP($AG51,Datenbank!$C$216:$I$232,BV$17,FALSE) ->  | BZ51: =HLOOKUP($AG51,Datenbank!$C$216:$I$232,BZ$17,FALSE) ->  | CD51: =HLOOKUP($AG51,Datenbank!$C$216:$I$232,CD$17,FALSE) ->  | CH51: =HLOOKUP($AG51,Datenbank!$C$216:$I$232,CH$17,FALSE) ->  | CL51: =HLOOKUP($AG51,Datenbank!$C$216:$I$232,CL$17,FALSE) ->  | CP51: =HLOOKUP($AG51,Datenbank!$C$216:$I$232,CP$17,FALSE) ->  | CT51: =HLOOKUP($AG51,Datenbank!$C$216:$I$232,CT$17,FALSE) ->  | CX51: =HLOOKUP($AG51,Datenbank!$C$216:$I$232,CX$17,FALSE) ->  | DB51: =HLOOKUP($AG51,Datenbank!$C$216:$I$232,DB$17,FALSE) ->  | DF51: =HLOOKUP($AG51,Datenbank!$C$216:$I$232,DF$17,FALSE) ->  | DJ51: =HLOOKUP($AG51,Datenbank!$C$216:$I$232,DJ$17,FALSE) ->  | DN51: =HLOOKUP($AG51,Datenbank!$C$216:$I$232,DN$17,FALSE) ->  | DR51: =HLOOKUP($AG51,Datenbank!$C$216:$I$232,DR$17,FALSE) ->  | DV51: =HLOOKUP($AG51,Datenbank!$C$216:$I$232,DV$17,FALSE) ->  | DZ51: =HLOOKUP($AG51,Datenbank!$C$216:$I$232,DZ$17,FALSE) ->  | ED51: =HLOOKUP($AG51,Datenbank!$C$216:$I$232,ED$17,FALSE) ->  | EH51: =HLOOKUP($AG51,Datenbank!$C$216:$I$232,EH$17,FALSE) ->  | EL51: =HLOOKUP($AG51,Datenbank!$C$216:$I$232,EL$17,FALSE) ->  | EP51: =HLOOKUP($AG51,Datenbank!$C$216:$I$232,EP$17,FALSE) ->  | ET51: =HLOOKUP($AG51,Datenbank!$C$216:$I$232,ET$17,FALSE) -> 
B52: 6190.665051 | C52: 6190.665051 | F52: 0 | I52: 0 | L52: 1167.139446 | M52: 10270.82713 | N52: 0.8800317476 | O52: 3789.40737 | P52: =Lastprofile!O52*Input!$B$19 -> 0 | Q52: =O52*(1-Input!$B$19) -> 3789.40737 | R52: =IF(V52=0,0,$R$18-(Input!$B$11-Lastprofile!V52)/(Input!$B$11-Input!$B$12)*Input!$B$18) -> 0.3689486079 | S52: 157.8919737 | T52: 0.5110831397 | U52: 5249.246575 | V52: =IF(Input!$B$11<W52,Input!$B$11,IF(Input!$B$13="Ja",Lastprofile!W52,IF(Input!$B$12<Lastprofile!W52,W52,0))) -> 218.7186073 | W52: 490.1288116 | X52: 522.6948468 | Y52: =AC52*(1+Input!$B$20+Input!$B$21) -> 12544.67632 | Z52: =AB52*Input!$B$21 -> 210.055205 | AA52: =AB52*Input!$B$20 -> 1050.276025 | AB52: =LARGE($AC$20:$AC$384,ROWS($AC$20:AC52)) -> 10502.76025 | AC52: 11200.60386 | AD52: 770.115 | AE52: 2016-02-02 | AF52: 0.8333333333 | AG52: Dienstag | AH52: =HLOOKUP($AG52,Datenbank!$C$216:$I$232,AH$17,FALSE) -> 1.0523 | AI52: 2.001060659 | AJ52: 2.105716132 | AK52: 5009.938808 | AL52: =HLOOKUP($AG52,Datenbank!$C$216:$I$232,AL$17,FALSE) ->  | AP52: =HLOOKUP($AG52,Datenbank!$C$216:$I$232,AP$17,FALSE) ->  | AT52: =HLOOKUP($AG52,Datenbank!$C$216:$I$232,AT$17,FALSE) ->  | AX52: =HLOOKUP($AG52,Datenbank!$C$216:$I$232,AX$17,FALSE) ->  | BB52: =HLOOKUP($AG52,Datenbank!$C$216:$I$232,BB$17,FALSE) ->  | BF52: =HLOOKUP($AG52,Datenbank!$C$216:$I$232,BF$17,FALSE) ->  | BJ52: =HLOOKUP($AG52,Datenbank!$C$216:$I$232,BJ$17,FALSE) ->  | BN52: =HLOOKUP($AG52,Datenbank!$C$216:$I$232,BN$17,FALSE) ->  | BR52: =HLOOKUP($AG52,Datenbank!$C$216:$I$232,BR$17,FALSE) ->  | BV52: =HLOOKUP($AG52,Datenbank!$C$216:$I$232,BV$17,FALSE) ->  | BZ52: =HLOOKUP($AG52,Datenbank!$C$216:$I$232,BZ$17,FALSE) ->  | CD52: =HLOOKUP($AG52,Datenbank!$C$216:$I$232,CD$17,FALSE) ->  | CH52: =HLOOKUP($AG52,Datenbank!$C$216:$I$232,CH$17,FALSE) ->  | CL52: =HLOOKUP($AG52,Datenbank!$C$216:$I$232,CL$17,FALSE) ->  | CP52: =HLOOKUP($AG52,Datenbank!$C$216:$I$232,CP$17,FALSE) ->  | CT52: =HLOOKUP($AG52,Datenbank!$C$216:$I$232,CT$17,FALSE) ->  | CX52: =HLOOKUP($AG52,Datenbank!$C$216:$I$232,CX$17,FALSE) ->  | DB52: =HLOOKUP($AG52,Datenbank!$C$216:$I$232,DB$17,FALSE) ->  | DF52: =HLOOKUP($AG52,Datenbank!$C$216:$I$232,DF$17,FALSE) ->  | DJ52: =HLOOKUP($AG52,Datenbank!$C$216:$I$232,DJ$17,FALSE) ->  | DN52: =HLOOKUP($AG52,Datenbank!$C$216:$I$232,DN$17,FALSE) ->  | DR52: =HLOOKUP($AG52,Datenbank!$C$216:$I$232,DR$17,FALSE) ->  | DV52: =HLOOKUP($AG52,Datenbank!$C$216:$I$232,DV$17,FALSE) ->  | DZ52: =HLOOKUP($AG52,Datenbank!$C$216:$I$232,DZ$17,FALSE) ->  | ED52: =HLOOKUP($AG52,Datenbank!$C$216:$I$232,ED$17,FALSE) ->  | EH52: =HLOOKUP($AG52,Datenbank!$C$216:$I$232,EH$17,FALSE) ->  | EL52: =HLOOKUP($AG52,Datenbank!$C$216:$I$232,EL$17,FALSE) ->  | EP52: =HLOOKUP($AG52,Datenbank!$C$216:$I$232,EP$17,FALSE) ->  | ET52: =HLOOKUP($AG52,Datenbank!$C$216:$I$232,ET$17,FALSE) -> 
B53: 6651.688844 | C53: 6651.688844 | F53: 0 | I53: 0 | L53: 1167.139446 | M53: 10270.82713 | N53: 0.8800317476 | O53: 3789.40737 | P53: =Lastprofile!O53*Input!$B$19 -> 0 | Q53: =O53*(1-Input!$B$19) -> 3789.40737 | R53: =IF(V53=0,0,$R$18-(Input!$B$11-Lastprofile!V53)/(Input!$B$11-Input!$B$12)*Input!$B$18) -> 0.3689486079 | S53: 157.8919737 | T53: 0.5110831397 | U53: 5249.246575 | V53: =IF(Input!$B$11<W53,Input!$B$11,IF(Input!$B$13="Ja",Lastprofile!W53,IF(Input!$B$12<Lastprofile!W53,W53,0))) -> 218.7186073 | W53: 489.2505984 | X53: 561.6203513 | Y53: =AC53*(1+Input!$B$20+Input!$B$21) -> 13478.88843 | Z53: =AB53*Input!$B$21 -> 209.6788279 | AA53: =AB53*Input!$B$20 -> 1048.39414 | AB53: =LARGE($AC$20:$AC$384,ROWS($AC$20:AC53)) -> 10483.9414 | AC53: 12034.72181 | AD53: 794.18 | AE53: 2016-02-03 | AF53: -0.8333333333 | AG53: Mittwoch | AH53: =HLOOKUP($AG53,Datenbank!$C$216:$I$232,AH$17,FALSE) -> 1.0449 | AI53: 2.165308165 | AJ53: 2.262530501 | AK53: 5383.03297 | AL53: =HLOOKUP($AG53,Datenbank!$C$216:$I$232,AL$17,FALSE) ->  | AP53: =HLOOKUP($AG53,Datenbank!$C$216:$I$232,AP$17,FALSE) ->  | AT53: =HLOOKUP($AG53,Datenbank!$C$216:$I$232,AT$17,FALSE) ->  | AX53: =HLOOKUP($AG53,Datenbank!$C$216:$I$232,AX$17,FALSE) ->  | BB53: =HLOOKUP($AG53,Datenbank!$C$216:$I$232,BB$17,FALSE) ->  | BF53: =HLOOKUP($AG53,Datenbank!$C$216:$I$232,BF$17,FALSE) ->  | BJ53: =HLOOKUP($AG53,Datenbank!$C$216:$I$232,BJ$17,FALSE) ->  | BN53: =HLOOKUP($AG53,Datenbank!$C$216:$I$232,BN$17,FALSE) ->  | BR53: =HLOOKUP($AG53,Datenbank!$C$216:$I$232,BR$17,FALSE) ->  | BV53: =HLOOKUP($AG53,Datenbank!$C$216:$I$232,BV$17,FALSE) ->  | BZ53: =HLOOKUP($AG53,Datenbank!$C$216:$I$232,BZ$17,FALSE) ->  | CD53: =HLOOKUP($AG53,Datenbank!$C$216:$I$232,CD$17,FALSE) ->  | CH53: =HLOOKUP($AG53,Datenbank!$C$216:$I$232,CH$17,FALSE) ->  | CL53: =HLOOKUP($AG53,Datenbank!$C$216:$I$232,CL$17,FALSE) ->  | CP53: =HLOOKUP($AG53,Datenbank!$C$216:$I$232,CP$17,FALSE) ->  | CT53: =HLOOKUP($AG53,Datenbank!$C$216:$I$232,CT$17,FALSE) ->  | CX53: =HLOOKUP($AG53,Datenbank!$C$216:$I$232,CX$17,FALSE) ->  | DB53: =HLOOKUP($AG53,Datenbank!$C$216:$I$232,DB$17,FALSE) ->  | DF53: =HLOOKUP($AG53,Datenbank!$C$216:$I$232,DF$17,FALSE) ->  | DJ53: =HLOOKUP($AG53,Datenbank!$C$216:$I$232,DJ$17,FALSE) ->  | DN53: =HLOOKUP($AG53,Datenbank!$C$216:$I$232,DN$17,FALSE) ->  | DR53: =HLOOKUP($AG53,Datenbank!$C$216:$I$232,DR$17,FALSE) ->  | DV53: =HLOOKUP($AG53,Datenbank!$C$216:$I$232,DV$17,FALSE) ->  | DZ53: =HLOOKUP($AG53,Datenbank!$C$216:$I$232,DZ$17,FALSE) ->  | ED53: =HLOOKUP($AG53,Datenbank!$C$216:$I$232,ED$17,FALSE) ->  | EH53: =HLOOKUP($AG53,Datenbank!$C$216:$I$232,EH$17,FALSE) ->  | EL53: =HLOOKUP($AG53,Datenbank!$C$216:$I$232,EL$17,FALSE) ->  | EP53: =HLOOKUP($AG53,Datenbank!$C$216:$I$232,EP$17,FALSE) ->  | ET53: =HLOOKUP($AG53,Datenbank!$C$216:$I$232,ET$17,FALSE) -> 
B54: 6324.141349 | C54: 6324.141349 | F54: 0 | I54: 0 | L54: 1167.139446 | M54: 10270.82713 | N54: 0.8800317476 | O54: 3789.40737 | P54: =Lastprofile!O54*Input!$B$19 -> 0 | Q54: =O54*(1-Input!$B$19) -> 3789.40737 | R54: =IF(V54=0,0,$R$18-(Input!$B$11-Lastprofile!V54)/(Input!$B$11-Input!$B$12)*Input!$B$18) -> 0.3689486079 | S54: 157.8919737 | T54: 0.5110831397 | U54: 5249.246575 | V54: =IF(Input!$B$11<W54,Input!$B$11,IF(Input!$B$13="Ja",Lastprofile!W54,IF(Input!$B$12<Lastprofile!W54,W54,0))) -> 218.7186073 | W54: 489.0984107 | X54: 533.964617 | Y54: =AC54*(1+Input!$B$20+Input!$B$21) -> 12815.15081 | Z54: =AB54*Input!$B$21 -> 209.6136046 | AA54: =AB54*Input!$B$20 -> 1048.068023 | AB54: =LARGE($AC$20:$AC$384,ROWS($AC$20:AC54)) -> 10480.68023 | AC54: 11442.09894 | AD54: 818.245 | AE54: 2016-02-04 | AF54: 0.3666666667 | AG54: Donnerstag | AH54: =HLOOKUP($AG54,Datenbank!$C$216:$I$232,AH$17,FALSE) -> 1.0494 | AI54: 2.049854453 | AJ54: 2.151117262 | AK54: 5117.957587 | AL54: =HLOOKUP($AG54,Datenbank!$C$216:$I$232,AL$17,FALSE) ->  | AP54: =HLOOKUP($AG54,Datenbank!$C$216:$I$232,AP$17,FALSE) ->  | AT54: =HLOOKUP($AG54,Datenbank!$C$216:$I$232,AT$17,FALSE) ->  | AX54: =HLOOKUP($AG54,Datenbank!$C$216:$I$232,AX$17,FALSE) ->  | BB54: =HLOOKUP($AG54,Datenbank!$C$216:$I$232,BB$17,FALSE) ->  | BF54: =HLOOKUP($AG54,Datenbank!$C$216:$I$232,BF$17,FALSE) ->  | BJ54: =HLOOKUP($AG54,Datenbank!$C$216:$I$232,BJ$17,FALSE) ->  | BN54: =HLOOKUP($AG54,Datenbank!$C$216:$I$232,BN$17,FALSE) ->  | BR54: =HLOOKUP($AG54,Datenbank!$C$216:$I$232,BR$17,FALSE) ->  | BV54: =HLOOKUP($AG54,Datenbank!$C$216:$I$232,BV$17,FALSE) ->  | BZ54: =HLOOKUP($AG54,Datenbank!$C$216:$I$232,BZ$17,FALSE) ->  | CD54: =HLOOKUP($AG54,Datenbank!$C$216:$I$232,CD$17,FALSE) ->  | CH54: =HLOOKUP($AG54,Datenbank!$C$216:$I$232,CH$17,FALSE) ->  | CL54: =HLOOKUP($AG54,Datenbank!$C$216:$I$232,CL$17,FALSE) ->  | CP54: =HLOOKUP($AG54,Datenbank!$C$216:$I$232,CP$17,FALSE) ->  | CT54: =HLOOKUP($AG54,Datenbank!$C$216:$I$232,CT$17,FALSE) ->  | CX54: =HLOOKUP($AG54,Datenbank!$C$216:$I$232,CX$17,FALSE) ->  | DB54: =HLOOKUP($AG54,Datenbank!$C$216:$I$232,DB$17,FALSE) ->  | DF54: =HLOOKUP($AG54,Datenbank!$C$216:$I$232,DF$17,FALSE) ->  | DJ54: =HLOOKUP($AG54,Datenbank!$C$216:$I$232,DJ$17,FALSE) ->  | DN54: =HLOOKUP($AG54,Datenbank!$C$216:$I$232,DN$17,FALSE) ->  | DR54: =HLOOKUP($AG54,Datenbank!$C$216:$I$232,DR$17,FALSE) ->  | DV54: =HLOOKUP($AG54,Datenbank!$C$216:$I$232,DV$17,FALSE) ->  | DZ54: =HLOOKUP($AG54,Datenbank!$C$216:$I$232,DZ$17,FALSE) ->  | ED54: =HLOOKUP($AG54,Datenbank!$C$216:$I$232,ED$17,FALSE) ->  | EH54: =HLOOKUP($AG54,Datenbank!$C$216:$I$232,EH$17,FALSE) ->  | EL54: =HLOOKUP($AG54,Datenbank!$C$216:$I$232,EL$17,FALSE) ->  | EP54: =HLOOKUP($AG54,Datenbank!$C$216:$I$232,EP$17,FALSE) ->  | ET54: =HLOOKUP($AG54,Datenbank!$C$216:$I$232,ET$17,FALSE) -> 
B55: 5804.9612 | C55: 5804.9612 | F55: 0 | I55: 0 | L55: 1167.139446 | M55: 10270.82713 | N55: 0.8800317476 | O55: 3789.40737 | P55: =Lastprofile!O55*Input!$B$19 -> 0 | Q55: =O55*(1-Input!$B$19) -> 3789.40737 | R55: =IF(V55=0,0,$R$18-(Input!$B$11-Lastprofile!V55)/(Input!$B$11-Input!$B$12)*Input!$B$18) -> 0.3689486079 | S55: 157.8919737 | T55: 0.5110831397 | U55: 5249.246575 | V55: =IF(Input!$B$11<W55,Input!$B$11,IF(Input!$B$13="Ja",Lastprofile!W55,IF(Input!$B$12<Lastprofile!W55,W55,0))) -> 218.7186073 | W55: 488.0773834 | X55: 490.1288116 | Y55: =AC55*(1+Input!$B$20+Input!$B$21) -> 11763.09148 | Z55: =AB55*Input!$B$21 -> 209.1760215 | AA55: =AB55*Input!$B$20 -> 1045.880107 | AB55: =LARGE($AC$20:$AC$384,ROWS($AC$20:AC55)) -> 10458.80107 | AC55: 10502.76025 | AD55: 842.31 | AE55: 2016-02-05 | AF55: 0.8666666667 | AG55: Freitag | AH55: =HLOOKUP($AG55,Datenbank!$C$216:$I$232,AH$17,FALSE) -> 0.9885 | AI55: 1.997492535 | AJ55: 1.974521371 | AK55: 4697.799049 | AL55: =HLOOKUP($AG55,Datenbank!$C$216:$I$232,AL$17,FALSE) ->  | AP55: =HLOOKUP($AG55,Datenbank!$C$216:$I$232,AP$17,FALSE) ->  | AT55: =HLOOKUP($AG55,Datenbank!$C$216:$I$232,AT$17,FALSE) ->  | AX55: =HLOOKUP($AG55,Datenbank!$C$216:$I$232,AX$17,FALSE) ->  | BB55: =HLOOKUP($AG55,Datenbank!$C$216:$I$232,BB$17,FALSE) ->  | BF55: =HLOOKUP($AG55,Datenbank!$C$216:$I$232,BF$17,FALSE) ->  | BJ55: =HLOOKUP($AG55,Datenbank!$C$216:$I$232,BJ$17,FALSE) ->  | BN55: =HLOOKUP($AG55,Datenbank!$C$216:$I$232,BN$17,FALSE) ->  | BR55: =HLOOKUP($AG55,Datenbank!$C$216:$I$232,BR$17,FALSE) ->  | BV55: =HLOOKUP($AG55,Datenbank!$C$216:$I$232,BV$17,FALSE) ->  | BZ55: =HLOOKUP($AG55,Datenbank!$C$216:$I$232,BZ$17,FALSE) ->  | CD55: =HLOOKUP($AG55,Datenbank!$C$216:$I$232,CD$17,FALSE) ->  | CH55: =HLOOKUP($AG55,Datenbank!$C$216:$I$232,CH$17,FALSE) ->  | CL55: =HLOOKUP($AG55,Datenbank!$C$216:$I$232,CL$17,FALSE) ->  | CP55: =HLOOKUP($AG55,Datenbank!$C$216:$I$232,CP$17,FALSE) ->  | CT55: =HLOOKUP($AG55,Datenbank!$C$216:$I$232,CT$17,FALSE) ->  | CX55: =HLOOKUP($AG55,Datenbank!$C$216:$I$232,CX$17,FALSE) ->  | DB55: =HLOOKUP($AG55,Datenbank!$C$216:$I$232,DB$17,FALSE) ->  | DF55: =HLOOKUP($AG55,Datenbank!$C$216:$I$232,DF$17,FALSE) ->  | DJ55: =HLOOKUP($AG55,Datenbank!$C$216:$I$232,DJ$17,FALSE) ->  | DN55: =HLOOKUP($AG55,Datenbank!$C$216:$I$232,DN$17,FALSE) ->  | DR55: =HLOOKUP($AG55,Datenbank!$C$216:$I$232,DR$17,FALSE) ->  | DV55: =HLOOKUP($AG55,Datenbank!$C$216:$I$232,DV$17,FALSE) ->  | DZ55: =HLOOKUP($AG55,Datenbank!$C$216:$I$232,DZ$17,FALSE) ->  | ED55: =HLOOKUP($AG55,Datenbank!$C$216:$I$232,ED$17,FALSE) ->  | EH55: =HLOOKUP($AG55,Datenbank!$C$216:$I$232,EH$17,FALSE) ->  | EL55: =HLOOKUP($AG55,Datenbank!$C$216:$I$232,EL$17,FALSE) ->  | EP55: =HLOOKUP($AG55,Datenbank!$C$216:$I$232,EP$17,FALSE) ->  | ET55: =HLOOKUP($AG55,Datenbank!$C$216:$I$232,ET$17,FALSE) -> 
B56: 5146.665892 | C56: 5146.665892 | F56: 0 | I56: 0 | L56: 1167.139446 | M56: 10270.82713 | N56: 0.8800317476 | O56: 3789.40737 | P56: =Lastprofile!O56*Input!$B$19 -> 0 | Q56: =O56*(1-Input!$B$19) -> 3789.40737 | R56: =IF(V56=0,0,$R$18-(Input!$B$11-Lastprofile!V56)/(Input!$B$11-Input!$B$12)*Input!$B$18) -> 0.3689486079 | S56: 157.8919737 | T56: 0.5110831397 | U56: 5249.246575 | V56: =IF(Input!$B$11<W56,Input!$B$11,IF(Input!$B$13="Ja",Lastprofile!W56,IF(Input!$B$12<Lastprofile!W56,W56,0))) -> 218.7186073 | W56: 488.0150761 | X56: 434.5471315 | Y56: =AC56*(1+Input!$B$20+Input!$B$21) -> 10429.13116 | Z56: =AB56*Input!$B$21 -> 209.1493183 | AA56: =AB56*Input!$B$20 -> 1045.746592 | AB56: =LARGE($AC$20:$AC$384,ROWS($AC$20:AC56)) -> 10457.46592 | AC56: 9311.724246 | AD56: 866.375 | AE56: 2016-02-06 | AF56: 1.066666667 | AG56: Samstag | AH56: =HLOOKUP($AG56,Datenbank!$C$216:$I$232,AH$17,FALSE) -> 0.886 | AI56: 1.97585364 | AJ56: 1.750606325 | AK56: 4165.058353 | AL56: =HLOOKUP($AG56,Datenbank!$C$216:$I$232,AL$17,FALSE) ->  | AP56: =HLOOKUP($AG56,Datenbank!$C$216:$I$232,AP$17,FALSE) ->  | AT56: =HLOOKUP($AG56,Datenbank!$C$216:$I$232,AT$17,FALSE) ->  | AX56: =HLOOKUP($AG56,Datenbank!$C$216:$I$232,AX$17,FALSE) ->  | BB56: =HLOOKUP($AG56,Datenbank!$C$216:$I$232,BB$17,FALSE) ->  | BF56: =HLOOKUP($AG56,Datenbank!$C$216:$I$232,BF$17,FALSE) ->  | BJ56: =HLOOKUP($AG56,Datenbank!$C$216:$I$232,BJ$17,FALSE) ->  | BN56: =HLOOKUP($AG56,Datenbank!$C$216:$I$232,BN$17,FALSE) ->  | BR56: =HLOOKUP($AG56,Datenbank!$C$216:$I$232,BR$17,FALSE) ->  | BV56: =HLOOKUP($AG56,Datenbank!$C$216:$I$232,BV$17,FALSE) ->  | BZ56: =HLOOKUP($AG56,Datenbank!$C$216:$I$232,BZ$17,FALSE) ->  | CD56: =HLOOKUP($AG56,Datenbank!$C$216:$I$232,CD$17,FALSE) ->  | CH56: =HLOOKUP($AG56,Datenbank!$C$216:$I$232,CH$17,FALSE) ->  | CL56: =HLOOKUP($AG56,Datenbank!$C$216:$I$232,CL$17,FALSE) ->  | CP56: =HLOOKUP($AG56,Datenbank!$C$216:$I$232,CP$17,FALSE) ->  | CT56: =HLOOKUP($AG56,Datenbank!$C$216:$I$232,CT$17,FALSE) ->  | CX56: =HLOOKUP($AG56,Datenbank!$C$216:$I$232,CX$17,FALSE) ->  | DB56: =HLOOKUP($AG56,Datenbank!$C$216:$I$232,DB$17,FALSE) ->  | DF56: =HLOOKUP($AG56,Datenbank!$C$216:$I$232,DF$17,FALSE) ->  | DJ56: =HLOOKUP($AG56,Datenbank!$C$216:$I$232,DJ$17,FALSE) ->  | DN56: =HLOOKUP($AG56,Datenbank!$C$216:$I$232,DN$17,FALSE) ->  | DR56: =HLOOKUP($AG56,Datenbank!$C$216:$I$232,DR$17,FALSE) ->  | DV56: =HLOOKUP($AG56,Datenbank!$C$216:$I$232,DV$17,FALSE) ->  | DZ56: =HLOOKUP($AG56,Datenbank!$C$216:$I$232,DZ$17,FALSE) ->  | ED56: =HLOOKUP($AG56,Datenbank!$C$216:$I$232,ED$17,FALSE) ->  | EH56: =HLOOKUP($AG56,Datenbank!$C$216:$I$232,EH$17,FALSE) ->  | EL56: =HLOOKUP($AG56,Datenbank!$C$216:$I$232,EL$17,FALSE) ->  | EP56: =HLOOKUP($AG56,Datenbank!$C$216:$I$232,EP$17,FALSE) ->  | ET56: =HLOOKUP($AG56,Datenbank!$C$216:$I$232,ET$17,FALSE) -> 
B57: 5560.463144 | C57: 5560.463144 | F57: 0 | I57: 0 | L57: 1167.139446 | M57: 10270.82713 | N57: 0.8800317476 | O57: 3789.40737 | P57: =Lastprofile!O57*Input!$B$19 -> 0 | Q57: =O57*(1-Input!$B$19) -> 3789.40737 | R57: =IF(V57=0,0,$R$18-(Input!$B$11-Lastprofile!V57)/(Input!$B$11-Input!$B$12)*Input!$B$18) -> 0.3689486079 | S57: 157.8919737 | T57: 0.5110831397 | U57: 5249.246575 | V57: =IF(Input!$B$11<W57,Input!$B$11,IF(Input!$B$13="Ja",Lastprofile!W57,IF(Input!$B$12<Lastprofile!W57,W57,0))) -> 218.7186073 | W57: 486.8549451 | X57: 469.4851695 | Y57: =AC57*(1+Input!$B$20+Input!$B$21) -> 11267.64407 | Z57: =AB57*Input!$B$21 -> 208.6521193 | AA57: =AB57*Input!$B$20 -> 1043.260597 | AB57: =LARGE($AC$20:$AC$384,ROWS($AC$20:AC57)) -> 10432.60597 | AC57: 10060.39649 | AD57: 890.44 | AE57: 2016-02-07 | AF57: 0.8 | AG57: Sonntag | AH57: =HLOOKUP($AG57,Datenbank!$C$216:$I$232,AH$17,FALSE) -> 0.9435 | AI57: 2.004617786 | AJ57: 1.891356881 | AK57: 4499.933345 | AL57: =HLOOKUP($AG57,Datenbank!$C$216:$I$232,AL$17,FALSE) ->  | AP57: =HLOOKUP($AG57,Datenbank!$C$216:$I$232,AP$17,FALSE) ->  | AT57: =HLOOKUP($AG57,Datenbank!$C$216:$I$232,AT$17,FALSE) ->  | AX57: =HLOOKUP($AG57,Datenbank!$C$216:$I$232,AX$17,FALSE) ->  | BB57: =HLOOKUP($AG57,Datenbank!$C$216:$I$232,BB$17,FALSE) ->  | BF57: =HLOOKUP($AG57,Datenbank!$C$216:$I$232,BF$17,FALSE) ->  | BJ57: =HLOOKUP($AG57,Datenbank!$C$216:$I$232,BJ$17,FALSE) ->  | BN57: =HLOOKUP($AG57,Datenbank!$C$216:$I$232,BN$17,FALSE) ->  | BR57: =HLOOKUP($AG57,Datenbank!$C$216:$I$232,BR$17,FALSE) ->  | BV57: =HLOOKUP($AG57,Datenbank!$C$216:$I$232,BV$17,FALSE) ->  | BZ57: =HLOOKUP($AG57,Datenbank!$C$216:$I$232,BZ$17,FALSE) ->  | CD57: =HLOOKUP($AG57,Datenbank!$C$216:$I$232,CD$17,FALSE) ->  | CH57: =HLOOKUP($AG57,Datenbank!$C$216:$I$232,CH$17,FALSE) ->  | CL57: =HLOOKUP($AG57,Datenbank!$C$216:$I$232,CL$17,FALSE) ->  | CP57: =HLOOKUP($AG57,Datenbank!$C$216:$I$232,CP$17,FALSE) ->  | CT57: =HLOOKUP($AG57,Datenbank!$C$216:$I$232,CT$17,FALSE) ->  | CX57: =HLOOKUP($AG57,Datenbank!$C$216:$I$232,CX$17,FALSE) ->  | DB57: =HLOOKUP($AG57,Datenbank!$C$216:$I$232,DB$17,FALSE) ->  | DF57: =HLOOKUP($AG57,Datenbank!$C$216:$I$232,DF$17,FALSE) ->  | DJ57: =HLOOKUP($AG57,Datenbank!$C$216:$I$232,DJ$17,FALSE) ->  | DN57: =HLOOKUP($AG57,Datenbank!$C$216:$I$232,DN$17,FALSE) ->  | DR57: =HLOOKUP($AG57,Datenbank!$C$216:$I$232,DR$17,FALSE) ->  | DV57: =HLOOKUP($AG57,Datenbank!$C$216:$I$232,DV$17,FALSE) ->  | DZ57: =HLOOKUP($AG57,Datenbank!$C$216:$I$232,DZ$17,FALSE) ->  | ED57: =HLOOKUP($AG57,Datenbank!$C$216:$I$232,ED$17,FALSE) ->  | EH57: =HLOOKUP($AG57,Datenbank!$C$216:$I$232,EH$17,FALSE) ->  | EL57: =HLOOKUP($AG57,Datenbank!$C$216:$I$232,EL$17,FALSE) ->  | EP57: =HLOOKUP($AG57,Datenbank!$C$216:$I$232,EP$17,FALSE) ->  | ET57: =HLOOKUP($AG57,Datenbank!$C$216:$I$232,ET$17,FALSE) -> 
B58: 6331.752609 | C58: 6331.752609 | F58: 0 | I58: 0 | L58: 1167.139446 | M58: 10270.82713 | N58: 0.8800317476 | O58: 3789.40737 | P58: =Lastprofile!O58*Input!$B$19 -> 0 | Q58: =O58*(1-Input!$B$19) -> 3789.40737 | R58: =IF(V58=0,0,$R$18-(Input!$B$11-Lastprofile!V58)/(Input!$B$11-Input!$B$12)*Input!$B$18) -> 0.3689486079 | S58: 157.8919737 | T58: 0.5110831397 | U58: 5249.246575 | V58: =IF(Input!$B$11<W58,Input!$B$11,IF(Input!$B$13="Ja",Lastprofile!W58,IF(Input!$B$12<Lastprofile!W58,W58,0))) -> 218.7186073 | W58: 483.0279526 | X58: 534.6072566 | Y58: =AC58*(1+Input!$B$20+Input!$B$21) -> 12830.57416 | Z58: =AB58*Input!$B$21 -> 207.0119797 | AA58: =AB58*Input!$B$20 -> 1035.059899 | AB58: =LARGE($AC$20:$AC$384,ROWS($AC$20:AC58)) -> 10350.59899 | AC58: 11455.86978 | AD58: 914.505 | AE58: 2016-02-08 | AF58: 0.06666666667 | AG58: Montag | AH58: =HLOOKUP($AG58,Datenbank!$C$216:$I$232,AH$17,FALSE) -> 1.0354 | AI58: 2.080071649 | AJ58: 2.153706185 | AK58: 5124.117175 | AL58: =HLOOKUP($AG58,Datenbank!$C$216:$I$232,AL$17,FALSE) ->  | AP58: =HLOOKUP($AG58,Datenbank!$C$216:$I$232,AP$17,FALSE) ->  | AT58: =HLOOKUP($AG58,Datenbank!$C$216:$I$232,AT$17,FALSE) ->  | AX58: =HLOOKUP($AG58,Datenbank!$C$216:$I$232,AX$17,FALSE) ->  | BB58: =HLOOKUP($AG58,Datenbank!$C$216:$I$232,BB$17,FALSE) ->  | BF58: =HLOOKUP($AG58,Datenbank!$C$216:$I$232,BF$17,FALSE) ->  | BJ58: =HLOOKUP($AG58,Datenbank!$C$216:$I$232,BJ$17,FALSE) ->  | BN58: =HLOOKUP($AG58,Datenbank!$C$216:$I$232,BN$17,FALSE) ->  | BR58: =HLOOKUP($AG58,Datenbank!$C$216:$I$232,BR$17,FALSE) ->  | BV58: =HLOOKUP($AG58,Datenbank!$C$216:$I$232,BV$17,FALSE) ->  | BZ58: =HLOOKUP($AG58,Datenbank!$C$216:$I$232,BZ$17,FALSE) ->  | CD58: =HLOOKUP($AG58,Datenbank!$C$216:$I$232,CD$17,FALSE) ->  | CH58: =HLOOKUP($AG58,Datenbank!$C$216:$I$232,CH$17,FALSE) ->  | CL58: =HLOOKUP($AG58,Datenbank!$C$216:$I$232,CL$17,FALSE) ->  | CP58: =HLOOKUP($AG58,Datenbank!$C$216:$I$232,CP$17,FALSE) ->  | CT58: =HLOOKUP($AG58,Datenbank!$C$216:$I$232,CT$17,FALSE) ->  | CX58: =HLOOKUP($AG58,Datenbank!$C$216:$I$232,CX$17,FALSE) ->  | DB58: =HLOOKUP($AG58,Datenbank!$C$216:$I$232,DB$17,FALSE) ->  | DF58: =HLOOKUP($AG58,Datenbank!$C$216:$I$232,DF$17,FALSE) ->  | DJ58: =HLOOKUP($AG58,Datenbank!$C$216:$I$232,DJ$17,FALSE) ->  | DN58: =HLOOKUP($AG58,Datenbank!$C$216:$I$232,DN$17,FALSE) ->  | DR58: =HLOOKUP($AG58,Datenbank!$C$216:$I$232,DR$17,FALSE) ->  | DV58: =HLOOKUP($AG58,Datenbank!$C$216:$I$232,DV$17,FALSE) ->  | DZ58: =HLOOKUP($AG58,Datenbank!$C$216:$I$232,DZ$17,FALSE) ->  | ED58: =HLOOKUP($AG58,Datenbank!$C$216:$I$232,ED$17,FALSE) ->  | EH58: =HLOOKUP($AG58,Datenbank!$C$216:$I$232,EH$17,FALSE) ->  | EL58: =HLOOKUP($AG58,Datenbank!$C$216:$I$232,EL$17,FALSE) ->  | EP58: =HLOOKUP($AG58,Datenbank!$C$216:$I$232,EP$17,FALSE) ->  | ET58: =HLOOKUP($AG58,Datenbank!$C$216:$I$232,ET$17,FALSE) -> 
B59: 6525.788044 | C59: 6525.788044 | F59: 0 | I59: 0 | L59: 1167.139446 | M59: 10270.82713 | N59: 0.8800317476 | O59: 3789.40737 | P59: =Lastprofile!O59*Input!$B$19 -> 0 | Q59: =O59*(1-Input!$B$19) -> 3789.40737 | R59: =IF(V59=0,0,$R$18-(Input!$B$11-Lastprofile!V59)/(Input!$B$11-Input!$B$12)*Input!$B$18) -> 0.3689486079 | S59: 157.8919737 | T59: 0.5110831397 | U59: 5249.246575 | V59: =IF(Input!$B$11<W59,Input!$B$11,IF(Input!$B$13="Ja",Lastprofile!W59,IF(Input!$B$12<Lastprofile!W59,W59,0))) -> 218.7186073 | W59: 481.140493 | X59: 550.9902011 | Y59: =AC59*(1+Input!$B$20+Input!$B$21) -> 13223.76483 | Z59: =AB59*Input!$B$21 -> 206.2030684 | AA59: =AB59*Input!$B$20 -> 1031.015342 | AB59: =LARGE($AC$20:$AC$384,ROWS($AC$20:AC59)) -> 10310.15342 | AC59: 11806.93288 | AD59: 938.57 | AE59: 2016-02-09 | AF59: -0.2333333333 | AG59: Dienstag | AH59: =HLOOKUP($AG59,Datenbank!$C$216:$I$232,AH$17,FALSE) -> 1.0523 | AI59: 2.109385279 | AJ59: 2.219706129 | AK59: 5281.144837 | AL59: =HLOOKUP($AG59,Datenbank!$C$216:$I$232,AL$17,FALSE) ->  | AP59: =HLOOKUP($AG59,Datenbank!$C$216:$I$232,AP$17,FALSE) ->  | AT59: =HLOOKUP($AG59,Datenbank!$C$216:$I$232,AT$17,FALSE) ->  | AX59: =HLOOKUP($AG59,Datenbank!$C$216:$I$232,AX$17,FALSE) ->  | BB59: =HLOOKUP($AG59,Datenbank!$C$216:$I$232,BB$17,FALSE) ->  | BF59: =HLOOKUP($AG59,Datenbank!$C$216:$I$232,BF$17,FALSE) ->  | BJ59: =HLOOKUP($AG59,Datenbank!$C$216:$I$232,BJ$17,FALSE) ->  | BN59: =HLOOKUP($AG59,Datenbank!$C$216:$I$232,BN$17,FALSE) ->  | BR59: =HLOOKUP($AG59,Datenbank!$C$216:$I$232,BR$17,FALSE) ->  | BV59: =HLOOKUP($AG59,Datenbank!$C$216:$I$232,BV$17,FALSE) ->  | BZ59: =HLOOKUP($AG59,Datenbank!$C$216:$I$232,BZ$17,FALSE) ->  | CD59: =HLOOKUP($AG59,Datenbank!$C$216:$I$232,CD$17,FALSE) ->  | CH59: =HLOOKUP($AG59,Datenbank!$C$216:$I$232,CH$17,FALSE) ->  | CL59: =HLOOKUP($AG59,Datenbank!$C$216:$I$232,CL$17,FALSE) ->  | CP59: =HLOOKUP($AG59,Datenbank!$C$216:$I$232,CP$17,FALSE) ->  | CT59: =HLOOKUP($AG59,Datenbank!$C$216:$I$232,CT$17,FALSE) ->  | CX59: =HLOOKUP($AG59,Datenbank!$C$216:$I$232,CX$17,FALSE) ->  | DB59: =HLOOKUP($AG59,Datenbank!$C$216:$I$232,DB$17,FALSE) ->  | DF59: =HLOOKUP($AG59,Datenbank!$C$216:$I$232,DF$17,FALSE) ->  | DJ59: =HLOOKUP($AG59,Datenbank!$C$216:$I$232,DJ$17,FALSE) ->  | DN59: =HLOOKUP($AG59,Datenbank!$C$216:$I$232,DN$17,FALSE) ->  | DR59: =HLOOKUP($AG59,Datenbank!$C$216:$I$232,DR$17,FALSE) ->  | DV59: =HLOOKUP($AG59,Datenbank!$C$216:$I$232,DV$17,FALSE) ->  | DZ59: =HLOOKUP($AG59,Datenbank!$C$216:$I$232,DZ$17,FALSE) ->  | ED59: =HLOOKUP($AG59,Datenbank!$C$216:$I$232,ED$17,FALSE) ->  | EH59: =HLOOKUP($AG59,Datenbank!$C$216:$I$232,EH$17,FALSE) ->  | EL59: =HLOOKUP($AG59,Datenbank!$C$216:$I$232,EL$17,FALSE) ->  | EP59: =HLOOKUP($AG59,Datenbank!$C$216:$I$232,EP$17,FALSE) ->  | ET59: =HLOOKUP($AG59,Datenbank!$C$216:$I$232,ET$17,FALSE) -> 
B60: 6670.096805 | C60: 6670.096805 | F60: 0 | I60: 0 | L60: 1167.139446 | M60: 10270.82713 | N60: 0.8800317476 | O60: 3789.40737 | P60: =Lastprofile!O60*Input!$B$19 -> 0 | Q60: =O60*(1-Input!$B$19) -> 3789.40737 | R60: =IF(V60=0,0,$R$18-(Input!$B$11-Lastprofile!V60)/(Input!$B$11-Input!$B$12)*Input!$B$18) -> 0.3689486079 | S60: 157.8919737 | T60: 0.5110831397 | U60: 5249.246575 | V60: =IF(Input!$B$11<W60,Input!$B$11,IF(Input!$B$13="Ja",Lastprofile!W60,IF(Input!$B$12<Lastprofile!W60,W60,0))) -> 218.7186073 | W60: 480.5559427 | X60: 563.174586 | Y60: =AC60*(1+Input!$B$20+Input!$B$21) -> 13516.19006 | Z60: =AB60*Input!$B$21 -> 205.9525469 | AA60: =AB60*Input!$B$20 -> 1029.762734 | AB60: =LARGE($AC$20:$AC$384,ROWS($AC$20:AC60)) -> 10297.62734 | AC60: 12068.02684 | AD60: 962.635 | AE60: 2016-02-10 | AF60: -0.9 | AG60: Mittwoch | AH60: =HLOOKUP($AG60,Datenbank!$C$216:$I$232,AH$17,FALSE) -> 1.0449 | AI60: 2.171300464 | AJ60: 2.268791854 | AK60: 5397.930038 | AL60: =HLOOKUP($AG60,Datenbank!$C$216:$I$232,AL$17,FALSE) ->  | AP60: =HLOOKUP($AG60,Datenbank!$C$216:$I$232,AP$17,FALSE) ->  | AT60: =HLOOKUP($AG60,Datenbank!$C$216:$I$232,AT$17,FALSE) ->  | AX60: =HLOOKUP($AG60,Datenbank!$C$216:$I$232,AX$17,FALSE) ->  | BB60: =HLOOKUP($AG60,Datenbank!$C$216:$I$232,BB$17,FALSE) ->  | BF60: =HLOOKUP($AG60,Datenbank!$C$216:$I$232,BF$17,FALSE) ->  | BJ60: =HLOOKUP($AG60,Datenbank!$C$216:$I$232,BJ$17,FALSE) ->  | BN60: =HLOOKUP($AG60,Datenbank!$C$216:$I$232,BN$17,FALSE) ->  | BR60: =HLOOKUP($AG60,Datenbank!$C$216:$I$232,BR$17,FALSE) ->  | BV60: =HLOOKUP($AG60,Datenbank!$C$216:$I$232,BV$17,FALSE) ->  | BZ60: =HLOOKUP($AG60,Datenbank!$C$216:$I$232,BZ$17,FALSE) ->  | CD60: =HLOOKUP($AG60,Datenbank!$C$216:$I$232,CD$17,FALSE) ->  | CH60: =HLOOKUP($AG60,Datenbank!$C$216:$I$232,CH$17,FALSE) ->  | CL60: =HLOOKUP($AG60,Datenbank!$C$216:$I$232,CL$17,FALSE) ->  | CP60: =HLOOKUP($AG60,Datenbank!$C$216:$I$232,CP$17,FALSE) ->  | CT60: =HLOOKUP($AG60,Datenbank!$C$216:$I$232,CT$17,FALSE) ->  | CX60: =HLOOKUP($AG60,Datenbank!$C$216:$I$232,CX$17,FALSE) ->  | DB60: =HLOOKUP($AG60,Datenbank!$C$216:$I$232,DB$17,FALSE) ->  | DF60: =HLOOKUP($AG60,Datenbank!$C$216:$I$232,DF$17,FALSE) ->  | DJ60: =HLOOKUP($AG60,Datenbank!$C$216:$I$232,DJ$17,FALSE) ->  | DN60: =HLOOKUP($AG60,Datenbank!$C$216:$I$232,DN$17,FALSE) ->  | DR60: =HLOOKUP($AG60,Datenbank!$C$216:$I$232,DR$17,FALSE) ->  | DV60: =HLOOKUP($AG60,Datenbank!$C$216:$I$232,DV$17,FALSE) ->  | DZ60: =HLOOKUP($AG60,Datenbank!$C$216:$I$232,DZ$17,FALSE) ->  | ED60: =HLOOKUP($AG60,Datenbank!$C$216:$I$232,ED$17,FALSE) ->  | EH60: =HLOOKUP($AG60,Datenbank!$C$216:$I$232,EH$17,FALSE) ->  | EL60: =HLOOKUP($AG60,Datenbank!$C$216:$I$232,EL$17,FALSE) ->  | EP60: =HLOOKUP($AG60,Datenbank!$C$216:$I$232,EP$17,FALSE) ->  | ET60: =HLOOKUP($AG60,Datenbank!$C$216:$I$232,ET$17,FALSE) -> 
B61: 6815.694971 | C61: 6815.694971 | F61: 0 | I61: 0 | L61: 1167.139446 | M61: 10270.82713 | N61: 0.8800317476 | O61: 3789.40737 | P61: =Lastprofile!O61*Input!$B$19 -> 0 | Q61: =O61*(1-Input!$B$19) -> 3789.40737 | R61: =IF(V61=0,0,$R$18-(Input!$B$11-Lastprofile!V61)/(Input!$B$11-Input!$B$12)*Input!$B$18) -> 0.3689486079 | S61: 157.8919737 | T61: 0.5110831397 | U61: 5249.246575 | V61: =IF(Input!$B$11<W61,Input!$B$11,IF(Input!$B$13="Ja",Lastprofile!W61,IF(Input!$B$12<Lastprofile!W61,W61,0))) -> 218.7186073 | W61: 480.321073 | X61: 575.4678389 | Y61: =AC61*(1+Input!$B$20+Input!$B$21) -> 13811.22813 | Z61: =AB61*Input!$B$21 -> 205.8518884 | AA61: =AB61*Input!$B$20 -> 1029.259442 | AB61: =LARGE($AC$20:$AC$384,ROWS($AC$20:AC61)) -> 10292.59442 | AC61: 12331.45369 | AD61: 986.7 | AE61: 2016-02-11 | AF61: -1.333333333 | AG61: Donnerstag | AH61: =HLOOKUP($AG61,Datenbank!$C$216:$I$232,AH$17,FALSE) -> 1.0494 | AI61: 2.209182546 | AJ61: 2.318316163 | AK61: 5515.75872 | AL61: =HLOOKUP($AG61,Datenbank!$C$216:$I$232,AL$17,FALSE) ->  | AP61: =HLOOKUP($AG61,Datenbank!$C$216:$I$232,AP$17,FALSE) ->  | AT61: =HLOOKUP($AG61,Datenbank!$C$216:$I$232,AT$17,FALSE) ->  | AX61: =HLOOKUP($AG61,Datenbank!$C$216:$I$232,AX$17,FALSE) ->  | BB61: =HLOOKUP($AG61,Datenbank!$C$216:$I$232,BB$17,FALSE) ->  | BF61: =HLOOKUP($AG61,Datenbank!$C$216:$I$232,BF$17,FALSE) ->  | BJ61: =HLOOKUP($AG61,Datenbank!$C$216:$I$232,BJ$17,FALSE) ->  | BN61: =HLOOKUP($AG61,Datenbank!$C$216:$I$232,BN$17,FALSE) ->  | BR61: =HLOOKUP($AG61,Datenbank!$C$216:$I$232,BR$17,FALSE) ->  | BV61: =HLOOKUP($AG61,Datenbank!$C$216:$I$232,BV$17,FALSE) ->  | BZ61: =HLOOKUP($AG61,Datenbank!$C$216:$I$232,BZ$17,FALSE) ->  | CD61: =HLOOKUP($AG61,Datenbank!$C$216:$I$232,CD$17,FALSE) ->  | CH61: =HLOOKUP($AG61,Datenbank!$C$216:$I$232,CH$17,FALSE) ->  | CL61: =HLOOKUP($AG61,Datenbank!$C$216:$I$232,CL$17,FALSE) ->  | CP61: =HLOOKUP($AG61,Datenbank!$C$216:$I$232,CP$17,FALSE) ->  | CT61: =HLOOKUP($AG61,Datenbank!$C$216:$I$232,CT$17,FALSE) ->  | CX61: =HLOOKUP($AG61,Datenbank!$C$216:$I$232,CX$17,FALSE) ->  | DB61: =HLOOKUP($AG61,Datenbank!$C$216:$I$232,DB$17,FALSE) ->  | DF61: =HLOOKUP($AG61,Datenbank!$C$216:$I$232,DF$17,FALSE) ->  | DJ61: =HLOOKUP($AG61,Datenbank!$C$216:$I$232,DJ$17,FALSE) ->  | DN61: =HLOOKUP($AG61,Datenbank!$C$216:$I$232,DN$17,FALSE) ->  | DR61: =HLOOKUP($AG61,Datenbank!$C$216:$I$232,DR$17,FALSE) ->  | DV61: =HLOOKUP($AG61,Datenbank!$C$216:$I$232,DV$17,FALSE) ->  | DZ61: =HLOOKUP($AG61,Datenbank!$C$216:$I$232,DZ$17,FALSE) ->  | ED61: =HLOOKUP($AG61,Datenbank!$C$216:$I$232,ED$17,FALSE) ->  | EH61: =HLOOKUP($AG61,Datenbank!$C$216:$I$232,EH$17,FALSE) ->  | EL61: =HLOOKUP($AG61,Datenbank!$C$216:$I$232,EL$17,FALSE) ->  | EP61: =HLOOKUP($AG61,Datenbank!$C$216:$I$232,EP$17,FALSE) ->  | ET61: =HLOOKUP($AG61,Datenbank!$C$216:$I$232,ET$17,FALSE) -> 
B62: 6310.068611 | C62: 6310.068611 | F62: 0 | I62: 0 | L62: 1167.139446 | M62: 10270.82713 | N62: 0.8800317476 | O62: 3789.40737 | P62: =Lastprofile!O62*Input!$B$19 -> 0 | Q62: =O62*(1-Input!$B$19) -> 3789.40737 | R62: =IF(V62=0,0,$R$18-(Input!$B$11-Lastprofile!V62)/(Input!$B$11-Input!$B$12)*Input!$B$18) -> 0.3689486079 | S62: 157.8919737 | T62: 0.5110831397 | U62: 5249.246575 | V62: =IF(Input!$B$11<W62,Input!$B$11,IF(Input!$B$13="Ja",Lastprofile!W62,IF(Input!$B$12<Lastprofile!W62,W62,0))) -> 218.7186073 | W62: 479.0430818 | X62: 532.7764171 | Y62: =AC62*(1+Input!$B$20+Input!$B$21) -> 12786.63401 | Z62: =AB62*Input!$B$21 -> 205.3041779 | AA62: =AB62*Input!$B$20 -> 1026.52089 | AB62: =LARGE($AC$20:$AC$384,ROWS($AC$20:AC62)) -> 10265.2089 | AC62: 11416.63751 | AD62: 1010.765 | AE62: 2016-02-12 | AF62: -0.9 | AG62: Freitag | AH62: =HLOOKUP($AG62,Datenbank!$C$216:$I$232,AH$17,FALSE) -> 0.9885 | AI62: 2.171300464 | AJ62: 2.146330508 | AK62: 5106.568899 | AL62: =HLOOKUP($AG62,Datenbank!$C$216:$I$232,AL$17,FALSE) ->  | AP62: =HLOOKUP($AG62,Datenbank!$C$216:$I$232,AP$17,FALSE) ->  | AT62: =HLOOKUP($AG62,Datenbank!$C$216:$I$232,AT$17,FALSE) ->  | AX62: =HLOOKUP($AG62,Datenbank!$C$216:$I$232,AX$17,FALSE) ->  | BB62: =HLOOKUP($AG62,Datenbank!$C$216:$I$232,BB$17,FALSE) ->  | BF62: =HLOOKUP($AG62,Datenbank!$C$216:$I$232,BF$17,FALSE) ->  | BJ62: =HLOOKUP($AG62,Datenbank!$C$216:$I$232,BJ$17,FALSE) ->  | BN62: =HLOOKUP($AG62,Datenbank!$C$216:$I$232,BN$17,FALSE) ->  | BR62: =HLOOKUP($AG62,Datenbank!$C$216:$I$232,BR$17,FALSE) ->  | BV62: =HLOOKUP($AG62,Datenbank!$C$216:$I$232,BV$17,FALSE) ->  | BZ62: =HLOOKUP($AG62,Datenbank!$C$216:$I$232,BZ$17,FALSE) ->  | CD62: =HLOOKUP($AG62,Datenbank!$C$216:$I$232,CD$17,FALSE) ->  | CH62: =HLOOKUP($AG62,Datenbank!$C$216:$I$232,CH$17,FALSE) ->  | CL62: =HLOOKUP($AG62,Datenbank!$C$216:$I$232,CL$17,FALSE) ->  | CP62: =HLOOKUP($AG62,Datenbank!$C$216:$I$232,CP$17,FALSE) ->  | CT62: =HLOOKUP($AG62,Datenbank!$C$216:$I$232,CT$17,FALSE) ->  | CX62: =HLOOKUP($AG62,Datenbank!$C$216:$I$232,CX$17,FALSE) ->  | DB62: =HLOOKUP($AG62,Datenbank!$C$216:$I$232,DB$17,FALSE) ->  | DF62: =HLOOKUP($AG62,Datenbank!$C$216:$I$232,DF$17,FALSE) ->  | DJ62: =HLOOKUP($AG62,Datenbank!$C$216:$I$232,DJ$17,FALSE) ->  | DN62: =HLOOKUP($AG62,Datenbank!$C$216:$I$232,DN$17,FALSE) ->  | DR62: =HLOOKUP($AG62,Datenbank!$C$216:$I$232,DR$17,FALSE) ->  | DV62: =HLOOKUP($AG62,Datenbank!$C$216:$I$232,DV$17,FALSE) ->  | DZ62: =HLOOKUP($AG62,Datenbank!$C$216:$I$232,DZ$17,FALSE) ->  | ED62: =HLOOKUP($AG62,Datenbank!$C$216:$I$232,ED$17,FALSE) ->  | EH62: =HLOOKUP($AG62,Datenbank!$C$216:$I$232,EH$17,FALSE) ->  | EL62: =HLOOKUP($AG62,Datenbank!$C$216:$I$232,EL$17,FALSE) ->  | EP62: =HLOOKUP($AG62,Datenbank!$C$216:$I$232,EP$17,FALSE) ->  | ET62: =HLOOKUP($AG62,Datenbank!$C$216:$I$232,ET$17,FALSE) -> 
B63: 4946.454849 | C63: 4946.454849 | F63: 0 | I63: 0 | L63: 1167.139446 | M63: 10270.82713 | N63: 0.8800317476 | O63: 3789.40737 | P63: =Lastprofile!O63*Input!$B$19 -> 0 | Q63: =O63*(1-Input!$B$19) -> 3789.40737 | R63: =IF(V63=0,0,$R$18-(Input!$B$11-Lastprofile!V63)/(Input!$B$11-Input!$B$12)*Input!$B$18) -> 0.3689486079 | S63: 157.8919737 | T63: 0.5110831397 | U63: 5249.246575 | V63: =IF(Input!$B$11<W63,Input!$B$11,IF(Input!$B$13="Ja",Lastprofile!W63,IF(Input!$B$12<Lastprofile!W63,W63,0))) -> 218.7186073 | W63: 478.7945056 | X63: 417.6427634 | Y63: =AC63*(1+Input!$B$20+Input!$B$21) -> 10023.42632 | Z63: =AB63*Input!$B$21 -> 205.1976453 | AA63: =AB63*Input!$B$20 -> 1025.988226 | AB63: =LARGE($AC$20:$AC$384,ROWS($AC$20:AC63)) -> 10259.88226 | AC63: 8949.487787 | AD63: 1034.83 | AE63: 2016-02-13 | AF63: 1.75 | AG63: Samstag | AH63: =HLOOKUP($AG63,Datenbank!$C$216:$I$232,AH$17,FALSE) -> 0.886 | AI63: 1.89899073 | AJ63: 1.682505786 | AK63: 4003.032938 | AL63: =HLOOKUP($AG63,Datenbank!$C$216:$I$232,AL$17,FALSE) ->  | AP63: =HLOOKUP($AG63,Datenbank!$C$216:$I$232,AP$17,FALSE) ->  | AT63: =HLOOKUP($AG63,Datenbank!$C$216:$I$232,AT$17,FALSE) ->  | AX63: =HLOOKUP($AG63,Datenbank!$C$216:$I$232,AX$17,FALSE) ->  | BB63: =HLOOKUP($AG63,Datenbank!$C$216:$I$232,BB$17,FALSE) ->  | BF63: =HLOOKUP($AG63,Datenbank!$C$216:$I$232,BF$17,FALSE) ->  | BJ63: =HLOOKUP($AG63,Datenbank!$C$216:$I$232,BJ$17,FALSE) ->  | BN63: =HLOOKUP($AG63,Datenbank!$C$216:$I$232,BN$17,FALSE) ->  | BR63: =HLOOKUP($AG63,Datenbank!$C$216:$I$232,BR$17,FALSE) ->  | BV63: =HLOOKUP($AG63,Datenbank!$C$216:$I$232,BV$17,FALSE) ->  | BZ63: =HLOOKUP($AG63,Datenbank!$C$216:$I$232,BZ$17,FALSE) ->  | CD63: =HLOOKUP($AG63,Datenbank!$C$216:$I$232,CD$17,FALSE) ->  | CH63: =HLOOKUP($AG63,Datenbank!$C$216:$I$232,CH$17,FALSE) ->  | CL63: =HLOOKUP($AG63,Datenbank!$C$216:$I$232,CL$17,FALSE) ->  | CP63: =HLOOKUP($AG63,Datenbank!$C$216:$I$232,CP$17,FALSE) ->  | CT63: =HLOOKUP($AG63,Datenbank!$C$216:$I$232,CT$17,FALSE) ->  | CX63: =HLOOKUP($AG63,Datenbank!$C$216:$I$232,CX$17,FALSE) ->  | DB63: =HLOOKUP($AG63,Datenbank!$C$216:$I$232,DB$17,FALSE) ->  | DF63: =HLOOKUP($AG63,Datenbank!$C$216:$I$232,DF$17,FALSE) ->  | DJ63: =HLOOKUP($AG63,Datenbank!$C$216:$I$232,DJ$17,FALSE) ->  | DN63: =HLOOKUP($AG63,Datenbank!$C$216:$I$232,DN$17,FALSE) ->  | DR63: =HLOOKUP($AG63,Datenbank!$C$216:$I$232,DR$17,FALSE) ->  | DV63: =HLOOKUP($AG63,Datenbank!$C$216:$I$232,DV$17,FALSE) ->  | DZ63: =HLOOKUP($AG63,Datenbank!$C$216:$I$232,DZ$17,FALSE) ->  | ED63: =HLOOKUP($AG63,Datenbank!$C$216:$I$232,ED$17,FALSE) ->  | EH63: =HLOOKUP($AG63,Datenbank!$C$216:$I$232,EH$17,FALSE) ->  | EL63: =HLOOKUP($AG63,Datenbank!$C$216:$I$232,EL$17,FALSE) ->  | EP63: =HLOOKUP($AG63,Datenbank!$C$216:$I$232,EP$17,FALSE) ->  | ET63: =HLOOKUP($AG63,Datenbank!$C$216:$I$232,ET$17,FALSE) -> 
B64: 5235.239359 | C64: 5235.239359 | F64: 0 | I64: 0 | L64: 1167.139446 | M64: 10270.82713 | N64: 0.8800317476 | O64: 3789.40737 | P64: =Lastprofile!O64*Input!$B$19 -> 0 | Q64: =O64*(1-Input!$B$19) -> 3789.40737 | R64: =IF(V64=0,0,$R$18-(Input!$B$11-Lastprofile!V64)/(Input!$B$11-Input!$B$12)*Input!$B$18) -> 0.3689486079 | S64: 157.8919737 | T64: 0.5110831397 | U64: 5249.246575 | V64: =IF(Input!$B$11<W64,Input!$B$11,IF(Input!$B$13="Ja",Lastprofile!W64,IF(Input!$B$12<Lastprofile!W64,W64,0))) -> 218.7186073 | W64: 477.7570095 | X64: 442.0256324 | Y64: =AC64*(1+Input!$B$20+Input!$B$21) -> 10608.61518 | Z64: =AB64*Input!$B$21 -> 204.7530041 | AA64: =AB64*Input!$B$20 -> 1023.76502 | AB64: =LARGE($AC$20:$AC$384,ROWS($AC$20:AC64)) -> 10237.6502 | AC64: 9471.977838 | AD64: 1058.895 | AE64: 2016-02-14 | AF64: 1.85 | AG64: Sonntag | AH64: =HLOOKUP($AG64,Datenbank!$C$216:$I$232,AH$17,FALSE) -> 0.9435 | AI64: 1.887370469 | AJ64: 1.780734037 | AK64: 4236.738479 | AL64: =HLOOKUP($AG64,Datenbank!$C$216:$I$232,AL$17,FALSE) ->  | AP64: =HLOOKUP($AG64,Datenbank!$C$216:$I$232,AP$17,FALSE) ->  | AT64: =HLOOKUP($AG64,Datenbank!$C$216:$I$232,AT$17,FALSE) ->  | AX64: =HLOOKUP($AG64,Datenbank!$C$216:$I$232,AX$17,FALSE) ->  | BB64: =HLOOKUP($AG64,Datenbank!$C$216:$I$232,BB$17,FALSE) ->  | BF64: =HLOOKUP($AG64,Datenbank!$C$216:$I$232,BF$17,FALSE) ->  | BJ64: =HLOOKUP($AG64,Datenbank!$C$216:$I$232,BJ$17,FALSE) ->  | BN64: =HLOOKUP($AG64,Datenbank!$C$216:$I$232,BN$17,FALSE) ->  | BR64: =HLOOKUP($AG64,Datenbank!$C$216:$I$232,BR$17,FALSE) ->  | BV64: =HLOOKUP($AG64,Datenbank!$C$216:$I$232,BV$17,FALSE) ->  | BZ64: =HLOOKUP($AG64,Datenbank!$C$216:$I$232,BZ$17,FALSE) ->  | CD64: =HLOOKUP($AG64,Datenbank!$C$216:$I$232,CD$17,FALSE) ->  | CH64: =HLOOKUP($AG64,Datenbank!$C$216:$I$232,CH$17,FALSE) ->  | CL64: =HLOOKUP($AG64,Datenbank!$C$216:$I$232,CL$17,FALSE) ->  | CP64: =HLOOKUP($AG64,Datenbank!$C$216:$I$232,CP$17,FALSE) ->  | CT64: =HLOOKUP($AG64,Datenbank!$C$216:$I$232,CT$17,FALSE) ->  | CX64: =HLOOKUP($AG64,Datenbank!$C$216:$I$232,CX$17,FALSE) ->  | DB64: =HLOOKUP($AG64,Datenbank!$C$216:$I$232,DB$17,FALSE) ->  | DF64: =HLOOKUP($AG64,Datenbank!$C$216:$I$232,DF$17,FALSE) ->  | DJ64: =HLOOKUP($AG64,Datenbank!$C$216:$I$232,DJ$17,FALSE) ->  | DN64: =HLOOKUP($AG64,Datenbank!$C$216:$I$232,DN$17,FALSE) ->  | DR64: =HLOOKUP($AG64,Datenbank!$C$216:$I$232,DR$17,FALSE) ->  | DV64: =HLOOKUP($AG64,Datenbank!$C$216:$I$232,DV$17,FALSE) ->  | DZ64: =HLOOKUP($AG64,Datenbank!$C$216:$I$232,DZ$17,FALSE) ->  | ED64: =HLOOKUP($AG64,Datenbank!$C$216:$I$232,ED$17,FALSE) ->  | EH64: =HLOOKUP($AG64,Datenbank!$C$216:$I$232,EH$17,FALSE) ->  | EL64: =HLOOKUP($AG64,Datenbank!$C$216:$I$232,EL$17,FALSE) ->  | EP64: =HLOOKUP($AG64,Datenbank!$C$216:$I$232,EP$17,FALSE) ->  | ET64: =HLOOKUP($AG64,Datenbank!$C$216:$I$232,ET$17,FALSE) -> 
B65: 4881.766366 | C65: 4881.766366 | F65: 0 | I65: 0 | L65: 1167.139446 | M65: 10270.82713 | N65: 0.8800317476 | O65: 3789.40737 | P65: =Lastprofile!O65*Input!$B$19 -> 0 | Q65: =O65*(1-Input!$B$19) -> 3789.40737 | R65: =IF(V65=0,0,$R$18-(Input!$B$11-Lastprofile!V65)/(Input!$B$11-Input!$B$12)*Input!$B$18) -> 0.3689486079 | S65: 157.8919737 | T65: 0.5110831397 | U65: 5249.246575 | V65: =IF(Input!$B$11<W65,Input!$B$11,IF(Input!$B$13="Ja",Lastprofile!W65,IF(Input!$B$12<Lastprofile!W65,W65,0))) -> 218.7186073 | W65: 476.9354456 | X65: 412.1809371 | Y65: =AC65*(1+Input!$B$20+Input!$B$21) -> 9892.342492 | Z65: =AB65*Input!$B$21 -> 204.4009053 | AA65: =AB65*Input!$B$20 -> 1022.004526 | AB65: =LARGE($AC$20:$AC$384,ROWS($AC$20:AC65)) -> 10220.04526 | AC65: 8832.448653 | AD65: 1082.96 | AE65: 2016-02-15 | AF65: 4.1 | AG65: Montag | AH65: =HLOOKUP($AG65,Datenbank!$C$216:$I$232,AH$17,FALSE) -> 1.0354 | AI65: 1.603730348 | AJ65: 1.660502402 | AK65: 3950.682287 | AL65: =HLOOKUP($AG65,Datenbank!$C$216:$I$232,AL$17,FALSE) ->  | AP65: =HLOOKUP($AG65,Datenbank!$C$216:$I$232,AP$17,FALSE) ->  | AT65: =HLOOKUP($AG65,Datenbank!$C$216:$I$232,AT$17,FALSE) ->  | AX65: =HLOOKUP($AG65,Datenbank!$C$216:$I$232,AX$17,FALSE) ->  | BB65: =HLOOKUP($AG65,Datenbank!$C$216:$I$232,BB$17,FALSE) ->  | BF65: =HLOOKUP($AG65,Datenbank!$C$216:$I$232,BF$17,FALSE) ->  | BJ65: =HLOOKUP($AG65,Datenbank!$C$216:$I$232,BJ$17,FALSE) ->  | BN65: =HLOOKUP($AG65,Datenbank!$C$216:$I$232,BN$17,FALSE) ->  | BR65: =HLOOKUP($AG65,Datenbank!$C$216:$I$232,BR$17,FALSE) ->  | BV65: =HLOOKUP($AG65,Datenbank!$C$216:$I$232,BV$17,FALSE) ->  | BZ65: =HLOOKUP($AG65,Datenbank!$C$216:$I$232,BZ$17,FALSE) ->  | CD65: =HLOOKUP($AG65,Datenbank!$C$216:$I$232,CD$17,FALSE) ->  | CH65: =HLOOKUP($AG65,Datenbank!$C$216:$I$232,CH$17,FALSE) ->  | CL65: =HLOOKUP($AG65,Datenbank!$C$216:$I$232,CL$17,FALSE) ->  | CP65: =HLOOKUP($AG65,Datenbank!$C$216:$I$232,CP$17,FALSE) ->  | CT65: =HLOOKUP($AG65,Datenbank!$C$216:$I$232,CT$17,FALSE) ->  | CX65: =HLOOKUP($AG65,Datenbank!$C$216:$I$232,CX$17,FALSE) ->  | DB65: =HLOOKUP($AG65,Datenbank!$C$216:$I$232,DB$17,FALSE) ->  | DF65: =HLOOKUP($AG65,Datenbank!$C$216:$I$232,DF$17,FALSE) ->  | DJ65: =HLOOKUP($AG65,Datenbank!$C$216:$I$232,DJ$17,FALSE) ->  | DN65: =HLOOKUP($AG65,Datenbank!$C$216:$I$232,DN$17,FALSE) ->  | DR65: =HLOOKUP($AG65,Datenbank!$C$216:$I$232,DR$17,FALSE) ->  | DV65: =HLOOKUP($AG65,Datenbank!$C$216:$I$232,DV$17,FALSE) ->  | DZ65: =HLOOKUP($AG65,Datenbank!$C$216:$I$232,DZ$17,FALSE) ->  | ED65: =HLOOKUP($AG65,Datenbank!$C$216:$I$232,ED$17,FALSE) ->  | EH65: =HLOOKUP($AG65,Datenbank!$C$216:$I$232,EH$17,FALSE) ->  | EL65: =HLOOKUP($AG65,Datenbank!$C$216:$I$232,EL$17,FALSE) ->  | EP65: =HLOOKUP($AG65,Datenbank!$C$216:$I$232,EP$17,FALSE) ->  | ET65: =HLOOKUP($AG65,Datenbank!$C$216:$I$232,ET$17,FALSE) -> 
B66: 5766.186356 | C66: 5766.186356 | F66: 0 | I66: 0 | L66: 1167.139446 | M66: 10270.82713 | N66: 0.8800317476 | O66: 3789.40737 | P66: =Lastprofile!O66*Input!$B$19 -> 0 | Q66: =O66*(1-Input!$B$19) -> 3789.40737 | R66: =IF(V66=0,0,$R$18-(Input!$B$11-Lastprofile!V66)/(Input!$B$11-Input!$B$12)*Input!$B$18) -> 0.3689486079 | S66: 157.8919737 | T66: 0.5110831397 | U66: 5249.246575 | V66: =IF(Input!$B$11<W66,Input!$B$11,IF(Input!$B$13="Ja",Lastprofile!W66,IF(Input!$B$12<Lastprofile!W66,W66,0))) -> 218.7186073 | W66: 475.6210744 | X66: 486.8549451 | Y66: =AC66*(1+Input!$B$20+Input!$B$21) -> 11684.51868 | Z66: =AB66*Input!$B$21 -> 203.8376033 | AA66: =AB66*Input!$B$20 -> 1019.188017 | AB66: =LARGE($AC$20:$AC$384,ROWS($AC$20:AC66)) -> 10191.88017 | AC66: 10432.60597 | AD66: 1107.025 | AE66: 2016-02-16 | AF66: 2.05 | AG66: Dienstag | AH66: =HLOOKUP($AG66,Datenbank!$C$216:$I$232,AH$17,FALSE) -> 1.0523 | AI66: 1.863852846 | AJ66: 1.961332349 | AK66: 4666.419611 | AL66: =HLOOKUP($AG66,Datenbank!$C$216:$I$232,AL$17,FALSE) ->  | AP66: =HLOOKUP($AG66,Datenbank!$C$216:$I$232,AP$17,FALSE) ->  | AT66: =HLOOKUP($AG66,Datenbank!$C$216:$I$232,AT$17,FALSE) ->  | AX66: =HLOOKUP($AG66,Datenbank!$C$216:$I$232,AX$17,FALSE) ->  | BB66: =HLOOKUP($AG66,Datenbank!$C$216:$I$232,BB$17,FALSE) ->  | BF66: =HLOOKUP($AG66,Datenbank!$C$216:$I$232,BF$17,FALSE) ->  | BJ66: =HLOOKUP($AG66,Datenbank!$C$216:$I$232,BJ$17,FALSE) ->  | BN66: =HLOOKUP($AG66,Datenbank!$C$216:$I$232,BN$17,FALSE) ->  | BR66: =HLOOKUP($AG66,Datenbank!$C$216:$I$232,BR$17,FALSE) ->  | BV66: =HLOOKUP($AG66,Datenbank!$C$216:$I$232,BV$17,FALSE) ->  | BZ66: =HLOOKUP($AG66,Datenbank!$C$216:$I$232,BZ$17,FALSE) ->  | CD66: =HLOOKUP($AG66,Datenbank!$C$216:$I$232,CD$17,FALSE) ->  | CH66: =HLOOKUP($AG66,Datenbank!$C$216:$I$232,CH$17,FALSE) ->  | CL66: =HLOOKUP($AG66,Datenbank!$C$216:$I$232,CL$17,FALSE) ->  | CP66: =HLOOKUP($AG66,Datenbank!$C$216:$I$232,CP$17,FALSE) ->  | CT66: =HLOOKUP($AG66,Datenbank!$C$216:$I$232,CT$17,FALSE) ->  | CX66: =HLOOKUP($AG66,Datenbank!$C$216:$I$232,CX$17,FALSE) ->  | DB66: =HLOOKUP($AG66,Datenbank!$C$216:$I$232,DB$17,FALSE) ->  | DF66: =HLOOKUP($AG66,Datenbank!$C$216:$I$232,DF$17,FALSE) ->  | DJ66: =HLOOKUP($AG66,Datenbank!$C$216:$I$232,DJ$17,FALSE) ->  | DN66: =HLOOKUP($AG66,Datenbank!$C$216:$I$232,DN$17,FALSE) ->  | DR66: =HLOOKUP($AG66,Datenbank!$C$216:$I$232,DR$17,FALSE) ->  | DV66: =HLOOKUP($AG66,Datenbank!$C$216:$I$232,DV$17,FALSE) ->  | DZ66: =HLOOKUP($AG66,Datenbank!$C$216:$I$232,DZ$17,FALSE) ->  | ED66: =HLOOKUP($AG66,Datenbank!$C$216:$I$232,ED$17,FALSE) ->  | EH66: =HLOOKUP($AG66,Datenbank!$C$216:$I$232,EH$17,FALSE) ->  | EL66: =HLOOKUP($AG66,Datenbank!$C$216:$I$232,EL$17,FALSE) ->  | EP66: =HLOOKUP($AG66,Datenbank!$C$216:$I$232,EP$17,FALSE) ->  | ET66: =HLOOKUP($AG66,Datenbank!$C$216:$I$232,ET$17,FALSE) -> 
B67: 6141.654658 | C67: 6141.654658 | F67: 0 | I67: 0 | L67: 1167.139446 | M67: 10270.82713 | N67: 0.8800317476 | O67: 3789.40737 | P67: =Lastprofile!O67*Input!$B$19 -> 0 | Q67: =O67*(1-Input!$B$19) -> 3789.40737 | R67: =IF(V67=0,0,$R$18-(Input!$B$11-Lastprofile!V67)/(Input!$B$11-Input!$B$12)*Input!$B$18) -> 0.3689486079 | S67: 157.8919737 | T67: 0.5110831397 | U67: 5249.246575 | V67: =IF(Input!$B$11<W67,Input!$B$11,IF(Input!$B$13="Ja",Lastprofile!W67,IF(Input!$B$12<Lastprofile!W67,W67,0))) -> 218.7186073 | W67: 474.8176751 | X67: 518.5567647 | Y67: =AC67*(1+Input!$B$20+Input!$B$21) -> 12445.36235 | Z67: =AB67*Input!$B$21 -> 203.4932893 | AA67: =AB67*Input!$B$20 -> 1017.466447 | AB67: =LARGE($AC$20:$AC$384,ROWS($AC$20:AC67)) -> 10174.66447 | AC67: 11111.93067 | AD67: 1131.09 | AE67: 2016-02-17 | AF67: 0.85 | AG67: Mittwoch | AH67: =HLOOKUP($AG67,Datenbank!$C$216:$I$232,AH$17,FALSE) -> 1.0449 | AI67: 1.999277971 | AJ67: 2.089045552 | AK67: 4970.276014 | AL67: =HLOOKUP($AG67,Datenbank!$C$216:$I$232,AL$17,FALSE) ->  | AP67: =HLOOKUP($AG67,Datenbank!$C$216:$I$232,AP$17,FALSE) ->  | AT67: =HLOOKUP($AG67,Datenbank!$C$216:$I$232,AT$17,FALSE) ->  | AX67: =HLOOKUP($AG67,Datenbank!$C$216:$I$232,AX$17,FALSE) ->  | BB67: =HLOOKUP($AG67,Datenbank!$C$216:$I$232,BB$17,FALSE) ->  | BF67: =HLOOKUP($AG67,Datenbank!$C$216:$I$232,BF$17,FALSE) ->  | BJ67: =HLOOKUP($AG67,Datenbank!$C$216:$I$232,BJ$17,FALSE) ->  | BN67: =HLOOKUP($AG67,Datenbank!$C$216:$I$232,BN$17,FALSE) ->  | BR67: =HLOOKUP($AG67,Datenbank!$C$216:$I$232,BR$17,FALSE) ->  | BV67: =HLOOKUP($AG67,Datenbank!$C$216:$I$232,BV$17,FALSE) ->  | BZ67: =HLOOKUP($AG67,Datenbank!$C$216:$I$232,BZ$17,FALSE) ->  | CD67: =HLOOKUP($AG67,Datenbank!$C$216:$I$232,CD$17,FALSE) ->  | CH67: =HLOOKUP($AG67,Datenbank!$C$216:$I$232,CH$17,FALSE) ->  | CL67: =HLOOKUP($AG67,Datenbank!$C$216:$I$232,CL$17,FALSE) ->  | CP67: =HLOOKUP($AG67,Datenbank!$C$216:$I$232,CP$17,FALSE) ->  | CT67: =HLOOKUP($AG67,Datenbank!$C$216:$I$232,CT$17,FALSE) ->  | CX67: =HLOOKUP($AG67,Datenbank!$C$216:$I$232,CX$17,FALSE) ->  | DB67: =HLOOKUP($AG67,Datenbank!$C$216:$I$232,DB$17,FALSE) ->  | DF67: =HLOOKUP($AG67,Datenbank!$C$216:$I$232,DF$17,FALSE) ->  | DJ67: =HLOOKUP($AG67,Datenbank!$C$216:$I$232,DJ$17,FALSE) ->  | DN67: =HLOOKUP($AG67,Datenbank!$C$216:$I$232,DN$17,FALSE) ->  | DR67: =HLOOKUP($AG67,Datenbank!$C$216:$I$232,DR$17,FALSE) ->  | DV67: =HLOOKUP($AG67,Datenbank!$C$216:$I$232,DV$17,FALSE) ->  | DZ67: =HLOOKUP($AG67,Datenbank!$C$216:$I$232,DZ$17,FALSE) ->  | ED67: =HLOOKUP($AG67,Datenbank!$C$216:$I$232,ED$17,FALSE) ->  | EH67: =HLOOKUP($AG67,Datenbank!$C$216:$I$232,EH$17,FALSE) ->  | EL67: =HLOOKUP($AG67,Datenbank!$C$216:$I$232,EL$17,FALSE) ->  | EP67: =HLOOKUP($AG67,Datenbank!$C$216:$I$232,EP$17,FALSE) ->  | ET67: =HLOOKUP($AG67,Datenbank!$C$216:$I$232,ET$17,FALSE) -> 
B68: 6101.446202 | C68: 6101.446202 | F68: 0 | I68: 0 | L68: 1167.139446 | M68: 10270.82713 | N68: 0.8800317476 | O68: 3789.40737 | P68: =Lastprofile!O68*Input!$B$19 -> 0 | Q68: =O68*(1-Input!$B$19) -> 3789.40737 | R68: =IF(V68=0,0,$R$18-(Input!$B$11-Lastprofile!V68)/(Input!$B$11-Input!$B$12)*Input!$B$18) -> 0.3689486079 | S68: 157.8919737 | T68: 0.5110831397 | U68: 5249.246575 | V68: =IF(Input!$B$11<W68,Input!$B$11,IF(Input!$B$13="Ja",Lastprofile!W68,IF(Input!$B$12<Lastprofile!W68,W68,0))) -> 218.7186073 | W68: 473.5815329 | X68: 515.1618543 | Y68: =AC68*(1+Input!$B$20+Input!$B$21) -> 12363.8845 | Z68: =AB68*Input!$B$21 -> 202.9635141 | AA68: =AB68*Input!$B$20 -> 1014.817571 | AB68: =LARGE($AC$20:$AC$384,ROWS($AC$20:AC68)) -> 10148.17571 | AC68: 11039.18259 | AD68: 1155.155 | AE68: 2016-02-18 | AF68: 1.05 | AG68: Donnerstag | AH68: =HLOOKUP($AG68,Datenbank!$C$216:$I$232,AH$17,FALSE) -> 1.0494 | AI68: 1.977671904 | AJ68: 2.075368896 | AK68: 4937.736391 | AL68: =HLOOKUP($AG68,Datenbank!$C$216:$I$232,AL$17,FALSE) ->  | AP68: =HLOOKUP($AG68,Datenbank!$C$216:$I$232,AP$17,FALSE) ->  | AT68: =HLOOKUP($AG68,Datenbank!$C$216:$I$232,AT$17,FALSE) ->  | AX68: =HLOOKUP($AG68,Datenbank!$C$216:$I$232,AX$17,FALSE) ->  | BB68: =HLOOKUP($AG68,Datenbank!$C$216:$I$232,BB$17,FALSE) ->  | BF68: =HLOOKUP($AG68,Datenbank!$C$216:$I$232,BF$17,FALSE) ->  | BJ68: =HLOOKUP($AG68,Datenbank!$C$216:$I$232,BJ$17,FALSE) ->  | BN68: =HLOOKUP($AG68,Datenbank!$C$216:$I$232,BN$17,FALSE) ->  | BR68: =HLOOKUP($AG68,Datenbank!$C$216:$I$232,BR$17,FALSE) ->  | BV68: =HLOOKUP($AG68,Datenbank!$C$216:$I$232,BV$17,FALSE) ->  | BZ68: =HLOOKUP($AG68,Datenbank!$C$216:$I$232,BZ$17,FALSE) ->  | CD68: =HLOOKUP($AG68,Datenbank!$C$216:$I$232,CD$17,FALSE) ->  | CH68: =HLOOKUP($AG68,Datenbank!$C$216:$I$232,CH$17,FALSE) ->  | CL68: =HLOOKUP($AG68,Datenbank!$C$216:$I$232,CL$17,FALSE) ->  | CP68: =HLOOKUP($AG68,Datenbank!$C$216:$I$232,CP$17,FALSE) ->  | CT68: =HLOOKUP($AG68,Datenbank!$C$216:$I$232,CT$17,FALSE) ->  | CX68: =HLOOKUP($AG68,Datenbank!$C$216:$I$232,CX$17,FALSE) ->  | DB68: =HLOOKUP($AG68,Datenbank!$C$216:$I$232,DB$17,FALSE) ->  | DF68: =HLOOKUP($AG68,Datenbank!$C$216:$I$232,DF$17,FALSE) ->  | DJ68: =HLOOKUP($AG68,Datenbank!$C$216:$I$232,DJ$17,FALSE) ->  | DN68: =HLOOKUP($AG68,Datenbank!$C$216:$I$232,DN$17,FALSE) ->  | DR68: =HLOOKUP($AG68,Datenbank!$C$216:$I$232,DR$17,FALSE) ->  | DV68: =HLOOKUP($AG68,Datenbank!$C$216:$I$232,DV$17,FALSE) ->  | DZ68: =HLOOKUP($AG68,Datenbank!$C$216:$I$232,DZ$17,FALSE) ->  | ED68: =HLOOKUP($AG68,Datenbank!$C$216:$I$232,ED$17,FALSE) ->  | EH68: =HLOOKUP($AG68,Datenbank!$C$216:$I$232,EH$17,FALSE) ->  | EL68: =HLOOKUP($AG68,Datenbank!$C$216:$I$232,EL$17,FALSE) ->  | EP68: =HLOOKUP($AG68,Datenbank!$C$216:$I$232,EP$17,FALSE) ->  | ET68: =HLOOKUP($AG68,Datenbank!$C$216:$I$232,ET$17,FALSE) -> 
B69: 5568.84717 | C69: 5568.84717 | F69: 0 | I69: 0 | L69: 1167.139446 | M69: 10270.82713 | N69: 0.8800317476 | O69: 3789.40737 | P69: =Lastprofile!O69*Input!$B$19 -> 0 | Q69: =O69*(1-Input!$B$19) -> 3789.40737 | R69: =IF(V69=0,0,$R$18-(Input!$B$11-Lastprofile!V69)/(Input!$B$11-Input!$B$12)*Input!$B$18) -> 0.3689486079 | S69: 157.8919737 | T69: 0.5110831397 | U69: 5249.246575 | V69: =IF(Input!$B$11<W69,Input!$B$11,IF(Input!$B$13="Ja",Lastprofile!W69,IF(Input!$B$12<Lastprofile!W69,W69,0))) -> 218.7186073 | W69: 471.524601 | X69: 470.1930559 | Y69: =AC69*(1+Input!$B$20+Input!$B$21) -> 11284.63334 | Z69: =AB69*Input!$B$21 -> 202.0819719 | AA69: =AB69*Input!$B$20 -> 1010.409859 | AB69: =LARGE($AC$20:$AC$384,ROWS($AC$20:AC69)) -> 10104.09859 | AC69: 10075.56548 | AD69: 1179.22 | AE69: 2016-02-19 | AF69: 1.6 | AG69: Freitag | AH69: =HLOOKUP($AG69,Datenbank!$C$216:$I$232,AH$17,FALSE) -> 0.9885 | AI69: 1.916245478 | AJ69: 1.894208655 | AK69: 4506.718313 | AL69: =HLOOKUP($AG69,Datenbank!$C$216:$I$232,AL$17,FALSE) ->  | AP69: =HLOOKUP($AG69,Datenbank!$C$216:$I$232,AP$17,FALSE) ->  | AT69: =HLOOKUP($AG69,Datenbank!$C$216:$I$232,AT$17,FALSE) ->  | AX69: =HLOOKUP($AG69,Datenbank!$C$216:$I$232,AX$17,FALSE) ->  | BB69: =HLOOKUP($AG69,Datenbank!$C$216:$I$232,BB$17,FALSE) ->  | BF69: =HLOOKUP($AG69,Datenbank!$C$216:$I$232,BF$17,FALSE) ->  | BJ69: =HLOOKUP($AG69,Datenbank!$C$216:$I$232,BJ$17,FALSE) ->  | BN69: =HLOOKUP($AG69,Datenbank!$C$216:$I$232,BN$17,FALSE) ->  | BR69: =HLOOKUP($AG69,Datenbank!$C$216:$I$232,BR$17,FALSE) ->  | BV69: =HLOOKUP($AG69,Datenbank!$C$216:$I$232,BV$17,FALSE) ->  | BZ69: =HLOOKUP($AG69,Datenbank!$C$216:$I$232,BZ$17,FALSE) ->  | CD69: =HLOOKUP($AG69,Datenbank!$C$216:$I$232,CD$17,FALSE) ->  | CH69: =HLOOKUP($AG69,Datenbank!$C$216:$I$232,CH$17,FALSE) ->  | CL69: =HLOOKUP($AG69,Datenbank!$C$216:$I$232,CL$17,FALSE) ->  | CP69: =HLOOKUP($AG69,Datenbank!$C$216:$I$232,CP$17,FALSE) ->  | CT69: =HLOOKUP($AG69,Datenbank!$C$216:$I$232,CT$17,FALSE) ->  | CX69: =HLOOKUP($AG69,Datenbank!$C$216:$I$232,CX$17,FALSE) ->  | DB69: =HLOOKUP($AG69,Datenbank!$C$216:$I$232,DB$17,FALSE) ->  | DF69: =HLOOKUP($AG69,Datenbank!$C$216:$I$232,DF$17,FALSE) ->  | DJ69: =HLOOKUP($AG69,Datenbank!$C$216:$I$232,DJ$17,FALSE) ->  | DN69: =HLOOKUP($AG69,Datenbank!$C$216:$I$232,DN$17,FALSE) ->  | DR69: =HLOOKUP($AG69,Datenbank!$C$216:$I$232,DR$17,FALSE) ->  | DV69: =HLOOKUP($AG69,Datenbank!$C$216:$I$232,DV$17,FALSE) ->  | DZ69: =HLOOKUP($AG69,Datenbank!$C$216:$I$232,DZ$17,FALSE) ->  | ED69: =HLOOKUP($AG69,Datenbank!$C$216:$I$232,ED$17,FALSE) ->  | EH69: =HLOOKUP($AG69,Datenbank!$C$216:$I$232,EH$17,FALSE) ->  | EL69: =HLOOKUP($AG69,Datenbank!$C$216:$I$232,EL$17,FALSE) ->  | EP69: =HLOOKUP($AG69,Datenbank!$C$216:$I$232,EP$17,FALSE) ->  | ET69: =HLOOKUP($AG69,Datenbank!$C$216:$I$232,ET$17,FALSE) -> 
B70: 4332.996283 | C70: 4332.996283 | F70: 0 | I70: 0 | L70: 1167.139446 | M70: 10270.82713 | N70: 0.8800317476 | O70: 3789.40737 | P70: =Lastprofile!O70*Input!$B$19 -> 0 | Q70: =O70*(1-Input!$B$19) -> 3789.40737 | R70: =IF(V70=0,0,$R$18-(Input!$B$11-Lastprofile!V70)/(Input!$B$11-Input!$B$12)*Input!$B$18) -> 0.3689486079 | S70: 157.8919737 | T70: 0.5110831397 | U70: 5249.246575 | V70: =IF(Input!$B$11<W70,Input!$B$11,IF(Input!$B$13="Ja",Lastprofile!W70,IF(Input!$B$12<Lastprofile!W70,W70,0))) -> 218.7186073 | W70: 471.1268273 | X70: 365.8467724 | Y70: =AC70*(1+Input!$B$20+Input!$B$21) -> 8780.322538 | Z70: =AB70*Input!$B$21 -> 201.9114974 | AA70: =AB70*Input!$B$20 -> 1009.557487 | AB70: =LARGE($AC$20:$AC$384,ROWS($AC$20:AC70)) -> 10095.57487 | AC70: 7839.573694 | AD70: 1203.285 | AE70: 2016-02-20 | AF70: 3.65 | AG70: Samstag | AH70: =HLOOKUP($AG70,Datenbank!$C$216:$I$232,AH$17,FALSE) -> 0.886 | AI70: 1.663478193 | AJ70: 1.473841679 | AK70: 3506.577411 | AL70: =HLOOKUP($AG70,Datenbank!$C$216:$I$232,AL$17,FALSE) ->  | AP70: =HLOOKUP($AG70,Datenbank!$C$216:$I$232,AP$17,FALSE) ->  | AT70: =HLOOKUP($AG70,Datenbank!$C$216:$I$232,AT$17,FALSE) ->  | AX70: =HLOOKUP($AG70,Datenbank!$C$216:$I$232,AX$17,FALSE) ->  | BB70: =HLOOKUP($AG70,Datenbank!$C$216:$I$232,BB$17,FALSE) ->  | BF70: =HLOOKUP($AG70,Datenbank!$C$216:$I$232,BF$17,FALSE) ->  | BJ70: =HLOOKUP($AG70,Datenbank!$C$216:$I$232,BJ$17,FALSE) ->  | BN70: =HLOOKUP($AG70,Datenbank!$C$216:$I$232,BN$17,FALSE) ->  | BR70: =HLOOKUP($AG70,Datenbank!$C$216:$I$232,BR$17,FALSE) ->  | BV70: =HLOOKUP($AG70,Datenbank!$C$216:$I$232,BV$17,FALSE) ->  | BZ70: =HLOOKUP($AG70,Datenbank!$C$216:$I$232,BZ$17,FALSE) ->  | CD70: =HLOOKUP($AG70,Datenbank!$C$216:$I$232,CD$17,FALSE) ->  | CH70: =HLOOKUP($AG70,Datenbank!$C$216:$I$232,CH$17,FALSE) ->  | CL70: =HLOOKUP($AG70,Datenbank!$C$216:$I$232,CL$17,FALSE) ->  | CP70: =HLOOKUP($AG70,Datenbank!$C$216:$I$232,CP$17,FALSE) ->  | CT70: =HLOOKUP($AG70,Datenbank!$C$216:$I$232,CT$17,FALSE) ->  | CX70: =HLOOKUP($AG70,Datenbank!$C$216:$I$232,CX$17,FALSE) ->  | DB70: =HLOOKUP($AG70,Datenbank!$C$216:$I$232,DB$17,FALSE) ->  | DF70: =HLOOKUP($AG70,Datenbank!$C$216:$I$232,DF$17,FALSE) ->  | DJ70: =HLOOKUP($AG70,Datenbank!$C$216:$I$232,DJ$17,FALSE) ->  | DN70: =HLOOKUP($AG70,Datenbank!$C$216:$I$232,DN$17,FALSE) ->  | DR70: =HLOOKUP($AG70,Datenbank!$C$216:$I$232,DR$17,FALSE) ->  | DV70: =HLOOKUP($AG70,Datenbank!$C$216:$I$232,DV$17,FALSE) ->  | DZ70: =HLOOKUP($AG70,Datenbank!$C$216:$I$232,DZ$17,FALSE) ->  | ED70: =HLOOKUP($AG70,Datenbank!$C$216:$I$232,ED$17,FALSE) ->  | EH70: =HLOOKUP($AG70,Datenbank!$C$216:$I$232,EH$17,FALSE) ->  | EL70: =HLOOKUP($AG70,Datenbank!$C$216:$I$232,EL$17,FALSE) ->  | EP70: =HLOOKUP($AG70,Datenbank!$C$216:$I$232,EP$17,FALSE) ->  | ET70: =HLOOKUP($AG70,Datenbank!$C$216:$I$232,ET$17,FALSE) -> 
B71: 4776.17096 | C71: 4776.17096 | F71: 0 | I71: 0 | L71: 1167.139446 | M71: 10270.82713 | N71: 0.8800317476 | O71: 3789.40737 | P71: =Lastprofile!O71*Input!$B$19 -> 0 | Q71: =O71*(1-Input!$B$19) -> 3789.40737 | R71: =IF(V71=0,0,$R$18-(Input!$B$11-Lastprofile!V71)/(Input!$B$11-Input!$B$12)*Input!$B$18) -> 0.3689486079 | S71: 157.8919737 | T71: 0.5110831397 | U71: 5249.246575 | V71: =IF(Input!$B$11<W71,Input!$B$11,IF(Input!$B$13="Ja",Lastprofile!W71,IF(Input!$B$12<Lastprofile!W71,W71,0))) -> 218.7186073 | W71: 470.5521096 | X71: 403.2652271 | Y71: =AC71*(1+Input!$B$20+Input!$B$21) -> 9678.365452 | Z71: =AB71*Input!$B$21 -> 201.6651898 | AA71: =AB71*Input!$B$20 -> 1008.325949 | AB71: =LARGE($AC$20:$AC$384,ROWS($AC$20:AC71)) -> 10083.25949 | AC71: 8641.397725 | AD71: 1227.35 | AE71: 2016-02-21 | AF71: 3.2 | AG71: Sonntag | AH71: =HLOOKUP($AG71,Datenbank!$C$216:$I$232,AH$17,FALSE) -> 0.9435 | AI71: 1.721870464 | AJ71: 1.624584783 | AK71: 3865.226764 | AL71: =HLOOKUP($AG71,Datenbank!$C$216:$I$232,AL$17,FALSE) ->  | AP71: =HLOOKUP($AG71,Datenbank!$C$216:$I$232,AP$17,FALSE) ->  | AT71: =HLOOKUP($AG71,Datenbank!$C$216:$I$232,AT$17,FALSE) ->  | AX71: =HLOOKUP($AG71,Datenbank!$C$216:$I$232,AX$17,FALSE) ->  | BB71: =HLOOKUP($AG71,Datenbank!$C$216:$I$232,BB$17,FALSE) ->  | BF71: =HLOOKUP($AG71,Datenbank!$C$216:$I$232,BF$17,FALSE) ->  | BJ71: =HLOOKUP($AG71,Datenbank!$C$216:$I$232,BJ$17,FALSE) ->  | BN71: =HLOOKUP($AG71,Datenbank!$C$216:$I$232,BN$17,FALSE) ->  | BR71: =HLOOKUP($AG71,Datenbank!$C$216:$I$232,BR$17,FALSE) ->  | BV71: =HLOOKUP($AG71,Datenbank!$C$216:$I$232,BV$17,FALSE) ->  | BZ71: =HLOOKUP($AG71,Datenbank!$C$216:$I$232,BZ$17,FALSE) ->  | CD71: =HLOOKUP($AG71,Datenbank!$C$216:$I$232,CD$17,FALSE) ->  | CH71: =HLOOKUP($AG71,Datenbank!$C$216:$I$232,CH$17,FALSE) ->  | CL71: =HLOOKUP($AG71,Datenbank!$C$216:$I$232,CL$17,FALSE) ->  | CP71: =HLOOKUP($AG71,Datenbank!$C$216:$I$232,CP$17,FALSE) ->  | CT71: =HLOOKUP($AG71,Datenbank!$C$216:$I$232,CT$17,FALSE) ->  | CX71: =HLOOKUP($AG71,Datenbank!$C$216:$I$232,CX$17,FALSE) ->  | DB71: =HLOOKUP($AG71,Datenbank!$C$216:$I$232,DB$17,FALSE) ->  | DF71: =HLOOKUP($AG71,Datenbank!$C$216:$I$232,DF$17,FALSE) ->  | DJ71: =HLOOKUP($AG71,Datenbank!$C$216:$I$232,DJ$17,FALSE) ->  | DN71: =HLOOKUP($AG71,Datenbank!$C$216:$I$232,DN$17,FALSE) ->  | DR71: =HLOOKUP($AG71,Datenbank!$C$216:$I$232,DR$17,FALSE) ->  | DV71: =HLOOKUP($AG71,Datenbank!$C$216:$I$232,DV$17,FALSE) ->  | DZ71: =HLOOKUP($AG71,Datenbank!$C$216:$I$232,DZ$17,FALSE) ->  | ED71: =HLOOKUP($AG71,Datenbank!$C$216:$I$232,ED$17,FALSE) ->  | EH71: =HLOOKUP($AG71,Datenbank!$C$216:$I$232,EH$17,FALSE) ->  | EL71: =HLOOKUP($AG71,Datenbank!$C$216:$I$232,EL$17,FALSE) ->  | EP71: =HLOOKUP($AG71,Datenbank!$C$216:$I$232,EP$17,FALSE) ->  | ET71: =HLOOKUP($AG71,Datenbank!$C$216:$I$232,ET$17,FALSE) -> 
B72: 5452.293732 | C72: 5452.293732 | F72: 0 | I72: 0 | L72: 1167.139446 | M72: 10270.82713 | N72: 0.8800317476 | O72: 3789.40737 | P72: =Lastprofile!O72*Input!$B$19 -> 0 | Q72: =O72*(1-Input!$B$19) -> 3789.40737 | R72: =IF(V72=0,0,$R$18-(Input!$B$11-Lastprofile!V72)/(Input!$B$11-Input!$B$12)*Input!$B$18) -> 0.3689486079 | S72: 157.8919737 | T72: 0.5110831397 | U72: 5249.246575 | V72: =IF(Input!$B$11<W72,Input!$B$11,IF(Input!$B$13="Ja",Lastprofile!W72,IF(Input!$B$12<Lastprofile!W72,W72,0))) -> 218.7186073 | W72: 470.1930559 | X72: 460.3521291 | Y72: =AC72*(1+Input!$B$20+Input!$B$21) -> 11048.4511 | Z72: =AB72*Input!$B$21 -> 201.5113097 | AA72: =AB72*Input!$B$20 -> 1007.556548 | AB72: =LARGE($AC$20:$AC$384,ROWS($AC$20:AC72)) -> 10075.56548 | AC72: 9864.68848 | AD72: 1251.415 | AE72: 2016-02-22 | AF72: 2.65 | AG72: Montag | AH72: =HLOOKUP($AG72,Datenbank!$C$216:$I$232,AH$17,FALSE) -> 1.0354 | AI72: 1.79115678 | AJ72: 1.85456373 | AK72: 4412.394748 | AL72: =HLOOKUP($AG72,Datenbank!$C$216:$I$232,AL$17,FALSE) ->  | AP72: =HLOOKUP($AG72,Datenbank!$C$216:$I$232,AP$17,FALSE) ->  | AT72: =HLOOKUP($AG72,Datenbank!$C$216:$I$232,AT$17,FALSE) ->  | AX72: =HLOOKUP($AG72,Datenbank!$C$216:$I$232,AX$17,FALSE) ->  | BB72: =HLOOKUP($AG72,Datenbank!$C$216:$I$232,BB$17,FALSE) ->  | BF72: =HLOOKUP($AG72,Datenbank!$C$216:$I$232,BF$17,FALSE) ->  | BJ72: =HLOOKUP($AG72,Datenbank!$C$216:$I$232,BJ$17,FALSE) ->  | BN72: =HLOOKUP($AG72,Datenbank!$C$216:$I$232,BN$17,FALSE) ->  | BR72: =HLOOKUP($AG72,Datenbank!$C$216:$I$232,BR$17,FALSE) ->  | BV72: =HLOOKUP($AG72,Datenbank!$C$216:$I$232,BV$17,FALSE) ->  | BZ72: =HLOOKUP($AG72,Datenbank!$C$216:$I$232,BZ$17,FALSE) ->  | CD72: =HLOOKUP($AG72,Datenbank!$C$216:$I$232,CD$17,FALSE) ->  | CH72: =HLOOKUP($AG72,Datenbank!$C$216:$I$232,CH$17,FALSE) ->  | CL72: =HLOOKUP($AG72,Datenbank!$C$216:$I$232,CL$17,FALSE) ->  | CP72: =HLOOKUP($AG72,Datenbank!$C$216:$I$232,CP$17,FALSE) ->  | CT72: =HLOOKUP($AG72,Datenbank!$C$216:$I$232,CT$17,FALSE) ->  | CX72: =HLOOKUP($AG72,Datenbank!$C$216:$I$232,CX$17,FALSE) ->  | DB72: =HLOOKUP($AG72,Datenbank!$C$216:$I$232,DB$17,FALSE) ->  | DF72: =HLOOKUP($AG72,Datenbank!$C$216:$I$232,DF$17,FALSE) ->  | DJ72: =HLOOKUP($AG72,Datenbank!$C$216:$I$232,DJ$17,FALSE) ->  | DN72: =HLOOKUP($AG72,Datenbank!$C$216:$I$232,DN$17,FALSE) ->  | DR72: =HLOOKUP($AG72,Datenbank!$C$216:$I$232,DR$17,FALSE) ->  | DV72: =HLOOKUP($AG72,Datenbank!$C$216:$I$232,DV$17,FALSE) ->  | DZ72: =HLOOKUP($AG72,Datenbank!$C$216:$I$232,DZ$17,FALSE) ->  | ED72: =HLOOKUP($AG72,Datenbank!$C$216:$I$232,ED$17,FALSE) ->  | EH72: =HLOOKUP($AG72,Datenbank!$C$216:$I$232,EH$17,FALSE) ->  | EL72: =HLOOKUP($AG72,Datenbank!$C$216:$I$232,EL$17,FALSE) ->  | EP72: =HLOOKUP($AG72,Datenbank!$C$216:$I$232,EP$17,FALSE) ->  | ET72: =HLOOKUP($AG72,Datenbank!$C$216:$I$232,ET$17,FALSE) -> 
B73: 5267.220082 | C73: 5267.220082 | F73: 0 | I73: 0 | L73: 1167.139446 | M73: 10270.82713 | N73: 0.8800317476 | O73: 3789.40737 | P73: =Lastprofile!O73*Input!$B$19 -> 0 | Q73: =O73*(1-Input!$B$19) -> 3789.40737 | R73: =IF(V73=0,0,$R$18-(Input!$B$11-Lastprofile!V73)/(Input!$B$11-Input!$B$12)*Input!$B$18) -> 0.3689486079 | S73: 157.8919737 | T73: 0.5110831397 | U73: 5249.246575 | V73: =IF(Input!$B$11<W73,Input!$B$11,IF(Input!$B$13="Ja",Lastprofile!W73,IF(Input!$B$12<Lastprofile!W73,W73,0))) -> 218.7186073 | W73: 469.4851695 | X73: 444.7258527 | Y73: =AC73*(1+Input!$B$20+Input!$B$21) -> 10673.42047 | Z73: =AB73*Input!$B$21 -> 201.2079298 | AA73: =AB73*Input!$B$20 -> 1006.039649 | AB73: =LARGE($AC$20:$AC$384,ROWS($AC$20:AC73)) -> 10060.39649 | AC73: 9529.839701 | AD73: 1275.48 | AE73: 2016-02-23 | AF73: 3.35 | AG73: Dienstag | AH73: =HLOOKUP($AG73,Datenbank!$C$216:$I$232,AH$17,FALSE) -> 1.0523 | AI73: 1.702567786 | AJ73: 1.791612081 | AK73: 4262.619619 | AL73: =HLOOKUP($AG73,Datenbank!$C$216:$I$232,AL$17,FALSE) ->  | AP73: =HLOOKUP($AG73,Datenbank!$C$216:$I$232,AP$17,FALSE) ->  | AT73: =HLOOKUP($AG73,Datenbank!$C$216:$I$232,AT$17,FALSE) ->  | AX73: =HLOOKUP($AG73,Datenbank!$C$216:$I$232,AX$17,FALSE) ->  | BB73: =HLOOKUP($AG73,Datenbank!$C$216:$I$232,BB$17,FALSE) ->  | BF73: =HLOOKUP($AG73,Datenbank!$C$216:$I$232,BF$17,FALSE) ->  | BJ73: =HLOOKUP($AG73,Datenbank!$C$216:$I$232,BJ$17,FALSE) ->  | BN73: =HLOOKUP($AG73,Datenbank!$C$216:$I$232,BN$17,FALSE) ->  | BR73: =HLOOKUP($AG73,Datenbank!$C$216:$I$232,BR$17,FALSE) ->  | BV73: =HLOOKUP($AG73,Datenbank!$C$216:$I$232,BV$17,FALSE) ->  | BZ73: =HLOOKUP($AG73,Datenbank!$C$216:$I$232,BZ$17,FALSE) ->  | CD73: =HLOOKUP($AG73,Datenbank!$C$216:$I$232,CD$17,FALSE) ->  | CH73: =HLOOKUP($AG73,Datenbank!$C$216:$I$232,CH$17,FALSE) ->  | CL73: =HLOOKUP($AG73,Datenbank!$C$216:$I$232,CL$17,FALSE) ->  | CP73: =HLOOKUP($AG73,Datenbank!$C$216:$I$232,CP$17,FALSE) ->  | CT73: =HLOOKUP($AG73,Datenbank!$C$216:$I$232,CT$17,FALSE) ->  | CX73: =HLOOKUP($AG73,Datenbank!$C$216:$I$232,CX$17,FALSE) ->  | DB73: =HLOOKUP($AG73,Datenbank!$C$216:$I$232,DB$17,FALSE) ->  | DF73: =HLOOKUP($AG73,Datenbank!$C$216:$I$232,DF$17,FALSE) ->  | DJ73: =HLOOKUP($AG73,Datenbank!$C$216:$I$232,DJ$17,FALSE) ->  | DN73: =HLOOKUP($AG73,Datenbank!$C$216:$I$232,DN$17,FALSE) ->  | DR73: =HLOOKUP($AG73,Datenbank!$C$216:$I$232,DR$17,FALSE) ->  | DV73: =HLOOKUP($AG73,Datenbank!$C$216:$I$232,DV$17,FALSE) ->  | DZ73: =HLOOKUP($AG73,Datenbank!$C$216:$I$232,DZ$17,FALSE) ->  | ED73: =HLOOKUP($AG73,Datenbank!$C$216:$I$232,ED$17,FALSE) ->  | EH73: =HLOOKUP($AG73,Datenbank!$C$216:$I$232,EH$17,FALSE) ->  | EL73: =HLOOKUP($AG73,Datenbank!$C$216:$I$232,EL$17,FALSE) ->  | EP73: =HLOOKUP($AG73,Datenbank!$C$216:$I$232,EP$17,FALSE) ->  | ET73: =HLOOKUP($AG73,Datenbank!$C$216:$I$232,ET$17,FALSE) -> 
B74: 6069.696604 | C74: 6069.696604 | F74: 0 | I74: 0 | L74: 1167.139446 | M74: 10270.82713 | N74: 0.8800317476 | O74: 3789.40737 | P74: =Lastprofile!O74*Input!$B$19 -> 0 | Q74: =O74*(1-Input!$B$19) -> 3789.40737 | R74: =IF(V74=0,0,$R$18-(Input!$B$11-Lastprofile!V74)/(Input!$B$11-Input!$B$12)*Input!$B$18) -> 0.3689486079 | S74: 157.8919737 | T74: 0.5110831397 | U74: 5249.246575 | V74: =IF(Input!$B$11<W74,Input!$B$11,IF(Input!$B$13="Ja",Lastprofile!W74,IF(Input!$B$12<Lastprofile!W74,W74,0))) -> 218.7186073 | W74: 469.4851695 | X74: 512.4811486 | Y74: =AC74*(1+Input!$B$20+Input!$B$21) -> 12299.54757 | Z74: =AB74*Input!$B$21 -> 201.2079298 | AA74: =AB74*Input!$B$20 -> 1006.039649 | AB74: =LARGE($AC$20:$AC$384,ROWS($AC$20:AC74)) -> 10060.39649 | AC74: 10981.7389 | AD74: 1299.545 | AE74: 2016-02-24 | AF74: 1.066666667 | AG74: Mittwoch | AH74: =HLOOKUP($AG74,Datenbank!$C$216:$I$232,AH$17,FALSE) -> 1.0449 | AI74: 1.97585364 | AJ74: 2.064569468 | AK74: 4912.042295 | AL74: =HLOOKUP($AG74,Datenbank!$C$216:$I$232,AL$17,FALSE) ->  | AP74: =HLOOKUP($AG74,Datenbank!$C$216:$I$232,AP$17,FALSE) ->  | AT74: =HLOOKUP($AG74,Datenbank!$C$216:$I$232,AT$17,FALSE) ->  | AX74: =HLOOKUP($AG74,Datenbank!$C$216:$I$232,AX$17,FALSE) ->  | BB74: =HLOOKUP($AG74,Datenbank!$C$216:$I$232,BB$17,FALSE) ->  | BF74: =HLOOKUP($AG74,Datenbank!$C$216:$I$232,BF$17,FALSE) ->  | BJ74: =HLOOKUP($AG74,Datenbank!$C$216:$I$232,BJ$17,FALSE) ->  | BN74: =HLOOKUP($AG74,Datenbank!$C$216:$I$232,BN$17,FALSE) ->  | BR74: =HLOOKUP($AG74,Datenbank!$C$216:$I$232,BR$17,FALSE) ->  | BV74: =HLOOKUP($AG74,Datenbank!$C$216:$I$232,BV$17,FALSE) ->  | BZ74: =HLOOKUP($AG74,Datenbank!$C$216:$I$232,BZ$17,FALSE) ->  | CD74: =HLOOKUP($AG74,Datenbank!$C$216:$I$232,CD$17,FALSE) ->  | CH74: =HLOOKUP($AG74,Datenbank!$C$216:$I$232,CH$17,FALSE) ->  | CL74: =HLOOKUP($AG74,Datenbank!$C$216:$I$232,CL$17,FALSE) ->  | CP74: =HLOOKUP($AG74,Datenbank!$C$216:$I$232,CP$17,FALSE) ->  | CT74: =HLOOKUP($AG74,Datenbank!$C$216:$I$232,CT$17,FALSE) ->  | CX74: =HLOOKUP($AG74,Datenbank!$C$216:$I$232,CX$17,FALSE) ->  | DB74: =HLOOKUP($AG74,Datenbank!$C$216:$I$232,DB$17,FALSE) ->  | DF74: =HLOOKUP($AG74,Datenbank!$C$216:$I$232,DF$17,FALSE) ->  | DJ74: =HLOOKUP($AG74,Datenbank!$C$216:$I$232,DJ$17,FALSE) ->  | DN74: =HLOOKUP($AG74,Datenbank!$C$216:$I$232,DN$17,FALSE) ->  | DR74: =HLOOKUP($AG74,Datenbank!$C$216:$I$232,DR$17,FALSE) ->  | DV74: =HLOOKUP($AG74,Datenbank!$C$216:$I$232,DV$17,FALSE) ->  | DZ74: =HLOOKUP($AG74,Datenbank!$C$216:$I$232,DZ$17,FALSE) ->  | ED74: =HLOOKUP($AG74,Datenbank!$C$216:$I$232,ED$17,FALSE) ->  | EH74: =HLOOKUP($AG74,Datenbank!$C$216:$I$232,EH$17,FALSE) ->  | EL74: =HLOOKUP($AG74,Datenbank!$C$216:$I$232,EL$17,FALSE) ->  | EP74: =HLOOKUP($AG74,Datenbank!$C$216:$I$232,EP$17,FALSE) ->  | ET74: =HLOOKUP($AG74,Datenbank!$C$216:$I$232,ET$17,FALSE) -> 
B75: 5993.433773 | C75: 5993.433773 | F75: 0 | I75: 0 | L75: 1167.139446 | M75: 10270.82713 | N75: 0.8800317476 | O75: 3789.40737 | P75: =Lastprofile!O75*Input!$B$19 -> 0 | Q75: =O75*(1-Input!$B$19) -> 3789.40737 | R75: =IF(V75=0,0,$R$18-(Input!$B$11-Lastprofile!V75)/(Input!$B$11-Input!$B$12)*Input!$B$18) -> 0.3689486079 | S75: 157.8919737 | T75: 0.5110831397 | U75: 5249.246575 | V75: =IF(Input!$B$11<W75,Input!$B$11,IF(Input!$B$13="Ja",Lastprofile!W75,IF(Input!$B$12<Lastprofile!W75,W75,0))) -> 218.7186073 | W75: 469.2553301 | X75: 506.0420684 | Y75: =AC75*(1+Input!$B$20+Input!$B$21) -> 12145.00964 | Z75: =AB75*Input!$B$21 -> 201.1094272 | AA75: =AB75*Input!$B$20 -> 1005.547136 | AB75: =LARGE($AC$20:$AC$384,ROWS($AC$20:AC75)) -> 10055.47136 | AC75: 10843.75861 | AD75: 1323.61 | AE75: 2016-02-25 | AF75: 1.366666667 | AG75: Donnerstag | AH75: =HLOOKUP($AG75,Datenbank!$C$216:$I$232,AH$17,FALSE) -> 1.0494 | AI75: 1.942661656 | AJ75: 2.038629142 | AK75: 4850.324836 | AL75: =HLOOKUP($AG75,Datenbank!$C$216:$I$232,AL$17,FALSE) ->  | AP75: =HLOOKUP($AG75,Datenbank!$C$216:$I$232,AP$17,FALSE) ->  | AT75: =HLOOKUP($AG75,Datenbank!$C$216:$I$232,AT$17,FALSE) ->  | AX75: =HLOOKUP($AG75,Datenbank!$C$216:$I$232,AX$17,FALSE) ->  | BB75: =HLOOKUP($AG75,Datenbank!$C$216:$I$232,BB$17,FALSE) ->  | BF75: =HLOOKUP($AG75,Datenbank!$C$216:$I$232,BF$17,FALSE) ->  | BJ75: =HLOOKUP($AG75,Datenbank!$C$216:$I$232,BJ$17,FALSE) ->  | BN75: =HLOOKUP($AG75,Datenbank!$C$216:$I$232,BN$17,FALSE) ->  | BR75: =HLOOKUP($AG75,Datenbank!$C$216:$I$232,BR$17,FALSE) ->  | BV75: =HLOOKUP($AG75,Datenbank!$C$216:$I$232,BV$17,FALSE) ->  | BZ75: =HLOOKUP($AG75,Datenbank!$C$216:$I$232,BZ$17,FALSE) ->  | CD75: =HLOOKUP($AG75,Datenbank!$C$216:$I$232,CD$17,FALSE) ->  | CH75: =HLOOKUP($AG75,Datenbank!$C$216:$I$232,CH$17,FALSE) ->  | CL75: =HLOOKUP($AG75,Datenbank!$C$216:$I$232,CL$17,FALSE) ->  | CP75: =HLOOKUP($AG75,Datenbank!$C$216:$I$232,CP$17,FALSE) ->  | CT75: =HLOOKUP($AG75,Datenbank!$C$216:$I$232,CT$17,FALSE) ->  | CX75: =HLOOKUP($AG75,Datenbank!$C$216:$I$232,CX$17,FALSE) ->  | DB75: =HLOOKUP($AG75,Datenbank!$C$216:$I$232,DB$17,FALSE) ->  | DF75: =HLOOKUP($AG75,Datenbank!$C$216:$I$232,DF$17,FALSE) ->  | DJ75: =HLOOKUP($AG75,Datenbank!$C$216:$I$232,DJ$17,FALSE) ->  | DN75: =HLOOKUP($AG75,Datenbank!$C$216:$I$232,DN$17,FALSE) ->  | DR75: =HLOOKUP($AG75,Datenbank!$C$216:$I$232,DR$17,FALSE) ->  | DV75: =HLOOKUP($AG75,Datenbank!$C$216:$I$232,DV$17,FALSE) ->  | DZ75: =HLOOKUP($AG75,Datenbank!$C$216:$I$232,DZ$17,FALSE) ->  | ED75: =HLOOKUP($AG75,Datenbank!$C$216:$I$232,ED$17,FALSE) ->  | EH75: =HLOOKUP($AG75,Datenbank!$C$216:$I$232,EH$17,FALSE) ->  | EL75: =HLOOKUP($AG75,Datenbank!$C$216:$I$232,EL$17,FALSE) ->  | EP75: =HLOOKUP($AG75,Datenbank!$C$216:$I$232,EP$17,FALSE) ->  | ET75: =HLOOKUP($AG75,Datenbank!$C$216:$I$232,ET$17,FALSE) -> 
B76: 5720.860429 | C76: 5720.860429 | F76: 0 | I76: 0 | L76: 1167.139446 | M76: 10270.82713 | N76: 0.8800317476 | O76: 3789.40737 | P76: =Lastprofile!O76*Input!$B$19 -> 0 | Q76: =O76*(1-Input!$B$19) -> 3789.40737 | R76: =IF(V76=0,0,$R$18-(Input!$B$11-Lastprofile!V76)/(Input!$B$11-Input!$B$12)*Input!$B$18) -> 0.3689486079 | S76: 157.8919737 | T76: 0.5110831397 | U76: 5249.246575 | V76: =IF(Input!$B$11<W76,Input!$B$11,IF(Input!$B$13="Ja",Lastprofile!W76,IF(Input!$B$12<Lastprofile!W76,W76,0))) -> 218.7186073 | W76: 466.4322117 | X76: 483.0279526 | Y76: =AC76*(1+Input!$B$20+Input!$B$21) -> 11592.67086 | Z76: =AB76*Input!$B$21 -> 199.8995193 | AA76: =AB76*Input!$B$20 -> 999.4975964 | AB76: =LARGE($AC$20:$AC$384,ROWS($AC$20:AC76)) -> 9994.975964 | AC76: 10350.59899 | AD76: 1347.675 | AE76: 2016-02-26 | AF76: 1.133333333 | AG76: Freitag | AH76: =HLOOKUP($AG76,Datenbank!$C$216:$I$232,AH$17,FALSE) -> 0.9885 | AI76: 1.968553382 | AJ76: 1.945915018 | AK76: 4629.738556 | AL76: =HLOOKUP($AG76,Datenbank!$C$216:$I$232,AL$17,FALSE) ->  | AP76: =HLOOKUP($AG76,Datenbank!$C$216:$I$232,AP$17,FALSE) ->  | AT76: =HLOOKUP($AG76,Datenbank!$C$216:$I$232,AT$17,FALSE) ->  | AX76: =HLOOKUP($AG76,Datenbank!$C$216:$I$232,AX$17,FALSE) ->  | BB76: =HLOOKUP($AG76,Datenbank!$C$216:$I$232,BB$17,FALSE) ->  | BF76: =HLOOKUP($AG76,Datenbank!$C$216:$I$232,BF$17,FALSE) ->  | BJ76: =HLOOKUP($AG76,Datenbank!$C$216:$I$232,BJ$17,FALSE) ->  | BN76: =HLOOKUP($AG76,Datenbank!$C$216:$I$232,BN$17,FALSE) ->  | BR76: =HLOOKUP($AG76,Datenbank!$C$216:$I$232,BR$17,FALSE) ->  | BV76: =HLOOKUP($AG76,Datenbank!$C$216:$I$232,BV$17,FALSE) ->  | BZ76: =HLOOKUP($AG76,Datenbank!$C$216:$I$232,BZ$17,FALSE) ->  | CD76: =HLOOKUP($AG76,Datenbank!$C$216:$I$232,CD$17,FALSE) ->  | CH76: =HLOOKUP($AG76,Datenbank!$C$216:$I$232,CH$17,FALSE) ->  | CL76: =HLOOKUP($AG76,Datenbank!$C$216:$I$232,CL$17,FALSE) ->  | CP76: =HLOOKUP($AG76,Datenbank!$C$216:$I$232,CP$17,FALSE) ->  | CT76: =HLOOKUP($AG76,Datenbank!$C$216:$I$232,CT$17,FALSE) ->  | CX76: =HLOOKUP($AG76,Datenbank!$C$216:$I$232,CX$17,FALSE) ->  | DB76: =HLOOKUP($AG76,Datenbank!$C$216:$I$232,DB$17,FALSE) ->  | DF76: =HLOOKUP($AG76,Datenbank!$C$216:$I$232,DF$17,FALSE) ->  | DJ76: =HLOOKUP($AG76,Datenbank!$C$216:$I$232,DJ$17,FALSE) ->  | DN76: =HLOOKUP($AG76,Datenbank!$C$216:$I$232,DN$17,FALSE) ->  | DR76: =HLOOKUP($AG76,Datenbank!$C$216:$I$232,DR$17,FALSE) ->  | DV76: =HLOOKUP($AG76,Datenbank!$C$216:$I$232,DV$17,FALSE) ->  | DZ76: =HLOOKUP($AG76,Datenbank!$C$216:$I$232,DZ$17,FALSE) ->  | ED76: =HLOOKUP($AG76,Datenbank!$C$216:$I$232,ED$17,FALSE) ->  | EH76: =HLOOKUP($AG76,Datenbank!$C$216:$I$232,EH$17,FALSE) ->  | EL76: =HLOOKUP($AG76,Datenbank!$C$216:$I$232,EL$17,FALSE) ->  | EP76: =HLOOKUP($AG76,Datenbank!$C$216:$I$232,EP$17,FALSE) ->  | ET76: =HLOOKUP($AG76,Datenbank!$C$216:$I$232,ET$17,FALSE) -> 
B77: 4797.943714 | C77: 4797.943714 | F77: 0 | I77: 0 | L77: 1167.139446 | M77: 10270.82713 | N77: 0.8800317476 | O77: 3789.40737 | P77: =Lastprofile!O77*Input!$B$19 -> 0 | Q77: =O77*(1-Input!$B$19) -> 3789.40737 | R77: =IF(V77=0,0,$R$18-(Input!$B$11-Lastprofile!V77)/(Input!$B$11-Input!$B$12)*Input!$B$18) -> 0.3689486079 | S77: 157.8919737 | T77: 0.5110831397 | U77: 5249.246575 | V77: =IF(Input!$B$11<W77,Input!$B$11,IF(Input!$B$13="Ja",Lastprofile!W77,IF(Input!$B$12<Lastprofile!W77,W77,0))) -> 218.7186073 | W77: 464.0407089 | X77: 405.1035606 | Y77: =AC77*(1+Input!$B$20+Input!$B$21) -> 9722.485454 | Z77: =AB77*Input!$B$21 -> 198.8745895 | AA77: =AB77*Input!$B$20 -> 994.3729475 | AB77: =LARGE($AC$20:$AC$384,ROWS($AC$20:AC77)) -> 9943.729475 | AC77: 8680.790584 | AD77: 1371.74 | AE77: 2016-02-27 | AF77: 2.233333333 | AG77: Samstag | AH77: =HLOOKUP($AG77,Datenbank!$C$216:$I$232,AH$17,FALSE) -> 0.886 | AI77: 1.841975903 | AJ77: 1.63199065 | AK77: 3882.846869 | AL77: =HLOOKUP($AG77,Datenbank!$C$216:$I$232,AL$17,FALSE) ->  | AP77: =HLOOKUP($AG77,Datenbank!$C$216:$I$232,AP$17,FALSE) ->  | AT77: =HLOOKUP($AG77,Datenbank!$C$216:$I$232,AT$17,FALSE) ->  | AX77: =HLOOKUP($AG77,Datenbank!$C$216:$I$232,AX$17,FALSE) ->  | BB77: =HLOOKUP($AG77,Datenbank!$C$216:$I$232,BB$17,FALSE) ->  | BF77: =HLOOKUP($AG77,Datenbank!$C$216:$I$232,BF$17,FALSE) ->  | BJ77: =HLOOKUP($AG77,Datenbank!$C$216:$I$232,BJ$17,FALSE) ->  | BN77: =HLOOKUP($AG77,Datenbank!$C$216:$I$232,BN$17,FALSE) ->  | BR77: =HLOOKUP($AG77,Datenbank!$C$216:$I$232,BR$17,FALSE) ->  | BV77: =HLOOKUP($AG77,Datenbank!$C$216:$I$232,BV$17,FALSE) ->  | BZ77: =HLOOKUP($AG77,Datenbank!$C$216:$I$232,BZ$17,FALSE) ->  | CD77: =HLOOKUP($AG77,Datenbank!$C$216:$I$232,CD$17,FALSE) ->  | CH77: =HLOOKUP($AG77,Datenbank!$C$216:$I$232,CH$17,FALSE) ->  | CL77: =HLOOKUP($AG77,Datenbank!$C$216:$I$232,CL$17,FALSE) ->  | CP77: =HLOOKUP($AG77,Datenbank!$C$216:$I$232,CP$17,FALSE) ->  | CT77: =HLOOKUP($AG77,Datenbank!$C$216:$I$232,CT$17,FALSE) ->  | CX77: =HLOOKUP($AG77,Datenbank!$C$216:$I$232,CX$17,FALSE) ->  | DB77: =HLOOKUP($AG77,Datenbank!$C$216:$I$232,DB$17,FALSE) ->  | DF77: =HLOOKUP($AG77,Datenbank!$C$216:$I$232,DF$17,FALSE) ->  | DJ77: =HLOOKUP($AG77,Datenbank!$C$216:$I$232,DJ$17,FALSE) ->  | DN77: =HLOOKUP($AG77,Datenbank!$C$216:$I$232,DN$17,FALSE) ->  | DR77: =HLOOKUP($AG77,Datenbank!$C$216:$I$232,DR$17,FALSE) ->  | DV77: =HLOOKUP($AG77,Datenbank!$C$216:$I$232,DV$17,FALSE) ->  | DZ77: =HLOOKUP($AG77,Datenbank!$C$216:$I$232,DZ$17,FALSE) ->  | ED77: =HLOOKUP($AG77,Datenbank!$C$216:$I$232,ED$17,FALSE) ->  | EH77: =HLOOKUP($AG77,Datenbank!$C$216:$I$232,EH$17,FALSE) ->  | EL77: =HLOOKUP($AG77,Datenbank!$C$216:$I$232,EL$17,FALSE) ->  | EP77: =HLOOKUP($AG77,Datenbank!$C$216:$I$232,EP$17,FALSE) ->  | ET77: =HLOOKUP($AG77,Datenbank!$C$216:$I$232,ET$17,FALSE) -> 
B78: 4799.817695 | C78: 4799.817695 | F78: 0 | I78: 0 | L78: 1167.139446 | M78: 10270.82713 | N78: 0.8800317476 | O78: 3789.40737 | P78: =Lastprofile!O78*Input!$B$19 -> 0 | Q78: =O78*(1-Input!$B$19) -> 3789.40737 | R78: =IF(V78=0,0,$R$18-(Input!$B$11-Lastprofile!V78)/(Input!$B$11-Input!$B$12)*Input!$B$18) -> 0.3689486079 | S78: 157.8919737 | T78: 0.5110831397 | U78: 5249.246575 | V78: =IF(Input!$B$11<W78,Input!$B$11,IF(Input!$B$13="Ja",Lastprofile!W78,IF(Input!$B$12<Lastprofile!W78,W78,0))) -> 218.7186073 | W78: 460.3521291 | X78: 405.2617859 | Y78: =AC78*(1+Input!$B$20+Input!$B$21) -> 9726.282862 | Z78: =AB78*Input!$B$21 -> 197.2937696 | AA78: =AB78*Input!$B$20 -> 986.468848 | AB78: =LARGE($AC$20:$AC$384,ROWS($AC$20:AC78)) -> 9864.68848 | AC78: 8684.181127 | AD78: 1395.805 | AE78: 2016-02-28 | AF78: 3.133333333 | AG78: Sonntag | AH78: =HLOOKUP($AG78,Datenbank!$C$216:$I$232,AH$17,FALSE) -> 0.9435 | AI78: 1.730395413 | AJ78: 1.632628073 | AK78: 3884.363432 | AL78: =HLOOKUP($AG78,Datenbank!$C$216:$I$232,AL$17,FALSE) ->  | AP78: =HLOOKUP($AG78,Datenbank!$C$216:$I$232,AP$17,FALSE) ->  | AT78: =HLOOKUP($AG78,Datenbank!$C$216:$I$232,AT$17,FALSE) ->  | AX78: =HLOOKUP($AG78,Datenbank!$C$216:$I$232,AX$17,FALSE) ->  | BB78: =HLOOKUP($AG78,Datenbank!$C$216:$I$232,BB$17,FALSE) ->  | BF78: =HLOOKUP($AG78,Datenbank!$C$216:$I$232,BF$17,FALSE) ->  | BJ78: =HLOOKUP($AG78,Datenbank!$C$216:$I$232,BJ$17,FALSE) ->  | BN78: =HLOOKUP($AG78,Datenbank!$C$216:$I$232,BN$17,FALSE) ->  | BR78: =HLOOKUP($AG78,Datenbank!$C$216:$I$232,BR$17,FALSE) ->  | BV78: =HLOOKUP($AG78,Datenbank!$C$216:$I$232,BV$17,FALSE) ->  | BZ78: =HLOOKUP($AG78,Datenbank!$C$216:$I$232,BZ$17,FALSE) ->  | CD78: =HLOOKUP($AG78,Datenbank!$C$216:$I$232,CD$17,FALSE) ->  | CH78: =HLOOKUP($AG78,Datenbank!$C$216:$I$232,CH$17,FALSE) ->  | CL78: =HLOOKUP($AG78,Datenbank!$C$216:$I$232,CL$17,FALSE) ->  | CP78: =HLOOKUP($AG78,Datenbank!$C$216:$I$232,CP$17,FALSE) ->  | CT78: =HLOOKUP($AG78,Datenbank!$C$216:$I$232,CT$17,FALSE) ->  | CX78: =HLOOKUP($AG78,Datenbank!$C$216:$I$232,CX$17,FALSE) ->  | DB78: =HLOOKUP($AG78,Datenbank!$C$216:$I$232,DB$17,FALSE) ->  | DF78: =HLOOKUP($AG78,Datenbank!$C$216:$I$232,DF$17,FALSE) ->  | DJ78: =HLOOKUP($AG78,Datenbank!$C$216:$I$232,DJ$17,FALSE) ->  | DN78: =HLOOKUP($AG78,Datenbank!$C$216:$I$232,DN$17,FALSE) ->  | DR78: =HLOOKUP($AG78,Datenbank!$C$216:$I$232,DR$17,FALSE) ->  | DV78: =HLOOKUP($AG78,Datenbank!$C$216:$I$232,DV$17,FALSE) ->  | DZ78: =HLOOKUP($AG78,Datenbank!$C$216:$I$232,DZ$17,FALSE) ->  | ED78: =HLOOKUP($AG78,Datenbank!$C$216:$I$232,ED$17,FALSE) ->  | EH78: =HLOOKUP($AG78,Datenbank!$C$216:$I$232,EH$17,FALSE) ->  | EL78: =HLOOKUP($AG78,Datenbank!$C$216:$I$232,EL$17,FALSE) ->  | EP78: =HLOOKUP($AG78,Datenbank!$C$216:$I$232,EP$17,FALSE) ->  | ET78: =HLOOKUP($AG78,Datenbank!$C$216:$I$232,ET$17,FALSE) -> 
B79: 5648.702323 | C79: 5648.702323 | F79: 0 | I79: 0 | L79: 1167.139446 | M79: 10270.82713 | N79: 0.8800317476 | O79: 3789.40737 | P79: =Lastprofile!O79*Input!$B$19 -> 0 | Q79: =O79*(1-Input!$B$19) -> 3789.40737 | R79: =IF(V79=0,0,$R$18-(Input!$B$11-Lastprofile!V79)/(Input!$B$11-Input!$B$12)*Input!$B$18) -> 0.3689486079 | S79: 157.8919737 | T79: 0.5110831397 | U79: 5249.246575 | V79: =IF(Input!$B$11<W79,Input!$B$11,IF(Input!$B$13="Ja",Lastprofile!W79,IF(Input!$B$12<Lastprofile!W79,W79,0))) -> 218.7186073 | W79: 457.4676737 | X79: 476.9354456 | Y79: =AC79*(1+Input!$B$20+Input!$B$21) -> 11446.45069 | Z79: =AB79*Input!$B$21 -> 196.0575744 | AA79: =AB79*Input!$B$20 -> 980.2878722 | AB79: =LARGE($AC$20:$AC$384,ROWS($AC$20:AC79)) -> 9802.878722 | AC79: 10220.04526 | AD79: 1419.87 | AE79: 2016-03-01 | AF79: 2.366666667 | AG79: Dienstag | AH79: =HLOOKUP($AG79,Datenbank!$C$216:$I$232,AH$17,FALSE) -> 1.0523 | AI79: 1.825877495 | AJ79: 1.921370888 | AK79: 4571.342941 | AL79: =HLOOKUP($AG79,Datenbank!$C$216:$I$232,AL$17,FALSE) ->  | AP79: =HLOOKUP($AG79,Datenbank!$C$216:$I$232,AP$17,FALSE) ->  | AT79: =HLOOKUP($AG79,Datenbank!$C$216:$I$232,AT$17,FALSE) ->  | AX79: =HLOOKUP($AG79,Datenbank!$C$216:$I$232,AX$17,FALSE) ->  | BB79: =HLOOKUP($AG79,Datenbank!$C$216:$I$232,BB$17,FALSE) ->  | BF79: =HLOOKUP($AG79,Datenbank!$C$216:$I$232,BF$17,FALSE) ->  | BJ79: =HLOOKUP($AG79,Datenbank!$C$216:$I$232,BJ$17,FALSE) ->  | BN79: =HLOOKUP($AG79,Datenbank!$C$216:$I$232,BN$17,FALSE) ->  | BR79: =HLOOKUP($AG79,Datenbank!$C$216:$I$232,BR$17,FALSE) ->  | BV79: =HLOOKUP($AG79,Datenbank!$C$216:$I$232,BV$17,FALSE) ->  | BZ79: =HLOOKUP($AG79,Datenbank!$C$216:$I$232,BZ$17,FALSE) ->  | CD79: =HLOOKUP($AG79,Datenbank!$C$216:$I$232,CD$17,FALSE) ->  | CH79: =HLOOKUP($AG79,Datenbank!$C$216:$I$232,CH$17,FALSE) ->  | CL79: =HLOOKUP($AG79,Datenbank!$C$216:$I$232,CL$17,FALSE) ->  | CP79: =HLOOKUP($AG79,Datenbank!$C$216:$I$232,CP$17,FALSE) ->  | CT79: =HLOOKUP($AG79,Datenbank!$C$216:$I$232,CT$17,FALSE) ->  | CX79: =HLOOKUP($AG79,Datenbank!$C$216:$I$232,CX$17,FALSE) ->  | DB79: =HLOOKUP($AG79,Datenbank!$C$216:$I$232,DB$17,FALSE) ->  | DF79: =HLOOKUP($AG79,Datenbank!$C$216:$I$232,DF$17,FALSE) ->  | DJ79: =HLOOKUP($AG79,Datenbank!$C$216:$I$232,DJ$17,FALSE) ->  | DN79: =HLOOKUP($AG79,Datenbank!$C$216:$I$232,DN$17,FALSE) ->  | DR79: =HLOOKUP($AG79,Datenbank!$C$216:$I$232,DR$17,FALSE) ->  | DV79: =HLOOKUP($AG79,Datenbank!$C$216:$I$232,DV$17,FALSE) ->  | DZ79: =HLOOKUP($AG79,Datenbank!$C$216:$I$232,DZ$17,FALSE) ->  | ED79: =HLOOKUP($AG79,Datenbank!$C$216:$I$232,ED$17,FALSE) ->  | EH79: =HLOOKUP($AG79,Datenbank!$C$216:$I$232,EH$17,FALSE) ->  | EL79: =HLOOKUP($AG79,Datenbank!$C$216:$I$232,EL$17,FALSE) ->  | EP79: =HLOOKUP($AG79,Datenbank!$C$216:$I$232,EP$17,FALSE) ->  | ET79: =HLOOKUP($AG79,Datenbank!$C$216:$I$232,ET$17,FALSE) -> 
B80: 5608.979433 | C80: 5608.979433 | F80: 0 | I80: 0 | L80: 1167.139446 | M80: 10270.82713 | N80: 0.8800317476 | O80: 3789.40737 | P80: =Lastprofile!O80*Input!$B$19 -> 0 | Q80: =O80*(1-Input!$B$19) -> 3789.40737 | R80: =IF(V80=0,0,$R$18-(Input!$B$11-Lastprofile!V80)/(Input!$B$11-Input!$B$12)*Input!$B$18) -> 0.3689486079 | S80: 157.8919737 | T80: 0.5110831397 | U80: 5249.246575 | V80: =IF(Input!$B$11<W80,Input!$B$11,IF(Input!$B$13="Ja",Lastprofile!W80,IF(Input!$B$12<Lastprofile!W80,W80,0))) -> 218.7186073 | W80: 456.6270447 | X80: 473.5815329 | Y80: =AC80*(1+Input!$B$20+Input!$B$21) -> 11365.95679 | Z80: =AB80*Input!$B$21 -> 195.6973049 | AA80: =AB80*Input!$B$20 -> 978.4865244 | AB80: =LARGE($AC$20:$AC$384,ROWS($AC$20:AC80)) -> 9784.865244 | AC80: 10148.17571 | AD80: 1443.935 | AE80: 2016-03-02 | AF80: 2.366666667 | AG80: Mittwoch | AH80: =HLOOKUP($AG80,Datenbank!$C$216:$I$232,AH$17,FALSE) -> 1.0449 | AI80: 1.825877495 | AJ80: 1.907859394 | AK80: 4539.196273 | AL80: =HLOOKUP($AG80,Datenbank!$C$216:$I$232,AL$17,FALSE) ->  | AP80: =HLOOKUP($AG80,Datenbank!$C$216:$I$232,AP$17,FALSE) ->  | AT80: =HLOOKUP($AG80,Datenbank!$C$216:$I$232,AT$17,FALSE) ->  | AX80: =HLOOKUP($AG80,Datenbank!$C$216:$I$232,AX$17,FALSE) ->  | BB80: =HLOOKUP($AG80,Datenbank!$C$216:$I$232,BB$17,FALSE) ->  | BF80: =HLOOKUP($AG80,Datenbank!$C$216:$I$232,BF$17,FALSE) ->  | BJ80: =HLOOKUP($AG80,Datenbank!$C$216:$I$232,BJ$17,FALSE) ->  | BN80: =HLOOKUP($AG80,Datenbank!$C$216:$I$232,BN$17,FALSE) ->  | BR80: =HLOOKUP($AG80,Datenbank!$C$216:$I$232,BR$17,FALSE) ->  | BV80: =HLOOKUP($AG80,Datenbank!$C$216:$I$232,BV$17,FALSE) ->  | BZ80: =HLOOKUP($AG80,Datenbank!$C$216:$I$232,BZ$17,FALSE) ->  | CD80: =HLOOKUP($AG80,Datenbank!$C$216:$I$232,CD$17,FALSE) ->  | CH80: =HLOOKUP($AG80,Datenbank!$C$216:$I$232,CH$17,FALSE) ->  | CL80: =HLOOKUP($AG80,Datenbank!$C$216:$I$232,CL$17,FALSE) ->  | CP80: =HLOOKUP($AG80,Datenbank!$C$216:$I$232,CP$17,FALSE) ->  | CT80: =HLOOKUP($AG80,Datenbank!$C$216:$I$232,CT$17,FALSE) ->  | CX80: =HLOOKUP($AG80,Datenbank!$C$216:$I$232,CX$17,FALSE) ->  | DB80: =HLOOKUP($AG80,Datenbank!$C$216:$I$232,DB$17,FALSE) ->  | DF80: =HLOOKUP($AG80,Datenbank!$C$216:$I$232,DF$17,FALSE) ->  | DJ80: =HLOOKUP($AG80,Datenbank!$C$216:$I$232,DJ$17,FALSE) ->  | DN80: =HLOOKUP($AG80,Datenbank!$C$216:$I$232,DN$17,FALSE) ->  | DR80: =HLOOKUP($AG80,Datenbank!$C$216:$I$232,DR$17,FALSE) ->  | DV80: =HLOOKUP($AG80,Datenbank!$C$216:$I$232,DV$17,FALSE) ->  | DZ80: =HLOOKUP($AG80,Datenbank!$C$216:$I$232,DZ$17,FALSE) ->  | ED80: =HLOOKUP($AG80,Datenbank!$C$216:$I$232,ED$17,FALSE) ->  | EH80: =HLOOKUP($AG80,Datenbank!$C$216:$I$232,EH$17,FALSE) ->  | EL80: =HLOOKUP($AG80,Datenbank!$C$216:$I$232,EL$17,FALSE) ->  | EP80: =HLOOKUP($AG80,Datenbank!$C$216:$I$232,EP$17,FALSE) ->  | ET80: =HLOOKUP($AG80,Datenbank!$C$216:$I$232,ET$17,FALSE) -> 
B81: 5633.135244 | C81: 5633.135244 | F81: 0 | I81: 0 | L81: 1167.139446 | M81: 10270.82713 | N81: 0.8800317476 | O81: 3789.40737 | P81: =Lastprofile!O81*Input!$B$19 -> 0 | Q81: =O81*(1-Input!$B$19) -> 3789.40737 | R81: =IF(V81=0,0,$R$18-(Input!$B$11-Lastprofile!V81)/(Input!$B$11-Input!$B$12)*Input!$B$18) -> 0.3689486079 | S81: 157.8919737 | T81: 0.5110831397 | U81: 5249.246575 | V81: =IF(Input!$B$11<W81,Input!$B$11,IF(Input!$B$13="Ja",Lastprofile!W81,IF(Input!$B$12<Lastprofile!W81,W81,0))) -> 218.7186073 | W81: 456.4215308 | X81: 475.6210744 | Y81: =AC81*(1+Input!$B$20+Input!$B$21) -> 11414.90579 | Z81: =AB81*Input!$B$21 -> 195.6092275 | AA81: =AB81*Input!$B$20 -> 978.0461374 | AB81: =LARGE($AC$20:$AC$384,ROWS($AC$20:AC81)) -> 9780.461374 | AC81: 10191.88017 | AD81: 1468 | AE81: 2016-03-03 | AF81: 2.366666667 | AG81: Donnerstag | AH81: =HLOOKUP($AG81,Datenbank!$C$216:$I$232,AH$17,FALSE) -> 1.0494 | AI81: 1.825877495 | AJ81: 1.916075843 | AK81: 4558.744922 | AL81: =HLOOKUP($AG81,Datenbank!$C$216:$I$232,AL$17,FALSE) ->  | AP81: =HLOOKUP($AG81,Datenbank!$C$216:$I$232,AP$17,FALSE) ->  | AT81: =HLOOKUP($AG81,Datenbank!$C$216:$I$232,AT$17,FALSE) ->  | AX81: =HLOOKUP($AG81,Datenbank!$C$216:$I$232,AX$17,FALSE) ->  | BB81: =HLOOKUP($AG81,Datenbank!$C$216:$I$232,BB$17,FALSE) ->  | BF81: =HLOOKUP($AG81,Datenbank!$C$216:$I$232,BF$17,FALSE) ->  | BJ81: =HLOOKUP($AG81,Datenbank!$C$216:$I$232,BJ$17,FALSE) ->  | BN81: =HLOOKUP($AG81,Datenbank!$C$216:$I$232,BN$17,FALSE) ->  | BR81: =HLOOKUP($AG81,Datenbank!$C$216:$I$232,BR$17,FALSE) ->  | BV81: =HLOOKUP($AG81,Datenbank!$C$216:$I$232,BV$17,FALSE) ->  | BZ81: =HLOOKUP($AG81,Datenbank!$C$216:$I$232,BZ$17,FALSE) ->  | CD81: =HLOOKUP($AG81,Datenbank!$C$216:$I$232,CD$17,FALSE) ->  | CH81: =HLOOKUP($AG81,Datenbank!$C$216:$I$232,CH$17,FALSE) ->  | CL81: =HLOOKUP($AG81,Datenbank!$C$216:$I$232,CL$17,FALSE) ->  | CP81: =HLOOKUP($AG81,Datenbank!$C$216:$I$232,CP$17,FALSE) ->  | CT81: =HLOOKUP($AG81,Datenbank!$C$216:$I$232,CT$17,FALSE) ->  | CX81: =HLOOKUP($AG81,Datenbank!$C$216:$I$232,CX$17,FALSE) ->  | DB81: =HLOOKUP($AG81,Datenbank!$C$216:$I$232,DB$17,FALSE) ->  | DF81: =HLOOKUP($AG81,Datenbank!$C$216:$I$232,DF$17,FALSE) ->  | DJ81: =HLOOKUP($AG81,Datenbank!$C$216:$I$232,DJ$17,FALSE) ->  | DN81: =HLOOKUP($AG81,Datenbank!$C$216:$I$232,DN$17,FALSE) ->  | DR81: =HLOOKUP($AG81,Datenbank!$C$216:$I$232,DR$17,FALSE) ->  | DV81: =HLOOKUP($AG81,Datenbank!$C$216:$I$232,DV$17,FALSE) ->  | DZ81: =HLOOKUP($AG81,Datenbank!$C$216:$I$232,DZ$17,FALSE) ->  | ED81: =HLOOKUP($AG81,Datenbank!$C$216:$I$232,ED$17,FALSE) ->  | EH81: =HLOOKUP($AG81,Datenbank!$C$216:$I$232,EH$17,FALSE) ->  | EL81: =HLOOKUP($AG81,Datenbank!$C$216:$I$232,EL$17,FALSE) ->  | EP81: =HLOOKUP($AG81,Datenbank!$C$216:$I$232,EP$17,FALSE) ->  | ET81: =HLOOKUP($AG81,Datenbank!$C$216:$I$232,ET$17,FALSE) -> 
B82: 5282.664978 | C82: 5282.664978 | F82: 0 | I82: 0 | L82: 1167.139446 | M82: 10270.82713 | N82: 0.8800317476 | O82: 3789.40737 | P82: =Lastprofile!O82*Input!$B$19 -> 0 | Q82: =O82*(1-Input!$B$19) -> 3789.40737 | R82: =IF(V82=0,0,$R$18-(Input!$B$11-Lastprofile!V82)/(Input!$B$11-Input!$B$12)*Input!$B$18) -> 0.3689486079 | S82: 157.8919737 | T82: 0.5110831397 | U82: 5249.246575 | V82: =IF(Input!$B$11<W82,Input!$B$11,IF(Input!$B$13="Ja",Lastprofile!W82,IF(Input!$B$12<Lastprofile!W82,W82,0))) -> 218.7186073 | W82: 453.2197468 | X82: 446.0299077 | Y82: =AC82*(1+Input!$B$20+Input!$B$21) -> 10704.71778 | Z82: =AB82*Input!$B$21 -> 194.2370344 | AA82: =AB82*Input!$B$20 -> 971.1851718 | AB82: =LARGE($AC$20:$AC$384,ROWS($AC$20:AC82)) -> 9711.851718 | AC82: 9557.783736 | AD82: 1492.065 | AE82: 2016-03-04 | AF82: 2.433333333 | AG82: Freitag | AH82: =HLOOKUP($AG82,Datenbank!$C$216:$I$232,AH$17,FALSE) -> 0.9885 | AI82: 1.81776992 | AJ82: 1.796865566 | AK82: 4275.118758 | AL82: =HLOOKUP($AG82,Datenbank!$C$216:$I$232,AL$17,FALSE) ->  | AP82: =HLOOKUP($AG82,Datenbank!$C$216:$I$232,AP$17,FALSE) ->  | AT82: =HLOOKUP($AG82,Datenbank!$C$216:$I$232,AT$17,FALSE) ->  | AX82: =HLOOKUP($AG82,Datenbank!$C$216:$I$232,AX$17,FALSE) ->  | BB82: =HLOOKUP($AG82,Datenbank!$C$216:$I$232,BB$17,FALSE) ->  | BF82: =HLOOKUP($AG82,Datenbank!$C$216:$I$232,BF$17,FALSE) ->  | BJ82: =HLOOKUP($AG82,Datenbank!$C$216:$I$232,BJ$17,FALSE) ->  | BN82: =HLOOKUP($AG82,Datenbank!$C$216:$I$232,BN$17,FALSE) ->  | BR82: =HLOOKUP($AG82,Datenbank!$C$216:$I$232,BR$17,FALSE) ->  | BV82: =HLOOKUP($AG82,Datenbank!$C$216:$I$232,BV$17,FALSE) ->  | BZ82: =HLOOKUP($AG82,Datenbank!$C$216:$I$232,BZ$17,FALSE) ->  | CD82: =HLOOKUP($AG82,Datenbank!$C$216:$I$232,CD$17,FALSE) ->  | CH82: =HLOOKUP($AG82,Datenbank!$C$216:$I$232,CH$17,FALSE) ->  | CL82: =HLOOKUP($AG82,Datenbank!$C$216:$I$232,CL$17,FALSE) ->  | CP82: =HLOOKUP($AG82,Datenbank!$C$216:$I$232,CP$17,FALSE) ->  | CT82: =HLOOKUP($AG82,Datenbank!$C$216:$I$232,CT$17,FALSE) ->  | CX82: =HLOOKUP($AG82,Datenbank!$C$216:$I$232,CX$17,FALSE) ->  | DB82: =HLOOKUP($AG82,Datenbank!$C$216:$I$232,DB$17,FALSE) ->  | DF82: =HLOOKUP($AG82,Datenbank!$C$216:$I$232,DF$17,FALSE) ->  | DJ82: =HLOOKUP($AG82,Datenbank!$C$216:$I$232,DJ$17,FALSE) ->  | DN82: =HLOOKUP($AG82,Datenbank!$C$216:$I$232,DN$17,FALSE) ->  | DR82: =HLOOKUP($AG82,Datenbank!$C$216:$I$232,DR$17,FALSE) ->  | DV82: =HLOOKUP($AG82,Datenbank!$C$216:$I$232,DV$17,FALSE) ->  | DZ82: =HLOOKUP($AG82,Datenbank!$C$216:$I$232,DZ$17,FALSE) ->  | ED82: =HLOOKUP($AG82,Datenbank!$C$216:$I$232,ED$17,FALSE) ->  | EH82: =HLOOKUP($AG82,Datenbank!$C$216:$I$232,EH$17,FALSE) ->  | EL82: =HLOOKUP($AG82,Datenbank!$C$216:$I$232,EL$17,FALSE) ->  | EP82: =HLOOKUP($AG82,Datenbank!$C$216:$I$232,EP$17,FALSE) ->  | ET82: =HLOOKUP($AG82,Datenbank!$C$216:$I$232,ET$17,FALSE) -> 
B83: 4406.698193 | C83: 4406.698193 | F83: 0 | I83: 0 | L83: 1167.139446 | M83: 10270.82713 | N83: 0.8800317476 | O83: 3789.40737 | P83: =Lastprofile!O83*Input!$B$19 -> 0 | Q83: =O83*(1-Input!$B$19) -> 3789.40737 | R83: =IF(V83=0,0,$R$18-(Input!$B$11-Lastprofile!V83)/(Input!$B$11-Input!$B$12)*Input!$B$18) -> 0.3689486079 | S83: 157.8919737 | T83: 0.5110831397 | U83: 5249.246575 | V83: =IF(Input!$B$11<W83,Input!$B$11,IF(Input!$B$13="Ja",Lastprofile!W83,IF(Input!$B$12<Lastprofile!W83,W83,0))) -> 218.7186073 | W83: 450.0713871 | X83: 372.069627 | Y83: =AC83*(1+Input!$B$20+Input!$B$21) -> 8929.671049 | Z83: =AB83*Input!$B$21 -> 192.8877373 | AA83: =AB83*Input!$B$20 -> 964.4386866 | AB83: =LARGE($AC$20:$AC$384,ROWS($AC$20:AC83)) -> 9644.386866 | AC83: 7972.920579 | AD83: 1516.13 | AE83: 2016-03-05 | AF83: 3.433333333 | AG83: Samstag | AH83: =HLOOKUP($AG83,Datenbank!$C$216:$I$232,AH$17,FALSE) -> 0.886 | AI83: 1.691773052 | AJ83: 1.498910924 | AK83: 3566.222386 | AL83: =HLOOKUP($AG83,Datenbank!$C$216:$I$232,AL$17,FALSE) ->  | AP83: =HLOOKUP($AG83,Datenbank!$C$216:$I$232,AP$17,FALSE) ->  | AT83: =HLOOKUP($AG83,Datenbank!$C$216:$I$232,AT$17,FALSE) ->  | AX83: =HLOOKUP($AG83,Datenbank!$C$216:$I$232,AX$17,FALSE) ->  | BB83: =HLOOKUP($AG83,Datenbank!$C$216:$I$232,BB$17,FALSE) ->  | BF83: =HLOOKUP($AG83,Datenbank!$C$216:$I$232,BF$17,FALSE) ->  | BJ83: =HLOOKUP($AG83,Datenbank!$C$216:$I$232,BJ$17,FALSE) ->  | BN83: =HLOOKUP($AG83,Datenbank!$C$216:$I$232,BN$17,FALSE) ->  | BR83: =HLOOKUP($AG83,Datenbank!$C$216:$I$232,BR$17,FALSE) ->  | BV83: =HLOOKUP($AG83,Datenbank!$C$216:$I$232,BV$17,FALSE) ->  | BZ83: =HLOOKUP($AG83,Datenbank!$C$216:$I$232,BZ$17,FALSE) ->  | CD83: =HLOOKUP($AG83,Datenbank!$C$216:$I$232,CD$17,FALSE) ->  | CH83: =HLOOKUP($AG83,Datenbank!$C$216:$I$232,CH$17,FALSE) ->  | CL83: =HLOOKUP($AG83,Datenbank!$C$216:$I$232,CL$17,FALSE) ->  | CP83: =HLOOKUP($AG83,Datenbank!$C$216:$I$232,CP$17,FALSE) ->  | CT83: =HLOOKUP($AG83,Datenbank!$C$216:$I$232,CT$17,FALSE) ->  | CX83: =HLOOKUP($AG83,Datenbank!$C$216:$I$232,CX$17,FALSE) ->  | DB83: =HLOOKUP($AG83,Datenbank!$C$216:$I$232,DB$17,FALSE) ->  | DF83: =HLOOKUP($AG83,Datenbank!$C$216:$I$232,DF$17,FALSE) ->  | DJ83: =HLOOKUP($AG83,Datenbank!$C$216:$I$232,DJ$17,FALSE) ->  | DN83: =HLOOKUP($AG83,Datenbank!$C$216:$I$232,DN$17,FALSE) ->  | DR83: =HLOOKUP($AG83,Datenbank!$C$216:$I$232,DR$17,FALSE) ->  | DV83: =HLOOKUP($AG83,Datenbank!$C$216:$I$232,DV$17,FALSE) ->  | DZ83: =HLOOKUP($AG83,Datenbank!$C$216:$I$232,DZ$17,FALSE) ->  | ED83: =HLOOKUP($AG83,Datenbank!$C$216:$I$232,ED$17,FALSE) ->  | EH83: =HLOOKUP($AG83,Datenbank!$C$216:$I$232,EH$17,FALSE) ->  | EL83: =HLOOKUP($AG83,Datenbank!$C$216:$I$232,EL$17,FALSE) ->  | EP83: =HLOOKUP($AG83,Datenbank!$C$216:$I$232,EP$17,FALSE) ->  | ET83: =HLOOKUP($AG83,Datenbank!$C$216:$I$232,ET$17,FALSE) -> 
B84: 4311.016134 | C84: =B84*$C$19 -> 4311.016134 | F84: =E84*$F$19 -> 0 | I84: =H84*$I$19 -> 0 | L84: 1167.139446 | M84: 10270.82713 | N84: =R84+T84 -> 0.8800317476 | O84: 3789.40737 | P84: =Lastprofile!O84*Input!$B$19 -> 0 | Q84: =O84*(1-Input!$B$19) -> 3789.40737 | R84: =IF(V84=0,0,$R$18-(Input!$B$11-Lastprofile!V84)/(Input!$B$11-Input!$B$12)*Input!$B$18) -> 0.3689486079 | S84: 157.8919737 | T84: 0.5110831397 | U84: 5249.246575 | V84: =IF(Input!$B$11<W84,Input!$B$11,IF(Input!$B$13="Ja",Lastprofile!W84,IF(Input!$B$12<Lastprofile!W84,W84,0))) -> 218.7186073 | W84: 449.0913741 | X84: 363.9909281 | Y84: =AC84*(1+Input!$B$20+Input!$B$21) -> 8735.782275 | Z84: =AB84*Input!$B$21 -> 192.4677318 | AA84: =AB84*Input!$B$20 -> 962.3386588 | AB84: =LARGE($AC$20:$AC$384,ROWS($AC$20:AC84)) -> 9623.386588 | AC84: =IF(ISNA(AK84),0,AK84)+IF(ISNA(AO84),0,AO84)+IF(ISNA(AS84),0,AS84)+IF(ISNA(AW84),0,AW84)+IF(ISNA(BA84),0,BA84)+IF(ISNA(BE84),0,BE84)+IF(ISNA(BI84),0,BI84)+IF(ISNA(BM84),0,BM84)+IF(ISNA(BQ84),0,BQ84)+IF(ISNA(BU84),0,BU84)+IF(ISNA(BY84),0,BY84)+IF(ISNA(CC84),0,CC84)+IF(ISNA(CG84),0,CG84)+IF(ISNA(CK84),0,CK84)+IF(ISNA(CO84),0,CO84)+IF(ISNA(CS84),0,CS84)+IF(ISNA(CW84),0,CW84)+IF(ISNA(DA84),0,DA84)+IF(ISNA(DE84),0,DE84)+IF(ISNA(DI84),0,DI84)+IF(ISNA(DM84),0,DM84)+IF(ISNA(DQ84),0,DQ84)+IF(ISNA(DU84),0,DU84)+IF(ISNA(DY84),0,DY84)+IF(ISNA(EC84),0,EC84)+IF(ISNA(EG84),0,EG84)+IF(ISNA(EK84),0,EK84)+IF(ISNA(EO84),0,EO84)+IF(ISNA(ES84),0,ES84)+IF(ISNA(EW84),0,EW84)+IF(ISNA(C84),0,C84)+IF(ISNA(F84),0,F84)+IF(ISNA(I84),0,I84) -> 7799.805602 | AD84: 1540.195 | AE84: 2016-03-06 | AF84: 4.466666667 | AG84: =TEXT(AE84,"TTTT") -> Sonntag | AH84: =HLOOKUP($AG84,Datenbank!$C$216:$I$232,AH$17,FALSE) -> 0.9435 | AI84: =AI$10/(1+(AI$11/($AF84-$AE$14))^AI$12)+AI$13 -> 1.554176225 | AJ84: =AI84*AH84 -> 1.466365268 | AK84: 3488.789468 | AL84: =HLOOKUP($AG84,Datenbank!$C$216:$I$232,AL$17,FALSE) ->  | AM84: =AM$10/(1+(AM$11/($AF84-$AE$14))^AM$12)+AM$13 ->  | AN84: =AM84*AL84 ->  | AP84: =HLOOKUP($AG84,Datenbank!$C$216:$I$232,AP$17,FALSE) ->  | AQ84: =AQ$10/(1+(AQ$11/($AF84-$AE$14))^AQ$12)+AQ$13 ->  | AR84: =AQ84*AP84 ->  | AT84: =HLOOKUP($AG84,Datenbank!$C$216:$I$232,AT$17,FALSE) ->  | AU84: =AU$10/(1+(AU$11/($AF84-$AE$14))^AU$12)+AU$13 ->  | AV84: =AU84*AT84 ->  | AX84: =HLOOKUP($AG84,Datenbank!$C$216:$I$232,AX$17,FALSE) ->  | AY84: =AY$10/(1+(AY$11/($AF84-$AE$14))^AY$12)+AY$13 ->  | AZ84: =AY84*AX84 ->  | BB84: =HLOOKUP($AG84,Datenbank!$C$216:$I$232,BB$17,FALSE) ->  | BC84: =BC$10/(1+(BC$11/($AF84-$AE$14))^BC$12)+BC$13 ->  | BD84: =BC84*BB84 ->  | BF84: =HLOOKUP($AG84,Datenbank!$C$216:$I$232,BF$17,FALSE) ->  | BG84: =BG$10/(1+(BG$11/($AF84-$AE$14))^BG$12)+BG$13 ->  | BH84: =BG84*BF84 ->  | BJ84: =HLOOKUP($AG84,Datenbank!$C$216:$I$232,BJ$17,FALSE) ->  | BK84: =BK$10/(1+(BK$11/($AF84-$AE$14))^BK$12)+BK$13 ->  | BL84: =BK84*BJ84 ->  | BN84: =HLOOKUP($AG84,Datenbank!$C$216:$I$232,BN$17,FALSE) ->  | BO84: =BO$10/(1+(BO$11/($AF84-$AE$14))^BO$12)+BO$13 ->  | BP84: =BO84*BN84 ->  | BR84: =HLOOKUP($AG84,Datenbank!$C$216:$I$232,BR$17,FALSE) ->  | BS84: =BS$10/(1+(BS$11/($AF84-$AE$14))^BS$12)+BS$13 ->  | BT84: =BS84*BR84 ->  | BV84: =HLOOKUP($AG84,Datenbank!$C$216:$I$232,BV$17,FALSE) ->  | BW84: =BW$10/(1+(BW$11/($AF84-$AE$14))^BW$12)+BW$13 ->  | BX84: =BW84*BV84 ->  | BZ84: =HLOOKUP($AG84,Datenbank!$C$216:$I$232,BZ$17,FALSE) ->  | CA84: =CA$10/(1+(CA$11/($AF84-$AE$14))^CA$12)+CA$13 ->  | CB84: =CA84*BZ84 ->  | CD84: =HLOOKUP($AG84,Datenbank!$C$216:$I$232,CD$17,FALSE) ->  | CE84: =CE$10/(1+(CE$11/($AF84-$AE$14))^CE$12)+CE$13 ->  | CF84: =CE84*CD84 ->  | CH84: =HLOOKUP($AG84,Datenbank!$C$216:$I$232,CH$17,FALSE) ->  | CI84: =CI$10/(1+(CI$11/($AF84-$AE$14))^CI$12)+CI$13 ->  | CJ84: =CI84*CH84 ->  | CL84: =HLOOKUP($AG84,Datenbank!$C$216:$I$232,CL$17,FALSE) ->  | CM84: =CM$10/(1+(CM$11/($AF84-$AE$14))^CM$12)+CM$13 ->  | CN84: =CM84*CL84 ->  | CP84: =HLOOKUP($AG84,Datenbank!$C$216:$I$232,CP$17,FALSE) ->  | CQ84: =CQ$10/(1+(CQ$11/($AF84-$AE$14))^CQ$12)+CQ$13 ->  | CR84: =CQ84*CP84 ->  | CT84: =HLOOKUP($AG84,Datenbank!$C$216:$I$232,CT$17,FALSE) ->  | CU84: =CU$10/(1+(CU$11/($AF84-$AE$14))^CU$12)+CU$13 ->  | CV84: =CU84*CT84 ->  | CX84: =HLOOKUP($AG84,Datenbank!$C$216:$I$232,CX$17,FALSE) ->  | CY84: =CY$10/(1+(CY$11/($AF84-$AE$14))^CY$12)+CY$13 ->  | CZ84: =CY84*CX84 ->  | DB84: =HLOOKUP($AG84,Datenbank!$C$216:$I$232,DB$17,FALSE) ->  | DC84: =DC$10/(1+(DC$11/($AF84-$AE$14))^DC$12)+DC$13 ->  | DD84: =DC84*DB84 ->  | DF84: =HLOOKUP($AG84,Datenbank!$C$216:$I$232,DF$17,FALSE) ->  | DG84: =DG$10/(1+(DG$11/($AF84-$AE$14))^DG$12)+DG$13 ->  | DH84: =DG84*DF84 ->  | DJ84: =HLOOKUP($AG84,Datenbank!$C$216:$I$232,DJ$17,FALSE) ->  | DK84: =DK$10/(1+(DK$11/($AF84-$AE$14))^DK$12)+DK$13 ->  | DL84: =DK84*DJ84 ->  | DN84: =HLOOKUP($AG84,Datenbank!$C$216:$I$232,DN$17,FALSE) ->  | DO84: =DO$10/(1+(DO$11/($AF84-$AE$14))^DO$12)+DO$13 ->  | DP84: =DO84*DN84 ->  | DR84: =HLOOKUP($AG84,Datenbank!$C$216:$I$232,DR$17,FALSE) ->  | DS84: =DS$10/(1+(DS$11/($AF84-$AE$14))^DS$12)+DS$13 ->  | DT84: =DS84*DR84 ->  | DV84: =HLOOKUP($AG84,Datenbank!$C$216:$I$232,DV$17,FALSE) ->  | DW84: =DW$10/(1+(DW$11/($AF84-$AE$14))^DW$12)+DW$13 ->  | DX84: =DW84*DV84 ->  | DZ84: =HLOOKUP($AG84,Datenbank!$C$216:$I$232,DZ$17,FALSE) ->  | EA84: =EA$10/(1+(EA$11/($AF84-$AE$14))^EA$12)+EA$13 ->  | EB84: =EA84*DZ84 ->  | ED84: =HLOOKUP($AG84,Datenbank!$C$216:$I$232,ED$17,FALSE) ->  | EE84: =EE$10/(1+(EE$11/($AF84-$AE$14))^EE$12)+EE$13 ->  | EF84: =EE84*ED84 ->  | EH84: =HLOOKUP($AG84,Datenbank!$C$216:$I$232,EH$17,FALSE) ->  | EI84: =EI$10/(1+(EI$11/($AF84-$AE$14))^EI$12)+EI$13 ->  | EJ84: =EI84*EH84 ->  | EL84: =HLOOKUP($AG84,Datenbank!$C$216:$I$232,EL$17,FALSE) ->  | EM84: =EM$10/(1+(EM$11/($AF84-$AE$14))^EM$12)+EM$13 ->  | EN84: =EM84*EL84 ->  | EP84: =HLOOKUP($AG84,Datenbank!$C$216:$I$232,EP$17,FALSE) ->  | EQ84: =EQ$10/(1+(EQ$11/($AF84-$AE$14))^EQ$12)+EQ$13 ->  | ER84: =EQ84*EP84 ->  | ET84: =HLOOKUP($AG84,Datenbank!$C$216:$I$232,ET$17,FALSE) ->  | EU84: =EU$10/(1+(EU$11/($AF84-$AE$14))^EU$12)+EU$13 ->  | EV84: =EU84*ET84 -> 
